Workbook

Sheet Sheet2 (hidden)
A1: 2024 | B1: Nizamabad | C1: Kamareddy | D1: Nirmal | E1: Adilabad | F1: Asifabad | G1: TOTAL
A2: Total HCFs | B2: 372 | C2: 188 | D2: 107 | E2: 119 | F2: 49 | G2: =SUM(B2:F2) -> 835
A3: Total Bedded | B3: 229 | C3: 113 | D3: 84 | E3: 63 | F3: 40 | G3: 529
A4: Total Non Bedded | B4: 143 | C4: 75 | D4: 23 | E4: 56 | F4: 9 | G4: 306
A5: Blood Banks | B5: 8 | C5: 2 | D5: 4 | E5: 2 | F5: 1 | G5: 17
A6: Clinics | B6: =143-8 -> 135 | C6: =75-2 -> 73 | D6: =23-4 -> 19 | E6: =56-2 -> 54 | F6: =9-1 -> 8 | G6: 289
A7: Total Beds | B7: 5,548 | C7: 1,924 | D7: 1,698 | E7: 1,639 | F7: 649 | G7: 11,458
A8: BMW Generation Kg / Day
A9: Bedded | B9: 551 | C9: 240 | D9: 146 | E9: 142 | F9: 71 | G9: =SUM(B9:F9) -> 1,150
A10: Non Bedded | B10: 103 | C10: 53 | D10: 19 | E10: 13 | F10: 6 | G10: =SUM(B10:F10) -> 194
A11: Total BMW Treated | B11: =SUM(B9:B10) -> 654 | C11: =SUM(C9:C10) -> 293 | D11: =SUM(D9:D10) -> 165 | E11: =SUM(E9:E10) -> 155 | F11: =SUM(F9:F10) -> 77 | G11: =SUM(B11:F11) -> 1,344

Sheet ABSTRACT
B1: ANNUAL REPORT - 2024 ABSTRACT
B2: DISTRICT | C2: NO.OF HCFs | D2: NO.OF BEDDED HCFS | E2: NO.OF NON-BEDDED HCFS | F2: NO.OF BEDS | G2: YELLOW | H2: RED | I2: BLUE | J2: WHITE | K2: TOTAL
G3: Values are in Kilograms
B4: NIZAMABAD | C4: =D4+E4 -> 433 | D4: =Classified!B21 -> 327 | E4: =Classified!C21 -> 106 | F4: =AR!E451 -> 6,007 | G4: =AR!BFM451 -> 97,234 | H4: =AR!BFN451 -> 72,831 | I4: =AR!BFO451 -> 27,795 | J4: =AR!BFP451 -> 2,532 | K4: =SUM(G4:J4) -> 200,392
B5: KAMAREDDY | C5: =D5+E5 -> 215 | D5: =Classified!B22 -> 165 | E5: =Classified!C22 -> 50 | F5: =AR!E677 -> 2,146 | G5: =AR!BFM677 -> 64,524 | H5: =AR!BFN677 -> 30,409 | I5: =AR!BFO677 -> 14,783 | J5: =AR!BFP677 -> 931 | K5: 110,647
B6: NIRMAL | C6: =D6+E6 -> 135 | D6: =Classified!B23 -> 118 | E6: =Classified!C23 -> 17 | F6: =AR!E821 -> 1,951 | G6: =AR!BFM821 -> 45,996 | H6: =AR!BFN821 -> 20,835 | I6: =AR!BFO821 -> 9,842 | J6: =AR!BFP821 -> 580 | K6: 77,252
B7: ADILABAD | C7: =D7+E7 -> 149 | D7: =Classified!B24 -> 107 | E7: =Classified!C24 -> 42 | F7: =AR!E976 -> 1,857 | G7: =AR!BFM976 -> 68,517 | H7: =AR!BFN976 -> 16,689 | I7: =AR!BFO976 -> 967 | J7: =AR!BFP976 -> 1,298 | K7: 87,471
B8: ASIFABAD | C8: =D8+E8 -> 55 | D8: =Classified!B25 -> 44 | E8: =Classified!C25 -> 11 | F8: =AR!E1036 -> 579 | G8: =AR!BFM1036 -> 27,800 | H8: =AR!BFN1036 -> 6,888 | I8: =AR!BFO1036 -> 253 | J8: =AR!BFP1036 -> 59 | K8: 35,000
B9: CLOSED HCFS | C9: =COUNT(AR!E1039:E1049) -> 10 | D9: =COUNTIF(AR!E1048:'AR'!E1049,">1") -> 1 | E9: =COUNTIF(AR!E1048:'AR'!E1049,"<1") -> 0 | F9: =SUM(AR!E1039:E1049) -> 72 | G9: =AR!BFM1050 -> 490 | H9: =AR!BFN1050 -> 309 | I9: =AR!BFO1050 -> 1 | J9: =AR!BFP1050 -> 0 | K9: 800
B10: TOTAL | C10: =SUM(C4:C9)-C9 -> 987 | D10: =SUM(D4:D8) -> 761 | E10: =SUM(E4:E8) -> 226 | F10: =SUM(F4:F8) -> 12,540 | G10: =SUM(G4:G9) -> 304,562 | H10: =SUM(H4:H9) -> 147,960 | I10: =SUM(I4:I9) -> 53,641 | J10: =SUM(J4:J9) -> 5,400 | K10: =SUM(K4:K9) -> 511,562
B12: DETAILS OF COLOURS
B13: YELLOW | C13: INCENERABLE WASTE
B14: RED | C14: AUTOCLAVE WASTE
B15: BLUE | C15: SHREDDING, BROKEN GLASS, METALIC BODY IMPLANTS
B16: WHITE | C16: SHARPENS, NEEDLES, BLADES, SCALPELS, NAILS, LANCETS

Sheet Classified
A1: DISTRICT | B1: NO.OF BEDDED HCFs | C1: NO.OF BEDDED HCFS
C2: Bedded | D2: Cancer | E2: Chest & Children | F2: Chest Speciality | G2: Child & Mother Special | H2: Children Speciality | I2: Critical, General, Emergency | J2: Dental Hospital | K2: Eye Hospital | L2: Gastro & Liver Speciality | M2: Kidney & Uro Speciality | N2: Laparoscopy Surgery | O2: Maternity & Children Speciality | P2: Maternity Nursing Home | Q2: Neuro & Psychiatric | R2: Neuro Speciality | S2: Neuro, Maternity & General | T2: Nursing Home | U2: Orthopedic | V2: Children Speciality | W2: Bedded Trauma Care
A3: NIZAMABAD | B3: =SUM(C3:W3) -> 327 | C3: =COUNTIF(AR!L6:L450,"Bedded") -> 151 | D3: =COUNTIF(AR!L6:L450,"Bedded Cancer Special") -> 2 | E3: =COUNTIF(AR!L6:L450,"Bedded Chest & Children Special") -> 0 | F3: =COUNTIF(AR!L6:L450,"Bedded Chest Speciality") -> 1 | G3: =COUNTIF(AR!L6:L450,"Bedded Child & Mother Special") -> 3 | H3: =COUNTIF(AR!$L$6:$L$450,"Bedded Children Speciality") -> 50 | I3: =COUNTIF(AR!$L$6:$L$450,"Bedded Critical, General, Emergency") -> 0 | J3: =COUNTIF(AR!$L$6:$L$450,"Dental Hospital") -> 64 | K3: =COUNTIF(AR!$L$6:$L$450,"Bedded Eye Hospital") -> 13 | L3: =COUNTIF(AR!$L$6:$L$450,"Bedded Gastro & Liver Speciality") -> 3 | M3: =COUNTIF(AR!$L$6:$L$450,"Bedded Kidney & Uro Speciality") -> 3 | N3: =COUNTIF(AR!$L$6:$L$450,"Bedded Laparoscopy Surgery") -> 0 | O3: =COUNTIF(AR!$L$6:$L$450,"Bedded Maternity & Children Speciality") -> 1 | P3: =COUNTIF(AR!$L$6:$L$450,"Bedded Maternity Nursing Home") -> 9 | Q3: =COUNTIF(AR!$L$6:$L$450,"Bedded Neuro & Psychiatric") -> 1 | R3: =COUNTIF(AR!$L$6:$L$450,"Bedded Neuro Speciality") -> 6 | S3: =COUNTIF(AR!$L$6:$L$450,"Bedded Neuro, Maternity & General") -> 0 | T3: =COUNTIF(AR!$L$6:$L$450,"Bedded Nursing Home") -> 16 | U3: =COUNTIF(AR!$L$6:$L$450,"Bedded Orthopedic") -> 4 | V3: =COUNTIF(AR!$L$6:$L$450,"Bedded Orthopedic & Children Special") -> 0 | W3: =COUNTIF(AR!$L$6:$L$450,"Bedded Trauma Care") -> 0
A4: KAMAREDDY | B4: 165 | C4: =COUNTIF(AR!L455:L676,"Bedded") -> 98 | D4: =COUNTIF(AR!L455:L676,"Bedded Cancer Special") -> 0 | E4: =COUNTIF(AR!L455:L676,"Bedded Chest & Children Special") -> 1 | F4: =COUNTIF(AR!L455:L676,"Bedded Chest Speciality") -> 1 | G4: =COUNTIF(AR!L455:L676,"Bedded Child & Mother Special") -> 1 | H4: =COUNTIF(AR!$L$455:$L$676,"Bedded Children Speciality") -> 12 | I4: =COUNTIF(AR!$L$455:$L$676,"Bedded Critical, General, Emergency") -> 2 | J4: =COUNTIF(AR!$L$455:$L$676,"Dental Hospital") -> 24 | K4: =COUNTIF(AR!$L$455:$L$676,"Bedded Eye Hospital") -> 11 | L4: =COUNTIF(AR!$L$455:$L$676,"Bedded Gastro & Liver Speciality") -> 2 | M4: =COUNTIF(AR!$L$455:$L$676,"Bedded Kidney & Uro Speciality") -> 1 | N4: =COUNTIF(AR!$L$455:$L$676,"Bedded Laparoscopy Surgery") -> 0 | O4: =COUNTIF(AR!$L$455:$L$676,"Bedded Maternity & Children Speciality") -> 1 | P4: =COUNTIF(AR!$L$455:$L$676,"Bedded Maternity Nursing Home") -> 5 | Q4: =COUNTIF(AR!$L$455:$L$676,"Bedded Neuro & Psychiatric") -> 0 | R4: =COUNTIF(AR!$L$455:$L$676,"Bedded Neuro Speciality") -> 4 | S4: =COUNTIF(AR!$L$455:$L$676,"Bedded Neuro, Maternity & General") -> 0 | T4: =COUNTIF(AR!$L$455:$L$676,"Bedded Nursing Home") -> 1 | U4: =COUNTIF(AR!$L$455:$L$676,"Bedded Orthopedic") -> 1 | V4: =COUNTIF(AR!$L$455:$L$676,"Bedded Orthopedic & Children Special") -> 0 | W4: =COUNTIF(AR!$L$455:$L$676,"Bedded Trauma Care") -> 0
A5: NIRMAL | B5: 118 | C5: =COUNTIF(AR!L681:L820,"Bedded") -> 87 | D5: =COUNTIF(AR!L681:L820,"Bedded Cancer Special") -> 0 | E5: =COUNTIF(AR!L681:L820,"Bedded Chest & Children Special") -> 0 | F5: =COUNTIF(AR!L681:L820,"Bedded Chest Speciality") -> 0 | G5: =COUNTIF(AR!L681:L820,"Bedded Child & Mother Special") -> 0 | H5: =COUNTIF(AR!$L$681:$L$820,"Bedded Children Speciality") -> 7 | I5: =COUNTIF(AR!$L$681:$L$820,"Bedded Critical, General, Emergency") -> 0 | J5: =COUNTIF(AR!$L$681:$L$820,"Dental Hospital") -> 6 | K5: =COUNTIF(AR!$L$681:$L$820,"Bedded Eye Hospital") -> 4 | L5: =COUNTIF(AR!$L$681:$L$820,"Bedded Gastro & Liver Speciality") -> 0 | M5: =COUNTIF(AR!$L$681:$L$820,"Bedded Kidney & Uro Speciality") -> 1 | N5: =COUNTIF(AR!$L$681:$L$820,"Bedded Laparoscopy Surgery") -> 0 | O5: =COUNTIF(AR!$L$681:$L$820,"Bedded Maternity & Children Speciality") -> 0 | P5: =COUNTIF(AR!$L$681:$L$820,"Bedded Maternity Nursing Home") -> 3 | Q5: =COUNTIF(AR!$L$681:$L$820,"Bedded Neuro & Psychiatric") -> 0 | R5: =COUNTIF(AR!$L$681:$L$820,"Bedded Neuro Speciality") -> 3 | S5: =COUNTIF(AR!$L$681:$L$820,"Bedded Neuro, Maternity & General") -> 1 | T5: =COUNTIF(AR!$L$681:$L$820,"Bedded Nursing Home") -> 6 | U5: =COUNTIF(AR!$L$681:$L$820,"Bedded Orthopedic") -> 0 | V5: =COUNTIF(AR!$L$681:$L$820,"Bedded Orthopedic & Children Special") -> 0 | W5: =COUNTIF(AR!$L$681:$L$820,"Bedded Trauma Care") -> 0
A6: ADILABAD | B6: 107 | C6: =COUNTIF(AR!L825:L975,"Bedded") -> 60 | D6: =COUNTIF(AR!L825:L975,"Bedded Cancer Special") -> 0 | E6: =COUNTIF(AR!L825:L975,"Bedded Chest & Children Special") -> 0 | F6: =COUNTIF(AR!L825:L975,"Bedded Chest Speciality") -> 0 | G6: =COUNTIF(AR!L825:L975,"Bedded Child & Mother Special") -> 0 | H6: =COUNTIF(AR!$L$825:$L$975,"Bedded Children Speciality") -> 3 | I6: =COUNTIF(AR!$L$825:$L$975,"Bedded Critical, General, Emergency") -> 0 | J6: =COUNTIF(AR!$L$825:$L$975,"Dental Hospital") -> 20 | K6: =COUNTIF(AR!$L$825:$L$975,"Bedded Eye Hospital") -> 3 | L6: =COUNTIF(AR!$L$825:$L$975,"Bedded Gastro & Liver Speciality") -> 1 | M6: =COUNTIF(AR!$L$825:$L$975,"Bedded Kidney & Uro Speciality") -> 1 | N6: =COUNTIF(AR!$L$825:$L$975,"Bedded Laparoscopy Surgery") -> 1 | O6: =COUNTIF(AR!$L$825:$L$975,"Bedded Maternity & Children Speciality") -> 0 | P6: =COUNTIF(AR!$L$825:$L$975,"Bedded Maternity Nursing Home") -> 6 | Q6: =COUNTIF(AR!$L$825:$L$975,"Bedded Neuro & Psychiatric") -> 0 | R6: =COUNTIF(AR!$L$825:$L$975,"Bedded Neuro Speciality") -> 1 | S6: =COUNTIF(AR!$L$825:$L$975,"Bedded Neuro, Maternity & General") -> 0 | T6: =COUNTIF(AR!$L$825:$L$975,"Bedded Nursing Home") -> 7 | U6: =COUNTIF(AR!$L$825:$L$975,"Bedded Orthopedic") -> 2 | V6: =COUNTIF(AR!$L$825:$L$975,"Bedded Orthopedic & Children Special") -> 1 | W6: =COUNTIF(AR!$L$825:$L$975,"Bedded Trauma Care") -> 1
A7: ASIFABAD | B7: 44 | C7: =COUNTIF(AR!L980:L1035,"Bedded") -> 39 | D7: =COUNTIF(AR!L980:L1035,"Bedded Cancer Special") -> 0 | E7: =COUNTIF(AR!L980:L1035,"Bedded Chest & Children Special") -> 0 | F7: =COUNTIF(AR!L980:L1035,"Bedded Chest Speciality") -> 0 | G7: =COUNTIF(AR!L980:L1035,"Bedded Child & Mother Special") -> 0 | H7: =COUNTIF(AR!$L$980:$L$1035,"Bedded Children Speciality") -> 2 | I7: =COUNTIF(AR!$L$980:$L$1035,"Bedded Critical, General, Emergency") -> 0 | J7: =COUNTIF(AR!$L$980:$L$1035,"Dental Hospital") -> 2 | K7: =COUNTIF(AR!$L$980:$L$1035,"Bedded Eye Hospital") -> 0 | L7: =COUNTIF(AR!$L$980:$L$1035,"Bedded Gastro & Liver Speciality") -> 0 | M7: =COUNTIF(AR!$L$980:$L$1035,"Bedded Kidney & Uro Speciality") -> 0 | N7: =COUNTIF(AR!$L$980:$L$1035,"Bedded Laparoscopy Surgery") -> 0 | O7: =COUNTIF(AR!$L$980:$L$1035,"Bedded Maternity & Children Speciality") -> 0 | P7: =COUNTIF(AR!$L$980:$L$1035,"Bedded Maternity Nursing Home") -> 0 | Q7: =COUNTIF(AR!$L$980:$L$1035,"Bedded Neuro & Psychiatric") -> 0 | R7: =COUNTIF(AR!$L$980:$L$1035,"Bedded Neuro Speciality") -> 0 | S7: =COUNTIF(AR!$L$980:$L$1035,"Bedded Neuro, Maternity & General") -> 0 | T7: =COUNTIF(AR!$L$980:$L$1035,"Bedded Nursing Home") -> 1 | U7: =COUNTIF(AR!$L$980:$L$1035,"Bedded Orthopedic") -> 0 | V7: =COUNTIF(AR!$L$980:$L$1035,"Bedded Orthopedic & Children Special") -> 0 | W7: =COUNTIF(AR!$L$980:$L$1035,"Bedded Trauma Care") -> 0
A8: TOTAL | B8: 761 | C8: =SUM(C3:C7) -> 435 | D8: =SUM(D3:D7) -> 2 | E8: =SUM(E3:E7) -> 1 | F8: 2 | G8: 4 | H8: 74 | I8: 2 | J8: 116 | K8: 31 | L8: 6 | M8: 6 | N8: 1 | O8: 2 | P8: 23 | Q8: 1 | R8: 14 | S8: 1 | T8: 31 | U8: 7 | V8: 1 | W8: 1
A10: DISTRICT | B10: NO.OF NON-BEDDED HCFs | C10: NO.OF NON BEDDED HCFS
C11: Clinic | D11: Clinic & Pathological Laboratory | E11: Clinic & Scan | F11: Clinic Ayurveda Hospital | G11: Clinic Children Speciality | H11: Clinic Dental & Diagnostics | I11: Clinic Diabetes | J11: Clinic ENT Special | K11: Clinic Eye & Dental Hospital | L11: Clinic Eye & Diagnostics | M11: Clinic Eye Hospital | N11: Clinic Neuro & Psychiatric | O11: Clinic Neuro Speciality | P11: Clinic Orthopedic | Q11: Clinic Physiotherapy | R11: Clinic Skin Care | S11: Veterinary | T11: Diagnostics | U11: Diagnostics & Imaging | V11: Diagnostics Fertility Center | W11: Blood Banks
A12: NIZAMABAD | B12: =SUM(C12:W12) -> 106 | C12: =COUNTIF(AR!$L$6:$L$450,"Clinic") -> 12 | D12: =COUNTIF(AR!$L$6:$L$450,"Clinic & Pathological Laboratory") -> 0 | E12: =COUNTIF(AR!$L$6:$L$450,"Clinic & Scan") -> 0 | F12: =COUNTIF(AR!$L$6:$L$450,"Clinic Ayurveda Hospital") -> 0 | G12: =COUNTIF(AR!$L$6:$L$450,"Clinic Children Speciality") -> 2 | H12: =COUNTIF(AR!$L$6:$L$450,"Clinic Dental & Diagnostics") -> 1 | I12: =COUNTIF(AR!$L$6:$L$450,"Clinic Diabetes") -> 2 | J12: =COUNTIF(AR!$L$6:$L$450,"Clinic ENT Special") -> 7 | K12: =COUNTIF(AR!$L$6:$L$450,"Clinic Eye & Dental Hospital") -> 1 | L12: =COUNTIF(AR!$L$6:$L$450,"Clinic Eye & Diagnostics") -> 1 | M12: =COUNTIF(AR!$L$6:$L$450,"Clinic Eye Hospital") -> 2 | N12: =COUNTIF(AR!$L$6:$L$450,"Clinic Neuro & Psychiatric") -> 4 | O12: =COUNTIF(AR!$L$6:$L$450,"Clinic Neuro Speciality") -> 0 | P12: =COUNTIF(AR!$L$6:$L$450,"Clinic Orthopedic") -> 1 | Q12: =COUNTIF(AR!$L$6:$L$450,"Clinic Physiotherapy") -> 1 | R12: =COUNTIF(AR!$L$6:$L$450,"Clinic Skin Care") -> 4 | S12: =COUNTIF(AR!$L$6:$L$450,"Veterinary") -> 2 | T12: =COUNTIF(AR!$L$6:$L$450,"Diagnostics") -> 37 | U12: =COUNTIF(AR!$L$6:$L$450,"Diagnostics & Imaging") -> 17 | V12: =COUNTIF(AR!$L$6:$L$450,"Diagnostics Fertility Center") -> 2 | W12: =COUNTIF(AR!$L$6:$L$450,"Blood Bank") -> 10
A13: KAMAREDDY | B13: =SUM(C13:W13) -> 50 | C13: =COUNTIF(AR!$L$455:$L$676,"Clinic") -> 9 | D13: =COUNTIF(AR!$L$455:$L$676,"Clinic & Pathological Laboratory") -> 0 | E13: =COUNTIF(AR!$L$455:$L$676,"Clinic & Scan") -> 0 | F13: =COUNTIF(AR!$L$455:$L$676,"Clinic Ayurveda Hospital") -> 0 | G13: =COUNTIF(AR!$L$455:$L$676,"Clinic Children Speciality") -> 2 | H13: =COUNTIF(AR!$L$455:$L$676,"Clinic Dental & Diagnostics") -> 0 | I13: =COUNTIF(AR!$L$455:$L$676,"Clinic Diabetes") -> 0 | J13: =COUNTIF(AR!$L$455:$L$676,"Clinic ENT Special") -> 0 | K13: =COUNTIF(AR!$L$455:$L$676,"Clinic Eye & Dental Hospital") -> 0 | L13: =COUNTIF(AR!$L$455:$L$676,"Clinic Eye & Diagnostics") -> 0 | M13: =COUNTIF(AR!$L$455:$L$676,"Clinic Eye Hospital") -> 1 | N13: =COUNTIF(AR!$L$455:$L$676,"Clinic Neuro & Psychiatric") -> 0 | O13: =COUNTIF(AR!$L$455:$L$676,"Clinic Neuro Speciality") -> 0 | P13: =COUNTIF(AR!$L$455:$L$676,"Clinic Orthopedic") -> 2 | Q13: =COUNTIF(AR!$L$455:$L$676,"Clinic Physiotherapy") -> 1 | R13: =COUNTIF(AR!$L$455:$L$676,"Clinic Skin Care") -> 7 | S13: =COUNTIF(AR!$L$455:$L$676,"Veterinary") -> 0 | T13: =COUNTIF(AR!$L$455:$L$676,"Diagnostics") -> 23 | U13: =COUNTIF(AR!$L$455:$L$676,"Diagnostics & Imaging") -> 3 | V13: =COUNTIF(AR!$L$455:$L$676,"Diagnostics Fertility Center") -> 0 | W13: =COUNTIF(AR!$L$455:$L$676,"Blood Bank") -> 2
A14: NIRMAL | B14: =SUM(C14:W14) -> 17 | C14: =COUNTIF(AR!$L$681:$L$820,"Clinic") -> 3 | D14: =COUNTIF(AR!$L$681:$L$820,"Clinic & Pathological Laboratory") -> 0 | E14: =COUNTIF(AR!$L$681:$L$820,"Clinic & Scan") -> 0 | F14: =COUNTIF(AR!$L$681:$L$820,"Clinic Ayurveda Hospital") -> 0 | G14: =COUNTIF(AR!$L$681:$L$820,"Clinic Children Speciality") -> 0 | H14: =COUNTIF(AR!$L$681:$L$820,"Clinic Dental & Diagnostics") -> 0 | I14: =COUNTIF(AR!$L$681:$L$820,"Clinic Diabetes") -> 0 | J14: =COUNTIF(AR!$L$681:$L$820,"Clinic ENT Special") -> 1 | K14: =COUNTIF(AR!$L$681:$L$820,"Clinic Eye & Dental Hospital") -> 0 | L14: =COUNTIF(AR!$L$681:$L$820,"Clinic Eye & Diagnostics") -> 0 | M14: =COUNTIF(AR!$L$681:$L$820,"Clinic Eye Hospital") -> 0 | N14: =COUNTIF(AR!$L$681:$L$820,"Clinic Neuro & Psychiatric") -> 0 | O14: =COUNTIF(AR!$L$681:$L$820,"Clinic Neuro Speciality") -> 1 | P14: =COUNTIF(AR!$L$681:$L$820,"Clinic Orthopedic") -> 0 | Q14: =COUNTIF(AR!$L$681:$L$820,"Clinic Physiotherapy") -> 0 | R14: =COUNTIF(AR!$L$681:$L$820,"Clinic Skin Care") -> 2 | S14: =COUNTIF(AR!$L$681:$L$820,"Veterinary") -> 0 | T14: =COUNTIF(AR!$L$681:$L$820,"Diagnostics") -> 5 | U14: =COUNTIF(AR!$L$681:$L$820,"Diagnostics & Imaging") -> 1 | V14: =COUNTIF(AR!$L$681:$L$820,"Diagnostics Fertility Center") -> 0 | W14: =COUNTIF(AR!$L$681:$L$820,"Blood Bank") -> 4
A15: ADILABAD | B15: =SUM(C15:W15) -> 42 | C15: =COUNTIF(AR!$L$825:$L$975,"Clinic") -> 4 | D15: =COUNTIF(AR!$L$825:$L$975,"Clinic & Pathological Laboratory") -> 1 | E15: =COUNTIF(AR!$L$825:$L$975,"Clinic & Scan") -> 0 | F15: =COUNTIF(AR!$L$825:$L$975,"Clinic Ayurveda Hospital") -> 0 | G15: =COUNTIF(AR!$L$825:$L$975,"Clinic Children Speciality") -> 2 | H15: =COUNTIF(AR!$L$825:$L$975,"Clinic Dental & Diagnostics") -> 0 | I15: =COUNTIF(AR!$L$825:$L$975,"Clinic Diabetes") -> 0 | J15: =COUNTIF(AR!$L$825:$L$975,"Clinic ENT Special") -> 0 | K15: =COUNTIF(AR!$L$825:$L$975,"Clinic Eye & Dental Hospital") -> 0 | L15: =COUNTIF(AR!$L$825:$L$975,"Clinic Eye & Diagnostics") -> 0 | M15: =COUNTIF(AR!$L$825:$L$975,"Clinic Eye Hospital") -> 1 | N15: =COUNTIF(AR!$L$825:$L$975,"Clinic Neuro & Psychiatric") -> 0 | O15: =COUNTIF(AR!$L$825:$L$975,"Clinic Neuro Speciality") -> 1 | P15: =COUNTIF(AR!$L$825:$L$975,"Clinic Orthopedic") -> 0 | Q15: =COUNTIF(AR!$L$825:$L$975,"Clinic Physiotherapy") -> 0 | R15: =COUNTIF(AR!$L$825:$L$975,"Clinic Skin Care") -> 1 | S15: =COUNTIF(AR!$L$825:$L$975,"Veterinary") -> 24 | T15: =COUNTIF(AR!$L$825:$L$975,"Diagnostics") -> 6 | U15: =COUNTIF(AR!$L$825:$L$975,"Diagnostics & Imaging") -> 0 | V15: =COUNTIF(AR!$L$825:$L$975,"Diagnostics Fertility Center") -> 0 | W15: =COUNTIF(AR!$L$825:$L$975,"Blood Bank") -> 2
A16: ASIFABAD | B16: =SUM(C16:W16) -> 11 | C16: =COUNTIF(AR!$L$980:$L$1035,"Clinic") -> 5 | D16: =COUNTIF(AR!$L$980:$L$1035,"Clinic & Pathological Laboratory") -> 0 | E16: =COUNTIF(AR!$L$980:$L$1035,"Clinic & Scan") -> 1 | F16: =COUNTIF(AR!$L$980:$L$1035,"Clinic Ayurveda Hospital") -> 0 | G16: =COUNTIF(AR!$L$980:$L$1035,"Clinic Children Speciality") -> 0 | H16: =COUNTIF(AR!$L$980:$L$1035,"Clinic Dental & Diagnostics") -> 0 | I16: =COUNTIF(AR!$L$980:$L$1035,"Clinic Diabetes") -> 0 | J16: =COUNTIF(AR!$L$980:$L$1035,"Clinic ENT Special") -> 0 | K16: =COUNTIF(AR!$L$980:$L$1035,"Clinic Eye & Dental Hospital") -> 0 | L16: =COUNTIF(AR!$L$980:$L$1035,"Clinic Eye & Diagnostics") -> 0 | M16: =COUNTIF(AR!$L$980:$L$1035,"Clinic Eye Hospital") -> 0 | N16: =COUNTIF(AR!$L$980:$L$1035,"Clinic Neuro & Psychiatric") -> 0 | O16: =COUNTIF(AR!$L$980:$L$1035,"Clinic Neuro Speciality") -> 0 | P16: =COUNTIF(AR!$L$980:$L$1035,"Clinic Orthopedic") -> 0 | Q16: =COUNTIF(AR!$L$980:$L$1035,"Clinic Physiotherapy") -> 0 | R16: =COUNTIF(AR!$L$980:$L$1035,"Clinic Skin Care") -> 0 | S16: =COUNTIF(AR!$L$980:$L$1035,"Veterinary") -> 0 | T16: =COUNTIF(AR!$L$980:$L$1035,"Diagnostics") -> 4 | U16: =COUNTIF(AR!$L$980:$L$1035,"Diagnostics & Imaging") -> 0 | V16: =COUNTIF(AR!$L$980:$L$1035,"Diagnostics Fertility Center") -> 0 | W16: =COUNTIF(AR!$L$980:$L$1035,"Blood Bank") -> 1
A17: TOTAL | B17: =SUM(C17:V17) -> 207 | C17: =SUM(C12:C16) -> 33 | D17: =SUM(D12:D16) -> 1 | E17: 1 | F17: 0 | G17: 6 | H17: 1 | I17: 2 | J17: 8 | K17: 1 | L17: 1 | M17: 4 | N17: 4 | O17: 2 | P17: 3 | Q17: 2 | R17: 14 | S17: =SUM(S12:S16) -> 26 | T17: =SUM(T12:T16) -> 75 | U17: =SUM(U12:U16) -> 21 | V17: =SUM(V12:V16) -> 2 | W17: =SUM(W12:W16) -> 19
A19: DISTRICT | B19: Bedded HCFs | C19: Non-Bedded HCFs | D19: Total HCFs. | E19: No. of Beds
E20: No. of Beds
A21: NIZAMABAD | B21: =B3 -> 327 | C21: =B12 -> 106 | D21: =B21+C21 -> 433 | E21: =AR!E451 -> 6007
A22: KAMAREDDY | B22: =B4 -> 165 | C22: =B13 -> 50 | D22: 215 | E22: =AR!E677 -> 2146
A23: NIRMAL | B23: =B5 -> 118 | C23: =B14 -> 17 | D23: 135 | E23: =AR!E821 -> 1951
A24: ADILABAD | B24: =B6 -> 107 | C24: =B15 -> 42 | D24: 149 | E24: =AR!E976 -> 1857
A25: ASIFABAD | B25: =B7 -> 44 | C25: =B16 -> 11 | D25: 55 | E25: =AR!E1036 -> 579
A26: TOTAL | B26: =SUM(B21:B25) -> 761 | C26: =SUM(C21:C25) -> 226 | D26: 987 | E26: =SUM(E21:E25) -> 12540
A28: DISTRICT | B28: Govt HCFs | C28: Private HCFs | D28: Total HCFs. | E28: No. of Beds
A29: NIZAMABAD | B29: =COUNTIF(AR!$K$6:$K$450,"Government") -> 41 | C29: =COUNTIF(AR!$K$6:$K$450,"Private") -> 392 | D29: =B29+C29 -> 433 | E29: =AR!E451 -> 6007
A30: KAMAREDDY | B30: =COUNTIF(AR!$K$455:$K$676,"Government") -> 29 | C30: =COUNTIF(AR!$K$455:$K$676,"Private") -> 187 | D30: =B30+C30 -> 216 | E30: =AR!E677 -> 2146
A31: NIRMAL | B31: =COUNTIF(AR!$K$681:$K$820,"Government") -> 22 | C31: =COUNTIF(AR!$K$681:$K$820,"Private") -> 113 | D31: 135 | E31: =AR!E821 -> 1951
A32: ADILABAD | B32: =COUNTIF(AR!$K$825:$K$975,"Government") -> 55 | C32: =COUNTIF(AR!$K$825:$K$975,"Private") -> 94 | D32: 149 | E32: =AR!E976 -> 1857
A33: ASIFABAD | B33: =COUNTIF(AR!$K$980:$K$1035,"Government") -> 26 | C33: =COUNTIF(AR!$K$980:$K$1035,"Private") -> 29 | D33: 55 | E33: =AR!E1036 -> 579
A34: TOTAL | B34: =SUM(B29:B33) -> 173 | C34: =SUM(C29:C33) -> 815 | D34: 988 | E34: =SUM(E29:E33) -> 12540
E36: =E34-12540 -> 0

Sheet AR
A1: HOSPITAL WISE ANNUAL REPORT - 2024 | M1: JANUARY - 2024 | EK1: FEBRUARY - 2024 | IW1: MARCH - 2024 | NU1: APRIL - 2024 | SO1: MAY - 2024 | XM1: JUNE - 2024 | ACG1: JULY - 2024 | AHE1: AUGUST - 2024 | AMC1: SEPTEMBER - 2024 | AQW1: OCTOBER - 2024 | AVU1: NOVEMBER - 2024 | BAO1: DECEMBER - 2024 | BFM1: 2024
A2: S.No. | B2: HCF ID | C2: Name of the HCF | D2: Address of the HCF | E2: BEDS | F2: Longitude | G2: Latitude | H2: Correspondent of HCF | I2: Contact No. | J2: Mail ID | K2: Ownership | L2: Type of HCF | M2: 2024-01-01 | Q2: 2024-01-02 | U2: 2024-01-03 | Y2: 2024-01-04 | AC2: 2024-01-05 | AG2: 2024-01-06 | AK2: 2024-01-07 | AO2: 2024-01-08 | AS2: 2024-01-09 | AW2: 2024-01-10 | BA2: 2024-01-11 | BE2: 2024-01-12 | BI2: 2024-01-13 | BM2: 2024-01-14 | BQ2: 2024-01-15 | BU2: 2024-01-16 | BY2: 2024-01-17 | CC2: 2024-01-18 | CG2: 2024-01-19 | CK2: 2024-01-20 | CO2: 2024-01-21 | CS2: 2024-01-22 | CW2: 2024-01-23 | DA2: 2024-01-24 | DE2: 2024-01-25 | DI2: 2024-01-26 | DM2: 2024-01-27 | DQ2: 2024-01-28 | DU2: 2024-01-29 | DY2: 2024-01-30 | EC2: 2024-01-31 | EG2: TOTAL | EK2: 2024-02-01 | EO2: 2024-02-02 | ES2: 2024-02-03 | EW2: 2024-02-04 | FA2: 2024-02-05 | FE2: 2024-02-06 | FI2: 2024-02-07 | FM2: 2024-02-08 | FQ2: 2024-02-09 | FU2: 2024-02-10 | FY2: 2024-02-11 | GC2: 2024-02-12 | GG2: 2024-02-13 | GK2: 2024-02-14 | GO2: 2024-02-15 | GS2: 2024-02-16 | GW2: 2024-02-17 | HA2: 2024-02-18 | HE2: 2024-02-19 | HI2: 2024-02-20 | HM2: 2024-02-21 | HQ2: 2024-02-22 | HU2: 2024-02-23 | HY2: 2024-02-24 | IC2: 2024-02-26 | IG2: 2024-02-27 | IK2: 2024-02-28 | IO2: 2024-02-29 | IS2: TOTAL | IW2: 2024-03-01 | JA2: 2024-03-02 | JE2: 2024-03-03 | JI2: 2024-03-04 | JM2: 2024-03-05 | JQ2: 2024-03-06 | JU2: 2024-03-07 | JY2: 2024-03-08 | KC2: 2024-03-09 | KG2: 2024-03-10 | KK2: 2024-03-11 | KO2: 2024-03-12 | KS2: 2024-03-13 | KW2: 2024-03-14 | LA2: 2024-03-15 | LE2: 2024-03-16 | LI2: 2024-03-17 | LM2: 2024-03-18 | LQ2: 2024-03-19 | LU2: 2024-03-20 | LY2: 2024-03-21 | MC2: 2024-03-22 | MG2: 2024-03-23 | MK2: 2024-03-24 | MO2: 2024-03-25 | MS2: 2024-03-26 | MW2: 2024-03-27 | NA2: 2024-03-28 | NE2: 2024-03-29 | NI2: 2024-03-30 | NM2: 2024-03-31 | NQ2: TOTAL | NU2: 2024-04-01 | NY2: 2024-04-02 | OC2: 2024-04-03 | OG2: 2024-04-04 | OK2: 2024-04-05 | OO2: 2024-04-06 | OS2: 2024-04-07 | OW2: 2024-04-08 | PA2: 2024-04-09 | PE2: 2024-04-10 | PI2: 2024-04-11 | PM2: 2024-04-12 | PQ2: 2024-04-13 | PU2: 2024-04-14 | PY2: 2024-04-15 | QC2: 2024-04-16 | QG2: 2024-04-17 | QK2: 2024-04-18 | QO2: 2024-04-19 | QS2: 2024-04-20 | QW2: 2024-04-21 | RA2: 2024-04-22 | RE2: 2024-04-23 | RI2: 2024-04-24 | RM2: 2024-04-25 | RQ2: 2024-04-26 | RU2: 2024-04-27 | RY2: 2024-04-28 | SC2: 2024-04-29 | SG2: 2024-04-30 | SK2: TOTAL | SO2: 2024-05-01 | SS2: 2024-05-02 | SW2: 2024-05-03 | TA2: 2024-05-04 | TE2: 2024-05-05 | TI2: 2024-05-06 | TM2: 2024-05-07 | TQ2: 2024-05-08 | TU2: 2024-05-09 | TY2: 2024-05-10 | UC2: 2024-05-11 | UG2: 2024-05-12 | UK2: 2024-05-13 | UO2: 2024-05-14 | US2: 2024-05-15 | UW2: 2024-05-16 | VA2: 2024-05-17 | VE2: 2024-05-18 | VI2: 2024-05-19 | VM2: 2024-05-20 | VQ2: 2024-05-21 | VU2: 2024-05-22 | VY2: 2024-05-23 | WC2: 2024-05-24 | WG2: 2024-05-25 | WK2: 2024-05-26 | WO2: 2024-05-27 | WS2: 2024-05-28 | WW2: 2024-05-29 | XA2: 2024-05-30 | XE2: 2024-05-31 | XI2: TOTAL | XM2: 2024-06-01 | XQ2: 2024-06-02 | XU2: 2024-06-03 | XY2: 2024-06-04 | YC2: 2024-06-05 | YG2: 2024-06-06 | YK2: 2024-06-07 | YO2: 2024-06-08 | YS2: 2024-06-09 | YW2: 2024-06-10 | ZA2: 2024-06-11 | ZE2: 2024-06-12 | ZI2: 2024-06-13 | ZM2: 2024-06-14 | ZQ2: 2024-06-15 | ZU2: 2024-06-16 | ZY2: 2024-06-17 | AAC2: 2024-06-18 | AAG2: 2024-06-19 | AAK2: 2024-06-20 | AAO2: 2024-06-21 | AAS2: 2024-06-22 | AAW2: 2024-06-23 | ABA2: 2024-06-24 | ABE2: 2024-06-25 | ABI2: 2024-06-26 | ABM2: 2024-06-27 | ABQ2: 2024-06-28 | ABU2: 2024-06-29 | ABY2: 2024-06-30 | ACC2: TOTAL | ACG2: 2024-07-01 | ACK2: 2024-07-02 | ACO2: 2024-07-03 | ACS2: 2024-07-04 | ACW2: 2024-07-05 | ADA2: 2024-07-06 | ADE2: 2024-07-07 | ADI2: 2024-07-08 | ADM2: 2024-07-09 | ADQ2: 2024-07-10 | ADU2: 2024-07-11 | ADY2: 2024-07-12 | AEC2: 2024-07-13 | AEG2: 2024-07-14 | AEK2: 2024-07-15 | AEO2: 2024-07-16 | AES2: 2024-07-17 | AEW2: 2024-07-18 | AFA2: 2024-07-19 | AFE2: 2024-07-20 | AFI2: 2024-07-21 | AFM2: 2024-07-22 | AFQ2: 2024-07-23 | AFU2: 2024-07-24 | AFY2: 2024-07-25 | AGC2: 2024-07-26 | AGG2: 2024-07-27 | AGK2: 2024-07-28 | AGO2: 2024-07-29 | AGS2: 2024-07-30 | AGW2: 2024-07-31 | AHA2: TOTAL | AHE2: 2024-08-01 | AHI2: 2024-08-02 | AHM2: 2024-08-03 | AHQ2: 2024-08-04 | AHU2: 2024-08-05 | AHY2: 2024-08-06 | AIC2: 2024-08-07 | AIG2: 2024-08-08 | AIK2: 2024-08-09 | AIO2: 2024-08-10 | AIS2: 2024-08-11 | AIW2: 2024-08-12 | AJA2: 2024-08-13 | AJE2: 2024-08-14 | AJI2: 2024-08-15 | AJM2: 2024-08-16 | AJQ2: 2024-08-17 | AJU2: 2024-08-18 | AJY2: 2024-08-19 | AKC2: 2024-08-20 | AKG2: 2024-08-21 | AKK2: 2024-08-22 | AKO2: 2024-08-23 | AKS2: 2024-08-24 | AKW2: 2024-08-25 | ALA2: 2024-08-26 | ALE2: 2024-08-27 | ALI2: 2024-08-28 | ALM2: 2024-08-29 | ALQ2: 2024-08-30 | ALU2: 2024-08-31 | ALY2: AUGUST TOTAL | AMC2: 2024-09-01 | AMG2: 2024-09-02 | AMK2: 2024-09-03 | AMO2: 2024-09-04 | AMS2: 2024-09-05 | AMW2: 2024-09-06 | ANA2: 2024-09-07 | ANE2: 2024-09-08 | ANI2: 2024-09-09 | ANM2: 2024-09-10 | ANQ2: 2024-09-11 | ANU2: 2024-09-12 | ANY2: 2024-09-13 | AOC2: 2024-09-14 | AOG2: 2024-09-15 | AOK2: 2024-09-16 | AOO2: 2024-09-17 | AOS2: 2024-09-18 | AOW2: 2024-09-19 | APA2: 2024-09-20 | APE2: 2024-09-21 | API2: 2024-09-22 | APM2: 2024-09-23 | APQ2: 2024-09-24 | APU2: 2024-09-25 | APY2: 2024-09-26 | AQC2: 2024-09-27 | AQG2: 2024-09-28 | AQK2: 2024-09-29 | AQO2: 2024-09-30 | AQS2: SEPTEMBER TOTAL | AQW2: 2024-10-01 | ARA2: 2024-10-02 | ARE2: 2024-10-03 | ARI2: 2024-10-04 | ARM2: 2024-10-05 | ARQ2: 2024-10-06 | ARU2: 2024-10-07 | ARY2: 2024-10-08 | ASC2: 2024-10-09 | ASG2: 2024-10-10 | ASK2: 2024-10-11 | ASO2: 2024-10-12 | ASS2: 2024-10-13 | ASW2: 2024-10-14 | ATA2: 2024-10-15 | ATE2: 2024-10-16 | ATI2: 2024-10-17 | ATM2: 2024-10-18 | ATQ2: 2024-10-19 | ATU2: 2024-10-20 | ATY2: 2024-10-21 | AUC2: 2024-10-22 | AUG2: 2024-10-23 | AUK2: 2024-10-24 | AUO2: 2024-10-25 | AUS2: 2024-10-26 | AUW2: 2024-10-27 | AVA2: 2024-10-28 | AVE2: 2024-10-29 | AVI2: 2024-10-30 | AVM2: 2024-10-31 | AVQ2: OCTOBER TOTAL | AVU2: 2024-11-01 | AVY2: 2024-11-02 | AWC2: 2024-11-03 | AWG2: 2024-11-04 | AWK2: 2024-11-05 | AWO2: 2024-11-06 | AWS2: 2024-11-07 | AWW2: 2024-11-08 | AXA2: 2024-11-09 | AXE2: 2024-11-10 | AXI2: 2024-11-11 | AXM2: 2024-11-12 | AXQ2: 2024-11-13 | AXU2: 2024-11-14 | AXY2: 2024-11-15 | AYC2: 2024-11-16 | AYG2: 2024-11-17 | AYK2: 2024-11-18 | AYO2: 2024-11-19 | AYS2: 2024-11-20 | AYW2: 2024-11-21 | AZA2: 2024-11-22 | AZE2: 2024-11-23 | AZI2: 2024-11-24 | AZM2: 2024-11-25 | AZQ2: 2024-11-26 | AZU2: 2024-11-27 | AZY2: 2024-11-28 | BAC2: 2024-11-29 | BAG2: 2024-11-30 | BAK2: NOVEMBER TOTAL | BAO2: 2024-12-01 | BAS2: 2024-12-02 | BAW2: 2024-12-03 | BBA2: 2024-12-04 | BBE2: 2024-12-05 | BBI2: 2024-12-06 | BBM2: 2024-12-07 | BBQ2: 2024-12-08 | BBU2: 2024-12-09 | BBY2: 2024-12-10 | BCC2: 2024-12-11 | BCG2: 2024-12-12 | BCK2: 2024-12-13 | BCO2: 2024-12-14 | BCS2: 2024-12-15 | BCW2: 2024-12-16 | BDA2: 2024-12-17 | BDE2: 2024-12-18 | BDI2: 2024-12-19 | BDM2: 2024-12-20 | BDQ2: 2024-12-21 | BDU2: 2024-12-22 | BDY2: 2024-12-23 | BEC2: 2024-12-24 | BEG2: 2024-12-25 | BEK2: 2024-12-26 | BEO2: 2024-12-27 | BES2: 2024-12-28 | BEW2: 2024-12-29 | BFA2: 2024-12-30 | BFE2: 2024-12-31 | BFI2: DECEMBER TOTAL | BFM2: ANNUAL TOTAL | BFQ2: AVERAGE PER MONTH
M3: Yellow | N3: Red | O3: Blue | P3: White | Q3: Yellow | R3: Red | S3: Blue | T3: White | U3: Yellow | V3: Red | W3: Blue | X3: White | Y3: Yellow | Z3: Red | AA3: Blue | AB3: White | AC3: Yellow | AD3: Red | AE3: Blue | AF3: White | AG3: Yellow | AH3: Red | AI3: Blue | AJ3: White | AK3: Yellow | AL3: Red | AM3: Blue | AN3: White | AO3: Yellow | AP3: Red | AQ3: Blue | AR3: White | AS3: Yellow | AT3: Red | AU3: Blue | AV3: White | AW3: Yellow | AX3: Red | AY3: Blue | AZ3: White | BA3: Yellow | BB3: Red | BC3: Blue | BD3: White | BE3: Yellow | BF3: Red | BG3: Blue | BH3: White | BI3: Yellow | BJ3: Red | BK3: Blue | BL3: White | BM3: Yellow | BN3: Red | BO3: Blue | BP3: White | BQ3: Yellow | BR3: Red | BS3: Blue | BT3: White | BU3: Yellow | BV3: Red | BW3: Blue | BX3: White | BY3: Yellow | BZ3: Red | CA3: Blue | CB3: White | CC3: Yellow | CD3: Red | CE3: Blue | CF3: White | CG3: Yellow | CH3: Red | CI3: Blue | CJ3: White | CK3: Yellow | CL3: Red | CM3: Blue | CN3: White | CO3: Yellow | CP3: Red | CQ3: Blue | CR3: White | CS3: Yellow | CT3: Red | CU3: Blue | CV3: White | CW3: Yellow | CX3: Red | CY3: Blue | CZ3: White | DA3: Yellow | DB3: Red | DC3: Blue | DD3: White | DE3: Yellow | DF3: Red | DG3: Blue | DH3: White | DI3: Yellow | DJ3: Red | DK3: Blue | DL3: White | DM3: Yellow | DN3: Red | DO3: Blue | DP3: White | DQ3: Yellow | DR3: Red | DS3: Blue | DT3: White | DU3: Yellow | DV3: Red | DW3: Blue | DX3: White | DY3: Yellow | DZ3: Red | EA3: Blue | EB3: White | EC3: Yellow | ED3: Red | EE3: Blue | EF3: White | EG3: Yellow | EH3: Red | EI3: Blue | EJ3: White | EK3: Yellow | EL3: Red | EM3: Blue | EN3: White | EO3: Yellow | EP3: Red | EQ3: Blue | ER3: White | ES3: Yellow | ET3: Red | EU3: Blue | EV3: White | EW3: Yellow | EX3: Red | EY3: Blue | EZ3: White | FA3: Yellow | FB3: Red | FC3: Blue | FD3: White | FE3: Yellow | FF3: Red | FG3: Blue | FH3: White | FI3: Yellow | FJ3: Red | FK3: Blue | FL3: White | FM3: Yellow | FN3: Red | FO3: Blue | FP3: White | FQ3: Yellow | FR3: Red | FS3: Blue | FT3: White | FU3: Yellow | FV3: Red | FW3: Blue | FX3: White | FY3: Yellow | FZ3: Red | GA3: Blue | GB3: White | GC3: Yellow | GD3: Red | GE3: Blue | GF3: White | GG3: Yellow | GH3: Red | GI3: Blue | GJ3: White | GK3: Yellow | GL3: Red | GM3: Blue | GN3: White | GO3: Yellow | GP3: Red | GQ3: Blue | GR3: White | GS3: Yellow | GT3: Red | GU3: Blue | GV3: White | GW3: Yellow | GX3: Red | GY3: Blue | GZ3: White | HA3: Yellow | HB3: Red | HC3: Blue | HD3: White | HE3: Yellow | HF3: Red | HG3: Blue | HH3: White | HI3: Yellow | HJ3: Red | HK3: Blue | HL3: White | HM3: Yellow | HN3: Red | HO3: Blue | HP3: White | HQ3: Yellow | HR3: Red | HS3: Blue | HT3: White | HU3: Yellow | HV3: Red | HW3: Blue | HX3: White | HY3: Yellow | HZ3: Red | IA3: Blue | IB3: White | IC3: Yellow | ID3: Red | IE3: Blue | IF3: White | IG3: Yellow | IH3: Red | II3: Blue | IJ3: White | IK3: Yellow | IL3: Red | IM3: Blue | IN3: White | IO3: Yellow | IP3: Red | IQ3: Blue | IR3: White | IS3: Yellow | IT3: Red | IU3: Blue | IV3: White | IW3: Yellow | IX3: Red | IY3: Blue | IZ3: White | JA3: Yellow | JB3: Red | JC3: Blue | JD3: White | JE3: Yellow | JF3: Red | JG3: Blue | JH3: White | JI3: Yellow | JJ3: Red | JK3: Blue | JL3: White | JM3: Yellow | JN3: Red | JO3: Blue | JP3: White | JQ3: Yellow | JR3: Red | JS3: Blue | JT3: White | JU3: Yellow | JV3: Red | JW3: Blue | JX3: White | JY3: Yellow | JZ3: Red | KA3: Blue | KB3: White | KC3: Yellow | KD3: Red | KE3: Blue | KF3: White | KG3: Yellow | KH3: Red | KI3: Blue | KJ3: White | KK3: Yellow | KL3: Red | KM3: Blue | KN3: White | KO3: Yellow | KP3: Red | KQ3: Blue | KR3: White | KS3: Yellow | KT3: Red | KU3: Blue | KV3: White | KW3: Yellow | KX3: Red | KY3: Blue | KZ3: White | LA3: Yellow | LB3: Red | LC3: Blue | LD3: White | LE3: Yellow | LF3: Red | LG3: Blue | LH3: White | LI3: Yellow | LJ3: Red | LK3: Blue | LL3: White | LM3: Yellow | LN3: Red | LO3: Blue | LP3: White | LQ3: Yellow | LR3: Red | LS3: Blue | LT3: White | LU3: Yellow | LV3: Red | LW3: Blue | LX3: White | LY3: Yellow | LZ3: Red | MA3: Blue | MB3: White | MC3: Yellow | MD3: Red | ME3: Blue | MF3: White | MG3: Yellow | MH3: Red | MI3: Blue | MJ3: White | MK3: Yellow | ML3: Red | MM3: Blue | MN3: White | MO3: Yellow | MP3: Red | MQ3: Blue | MR3: White | MS3: Yellow | MT3: Red | MU3: Blue | MV3: White | MW3: Yellow | MX3: Red | MY3: Blue | MZ3: White | NA3: Yellow | NB3: Red | NC3: Blue | ND3: White | NE3: Yellow | NF3: Red | NG3: Blue | NH3: White | NI3: Yellow | NJ3: Red | NK3: Blue | NL3: White | NM3: Yellow | NN3: Red | NO3: Blue | NP3: White | NQ3: Yellow | NR3: Red | NS3: Blue | NT3: White | NU3: Yellow | NV3: Red | NW3: Blue | NX3: White | NY3: Yellow | NZ3: Red | OA3: Blue | OB3: White | OC3: Yellow | OD3: Red | OE3: Blue | OF3: White | OG3: Yellow | OH3: Red | OI3: Blue | OJ3: White | OK3: Yellow | OL3: Red | OM3: Blue | ON3: White | OO3: Yellow | OP3: Red | OQ3: Blue | OR3: White | OS3: Yellow | OT3: Red | OU3: Blue | OV3: White | OW3: Yellow | OX3: Red | OY3: Blue | OZ3: White | PA3: Yellow | PB3: Red | PC3: Blue | PD3: White | PE3: Yellow | PF3: Red | PG3: Blue | PH3: White | PI3: Yellow | PJ3: Red | PK3: Blue | PL3: White | PM3: Yellow | PN3: Red | PO3: Blue | PP3: White | PQ3: Yellow | PR3: Red | PS3: Blue | PT3: White | PU3: Yellow | PV3: Red | PW3: Blue | PX3: White | PY3: Yellow | PZ3: Red | QA3: Blue | QB3: White | QC3: Yellow | QD3: Red | QE3: Blue | QF3: White | QG3: Yellow | QH3: Red | QI3: Blue | QJ3: White | QK3: Yellow | QL3: Red | QM3: Blue | QN3: White | QO3: Yellow | QP3: Red | QQ3: Blue | QR3: White | QS3: Yellow | QT3: Red | QU3: Blue | QV3: White | QW3: Yellow | QX3: Red | QY3: Blue | QZ3: White | RA3: Yellow | RB3: Red | RC3: Blue | RD3: White | RE3: Yellow | RF3: Red | RG3: Blue | RH3: White | RI3: Yellow | RJ3: Red | RK3: Blue | RL3: White | RM3: Yellow | RN3: Red | RO3: Blue | RP3: White | RQ3: Yellow | RR3: Red | RS3: Blue | RT3: White | RU3: Yellow | RV3: Red | RW3: Blue | RX3: White | RY3: Yellow | RZ3: Red | SA3: Blue | SB3: White | SC3: Yellow | SD3: Red | SE3: Blue | SF3: White | SG3: Yellow | SH3: Red | SI3: Blue | SJ3: White | SK3: Yellow | SL3: Red | SM3: Blue | SN3: White | SO3: Yellow | SP3: Red | SQ3: Blue | SR3: White | SS3: Yellow | ST3: Red | SU3: Blue | SV3: White | SW3: Yellow | SX3: Red | SY3: Blue | SZ3: White | TA3: Yellow | TB3: Red | TC3: Blue | TD3: White | TE3: Yellow | TF3: Red | TG3: Blue | TH3: White | TI3: Yellow | TJ3: Red | TK3: Blue | TL3: White | TM3: Yellow | TN3: Red | TO3: Blue | TP3: White | TQ3: Yellow | TR3: Red | TS3: Blue | TT3: White | TU3: Yellow | TV3: Red | TW3: Blue | TX3: White | TY3: Yellow | TZ3: Red | UA3: Blue | UB3: White | UC3: Yellow | UD3: Red | UE3: Blue | UF3: White | UG3: Yellow | UH3: Red | UI3: Blue | UJ3: White | UK3: Yellow | UL3: Red | UM3: Blue | UN3: White | UO3: Yellow | UP3: Red | UQ3: Blue | UR3: White | US3: Yellow | UT3: Red | UU3: Blue | UV3: White | UW3: Yellow | UX3: Red | UY3: Blue | UZ3: White | VA3: Yellow | VB3: Red | VC3: Blue | VD3: White | VE3: Yellow | VF3: Red | VG3: Blue | VH3: White | VI3: Yellow | VJ3: Red | VK3: Blue | VL3: White | VM3: Yellow | VN3: Red | VO3: Blue | VP3: White | VQ3: Yellow | VR3: Red | VS3: Blue | VT3: White | VU3: Yellow | VV3: Red | VW3: Blue | VX3: White | VY3: Yellow | VZ3: Red | WA3: Blue | WB3: White | WC3: Yellow | WD3: Red | WE3: Blue | WF3: White | WG3: Yellow | WH3: Red | WI3: Blue | WJ3: White | WK3: Yellow | WL3: Red | WM3: Blue | WN3: White | WO3: Yellow | WP3: Red | WQ3: Blue | WR3: White | WS3: Yellow | WT3: Red | WU3: Blue | WV3: White | WW3: Yellow | WX3: Red | WY3: Blue | WZ3: White | XA3: Yellow | XB3: Red | XC3: Blue | XD3: White | XE3: Yellow | XF3: Red | XG3: Blue | XH3: White | XI3: Yellow | XJ3: Red | XK3: Blue | XL3: White | XM3: Yellow | XN3: Red | XO3: Blue | XP3: White | XQ3: Yellow | XR3: Red | XS3: Blue | XT3: White | XU3: Yellow | XV3: Red | XW3: Blue | XX3: White | XY3: Yellow | XZ3: Red | YA3: Blue | YB3: White | YC3: Yellow | YD3: Red | YE3: Blue | YF3: White | YG3: Yellow | YH3: Red | YI3: Blue | YJ3: White | YK3: Yellow | YL3: Red | YM3: Blue | YN3: White | YO3: Yellow | YP3: Red | YQ3: Blue | YR3: White | YS3: Yellow | YT3: Red | YU3: Blue | YV3: White | YW3: Yellow | YX3: Red | YY3: Blue | YZ3: White | ZA3: Yellow | ZB3: Red | ZC3: Blue | ZD3: White | ZE3: Yellow | ZF3: Red | ZG3: Blue | ZH3: White | ZI3: Yellow | ZJ3: Red | ZK3: Blue | ZL3: White | ZM3: Yellow | ZN3: Red | ZO3: Blue | ZP3: White | ZQ3: Yellow | ZR3: Red | ZS3: Blue | ZT3: White | ZU3: Yellow | ZV3: Red | ZW3: Blue | ZX3: White | ZY3: Yellow | ZZ3: Red | AAA3: Blue | AAB3: White | AAC3: Yellow | AAD3: Red | AAE3: Blue | AAF3: White | AAG3: Yellow | AAH3: Red | AAI3: Blue | AAJ3: White | AAK3: Yellow | AAL3: Red | AAM3: Blue | AAN3: White | AAO3: Yellow | AAP3: Red | AAQ3: Blue | AAR3: White | AAS3: Yellow | AAT3: Red | AAU3: Blue | AAV3: White | AAW3: Yellow | AAX3: Red | AAY3: Blue | AAZ3: White | ABA3: Yellow | ABB3: Red | ABC3: Blue | ABD3: White | ABE3: Yellow | ABF3: Red | ABG3: Blue | ABH3: White | ABI3: Yellow | ABJ3: Red | ABK3: Blue | ABL3: White | ABM3: Yellow | ABN3: Red | ABO3: Blue | ABP3: White | ABQ3: Yellow | ABR3: Red | ABS3: Blue | ABT3: White | ABU3: Yellow | ABV3: Red | ABW3: Blue | ABX3: White | ABY3: Yellow | ABZ3: Red | ACA3: Blue | ACB3: White | ACC3: Yellow | ACD3: Red | ACE3: Blue | ACF3: White | ACG3: Yellow | ACH3: Red | ACI3: Blue | ACJ3: White | ACK3: Yellow | ACL3: Red | ACM3: Blue | ACN3: White | ACO3: Yellow | ACP3: Red | ACQ3: Blue | ACR3: White | ACS3: Yellow | ACT3: Red | ACU3: Blue | ACV3: White | ACW3: Yellow | ACX3: Red | ACY3: Blue | ACZ3: White | ADA3: Yellow | ADB3: Red | ADC3: Blue | ADD3: White | ADE3: Yellow | ADF3: Red | ADG3: Blue | ADH3: White | ADI3: Yellow | ADJ3: Red | ADK3: Blue | ADL3: White | ADM3: Yellow | ADN3: Red | ADO3: Blue | ADP3: White | ADQ3: Yellow | ADR3: Red | ADS3: Blue | ADT3: White | ADU3: Yellow | ADV3: Red | ADW3: Blue | ADX3: White | ADY3: Yellow | ADZ3: Red | AEA3: Blue | AEB3: White | AEC3: Yellow | AED3: Red | AEE3: Blue | AEF3: White | AEG3: Yellow | AEH3: Red | AEI3: Blue | AEJ3: White | AEK3: Yellow | AEL3: Red | AEM3: Blue | AEN3: White | AEO3: Yellow | AEP3: Red | AEQ3: Blue | AER3: White | AES3: Yellow | AET3: Red | AEU3: Blue | AEV3: White | AEW3: Yellow | AEX3: Red | AEY3: Blue | AEZ3: White | AFA3: Yellow | AFB3: Red | AFC3: Blue | AFD3: White | AFE3: Yellow | AFF3: Red | AFG3: Blue | AFH3: White | AFI3: Yellow | AFJ3: Red | AFK3: Blue | AFL3: White | AFM3: Yellow | AFN3: Red | AFO3: Blue | AFP3: White | AFQ3: Yellow | AFR3: Red | AFS3: Blue | AFT3: White | AFU3: Yellow | AFV3: Red | AFW3: Blue | AFX3: White | AFY3: Yellow | AFZ3: Red | AGA3: Blue | AGB3: White | AGC3: Yellow | AGD3: Red | AGE3: Blue | AGF3: White | AGG3: Yellow | AGH3: Red | AGI3: Blue | AGJ3: White | AGK3: Yellow | AGL3: Red | AGM3: Blue | AGN3: White | AGO3: Yellow | AGP3: Red | AGQ3: Blue | AGR3: White | AGS3: Yellow | AGT3: Red | AGU3: Blue | AGV3: White | AGW3: Yellow | AGX3: Red | AGY3: Blue | AGZ3: White | AHA3: Yellow | AHB3: Red | AHC3: Blue | AHD3: White | AHE3: Yellow | AHF3: Red | AHG3: Blue | AHH3: White | AHI3: Yellow | AHJ3: Red | AHK3: Blue | AHL3: White | AHM3: Yellow | AHN3: Red | AHO3: Blue | AHP3: White | AHQ3: Yellow | AHR3: Red | AHS3: Blue | AHT3: White | AHU3: Yellow | AHV3: Red | AHW3: Blue | AHX3: White | AHY3: Yellow | AHZ3: Red | AIA3: Blue | AIB3: White | AIC3: Yellow | AID3: Red | AIE3: Blue | AIF3: White | AIG3: Yellow | AIH3: Red | AII3: Blue | AIJ3: White | AIK3: Yellow | AIL3: Red | AIM3: Blue | AIN3: White | AIO3: Yellow | AIP3: Red | AIQ3: Blue | AIR3: White | AIS3: Yellow | AIT3: Red | AIU3: Blue | AIV3: White | AIW3: Yellow | AIX3: Red | AIY3: Blue | AIZ3: White | AJA3: Yellow | AJB3: Red | AJC3: Blue | AJD3: White | AJE3: Yellow | AJF3: Red | AJG3: Blue | AJH3: White | AJI3: Yellow | AJJ3: Red | AJK3: Blue | AJL3: White | AJM3: Yellow | AJN3: Red | AJO3: Blue | AJP3: White | AJQ3: Yellow | AJR3: Red | AJS3: Blue | AJT3: White | AJU3: Yellow | AJV3: Red | AJW3: Blue | AJX3: White | AJY3: Yellow | AJZ3: Red | AKA3: Blue | AKB3: White | AKC3: Yellow | AKD3: Red | AKE3: Blue | AKF3: White | AKG3: Yellow | AKH3: Red | AKI3: Blue | AKJ3: White | AKK3: Yellow | AKL3: Red | AKM3: Blue | AKN3: White | AKO3: Yellow | AKP3: Red | AKQ3: Blue | AKR3: White | AKS3: Yellow | AKT3: Red | AKU3: Blue | AKV3: White | AKW3: Yellow | AKX3: Red | AKY3: Blue | AKZ3: White | ALA3: Yellow | ALB3: Red | ALC3: Blue | ALD3: White | ALE3: Yellow | ALF3: Red | ALG3: Blue | ALH3: White | ALI3: Yellow | ALJ3: Red | ALK3: Blue | ALL3: White | ALM3: Yellow | ALN3: Red | ALO3: Blue | ALP3: White | ALQ3: Yellow | ALR3: Red | ALS3: Blue | ALT3: White | ALU3: Yellow | ALV3: Red | ALW3: Blue | ALX3: White | ALY3: Yellow | ALZ3: Red | AMA3: Blue | AMB3: White | AMC3: Yellow | AMD3: Red | AME3: Blue | AMF3: White | AMG3: Yellow | AMH3: Red | AMI3: Blue | AMJ3: White | AMK3: Yellow | AML3: Red | AMM3: Blue | AMN3: White | AMO3: Yellow | AMP3: Red | AMQ3: Blue | AMR3: White | AMS3: Yellow | AMT3: Red | AMU3: Blue | AMV3: White | AMW3: Yellow | AMX3: Red | AMY3: Blue | AMZ3: White | ANA3: Yellow | ANB3: Red | ANC3: Blue | AND3: White | ANE3: Yellow | ANF3: Red | ANG3: Blue | ANH3: White | ANI3: Yellow | ANJ3: Red | ANK3: Blue | ANL3: White | ANM3: Yellow | ANN3: Red | ANO3: Blue | ANP3: White | ANQ3: Yellow | ANR3: Red | ANS3: Blue | ANT3: White | ANU3: Yellow | ANV3: Red | ANW3: Blue | ANX3: White | ANY3: Yellow | ANZ3: Red | AOA3: Blue | AOB3: White | AOC3: Yellow | AOD3: Red | AOE3: Blue | AOF3: White | AOG3: Yellow | AOH3: Red | AOI3: Blue | AOJ3: White | AOK3: Yellow | AOL3: Red | AOM3: Blue | AON3: White | AOO3: Yellow | AOP3: Red | AOQ3: Blue | AOR3: White | AOS3: Yellow | AOT3: Red | AOU3: Blue | AOV3: White | AOW3: Yellow | AOX3: Red | AOY3: Blue | AOZ3: White | APA3: Yellow | APB3: Red | APC3: Blue | APD3: White | APE3: Yellow | APF3: Red | APG3: Blue | APH3: White | API3: Yellow | APJ3: Red | APK3: Blue | APL3: White | APM3: Yellow | APN3: Red | APO3: Blue | APP3: White | APQ3: Yellow | APR3: Red | APS3: Blue | APT3: White | APU3: Yellow | APV3: Red | APW3: Blue | APX3: White | APY3: Yellow | APZ3: Red | AQA3: Blue | AQB3: White | AQC3: Yellow | AQD3: Red | AQE3: Blue | AQF3: White | AQG3: Yellow | AQH3: Red | AQI3: Blue | AQJ3: White | AQK3: Yellow | AQL3: Red | AQM3: Blue | AQN3: White | AQO3: Yellow | AQP3: Red | AQQ3: Blue | AQR3: White | AQS3: Yellow | AQT3: Red | AQU3: Blue | AQV3: White | AQW3: Yellow | AQX3: Red | AQY3: Blue | AQZ3: White | ARA3: Yellow | ARB3: Red | ARC3: Blue | ARD3: White | ARE3: Yellow | ARF3: Red | ARG3: Blue | ARH3: White | ARI3: Yellow | ARJ3: Red | ARK3: Blue | ARL3: White | ARM3: Yellow | ARN3: Red | ARO3: Blue | ARP3: White | ARQ3: Yellow | ARR3: Red | ARS3: Blue | ART3: White | ARU3: Yellow | ARV3: Red | ARW3: Blue | ARX3: White | ARY3: Yellow | ARZ3: Red | ASA3: Blue | ASB3: White | ASC3: Yellow | ASD3: Red | ASE3: Blue | ASF3: White | ASG3: Yellow | ASH3: Red | ASI3: Blue | ASJ3: White | ASK3: Yellow | ASL3: Red | ASM3: Blue | ASN3: White | ASO3: Yellow | ASP3: Red | ASQ3: Blue | ASR3: White | ASS3: Yellow | AST3: Red | ASU3: Blue | ASV3: White | ASW3: Yellow | ASX3: Red | ASY3: Blue | ASZ3: White | ATA3: Yellow | ATB3: Red | ATC3: Blue | ATD3: White | ATE3: Yellow | ATF3: Red | ATG3: Blue | ATH3: White | ATI3: Yellow | ATJ3: Red | ATK3: Blue | ATL3: White | ATM3: Yellow | ATN3: Red | ATO3: Blue | ATP3: White | ATQ3: Yellow | ATR3: Red | ATS3: Blue | ATT3: White | ATU3: Yellow | ATV3: Red | ATW3: Blue | ATX3: White | ATY3: Yellow | ATZ3: Red | AUA3: Blue | AUB3: White | AUC3: Yellow | AUD3: Red | AUE3: Blue | AUF3: White | AUG3: Yellow | AUH3: Red | AUI3: Blue | AUJ3: White | AUK3: Yellow | AUL3: Red | AUM3: Blue | AUN3: White | AUO3: Yellow | AUP3: Red | AUQ3: Blue | AUR3: White | AUS3: Yellow | AUT3: Red | AUU3: Blue | AUV3: White | AUW3: Yellow | AUX3: Red | AUY3: Blue | AUZ3: White | AVA3: Yellow | AVB3: Red | AVC3: Blue | AVD3: White | AVE3: Yellow | AVF3: Red | AVG3: Blue | AVH3: White | AVI3: Yellow | AVJ3: Red | AVK3: Blue | AVL3: White | AVM3: Yellow | AVN3: Red | AVO3: Blue | AVP3: White | AVQ3: Yellow | AVR3: Red | AVS3: Blue | AVT3: White | AVU3: Yellow | AVV3: Red | AVW3: Blue | AVX3: White | AVY3: Yellow | AVZ3: Red | AWA3: Blue | AWB3: White | AWC3: Yellow | AWD3: Red | AWE3: Blue | AWF3: White | AWG3: Yellow | AWH3: Red | AWI3: Blue | AWJ3: White | AWK3: Yellow | AWL3: Red | AWM3: Blue | AWN3: White | AWO3: Yellow | AWP3: Red | AWQ3: Blue | AWR3: White | AWS3: Yellow | AWT3: Red | AWU3: Blue | AWV3: White | AWW3: Yellow | AWX3: Red | AWY3: Blue | AWZ3: White | AXA3: Yellow | AXB3: Red | AXC3: Blue | AXD3: White | AXE3: Yellow | AXF3: Red | AXG3: Blue | AXH3: White | AXI3: Yellow | AXJ3: Red | AXK3: Blue | AXL3: White | AXM3: Yellow | AXN3: Red | AXO3: Blue | AXP3: White | AXQ3: Yellow | AXR3: Red | AXS3: Blue | AXT3: White | AXU3: Yellow | AXV3: Red | AXW3: Blue | AXX3: White | AXY3: Yellow | AXZ3: Red | AYA3: Blue | AYB3: White | AYC3: Yellow | AYD3: Red | AYE3: Blue | AYF3: White | AYG3: Yellow | AYH3: Red | AYI3: Blue | AYJ3: White | AYK3: Yellow | AYL3: Red | AYM3: Blue | AYN3: White | AYO3: Yellow | AYP3: Red | AYQ3: Blue | AYR3: White | AYS3: Yellow | AYT3: Red | AYU3: Blue | AYV3: White | AYW3: Yellow | AYX3: Red | AYY3: Blue | AYZ3: White | AZA3: Yellow | AZB3: Red | AZC3: Blue | AZD3: White | AZE3: Yellow | AZF3: Red | AZG3: Blue | AZH3: White | AZI3: Yellow | AZJ3: Red | AZK3: Blue | AZL3: White | AZM3: Yellow | AZN3: Red | AZO3: Blue | AZP3: White | AZQ3: Yellow | AZR3: Red | AZS3: Blue | AZT3: White | AZU3: Yellow | AZV3: Red | AZW3: Blue | AZX3: White | AZY3: Yellow | AZZ3: Red | BAA3: Blue | BAB3: White | BAC3: Yellow | BAD3: Red | BAE3: Blue | BAF3: White | BAG3: Yellow | BAH3: Red | BAI3: Blue | BAJ3: White | BAK3: Yellow | BAL3: Red | BAM3: Blue | BAN3: White | BAO3: Yellow | BAP3: Red | BAQ3: Blue | BAR3: White | BAS3: Yellow | BAT3: Red | BAU3: Blue | BAV3: White | BAW3: Yellow | BAX3: Red | BAY3: Blue | BAZ3: White | BBA3: Yellow | BBB3: Red | BBC3: Blue | BBD3: White | BBE3: Yellow | BBF3: Red | BBG3: Blue | BBH3: White | BBI3: Yellow | BBJ3: Red | BBK3: Blue | BBL3: White | BBM3: Yellow | BBN3: Red | BBO3: Blue | BBP3: White | BBQ3: Yellow | BBR3: Red | BBS3: Blue | BBT3: White | BBU3: Yellow | BBV3: Red | BBW3: Blue | BBX3: White | BBY3: Yellow | BBZ3: Red | BCA3: Blue | BCB3: White | BCC3: Yellow | BCD3: Red | BCE3: Blue | BCF3: White | BCG3: Yellow | BCH3: Red | BCI3: Blue | BCJ3: White | BCK3: Yellow | BCL3: Red | BCM3: Blue | BCN3: White | BCO3: Yellow | BCP3: Red | BCQ3: Blue | BCR3: White | BCS3: Yellow | BCT3: Red | BCU3: Blue | BCV3: White | BCW3: Yellow | BCX3: Red | BCY3: Blue | BCZ3: White | BDA3: Yellow | BDB3: Red | BDC3: Blue | BDD3: White | BDE3: Yellow | BDF3: Red | BDG3: Blue | BDH3: White | BDI3: Yellow | BDJ3: Red | BDK3: Blue | BDL3: White | BDM3: Yellow | BDN3: Red | BDO3: Blue | BDP3: White | BDQ3: Yellow | BDR3: Red | BDS3: Blue | BDT3: White | BDU3: Yellow | BDV3: Red | BDW3: Blue | BDX3: White | BDY3: Yellow | BDZ3: Red | BEA3: Blue | BEB3: White | BEC3: Yellow | BED3: Red | BEE3: Blue | BEF3: White | BEG3: Yellow | BEH3: Red | BEI3: Blue | BEJ3: White | BEK3: Yellow | BEL3: Red | BEM3: Blue | BEN3: White | BEO3: Yellow | BEP3: Red | BEQ3: Blue | BER3: White | BES3: Yellow | BET3: Red | BEU3: Blue | BEV3: White | BEW3: Yellow | BEX3: Red | BEY3: Blue | BEZ3: White | BFA3: Yellow | BFB3: Red | BFC3: Blue | BFD3: White | BFE3: Yellow | BFF3: Red | BFG3: Blue | BFH3: White | BFI3: Yellow | BFJ3: Red | BFK3: Blue | BFL3: White | BFM3: Yellow | BFN3: Red | BFO3: Blue | BFP3: White | BFQ3: Yellow | BFR3: Red | BFS3: Blue | BFT3: White
A4: NIZAMABAD
A5: 100 AND ABOVE BEDS HCFs
A6: 1 | B6: GOVER503001TSBH00988 | C6: GOVT. DIST. HOSPITAL | D6: BESIDE NIZAMABAD BUS STATION, NIZAMABAD - 503001 | E6: 750 | H6: Superintendent | I6: 9849319163 | J6: ggh_nizamabad@yahoo.com | K6: Government | L6: Bedded | M6: 16 | N6: 15 | O6: 5 | P6: 5 | Q6: 15 | R6: 15 | S6: 2 | T6: 5 | U6: 15 | V6: 15 | W6: 2 | X6: 5 | Y6: 15 | Z6: 15 | AA6: 5 | AB6: 5 | AC6: 15 | AD6: 15 | AE6: 2 | AF6: 5 | AG6: 15 | AH6: 15 | AI6: 2 | AJ6: 5 | AK6: 15 | AL6: 5 | AM6: 5 | AN6: 5 | AO6: 15 | AP6: 15 | AQ6: 5 | AR6: 5 | AS6: 15 | AT6: 15 | AU6: 2 | AV6: 5 | AW6: 20 | AX6: 15 | AY6: 2 | AZ6: 5 | BA6: 25 | BB6: 15 | BC6: 2 | BD6: 5 | BE6: 15 | BF6: 15 | BG6: 2 | BH6: 5 | BI6: 15 | BJ6: 15 | BK6: 2 | BL6: 5 | BQ6: 15 | BR6: 15 | BS6: 5 | BT6: 5 | BU6: 15 | BV6: 10 | BW6: 5 | BX6: 5 | BY6: 15 | BZ6: 5 | CA6: 5 | CB6: 5 | CC6: 15 | CD6: 16 | CE6: 8 | CF6: 5 | CG6: 15 | CH6: 10 | CI6: 8 | CJ6: 8 | CK6: 15 | CL6: 10 | CM6: 7 | CN6: 7 | CO6: 5 | CP6: 5 | CQ6: 2 | CR6: 5 | CS6: 15 | CT6: 5 | CU6: 5 | CV6: 5 | CW6: 20 | CX6: 5 | CY6: 5 | CZ6: 5 | DA6: 15 | DB6: 5 | DC6: 5 | DD6: 5 | DE6: 17 | DF6: 5 | DG6: 5 | DH6: 5 | DI6: 15 | DJ6: 5 | DK6: 5 | DL6: 5 | DM6: 10 | DN6: 8 | DO6: 5 | DP6: 5 | DU6: 15 | DV6: 5 | DW6: 7 | DX6: 2 | DY6: 15 | DZ6: 5 | EA6: 2 | EB6: 5 | EC6: 15 | ED6: 10 | EE6: 4 | EF6: 5 | EG6: =M6+Q6+U6+Y6+AC6+AG6+AK6+AO6+AS6+AW6+BA6+BE6+BI6+BM6+BQ6+BU6+BY6+CC6+CG6+CK6+CO6+CS6+CW6+DA6+DE6+DI6+DM6+DQ6+DU6+DY6+EC6 -> 443 | EH6: 309 | EI6: 121 | EJ6: 147 | EK6: 18 | EL6: 24 | EM6: 5 | EN6: 5 | EO6: 14 | EP6: 14 | EQ6: 5 | ER6: 5 | ES6: 15 | ET6: 5 | EU6: 5 | EV6: 5 | FA6: 15 | FB6: 15 | FC6: 5 | FD6: 5 | FE6: 15 | FF6: 15 | FG6: 5 | FH6: 5 | FI6: 15 | FJ6: 15 | FK6: 5 | FL6: 5 | FM6: 15 | FN6: 40 | FO6: 5 | FP6: 5 | FQ6: 15 | FR6: 15 | FS6: 5 | FT6: 5 | FU6: 15 | FV6: 15 | FW6: 5 | FX6: 5 | GC6: 15 | GD6: 15 | GE6: 5 | GF6: 5 | GG6: 15 | GH6: 15 | GI6: 5 | GJ6: 5 | GK6: 15 | GL6: 30 | GM6: 5 | GN6: 5 | GO6: 20 | GP6: 10 | GQ6: 5 | GR6: 5 | GS6: 20 | GT6: 10 | GU6: 5 | GV6: 5 | GW6: 16 | GX6: 5 | GY6: 5 | GZ6: 5 | HE6: 15 | HF6: 10 | HG6: 5 | HH6: 5 | HI6: 12 | HJ6: 10 | HK6: 5 | HL6: 5 | HM6: 15 | HN6: 15 | HO6: 5 | HP6: 8 | HQ6: 10 | HR6: 10 | HS6: 5 | HT6: 8 | HU6: 15 | HV6: 12 | HW6: 5 | HX6: 5 | HY6: 15 | HZ6: 12 | IA6: 5 | IB6: 5 | IC6: 15 | ID6: 10 | IE6: 5 | IF6: 5 | IG6: 15 | IH6: 10 | II6: 5 | IJ6: 5 | IK6: 15 | IL6: 12 | IM6: 5 | IN6: 5 | IO6: 15 | IP6: 10 | IQ6: 5 | IR6: 5 | IS6: =EK6+EO6+ES6+EW6+FA6+FE6+FI6+FM6+FQ6+FU6+FY6+GC6+GG6+GK6+GO6+GS6+GW6+HA6+HE6+HI6+HM6+HQ6+HU6+HY6+IC6+IG6+IK6+IO6 -> 380 | IT6: 354 | IU6: 125 | IV6: 131 | IW6: 15 | IX6: 10 | IY6: 5 | IZ6: 8 | JA6: 15 | JB6: 10 | JC6: 5 | JD6: 5 | JI6: 15 | JJ6: 12 | JK6: 5 | JL6: 5 | JM6: 15 | JN6: 5 | JO6: 5 | JP6: 5 | JQ6: 15 | JR6: 5 | JS6: 5 | JT6: 5 | JU6: 15 | JV6: 10 | JW6: 5 | JX6: 5 | JY6: 15 | JZ6: 12 | KA6: 5 | KB6: 5 | KC6: 15 | KD6: 10 | KE6: 5 | KF6: 5 | KK6: 15 | KL6: 10 | KM6: 5 | KN6: 5 | KO6: 15 | KP6: 12 | KQ6: 5 | KR6: 5 | KS6: 15 | KT6: 32 | KU6: 5 | KV6: 8 | KW6: 15 | KX6: 12 | KY6: 5 | KZ6: 5 | LA6: 15 | LB6: 10 | LC6: 5 | LD6: 5 | LE6: 15 | LF6: 12 | LG6: 5 | LH6: 5 | LM6: 15 | LN6: 12 | LO6: 5 | LP6: 5 | LQ6: 15 | LR6: 15 | LS6: 5 | LT6: 5 | LU6: 15 | LV6: 10 | LW6: 5 | LX6: 5 | LY6: 15 | LZ6: 12 | MA6: 5 | MB6: 5 | MC6: 15 | MD6: 15 | ME6: 5 | MF6: 5 | MG6: 15 | MH6: 12 | MI6: 5 | MJ6: 5 | MO6: 15 | MP6: 7 | MQ6: 5 | MR6: 5 | MW6: 15 | MX6: 15 | MY6: 5 | MZ6: 5 | NA6: 17 | NB6: 7 | NC6: 5 | ND6: 5 | NE6: 15 | NF6: 9 | NG6: 5 | NH6: 5 | NI6: 16 | NJ6: 8 | NK6: 5 | NL6: 5 | NQ6: =IW6+JA6+JE6+JI6+JM6+JQ6+JU6+JY6+KC6+KG6+KK6+KO6+KS6+KW6+LA6+LE6+LI6+LM6+LQ6+LU6+LY6+MC6+MG6+MK6+MO6+MS6+MW6+NA6+NE6+NI6+NM6 -> 378 | NR6: 284 | NS6: 125 | NT6: 131 | NU6: 15 | NW6: 5 | NX6: 5 | NY6: 15 | OA6: 5 | OB6: 5 | OC6: 15 | OE6: 5 | OF6: 5 | OG6: 15 | OH6: 24 | OI6: 5 | OJ6: 5 | OK6: 15 | OL6: 29 | OM6: 5 | ON6: 5 | OO6: 15 | OQ6: 5 | OR6: 5 | OW6: 15 | OY6: 5 | OZ6: 5 | PE6: 5 | PG6: 5 | PH6: 5 | PI6: 15 | PJ6: 20 | PK6: 5 | PL6: 5 | PM6: 15 | PO6: 5 | PP6: 5 | PQ6: 15 | PR6: 40 | PT6: 5 | PY6: 5 | QA6: 5 | QB6: 5 | QC6: 15 | QD6: 24 | QE6: 5 | QF6: 5 | QG6: 15 | QI6: 5 | QJ6: 5 | QK6: 10 | QM6: 5 | QN6: 5 | QO6: 10 | QP6: 40 | QQ6: 5 | QR6: 5 | QS6: 10 | QT6: 40 | QU6: 5 | QV6: 5 | RA6: 10 | RB6: 34 | RC6: 5 | RD6: 5 | RE6: 10 | RF6: 32 | RG6: 5 | RH6: 5 | RI6: 15 | RK6: 5 | RL6: 5 | RM6: 10 | RO6: 5 | RP6: 5 | RQ6: 10 | RS6: 5 | RT6: 5 | RU6: 10 | RV6: 40 | RW6: 5 | RX6: 5 | SC6: 10 | SD6: 44 | SE6: 5 | SF6: 5 | SG6: 10 | SI6: 5 | SJ6: 5 | SK6: =NU6+NY6+OC6+OG6+OK6+OO6+OS6+OW6+PA6+PE6+PI6+PM6+PQ6+PU6+PY6+QC6+QG6+QK6+QO6+QS6+QW6+RA6+RE6+RI6+RM6+RQ6+RU6+RY6+SC6+SG6 -> 305 | SL6: 367 | SM6: 120 | SN6: 125 | SO6: 15 | SQ6: 5 | SR6: 5 | SU6: 5 | SV6: 5 | SY6: 5 | SZ6: 5 | TA6: 32 | TB6: 40 | TC6: 5 | TD6: 5 | TI6: 15 | TJ6: 32 | TK6: 5 | TL6: 5 | TM6: 15 | TN6: 28 | TO6: 5 | TP6: 5 | TQ6: 15 | TR6: 18 | TS6: 5 | TT6: 5 | TU6: 15 | TV6: 32 | TW6: 5 | TX6: 5 | TY6: 15 | TZ6: 35 | UA6: 5 | UB6: 5 | UC6: 15 | UD6: 20 | UE6: 5 | UF6: 5 | UK6: 15 | UL6: 32 | UM6: 5 | UN6: 5 | UO6: 15 | UQ6: 5 | UR6: 5 | US6: 15 | UT6: 21 | UU6: 5 | UV6: 5 | UW6: 32 | UX6: 32 | UY6: 5 | UZ6: 5 | VA6: 18 | VB6: 27 | VC6: 5 | VD6: 5 | VE6: 18 | VF6: 12 | VG6: 5 | VH6: 5 | VM6: 5 | VN6: 15 | VO6: 5 | VP6: 5 | VQ6: 5 | VR6: 15 | VS6: 5 | VT6: 5 | VU6: 15 | VW6: 5 | VX6: 5 | VY6: 15 | VZ6: 26 | WA6: 5 | WB6: 5 | WC6: 15 | WE6: 5 | WF6: 5 | WG6: 15 | WH6: 56 | WI6: 5 | WJ6: 5 | WO6: 10 | WP6: 8 | WQ6: 5 | WR6: 5 | WS6: 17 | WT6: 17 | WU6: 5 | WV6: 5 | WW6: 17 | WX6: 16 | WY6: 5 | WZ6: 5 | XA6: 17 | XB6: 17 | XC6: 5 | XD6: 5 | XE6: 5 | XG6: 5 | XH6: 5 | XI6: =SO6+SS6+SW6+TA6+TE6+TI6+TM6+TQ6+TU6+TY6+UC6+UG6+UK6+UO6+US6+UW6+VA6+VE6+VI6+VM6+VQ6+VU6+VY6+WC6+WG6+WK6+WO6+WS6+WW6+XA6+XE6 -> 386 | XJ6: =SP6+ST6+SX6+TB6+TF6+TJ6+TN6+TR6+TV6+TZ6+UD6+UH6+UL6+UP6+UT6+UX6+VB6+VF6+VJ6+VN6+VR6+VV6+VZ6+WD6+WH6+WL6+WP6+WT6+WX6+XB6+XF6 -> 499 | XK6: =SQ6+SU6+SY6+TC6+TG6+TK6+TO6+TS6+TW6+UA6+UE6+UI6+UM6+UQ6+UU6+UY6+VC6+VG6+VK6+VO6+VS6+VW6+WA6+WE6+WI6+WM6+WQ6+WU6+WY6+XC6+XG6 -> 135 | XL6: =SR6+SV6+SZ6+TD6+TH6+TL6+TP6+TT6+TX6+UB6+UF6+UJ6+UN6+UR6+UV6+UZ6+VD6+VH6+VL6+VP6+VT6+VX6+WB6+WF6+WJ6+WN6+WR6+WV6+WZ6+XD6+XH6 -> 135 | XO6: 5 | XP6: 5 | XW6: 5 | XX6: 5 | XZ6: 16 | YA6: 5 | YB6: 5 | YE6: 5 | YF6: 5 | YG6: 8 | YH6: 8 | YI6: 5 | YJ6: 5 | YK6: 15 | YM6: 5 | YN6: 5 | YO6: 50 | YQ6: 5 | YR6: 5 | YW6: 5 | YY6: 5 | YZ6: 5 | ZB6: 16 | ZC6: 5 | ZD6: 5 | ZF6: 32 | ZG6: 5 | ZH6: 5 | ZI6: 24 | ZJ6: 16 | ZK6: 5 | ZL6: 5 | ZM6: 24 | ZN6: 16 | ZO6: 5 | ZP6: 5 | ZQ6: 11 | ZR6: 20 | ZS6: 5 | ZT6: 5 | ZY6: 16 | ZZ6: 8 | AAA6: 5 | AAB6: 5 | AAF6: 5 | AAG6: 9 | AAH6: 9 | AAI6: 5 | AAJ6: 5 | AAM6: 5 | AAN6: 5 | AAO6: 9 | AAP6: 9 | AAQ6: 5 | AAR6: 5 | AAS6: 9 | AAU6: 5 | AAV6: 5 | ABC6: 5 | ABD6: 5 | ABE6: 9 | ABF6: 9 | ABG6: 5 | ABH6: 5 | ABK6: 5 | ABL6: 5 | ABO6: 5 | ABP6: 5 | ABR6: 10 | ABS6: 5 | ABT6: 5 | ABW6: 5 | ABX6: 5 | ACC6: =XM6+XQ6+XU6+XY6+YC6+YG6+YK6+YO6+YS6+YW6+ZA6+ZE6+ZI6+ZM6+ZQ6+ZU6+ZY6+AAC6+AAG6+AAK6+AAO6+AAS6+AAW6+ABA6+ABE6+ABI6+ABM6+ABQ6+ABU6+ABY6 -> 189 | ACD6: =XN6+XR6+XV6+XZ6+YD6+YH6+YL6+YP6+YT6+YX6+ZB6+ZF6+ZJ6+ZN6+ZR6+ZV6+ZZ6+AAD6+AAH6+AAL6+AAP6+AAT6+AAX6+ABB6+ABF6+ABJ6+ABN6+ABR6+ABV6+ABZ6 -> 169 | ACE6: =XO6+XS6+XW6+YA6+YE6+YI6+YM6+YQ6+YU6+YY6+ZC6+ZG6+ZK6+ZO6+ZS6+ZW6+AAA6+AAE6+AAI6+AAM6+AAQ6+AAU6+AAY6+ABC6+ABG6+ABK6+ABO6+ABS6+ABW6+ACA6 -> 120 | ACF6: =XP6+XT6+XX6+YB6+YF6+YJ6+YN6+YR6+YV6+YZ6+ZD6+ZH6+ZL6+ZP6+ZT6+ZX6+AAB6+AAF6+AAJ6+AAN6+AAR6+AAV6+AAZ6+ABD6+ABH6+ABL6+ABP6+ABT6+ABX6+ACB6 -> 125 | ACI6: 5 | ACJ6: 5 | ACM6: 5 | ACN6: 5 | ACQ6: 5 | ACR6: 5 | ACU6: 5 | ACV6: 5 | ACY6: 5 | ACZ6: 5 | ADC6: 5 | ADD6: 5 | ADI6: 30 | ADJ6: 30 | ADK6: 5 | ADL6: 5 | ADM6: 24 | ADN6: 24 | ADO6: 5 | ADP6: 5 | ADQ6: 16 | ADR6: 24 | ADS6: 5 | ADT6: 5 | ADU6: 24 | ADV6: 24 | ADW6: 5 | ADX6: 5 | ADY6: 24 | ADZ6: 24 | AEA6: 5 | AEB6: 5 | AEC6: 24 | AED6: 24 | AEE6: 5 | AEF6: 5 | AEK6: 15 | AEL6: 15 | AEM6: 5 | AEN6: 5 | AEP6: 1 | AEQ6: 5 | AER6: 5 | AES6: 10 | AET6: 10 | AEU6: 5 | AEV6: 5 | AEW6: 11 | AEY6: 5 | AEZ6: 5 | AFA6: 1 | AFB6: 10 | AFC6: 5 | AFD6: 5 | AFF6: 9 | AFG6: 5 | AFH6: 5 | AFM6: 10 | AFN6: 10 | AFO6: 5 | AFP6: 5 | AFR6: 10 | AFS6: 5 | AFT6: 5 | AFU6: 1 | AFV6: 10 | AFW6: 5 | AFX6: 5 | AFY6: 10 | AFZ6: 10 | AGA6: 5 | AGB6: 5 | AGC6: 10 | AGE6: 5 | AGF6: 5 | AGG6: 10 | AGH6: 10 | AGI6: 5 | AGJ6: 5 | AGO6: 10 | AGP6: 24 | AGQ6: 5 | AGR6: 5 | AGS6: 12 | AGT6: 7 | AGU6: 5 | AGV6: 5 | AGW6: 10 | AGX6: 10 | AGY6: 5 | AGZ6: 5 | AHA6: =ACG6+ACK6+ACO6+ACS6+ACW6+ADA6+ADE6+ADI6+ADM6+ADQ6+ADU6+ADY6+AEC6+AEG6+AEK6+AEO6+AES6+AEW6+AFA6+AFE6+AFI6+AFM6+AFQ6+AFU6+AFY6+AGC6+AGG6+AGK6+AGO6+AGS6+AGW6 -> 252 | AHB6: =ACH6+ACL6+ACP6+ACT6+ACX6+ADB6+ADF6+ADJ6+ADN6+ADR6+ADV6+ADZ6+AED6+AEH6+AEL6+AEP6+AET6+AEX6+AFB6+AFF6+AFJ6+AFN6+AFR6+AFV6+AFZ6+AGD6+AGH6+AGL6+AGP6+AGT6+AGX6 -> 286 | AHC6: =ACI6+ACM6+ACQ6+ACU6+ACY6+ADC6+ADG6+ADK6+ADO6+ADS6+ADW6+AEA6+AEE6+AEI6+AEM6+AEQ6+AEU6+AEY6+AFC6+AFG6+AFK6+AFO6+AFS6+AFW6+AGA6+AGE6+AGI6+AGM6+AGQ6+AGU6+AGY6 -> 135 | AHD6: =ACJ6+ACN6+ACR6+ACV6+ACZ6+ADD6+ADH6+ADL6+ADP6+ADT6+ADX6+AEB6+AEF6+AEJ6+AEN6+AER6+AEV6+AEZ6+AFD6+AFH6+AFL6+AFP6+AFT6+AFX6+AGB6+AGF6+AGJ6+AGN6+AGR6+AGV6+AGZ6 -> 135 | AHE6: 9 | AHF6: 9 | AHG6: 5 | AHH6: 5 | AHI6: 16 | AHJ6: 24 | AHK6: 5 | AHL6: 5 | AHM6: 15 | AHN6: 24 | AHO6: 5 | AHP6: 5 | AHU6: 15 | AHV6: 24 | AHW6: 5 | AHX6: 5 | AHY6: 15 | AHZ6: 15 | AIA6: 5 | AIB6: 5 | AIC6: 15 | AID6: 8 | AIE6: 5 | AIF6: 5 | AIG6: 15 | AIH6: 16 | AII6: 5 | AIJ6: 5 | AIK6: 15 | AIL6: 24 | AIM6: 5 | AIN6: 5 | AIO6: 24 | AIP6: 16 | AIQ6: 5 | AIR6: 5 | AIW6: 15 | AIX6: 15 | AIY6: 5 | AIZ6: 5 | AJA6: 1 | AJB6: 10 | AJC6: 5 | AJD6: 5 | AJE6: 1 | AJF6: 10 | AJG6: 5 | AJH6: 5 | AJI6: 10 | AJJ6: 10 | AJK6: 5 | AJL6: 5 | AJM6: 10 | AJN6: 15 | AJO6: 5 | AJP6: 5 | AJQ6: 10 | AJR6: 10 | AJS6: 5 | AJT6: 5 | AJY6: 8 | AJZ6: 8 | AKA6: 5 | AKB6: 5 | AKC6: 10 | AKD6: 10 | AKE6: 5 | AKF6: 5 | AKG6: 10 | AKH6: 10 | AKI6: 5 | AKJ6: 5 | AKK6: 10 | AKL6: 10 | AKM6: 5 | AKN6: 5 | AKO6: 11 | AKP6: 10 | AKQ6: 5 | AKR6: 5 | AKS6: 9 | AKT6: 9 | AKU6: 5 | AKV6: 5 | ALA6: 9 | ALB6: 9 | ALC6: 5 | ALD6: 5 | ALF6: 18 | ALG6: 5 | ALH6: 5 | ALI6: 15 | ALJ6: 20 | ALK6: 5 | ALL6: 5 | ALO6: 5 | ALP6: 5 | ALQ6: 15 | ALR6: 8 | ALS6: 5 | ALT6: 5 | ALU6: 15 | ALV6: 24 | ALW6: 5 | ALX6: 5 | ALY6: =AHE6+AHI6+AHM6+AHQ6+AHU6+AHY6+AIC6+AIG6+AIK6+AIO6+AIS6+AIW6+AJA6+AJE6+AJI6+AJM6+AJQ6+AJU6+AJY6+AKC6+AKG6+AKK6+AKO6+AKS6+AKW6+ALA6+ALE6+ALI6+ALM6+ALQ6+ALU6 -> 298 | ALZ6: =AHF6+AHJ6+AHN6+AHR6+AHV6+AHZ6+AID6+AIH6+AIL6+AIP6+AIT6+AIX6+AJB6+AJF6+AJJ6+AJN6+AJR6+AJV6+AJZ6+AKD6+AKH6+AKL6+AKP6+AKT6+AKX6+ALB6+ALF6+ALJ6+ALN6+ALR6+ALV6 -> 366 | AMA6: =AHG6+AHK6+AHO6+AHS6+AHW6+AIA6+AIE6+AII6+AIM6+AIQ6+AIU6+AIY6+AJC6+AJG6+AJK6+AJO6+AJS6+AJW6+AKA6+AKE6+AKI6+AKM6+AKQ6+AKU6+AKY6+ALC6+ALG6+ALK6+ALO6+ALS6+ALW6 -> 135 | AMB6: =AHH6+AHL6+AHP6+AHT6+AHX6+AIB6+AIF6+AIJ6+AIN6+AIR6+AIV6+AIZ6+AJD6+AJH6+AJL6+AJP6+AJT6+AJX6+AKB6+AKF6+AKJ6+AKN6+AKR6+AKV6+AKZ6+ALD6+ALH6+ALL6+ALP6+ALT6+ALX6 -> 135 | AMG6: 16 | AMH6: 16 | AMI6: 5 | AMJ6: 5 | AMK6: 11 | AML6: 20 | AMM6: 5 | AMN6: 5 | AMO6: 13 | AMP6: 12 | AMQ6: 5 | AMR6: 5 | AMS6: 14 | AMT6: 12 | AMU6: 5 | AMV6: 5 | AMW6: 15 | AMX6: 24 | AMY6: 5 | AMZ6: 5 | ANA6: 15 | ANB6: 15 | ANC6: 5 | AND6: 5 | ANI6: 15 | ANJ6: 24 | ANK6: 5 | ANL6: 5 | ANM6: 15 | ANN6: 15 | ANO6: 5 | ANP6: 5 | ANQ6: 15 | ANR6: 24 | ANS6: 5 | ANT6: 5 | ANU6: 15 | ANV6: 24 | ANW6: 5 | ANX6: 5 | ANY6: 16 | ANZ6: 16 | AOA6: 5 | AOB6: 5 | AOC6: 16 | AOD6: 24 | AOE6: 5 | AOF6: 5 | AOK6: 15 | AOL6: 24 | AOM6: 5 | AON6: 5 | AOQ6: 5 | AOR6: 5 | AOS6: 16 | AOT6: 24 | AOU6: 5 | AOV6: 5 | AOW6: 16 | AOX6: 24 | AOY6: 5 | AOZ6: 5 | APA6: 15 | APB6: 16 | APC6: 5 | APD6: 5 | APF6: 16 | APG6: 5 | APH6: 5 | APO6: 5 | APP6: 5 | APQ6: 15 | APR6: 15 | APS6: 5 | APT6: 5 | APU6: 10 | APV6: 16 | APW6: 5 | APX6: 5 | APY6: 10 | APZ6: 24 | AQA6: 5 | AQB6: 5 | AQC6: 8 | AQD6: 24 | AQE6: 5 | AQF6: 5 | AQG6: 8 | AQH6: 24 | AQI6: 5 | AQJ6: 5 | AQO6: 8 | AQP6: 24 | AQQ6: 5 | AQR6: 5 | AQS6: =AMC6+AMG6+AMK6+AMO6+AMS6+AMW6+ANA6+ANE6+ANI6+ANM6+ANQ6+ANU6+ANY6+AOC6+AOG6+AOK6+AOO6+AOS6+AOW6+APA6+APE6+API6+APM6+APQ6+APU6+APY6+AQC6+AQG6+AQK6+AQO6 -> 297 | AQT6: =AMD6+AMH6+AML6+AMP6+AMT6+AMX6+ANB6+ANF6+ANJ6+ANN6+ANR6+ANV6+ANZ6+AOD6+AOH6+AOL6+AOP6+AOT6+AOX6+APB6+APF6+APJ6+APN6+APR6+APV6+APZ6+AQD6+AQH6+AQL6+AQP6 -> 457 | AQU6: =AME6+AMI6+AMM6+AMQ6+AMU6+AMY6+ANC6+ANG6+ANK6+ANO6+ANS6+ANW6+AOA6+AOE6+AOI6+AOM6+AOQ6+AOU6+AOY6+APC6+APG6+APK6+APO6+APS6+APW6+AQA6+AQE6+AQI6+AQM6+AQQ6 -> 125 | AQV6: =AMF6+AMJ6+AMN6+AMR6+AMV6+AMZ6+AND6+ANH6+ANL6+ANP6+ANT6+ANX6+AOB6+AOF6+AOJ6+AON6+AOR6+AOV6+AOZ6+APD6+APH6+APL6+APP6+APT6+APX6+AQB6+AQF6+AQJ6+AQN6+AQR6 -> 125 | AQW6: 10 | AQX6: 10 | AQY6: 5 | AQZ6: 5 | ARA6: 1 | ARB6: 1 | ARC6: 5 | ARD6: 5 | ARE6: 10 | ARF6: 10 | ARG6: 5 | ARH6: 5 | ARI6: 10 | ARJ6: 10 | ARK6: 5 | ARL6: 5 | ARM6: 10 | ARN6: 10 | ARO6: 5 | ARP6: 5 | ARU6: 9 | ARW6: 5 | ARX6: 5 | ARY6: 1 | ARZ6: 10 | ASA6: 5 | ASB6: 5 | ASC6: 10 | ASE6: 5 | ASF6: 5 | ASG6: 10 | ASI6: 5 | ASJ6: 5 | ASO6: 5 | ASP6: 5 | ASQ6: 5 | ASR6: 5 | ASW6: 5 | ASX6: 5 | ASY6: 5 | ASZ6: 5 | ATC6: 5 | ATD6: 5 | ATE6: 11 | ATF6: 5 | ATG6: 5 | ATH6: 5 | ATM6: 3 | ATO6: 5 | ATP6: 5 | ATQ6: 7 | ATR6: 9 | ATS6: 5 | ATT6: 5 | ATY6: 7 | ATZ6: 9 | AUA6: 5 | AUB6: 5 | AUC6: 10 | AUD6: 10 | AUE6: 5 | AUF6: 5 | AUG6: 10 | AUH6: 10 | AUI6: 5 | AUJ6: 5 | AUK6: 10 | AUL6: 10 | AUM6: 5 | AUN6: 5 | AUO6: 10 | AUP6: 10 | AUQ6: 5 | AUR6: 5 | AUS6: 10 | AUT6: 10 | AUU6: 5 | AUV6: 5 | AVA6: 10 | AVB6: 10 | AVC6: 5 | AVD6: 5 | AVE6: 10 | AVF6: 10 | AVG6: 5 | AVH6: 5 | AVI6: 10 | AVJ6: 10 | AVK6: 5 | AVL6: 5 | AVQ6: =AQW6+ARA6+ARE6+ARI6+ARM6+ARQ6+ARU6+ARY6+ASC6+ASG6+ASK6+ASO6+ASS6+ASW6+ATA6+ATE6+ATI6+ATM6+ATQ6+ATU6+ATY6+AUC6+AUG6+AUK6+AUO6+AUS6+AUW6+AVA6+AVE6+AVI6+AVM6 -> 189 | AVR6: =AQX6+ARB6+ARF6+ARJ6+ARN6+ARR6+ARV6+ARZ6+ASD6+ASH6+ASL6+ASP6+AST6+ASX6+ATB6+ATF6+ATJ6+ATN6+ATR6+ATV6+ATZ6+AUD6+AUH6+AUL6+AUP6+AUT6+AUX6+AVB6+AVF6+AVJ6+AVN6 -> 164 | AVS6: =AQY6+ARC6+ARG6+ARK6+ARO6+ARS6+ARW6+ASA6+ASE6+ASI6+ASM6+ASQ6+ASU6+ASY6+ATC6+ATG6+ATK6+ATO6+ATS6+ATW6+AUA6+AUE6+AUI6+AUM6+AUQ6+AUU6+AUY6+AVC6+AVG6+AVK6+AVO6 -> 120 | AVT6: =AQZ6+ARD6+ARH6+ARL6+ARP6+ART6+ARX6+ASB6+ASF6+ASJ6+ASN6+ASR6+ASV6+ASZ6+ATD6+ATH6+ATL6+ATP6+ATT6+ATX6+AUB6+AUF6+AUJ6+AUN6+AUR6+AUV6+AUZ6+AVD6+AVH6+AVL6+AVP6 -> 120 | AVU6: 16 | AVV6: 16 | AVW6: 5 | AVX6: 5 | AVY6: 16 | AVZ6: 16 | AWA6: 5 | AWB6: 5 | AWG6: 10 | AWH6: 10 | AWI6: 5 | AWJ6: 5 | AWK6: 16 | AWL6: 16 | AWM6: 5 | AWN6: 5 | AWO6: 10 | AWP6: 10 | AWQ6: 5 | AWR6: 5 | AWS6: 16 | AWT6: 16 | AWU6: 5 | AWV6: 5 | AWW6: 16 | AWX6: 16 | AWY6: 5 | AWZ6: 5 | AXA6: 16 | AXB6: 8 | AXC6: 5 | AXD6: 5 | AXI6: 16 | AXJ6: 16 | AXK6: 5 | AXL6: 5 | AXM6: 16 | AXN6: 16 | AXO6: 5 | AXP6: 5 | AXQ6: 16 | AXR6: 16 | AXS6: 5 | AXT6: 5 | AXU6: 16 | AXV6: 10 | AXW6: 5 | AXX6: 5 | AXY6: 8 | AYA6: 5 | AYB6: 5 | AYC6: 8 | AYD6: 8 | AYE6: 5 | AYF6: 5 | AYK6: 8 | AYL6: 7 | AYM6: 5 | AYN6: 5 | AYO6: 5 | AYP6: 5 | AYQ6: 5 | AYR6: 5 | AYS6: 5 | AYT6: 1 | AYU6: 5 | AYV6: 5 | AYW6: 4 | AYX6: 8 | AYY6: 5 | AYZ6: 5 | AZB6: 8 | AZC6: 5 | AZD6: 5 | AZE6: 7 | AZF6: 8 | AZG6: 5 | AZH6: 5 | AZM6: 8 | AZN6: 8 | AZO6: 5 | AZP6: 5 | AZR6: 8 | AZS6: 5 | AZT6: 5 | AZU6: 5 | AZV6: 8 | AZW6: 5 | AZX6: 5 | AZY6: 8 | AZZ6: 8 | BAA6: 5 | BAB6: 5 | BAC6: 8 | BAD6: 8 | BAE6: 5 | BAF6: 5 | BAG6: 5 | BAH6: 8 | BAI6: 5 | BAJ6: 5 | BAK6: =AVU6+AVY6+AWC6+AWG6+AWK6+AWO6+AWS6+AWW6+AXA6+AXE6+AXI6+AXM6+AXQ6+AXU6+AXY6+AYC6+AYG6+AYK6+AYO6+AYS6+AYW6+AZA6+AZE6+AZI6+AZM6+AZQ6+AZU6+AZY6+BAC6+BAG6 -> 259 | BAL6: =AVV6+AVZ6+AWD6+AWH6+AWL6+AWP6+AWT6+AWX6+AXB6+AXF6+AXJ6+AXN6+AXR6+AXV6+AXZ6+AYD6+AYH6+AYL6+AYP6+AYT6+AYX6+AZB6+AZF6+AZJ6+AZN6+AZR6+AZV6+AZZ6+BAD6+BAH6 -> 259 | BAM6: =AVW6+AWA6+AWE6+AWI6+AWM6+AWQ6+AWU6+AWY6+AXC6+AXG6+AXK6+AXO6+AXS6+AXW6+AYA6+AYE6+AYI6+AYM6+AYQ6+AYU6+AYY6+AZC6+AZG6+AZK6+AZO6+AZS6+AZW6+BAA6+BAE6+BAI6 -> 130 | BAN6: =AVX6+AWB6+AWF6+AWJ6+AWN6+AWR6+AWV6+AWZ6+AXD6+AXH6+AXL6+AXP6+AXT6+AXX6+AYB6+AYF6+AYJ6+AYN6+AYR6+AYV6+AYZ6+AZD6+AZH6+AZL6+AZP6+AZT6+AZX6+BAB6+BAF6+BAJ6 -> 130 | BAS6: 6 | BAT6: 8 | BAU6: 9 | BAV6: 5 | BAW6: 5 | BAX6: 8 | BAY6: 5 | BAZ6: 5 | BBA6: 7 | BBB6: 8 | BBC6: 5 | BBD6: 5 | BBE6: 10 | BBF6: 10 | BBG6: 9 | BBH6: 8 | BBI6: 9 | BBJ6: 9 | BBK6: 9 | BBL6: 8 | BBM6: 10 | BBO6: 9 | BBP6: 8 | BBU6: 10 | BBV6: 1 | BBW6: 9 | BBX6: 8 | BBY6: 10 | BBZ6: 10 | BCA6: 9 | BCB6: 8 | BCC6: 3 | BCD6: 10 | BCE6: 9 | BCF6: 8 | BCG6: 10 | BCH6: 10 | BCI6: 9 | BCJ6: 8 | BCK6: 10 | BCL6: 11 | BCM6: 9 | BCN6: 8 | BCO6: 10 | BCP6: 11 | BCQ6: 9 | BCR6: 8 | BCW6: 10 | BCX6: 11 | BCY6: 9 | BCZ6: 8 | BDA6: 10 | BDB6: 11 | BDC6: 9 | BDD6: 8 | BDE6: 11 | BDF6: 11 | BDG6: 9 | BDH6: 8 | BDI6: 11 | BDJ6: 11 | BDK6: 9 | BDL6: 8 | BDM6: 10 | BDN6: 11 | BDO6: 9 | BDP6: 8 | BDQ6: 10 | BDR6: 11 | BDS6: 9 | BDT6: 8 | BDY6: 5 | BDZ6: 11 | BEA6: 9 | BEB6: 8 | BEC6: 10 | BED6: 10 | BEE6: 9 | BEF6: 8 | BEG6: 11 | BEH6: 10 | BEI6: 9 | BEJ6: 8 | BEK6: 10 | BEL6: 11 | BEM6: 9 | BEN6: 8 | BEO6: 10 | BEP6: 11 | BEQ6: 9 | BER6: 8 | BES6: 11 | BET6: 10 | BEU6: 9 | BEV6: 8 | BFA6: 10 | BFB6: 11 | BFC6: 9 | BFD6: 8 | BFE6: 9 | BFF6: 9 | BFG6: 9 | BFH6: 8 | BFI6: =BAO6+BAS6+BAW6+BBA6+BBE6+BBI6+BBM6+BBQ6+BBU6+BBY6+BCC6+BCG6+BCK6+BCO6+BCS6+BCW6+BDA6+BDE6+BDI6+BDM6+BDQ6+BDU6+BDY6+BEC6+BEG6+BEK6+BEO6+BES6+BEW6+BFA6+BFE6 -> 238 | BFJ6: =BAP6+BAT6+BAX6+BBB6+BBF6+BBJ6+BBN6+BBR6+BBV6+BBZ6+BCD6+BCH6+BCL6+BCP6+BCT6+BCX6+BDB6+BDF6+BDJ6+BDN6+BDR6+BDV6+BDZ6+BED6+BEH6+BEL6+BEP6+BET6+BEX6+BFB6+BFF6 -> 245 | BFK6: =BAQ6+BAU6+BAY6+BBC6+BBG6+BBK6+BBO6+BBS6+BBW6+BCA6+BCE6+BCI6+BCM6+BCQ6+BCU6+BCY6+BDC6+BDG6+BDK6+BDO6+BDS6+BDW6+BEA6+BEE6+BEI6+BEM6+BEQ6+BEU6+BEY6+BFC6+BFG6 -> 226 | BFL6: =BAR6+BAV6+BAZ6+BBD6+BBH6+BBL6+BBP6+BBT6+BBX6+BCB6+BCF6+BCJ6+BCN6+BCR6+BCV6+BCZ6+BDD6+BDH6+BDL6+BDP6+BDT6+BDX6+BEB6+BEF6+BEJ6+BEN6+BER6+BEV6+BEZ6+BFD6+BFH6 -> 199 | BFM6: =EG6+IS6+NQ6+SK6+XI6+ACC6+AHA6+ALY6+AQS6+AVQ6+BAK6+BFI6 -> 3614 | BFN6: =EH6+IT6+NR6+SL6+XJ6+ACD6+AHB6+ALZ6+AQT6+AVR6+BAL6+BFJ6 -> 3759 | BFO6: =EI6+IU6+NS6+SM6+XK6+ACE6+AHC6+AMA6+AQU6+AVS6+BAM6+BFK6 -> 1617 | BFP6: =EJ6+IV6+NT6+SN6+XL6+ACF6+AHD6+AMB6+AQV6+AVT6+BAN6+BFL6 -> 1638 | BFQ6: =IFERROR(BFM6/BFU6,"0") -> 301.1666667 | BFR6: 313.25 | BFS6: 134.75 | BFT6: 136.5 | BFU6: =IF(EG6>0, 1, 0) + IF(IS6> 0, 1, 0) + IF(NQ6 > 0, 1, 0) + IF(SK6 > 0, 1, 0) +IF(XI6 > 0, 1, 0)+ IF(ACC6 > 0, 1, 0)+ IF(AHA6 > 0, 1, 0)+ IF(ALY6 > 0, 1, 0)+ IF(AQS6 > 0, 1, 0)+ IF(AVQ6 > 0, 1, 0)+ IF(BAK6 > 0, 1, 0)+ IF(BFI6 > 0, 1, 0) -> 12 | BFV6: =IF(EH6>0, 1, 0) + IF(IT6> 0, 1, 0) + IF(NR6 > 0, 1, 0) + IF(SL6 > 0, 1, 0) +IF(XJ6 > 0, 1, 0)+ IF(ACD6 > 0, 1, 0)+ IF(AHB6 > 0, 1, 0)+ IF(ALZ6 > 0, 1, 0)+ IF(AQT6 > 0, 1, 0)+ IF(AVR6 > 0, 1, 0)+ IF(BAL6 > 0, 1, 0)+ IF(BFJ6 > 0, 1, 0) -> 12 | BFW6: =IF(EI6>0, 1, 0) + IF(IU6> 0, 1, 0) + IF(NS6 > 0, 1, 0) + IF(SM6 > 0, 1, 0) +IF(XK6 > 0, 1, 0)+ IF(ACE6 > 0, 1, 0)+ IF(AHC6 > 0, 1, 0)+ IF(AMA6 > 0, 1, 0)+ IF(AQU6 > 0, 1, 0)+ IF(AVS6 > 0, 1, 0)+ IF(BAM6 > 0, 1, 0)+ IF(BFK6 > 0, 1, 0) -> 12 | BFX6: =IF(EJ6>0, 1, 0) + IF(IV6> 0, 1, 0) + IF(NT6 > 0, 1, 0) + IF(SN6 > 0, 1, 0) +IF(XL6 > 0, 1, 0)+ IF(ACF6 > 0, 1, 0)+ IF(AHD6 > 0, 1, 0)+ IF(AMB6 > 0, 1, 0)+ IF(AQV6 > 0, 1, 0)+ IF(AVT6 > 0, 1, 0)+ IF(BAN6 > 0, 1, 0)+ IF(BFL6 > 0, 1, 0) -> 12
A7: 2 | B7: MEGHN503003TSBH00905 | C7: MEGHNA INSTITUTE OF DENTAL SCIENCES | D7: VARNI ROAD, MALLARAM VILLAGE, NIZAMABAD - 503001 | E7: 200 | F7: 18.63226442 | G7: 78.05481487 | H7: Dr. ISHARI & Dr. K. GANESH | I7: 8978161677 | J7: info@meghnadentalcollege.ac.in | K7: Private | L7: Dental Hospital | M7: 5 | N7: 3 | O7: 2 | Q7: 5 | R7: 2 | S7: 2 | T7: 1 | U7: 5 | V7: 3 | W7: 2 | Y7: 5 | Z7: 2 | AA7: 2 | AC7: 5 | AE7: 2 | AG7: 5 | AH7: 2 | AI7: 2 | AK7: 5 | AL7: 3 | AM7: 2 | AO7: 5 | AQ7: 2 | AS7: 5 | AT7: 2 | AU7: 2 | AW7: 5 | AX7: 3 | AY7: 2 | BA7: 5 | BB7: 2 | BC7: 2 | BE7: 5 | BF7: 2 | BG7: 2 | BI7: 5 | BJ7: 2 | BK7: 2 | BQ7: 5 | BR7: 2 | BS7: 2 | BU7: 5 | BV7: 2 | BW7: 2 | BY7: 5 | BZ7: 2 | CA7: 2 | CC7: 5 | CD7: 2 | CE7: 2 | CG7: 5 | CH7: 2 | CI7: 2 | CK7: 5 | CL7: 2 | CM7: 2 | CO7: 5 | CP7: 2 | CQ7: 2 | CS7: 5 | CT7: 3 | CU7: 2 | CW7: 5 | CY7: 2 | DA7: 5 | DB7: 2 | DC7: 2 | DE7: 5 | DF7: 1 | DG7: 2 | DI7: 5 | DJ7: 2 | DK7: 2 | DM7: 5 | DN7: 2 | DO7: 2 | DU7: 5 | DV7: 2 | DW7: 2 | DY7: 5 | DZ7: 2 | EA7: 2 | EC7: 5 | ED7: 2 | EE7: 2 | EG7: 145 | EH7: 56 | EI7: 58 | EJ7: 1 | EK7: 5 | EO7: 5 | EQ7: 2 | ES7: 5 | EU7: 2 | FA7: 5 | FC7: 2 | FE7: 5 | FG7: 2 | FI7: 5 | FK7: 2 | FM7: 5 | FO7: 2 | FQ7: 5 | FS7: 2 | FU7: 5 | FW7: 2 | GC7: 5 | GE7: 2 | GG7: 5 | GI7: 2 | GK7: 5 | GM7: 2 | GO7: 5 | GQ7: 2 | GS7: 5 | GU7: 2 | GW7: 5 | GY7: 2 | HE7: 5 | HG7: 2 | HI7: 5 | HK7: 2 | HM7: 5 | HO7: 2 | HQ7: 5 | HS7: 2 | HU7: 5 | HW7: 2 | HY7: 5 | IA7: 2 | IC7: 5 | IE7: 2 | IG7: 5 | II7: 2 | IK7: 5 | IM7: 2 | IO7: 5 | IQ7: 2 | IS7: 125 | IT7: 0 | IU7: 48 | IV7: 0 | IW7: 5 | IY7: 2 | JA7: 5 | JC7: 2 | JI7: 5 | JK7: 2 | JM7: 5 | JN7: 5 | JO7: 2 | JQ7: 5 | JS7: 2 | JU7: 5 | JW7: 2 | JY7: 5 | KA7: 2 | KC7: 5 | KE7: 2 | KK7: 5 | KL7: 5 | KM7: 2 | KO7: 5 | KQ7: 2 | KS7: 5 | KT7: 5 | KU7: 2 | KW7: 5 | KY7: 2 | LA7: 5 | LB7: 5 | LC7: 2 | LE7: 5 | LG7: 2 | LM7: 5 | LN7: 5 | LO7: 2 | LQ7: 5 | LR7: 5 | LS7: 2 | LU7: 5 | LV7: 5 | LW7: 2 | LY7: 5 | LZ7: 5 | MA7: 2 | MC7: 5 | MD7: 5 | ME7: 2 | MG7: 5 | MH7: 5 | MI7: 2 | MO7: 5 | MP7: 5 | MQ7: 2 | MW7: 5 | MX7: 5 | MY7: 2 | NA7: 5 | NB7: 5 | NC7: 2 | NE7: 5 | NF7: 5 | NG7: 2 | NI7: 5 | NK7: 2 | NQ7: 125 | NR7: 70 | NS7: 50 | NT7: 0 | NU7: 5 | NV7: 5 | NW7: 2 | NY7: 5 | NZ7: 5 | OA7: 2 | OE7: 2 | OG7: 5 | OH7: 5 | OI7: 2 | OK7: 5 | OL7: 5 | OM7: 2 | OO7: 5 | OP7: 5 | OQ7: 2 | OY7: 2 | PE7: 5 | PF7: 5 | PG7: 2 | PI7: 5 | PJ7: 5 | PK7: 2 | PM7: 5 | PN7: 5 | PO7: 2 | PS7: 5 | QA7: 2 | QE7: 2 | QG7: 5 | QH7: 5 | QI7: 2 | QK7: 5 | QM7: 2 | QO7: 5 | QP7: 5 | QQ7: 2 | QS7: 5 | QT7: 5 | QU7: 2 | RA7: 5 | RB7: 5 | RC7: 2 | RE7: 5 | RF7: 5 | RG7: 2 | RK7: 2 | RO7: 2 | RQ7: 5 | RR7: 5 | RS7: 2 | RV7: 5 | RW7: 2 | SC7: 5 | SD7: 5 | SE7: 2 | SI7: 2 | SK7: 80 | SL7: 80 | SM7: 53 | SN7: 0 | SQ7: 2 | SU7: 2 | SY7: 2 | TC7: 2 | TI7: 5 | TK7: 2 | TN7: 5 | TO7: 2 | TS7: 2 | TU7: 3 | TW7: 2 | UA7: 2 | UC7: 5 | UE7: 2 | UM7: 2 | UP7: 5 | UQ7: 2 | UT7: 5 | UU7: 2 | UX7: 5 | UY7: 2 | VA7: 5 | VC7: 2 | VE7: 5 | VG7: 2 | VO7: 2 | VR7: 5 | VS7: 2 | VU7: 5 | VW7: 2 | VZ7: 5 | WA7: 2 | WC7: 5 | WE7: 2 | WH7: 2 | WI7: 2 | WQ7: 2 | WU7: 2 | WY7: 2 | XB7: 3 | XC7: 2 | XG7: 2 | XI7: 33 | XJ7: 35 | XK7: 54 | XL7: 0 | XO7: 2 | XV7: 5 | XW7: 2 | XZ7: 5 | YA7: 2 | YE7: 2 | YI7: 2 | YK7: 5 | YM7: 2 | YO7: 5 | YQ7: 2 | YY7: 2 | ZB7: 5 | ZC7: 2 | ZF7: 5 | ZG7: 2 | ZJ7: 5 | ZK7: 2 | ZO7: 2 | ZQ7: 5 | ZS7: 2 | ZY7: 5 | AAA7: 2 | AAI7: 2 | AAK7: 3 | AAM7: 2 | AAP7: 3 | AAQ7: 2 | AAT7: 5 | AAU7: 2 | ABA7: 4 | ABC7: 2 | ABF7: 5 | ABG7: 2 | ABJ7: 3 | ABK7: 2 | ABN7: 4 | ABO7: 2 | ABR7: 4 | ABS7: 2 | ABV7: 5 | ABW7: 2 | ACC7: =XM7+XQ7+XU7+XY7+YC7+YG7+YK7+YO7+YS7+YW7+ZA7+ZE7+ZI7+ZM7+ZQ7+ZU7+ZY7+AAC7+AAG7+AAK7+AAO7+AAS7+AAW7+ABA7+ABE7+ABI7+ABM7+ABQ7+ABU7+ABY7 -> 27 | ACD7: =XN7+XR7+XV7+XZ7+YD7+YH7+YL7+YP7+YT7+YX7+ZB7+ZF7+ZJ7+ZN7+ZR7+ZV7+ZZ7+AAD7+AAH7+AAL7+AAP7+AAT7+AAX7+ABB7+ABF7+ABJ7+ABN7+ABR7+ABV7+ABZ7 -> 54 | ACE7: =XO7+XS7+XW7+YA7+YE7+YI7+YM7+YQ7+YU7+YY7+ZC7+ZG7+ZK7+ZO7+ZS7+ZW7+AAA7+AAE7+AAI7+AAM7+AAQ7+AAU7+AAY7+ABC7+ABG7+ABK7+ABO7+ABS7+ABW7+ACA7 -> 48 | ACF7: =XP7+XT7+XX7+YB7+YF7+YJ7+YN7+YR7+YV7+YZ7+ZD7+ZH7+ZL7+ZP7+ZT7+ZX7+AAB7+AAF7+AAJ7+AAN7+AAR7+AAV7+AAZ7+ABD7+ABH7+ABL7+ABP7+ABT7+ABX7+ACB7 -> 0 | ACH7: 5 | ACI7: 2 | ACL7: 5 | ACM7: 2 | ACP7: 5 | ACQ7: 2 | ACT7: 5 | ACU7: 2 | ACX7: 5 | ACY7: 2 | ADB7: 5 | ADC7: 2 | ADK7: 2 | ADO7: 2 | ADR7: 5 | ADS7: 2 | ADV7: 5 | ADW7: 2 | ADZ7: 5 | AEA7: 2 | AED7: 5 | AEE7: 2 | AEL7: 5 | AEM7: 2 | AEO7: 3 | AEQ7: 2 | AET7: 4 | AEU7: 2 | AEW7: 3 | AEY7: 2 | AFA7: 3 | AFC7: 2 | AFE7: 3 | AFG7: 2 | AFM7: 3 | AFO7: 2 | AFQ7: 3 | AFS7: 2 | AFV7: 3 | AFW7: 2 | AFZ7: 4 | AGA7: 2 | AGE7: 2 | AGI7: 2 | AGO7: 5 | AGQ7: 2 | AGS7: 3 | AGU7: 2 | AGX7: 3 | AGY7: 2 | AHA7: 26 | AHB7: 69 | AHC7: 54 | AHD7: 0 | AHE7: 3 | AHG7: 2 | AHJ7: 5 | AHK7: 2 | AHM7: 5 | AHO7: 2 | AHU7: 5 | AHW7: 2 | AHZ7: 5 | AIA7: 2 | AID7: 5 | AIE7: 2 | AIH7: 5 | AII7: 2 | AIL7: 5 | AIM7: 2 | AIP7: 5 | AIQ7: 2 | AIX7: 3 | AIY7: 2 | AJB7: 4 | AJC7: 2 | AJF7: 4 | AJG7: 2 | AJI7: 3 | AJK7: 2 | AJM7: 3 | AJO7: 2 | AJQ7: 3 | AJS7: 2 | AJY7: 3 | AKA7: 2 | AKC7: 4 | AKE7: 2 | AKG7: 3 | AKI7: 2 | AKL7: 3 | AKM7: 2 | AKP7: 3 | AKQ7: 2 | AKT7: 3 | AKU7: 2 | ALA7: 3 | ALC7: 2 | ALG7: 2 | ALJ7: 5 | ALK7: 2 | ALN7: 5 | ALO7: 2 | ALR7: 5 | ALS7: 2 | ALV7: 5 | ALW7: 2 | ALY7: 35 | ALZ7: 70 | AMA7: 54 | AMB7: 0 | AMG7: 2 | AMI7: 2 | AMK7: 5 | AMM7: 2 | AMO7: 2 | AMQ7: 2 | AMS7: 2 | AMU7: 2 | AMX7: 5 | AMY7: 2 | ANB7: 5 | ANC7: 2 | ANJ7: 5 | ANK7: 2 | ANN7: 5 | ANO7: 2 | ANQ7: 5 | ANS7: 2 | ANV7: 5 | ANW7: 2 | ANY7: 5 | AOA7: 2 | AOD7: 5 | AOE7: 2 | AOL7: 5 | AOM7: 2 | AOP7: 2 | AOQ7: 2 | AOS7: 5 | AOU7: 2 | AOY7: 2 | APA7: 5 | APC7: 2 | APG7: 2 | APN7: 5 | APO7: 2 | APR7: 5 | APS7: 2 | APU7: 5 | APW7: 2 | APZ7: 5 | AQA7: 2 | AQD7: 5 | AQE7: 2 | AQH7: 5 | AQI7: 2 | AQP7: 5 | AQQ7: 2 | AQS7: 36 | AQT7: 67 | AQU7: 50 | AQV7: 0 | AQX7: 3 | AQY7: 2 | ARB7: 3 | ARC7: 2 | ARF7: 3 | ARG7: 2 | ARJ7: 3 | ARK7: 2 | ARM7: 3 | ARO7: 2 | ARU7: 3 | ARW7: 2 | ARZ7: 3 | ASA7: 2 | ASD7: 3 | ASE7: 2 | ASG7: 3 | ASI7: 2 | ASO7: 3 | ASQ7: 2 | ASW7: 3 | ASY7: 2 | ATA7: 3 | ATC7: 2 | ATF7: 3 | ATG7: 2 | ATM7: 3 | ATO7: 2 | ATR7: 5 | ATS7: 2 | ATZ7: 5 | AUA7: 2 | AUD7: 3 | AUE7: 2 | AUI7: 2 | AUL7: 3 | AUM7: 2 | AUP7: 3 | AUQ7: 2 | AUT7: 3 | AUU7: 2 | AVB7: 3 | AVC7: 2 | AVF7: 3 | AVG7: 2 | AVI7: 3 | AVK7: 2 | AVQ7: 24 | AVR7: 49 | AVS7: 48 | AVT7: 0 | AVV7: 3 | AVW7: 2 | AWA7: 2 | AWH7: 5 | AWI7: 2 | AWL7: 5 | AWM7: 2 | AWP7: 5 | AWQ7: 2 | AWS7: 5 | AWU7: 2 | AWW7: 5 | AWY7: 2 | AXC7: 2 | AXI7: 5 | AXK7: 2 | AXM7: 3 | AXO7: 2 | AXQ7: 3 | AXS7: 2 | AXV7: 3 | AXW7: 2 | AXZ7: 3 | AYA7: 2 | AYC7: 5 | AYE7: 2 | AYL7: 5 | AYM7: 2 | AYP7: 5 | AYQ7: 2 | AYT7: 5 | AYU7: 2 | AYW7: 3 | AYY7: 2 | AZA7: 3 | AZC7: 2 | AZF7: 5 | AZG7: 2 | AZN7: 3 | AZO7: 2 | AZQ7: 3 | AZS7: 2 | AZU7: 2 | AZV7: 5 | AZW7: 2 | AZZ7: 3 | BAA7: 2 | BAC7: 3 | BAD7: 5 | BAE7: 2 | BAG7: 3 | BAH7: 5 | BAI7: 2 | BAK7: 43 | BAL7: 65 | BAM7: 52 | BAN7: 0 | BAS7: 3 | BAT7: 5 | BAU7: 5 | BAW7: 3 | BAY7: 2 | BBA7: 3 | BBC7: 2 | BBE7: 3 | BBG7: 5 | BBI7: 3 | BBK7: 5 | BBN7: 3 | BBO7: 5 | BBU7: 3 | BBW7: 5 | BBY7: 3 | BCA7: 5 | BCC7: 3 | BCE7: 5 | BCG7: 3 | BCI7: 5 | BCK7: 3 | BCM7: 5 | BCO7: 3 | BCQ7: 5 | BCW7: 3 | BCY7: 5 | BDA7: 5 | BDC7: 5 | BDE7: 7 | BDF7: 2 | BDG7: 5 | BDI7: 5 | BDJ7: 2 | BDK7: 5 | BDM7: 5 | BDN7: 2 | BDO7: 5 | BDQ7: 5 | BDR7: 3 | BDS7: 5 | BDY7: 2 | BEA7: 5 | BEC7: 3 | BEE7: 5 | BEG7: 3 | BEH7: 5 | BEI7: 5 | BEK7: 5 | BEL7: 3 | BEM7: 5 | BEO7: 5 | BEP7: 2 | BEQ7: 5 | BES7: 5 | BET7: 3 | BEU7: 5 | BFA7: 3 | BFB7: 5 | BFC7: 5 | BFE7: 9 | BFF7: 3 | BFG7: 5 | BFI7: 98 | BFJ7: 38 | BFK7: 124 | BFL7: 0 | BFM7: 797 | BFN7: 653 | BFO7: 693 | BFP7: 1 | BFQ7: 66.41666667 | BFR7: 59.36363636 | BFS7: 57.75 | BFT7: 1 | BFU7: =IF(EG7>0, 1, 0) + IF(IS7> 0, 1, 0) + IF(NQ7 > 0, 1, 0) + IF(SK7 > 0, 1, 0) +IF(XI7 > 0, 1, 0)+ IF(ACC7 > 0, 1, 0)+ IF(AHA7 > 0, 1, 0)+ IF(ALY7 > 0, 1, 0)+ IF(AQS7 > 0, 1, 0)+ IF(AVQ7 > 0, 1, 0)+ IF(BAK7 > 0, 1, 0)+ IF(BFI7 > 0, 1, 0) -> 12 | BFV7: =IF(EH7>0, 1, 0) + IF(IT7> 0, 1, 0) + IF(NR7 > 0, 1, 0) + IF(SL7 > 0, 1, 0) +IF(XJ7 > 0, 1, 0)+ IF(ACD7 > 0, 1, 0)+ IF(AHB7 > 0, 1, 0)+ IF(ALZ7 > 0, 1, 0)+ IF(AQT7 > 0, 1, 0)+ IF(AVR7 > 0, 1, 0)+ IF(BAL7 > 0, 1, 0)+ IF(BFJ7 > 0, 1, 0) -> 11 | BFW7: =IF(EI7>0, 1, 0) + IF(IU7> 0, 1, 0) + IF(NS7 > 0, 1, 0) + IF(SM7 > 0, 1, 0) +IF(XK7 > 0, 1, 0)+ IF(ACE7 > 0, 1, 0)+ IF(AHC7 > 0, 1, 0)+ IF(AMA7 > 0, 1, 0)+ IF(AQU7 > 0, 1, 0)+ IF(AVS7 > 0, 1, 0)+ IF(BAM7 > 0, 1, 0)+ IF(BFK7 > 0, 1, 0) -> 12 | BFX7: =IF(EJ7>0, 1, 0) + IF(IV7> 0, 1, 0) + IF(NT7 > 0, 1, 0) + IF(SN7 > 0, 1, 0) +IF(XL7 > 0, 1, 0)+ IF(ACF7 > 0, 1, 0)+ IF(AHD7 > 0, 1, 0)+ IF(AMB7 > 0, 1, 0)+ IF(AQV7 > 0, 1, 0)+ IF(AVT7 > 0, 1, 0)+ IF(BAN7 > 0, 1, 0)+ IF(BFL7 > 0, 1, 0) -> 1
A8: 3 | B8: PRAGA503001TSBH06142 | C8: PRAGATHI HOSPITAL | D8: HYDERABAD ROAD, PRAGATHI NAGAR, NIZAMABAD - 503001 | E8: 150 | H8: Dr. A. LAXMA REDDY | I8: 9246913330 | J8: pragathi.hospital3@gmail.com | K8: Private | L8: Bedded | M8: 5 | N8: 5 | O8: 2 | P8: 1 | Q8: 5 | R8: 2 | S8: 2 | T8: 2 | U8: 5 | V8: 5 | W8: 2 | X8: 2 | Y8: 5 | Z8: 5 | AA8: 2 | AB8: 2 | AC8: 5 | AD8: 5 | AE8: 2 | AF8: 2 | AG8: 5 | AH8: 5 | AI8: 2 | AJ8: 2 | AK8: 5 | AL8: 5 | AM8: 2 | AN8: 2 | AO8: 5 | AP8: 5 | AQ8: 2 | AR8: 2 | AS8: 5 | AT8: 5 | AU8: 2 | AV8: 2 | AW8: 5 | AX8: 5 | AY8: 2 | AZ8: 2 | BA8: 5 | BB8: 5 | BC8: 2 | BD8: 2 | BE8: 5 | BF8: 5 | BG8: 2 | BH8: 2 | BI8: 5 | BJ8: 5 | BK8: 2 | BL8: 2 | BQ8: 5 | BR8: 5 | BS8: 2 | BT8: 2 | BU8: 5 | BV8: 5 | BW8: 2 | BX8: 2 | BY8: 5 | BZ8: 5 | CA8: 2 | CB8: 2 | CC8: 5 | CD8: 5 | CE8: 2 | CF8: 2 | CG8: 5 | CH8: 5 | CI8: 5 | CJ8: 5 | CK8: 5 | CL8: 5 | CM8: 2 | CN8: 2 | CO8: 5 | CP8: 5 | CQ8: 2 | CR8: 2 | CS8: 5 | CT8: 5 | CU8: 2 | CV8: 2 | CW8: 5 | CX8: 5 | CY8: 2 | CZ8: 2 | DA8: 5 | DB8: 5 | DC8: 2 | DD8: 2 | DE8: 5 | DF8: 5 | DG8: 2 | DH8: 2 | DI8: 5 | DJ8: 5 | DK8: 2 | DL8: 2 | DM8: 5 | DN8: 5 | DO8: 2 | DP8: 2 | DU8: 5 | DV8: 5 | DW8: 2 | DX8: 2 | DY8: 5 | DZ8: 5 | EA8: 2 | EB8: 2 | EC8: 5 | ED8: 5 | EE8: 2 | EF8: 2 | EG8: 145 | EH8: 142 | EI8: 61 | EJ8: 60 | EK8: 5 | EL8: 5 | EN8: 2 | EO8: 5 | EQ8: 2 | ER8: 2 | ES8: 5 | EU8: 2 | EV8: 2 | FA8: 5 | FB8: 5 | FC8: 2 | FD8: 2 | FE8: 5 | FF8: 5 | FG8: 2 | FH8: 2 | FI8: 5 | FJ8: 5 | FK8: 2 | FL8: 2 | FM8: 5 | FO8: 2 | FP8: 2 | FQ8: 5 | FS8: 2 | FT8: 2 | FU8: 5 | FV8: 5 | FW8: 2 | FX8: 2 | GC8: 5 | GE8: 2 | GF8: 2 | GG8: 5 | GH8: 5 | GI8: 2 | GJ8: 2 | GK8: 5 | GL8: 5 | GM8: 2 | GN8: 2 | GO8: 5 | GQ8: 2 | GR8: 2 | GS8: 5 | GT8: 5 | GU8: 2 | GV8: 2 | GW8: 5 | GX8: 5 | GY8: 2 | GZ8: 2 | HE8: 5 | HF8: 5 | HG8: 2 | HH8: 2 | HI8: 5 | HJ8: 5 | HK8: 2 | HL8: 2 | HM8: 5 | HN8: 5 | HO8: 2 | HP8: 2 | HQ8: 5 | HR8: 5 | HS8: 2 | HT8: 2 | HU8: 5 | HV8: 5 | HW8: 2 | HX8: 2 | HY8: 5 | HZ8: 5 | IA8: 2 | IB8: 2 | IC8: 5 | ID8: 5 | IE8: 2 | IF8: 2 | IG8: 5 | IH8: 5 | II8: 2 | IJ8: 2 | IK8: 5 | IM8: 2 | IN8: 2 | IO8: 5 | IP8: 5 | IQ8: 2 | IR8: 2 | IS8: 125 | IT8: 90 | IU8: 48 | IV8: 50 | IW8: 5 | IX8: 5 | IY8: 2 | IZ8: 2 | JA8: 5 | JB8: 5 | JC8: 2 | JD8: 2 | JI8: 5 | JJ8: 5 | JK8: 2 | JL8: 2 | JM8: 5 | JN8: 5 | JO8: 2 | JP8: 2 | JQ8: 5 | JR8: 5 | JS8: 2 | JT8: 2 | JU8: 5 | JV8: 5 | JW8: 2 | JX8: 2 | JY8: 5 | KA8: 2 | KB8: 2 | KC8: 5 | KD8: 5 | KE8: 2 | KF8: 2 | KK8: 5 | KL8: 5 | KM8: 2 | KN8: 2 | KO8: 5 | KQ8: 2 | KR8: 2 | KS8: 5 | KU8: 2 | KV8: 2 | KW8: 5 | KX8: 5 | KY8: 2 | KZ8: 2 | LA8: 5 | LB8: 5 | LC8: 2 | LD8: 2 | LE8: 5 | LF8: 5 | LG8: 2 | LH8: 2 | LM8: 5 | LO8: 2 | LP8: 2 | LQ8: 5 | LR8: 5 | LS8: 2 | LT8: 2 | LU8: 5 | LV8: 5 | LW8: 2 | LX8: 2 | LY8: 5 | LZ8: 5 | MA8: 2 | MB8: 2 | MC8: 5 | MD8: 5 | ME8: 2 | MF8: 2 | MG8: 5 | MH8: 5 | MI8: 2 | MJ8: 2 | MO8: 5 | MP8: 5 | MQ8: 2 | MR8: 2 | MW8: 5 | MX8: 5 | MY8: 2 | MZ8: 2 | NA8: 5 | NB8: 5 | NC8: 2 | ND8: 2 | NE8: 5 | NG8: 2 | NH8: 2 | NI8: 5 | NJ8: 5 | NK8: 2 | NL8: 2 | NQ8: 125 | NR8: 100 | NS8: 50 | NT8: 50 | NV8: 5 | NW8: 2 | NX8: 2 | OA8: 2 | OB8: 2 | OE8: 2 | OF8: 2 | OG8: 5 | OH8: 5 | OI8: 2 | OJ8: 2 | OK8: 5 | OL8: 5 | OM8: 2 | ON8: 2 | OO8: 5 | OP8: 5 | OQ8: 2 | OR8: 2 | OX8: 5 | OY8: 2 | OZ8: 2 | PE8: 5 | PF8: 5 | PG8: 2 | PH8: 2 | PI8: 5 | PJ8: 5 | PK8: 2 | PL8: 2 | PM8: 5 | PO8: 2 | PP8: 2 | PR8: 5 | PT8: 2 | PY8: 5 | PZ8: 5 | QA8: 2 | QB8: 2 | QC8: 5 | QD8: 5 | QE8: 2 | QF8: 2 | QG8: 5 | QH8: 5 | QI8: 2 | QJ8: 2 | QK8: 5 | QL8: 5 | QM8: 2 | QN8: 2 | QO8: 5 | QP8: 5 | QQ8: 2 | QR8: 2 | QS8: 10 | QU8: 2 | QV8: 2 | RA8: 5 | RB8: 5 | RC8: 2 | RD8: 2 | RE8: 5 | RF8: 5 | RG8: 2 | RH8: 2 | RI8: 5 | RJ8: 5 | RK8: 2 | RL8: 2 | RN8: 5 | RO8: 2 | RP8: 2 | RQ8: 5 | RR8: 5 | RS8: 2 | RT8: 2 | RW8: 2 | RX8: 2 | SE8: 2 | SF8: 2 | SH8: 2 | SI8: 2 | SJ8: 2 | SK8: 85 | SL8: 92 | SM8: 48 | SN8: 50 | SO8: 5 | SP8: 5 | SQ8: 2 | SR8: 2 | SU8: 2 | SV8: 2 | SY8: 2 | SZ8: 2 | TA8: 5 | TB8: 5 | TC8: 2 | TD8: 2 | TI8: 5 | TJ8: 5 | TK8: 2 | TL8: 2 | TM8: 5 | TO8: 2 | TP8: 2 | TS8: 2 | TT8: 2 | TV8: 5 | TW8: 2 | TX8: 2 | TZ8: 5 | UA8: 2 | UB8: 2 | UD8: 2 | UE8: 2 | UF8: 2 | UK8: 2 | UM8: 2 | UN8: 2 | UQ8: 2 | UR8: 2 | UU8: 2 | UV8: 2 | UW8: 5 | UY8: 2 | UZ8: 2 | VB8: 5 | VC8: 2 | VD8: 2 | VE8: 5 | VG8: 2 | VH8: 2 | VO8: 2 | VP8: 2 | VR8: 5 | VS8: 2 | VT8: 2 | VU8: 5 | VW8: 2 | VX8: 2 | VZ8: 5 | WA8: 2 | WB8: 2 | WD8: 5 | WE8: 2 | WF8: 2 | WG8: 5 | WI8: 2 | WJ8: 2 | WP8: 5 | WQ8: 2 | WR8: 2 | WU8: 2 | WV8: 2 | WW8: 5 | WY8: 2 | WZ8: 2 | XA8: 5 | XC8: 2 | XD8: 2 | XG8: 2 | XH8: 2 | XI8: 52 | XJ8: 52 | XK8: 54 | XL8: 54 | XO8: 2 | XP8: 2 | XW8: 2 | XX8: 2 | YA8: 2 | YB8: 2 | YE8: 2 | YF8: 2 | YI8: 2 | YJ8: 2 | YM8: 2 | YN8: 2 | YQ8: 2 | YR8: 2 | YY8: 2 | YZ8: 2 | ZC8: 2 | ZD8: 2 | ZG8: 2 | ZH8: 2 | ZK8: 2 | ZL8: 2 | ZO8: 2 | ZP8: 2 | ZS8: 2 | ZT8: 2 | ZZ8: 5 | AAA8: 2 | AAB8: 2 | AAD8: 5 | AAF8: 2 | AAI8: 2 | AAJ8: 2 | AAK8: 6 | AAM8: 2 | AAN8: 2 | AAO8: 5 | AAQ8: 2 | AAR8: 2 | AAU8: 2 | AAV8: 2 | ABA8: 5 | ABC8: 2 | ABD8: 2 | ABG8: 2 | ABH8: 2 | ABJ8: 3 | ABK8: 2 | ABL8: 2 | ABN8: 6 | ABO8: 2 | ABP8: 2 | ABR8: 7 | ABS8: 2 | ABT8: 2 | ABV8: 2 | ABW8: 2 | ABX8: 2 | ACC8: 16 | ACD8: 28 | ACE8: 48 | ACF8: 50 | ACH8: 2 | ACI8: 2 | ACJ8: 2 | ACK8: 5 | ACM8: 2 | ACN8: 2 | ACP8: 5 | ACQ8: 2 | ACR8: 2 | ACU8: 2 | ACV8: 2 | ACX8: 5 | ACY8: 2 | ACZ8: 2 | ADB8: 5 | ADC8: 2 | ADD8: 2 | ADK8: 2 | ADL8: 2 | ADO8: 2 | ADP8: 2 | ADR8: 5 | ADS8: 2 | ADT8: 2 | ADV8: 2 | ADW8: 2 | ADX8: 2 | AEA8: 2 | AEB8: 2 | AED8: 2 | AEE8: 2 | AEF8: 2 | AEL8: 5 | AEM8: 2 | AEN8: 2 | AEP8: 6 | AEQ8: 2 | AER8: 2 | AET8: 6 | AEU8: 2 | AEV8: 2 | AEX8: 6 | AEY8: 2 | AEZ8: 2 | AFB8: 6 | AFC8: 2 | AFD8: 2 | AFF8: 6 | AFG8: 2 | AFH8: 2 | AFN8: 7 | AFO8: 2 | AFP8: 2 | AFR8: 7 | AFS8: 2 | AFT8: 2 | AFU8: 6 | AFW8: 2 | AFX8: 2 | AFY8: 6 | AGA8: 2 | AGB8: 2 | AGC8: 6 | AGE8: 2 | AGF8: 2 | AGG8: 6 | AGI8: 2 | AGJ8: 2 | AGP8: 2 | AGQ8: 2 | AGR8: 2 | AGT8: 8 | AGU8: 2 | AGV8: 2 | AGW8: 6 | AGY8: 2 | AGZ8: 2 | AHA8: 35 | AHB8: 85 | AHC8: 54 | AHD8: 54 | AHE8: 6 | AHG8: 2 | AHH8: 2 | AHK8: 2 | AHL8: 2 | AHN8: 5 | AHO8: 2 | AHP8: 2 | AHV8: 2 | AHW8: 2 | AHX8: 2 | AIA8: 2 | AIB8: 2 | AID8: 5 | AIE8: 2 | AIF8: 2 | AIH8: 5 | AII8: 2 | AIJ8: 2 | AIM8: 2 | AIN8: 2 | AIO8: 5 | AIQ8: 2 | AIR8: 2 | AIY8: 2 | AIZ8: 2 | AJB8: 5 | AJC8: 2 | AJD8: 2 | AJF8: 6 | AJG8: 2 | AJH8: 2 | AJI8: 6 | AJK8: 2 | AJL8: 2 | AJM8: 6 | AJO8: 2 | AJP8: 2 | AJR8: 7 | AJS8: 2 | AJT8: 2 | AJZ8: 5 | AKA8: 2 | AKB8: 2 | AKD8: 6 | AKE8: 2 | AKF8: 2 | AKH8: 6 | AKI8: 2 | AKJ8: 2 | AKK8: 7 | AKM8: 2 | AKN8: 2 | AKP8: 7 | AKQ8: 2 | AKR8: 2 | AKS8: 6 | AKU8: 2 | AKV8: 2 | ALB8: 5 | ALC8: 2 | ALD8: 2 | ALG8: 2 | ALH8: 2 | ALI8: 6 | ALK8: 2 | ALL8: 2 | ALO8: 2 | ALP8: 2 | ALQ8: 5 | ALS8: 2 | ALT8: 2 | ALU8: 5 | ALW8: 2 | ALX8: 2 | ALY8: 52 | ALZ8: 64 | AMA8: 54 | AMB8: 54 | AMG8: 5 | AMI8: 2 | AMJ8: 2 | AMK8: 5 | AMM8: 2 | AMN8: 2 | AMO8: 6 | AMQ8: 2 | AMR8: 2 | AMS8: 6 | AMU8: 2 | AMV8: 2 | AMX8: 5 | AMY8: 2 | AMZ8: 2 | ANB8: 5 | ANC8: 2 | AND8: 2 | ANI8: 5 | ANK8: 2 | ANL8: 2 | ANN8: 2 | ANO8: 2 | ANP8: 2 | ANQ8: 5 | ANS8: 2 | ANT8: 2 | ANU8: 5 | ANW8: 2 | ANX8: 2 | ANY8: 5 | AOA8: 2 | AOB8: 2 | AOC8: 5 | AOE8: 2 | AOF8: 2 | AOK8: 2 | AOM8: 2 | AON8: 2 | AOQ8: 2 | AOR8: 2 | AOU8: 2 | AOV8: 2 | AOY8: 2 | AOZ8: 2 | APC8: 2 | APD8: 2 | APG8: 2 | APH8: 2 | APM8: 5 | APO8: 2 | APP8: 2 | APQ8: 5 | APS8: 2 | APT8: 2 | APV8: 5 | APW8: 2 | APX8: 2 | APZ8: 5 | AQA8: 2 | AQB8: 2 | AQD8: 5 | AQE8: 2 | AQF8: 2 | AQI8: 2 | AQJ8: 2 | AQQ8: 2 | AQR8: 2 | AQS8: 59 | AQT8: 27 | AQU8: 50 | AQV8: 50 | AQW8: 5 | AQY8: 2 | AQZ8: 2 | ARA8: 5 | ARC8: 2 | ARD8: 2 | ARF8: 5 | ARG8: 2 | ARH8: 2 | ARI8: 5 | ARK8: 2 | ARL8: 2 | ARM8: 5 | ARO8: 2 | ARP8: 2 | ARW8: 2 | ARX8: 2 | ARY8: 5 | ASA8: 2 | ASB8: 2 | ASE8: 2 | ASF8: 2 | ASI8: 2 | ASJ8: 2 | ASO8: 5 | ASQ8: 2 | ASR8: 2 | ASY8: 2 | ASZ8: 2 | ATA8: 6 | ATC8: 2 | ATD8: 2 | ATG8: 2 | ATH8: 2 | ATM8: 5 | ATO8: 2 | ATP8: 2 | ATQ8: 5 | ATR8: 5 | ATS8: 2 | ATT8: 2 | ATY8: 5 | ATZ8: 5 | AUA8: 2 | AUB8: 2 | AUC8: 7 | AUE8: 2 | AUF8: 2 | AUI8: 2 | AUK8: 7 | AUM8: 2 | AUP8: 6 | AUQ8: 2 | AUT8: 7 | AUU8: 2 | AVA8: 7 | AVC8: 2 | AVF8: 7 | AVG8: 2 | AVJ8: 7 | AVK8: 2 | AVQ8: 72 | AVR8: 42 | AVS8: 48 | AVT8: 34 | AVU8: 5 | AVW8: 2 | AWA8: 2 | AWG8: 5 | AWI8: 2 | AWK8: 5 | AWM8: 2 | AWO8: 5 | AWQ8: 2 | AWS8: 5 | AWU8: 2 | AWW8: 5 | AWY8: 2 | AXA8: 5 | AXC8: 2 | AXI8: 5 | AXK8: 2 | AXN8: 5 | AXO8: 2 | AXR8: 5 | AXS8: 2 | AXU8: 5 | AXW8: 2 | AXY8: 5 | AYA8: 2 | AYC8: 5 | AYE8: 2 | AYK8: 5 | AYM8: 2 | AYO8: 5 | AYQ8: 2 | AYS8: 5 | AYU8: 2 | AYW8: 5 | AYY8: 2 | AZA8: 5 | AZC8: 2 | AZE8: 5 | AZG8: 2 | AZM8: 5 | AZO8: 2 | AZQ8: 5 | AZS8: 2 | AZU8: 5 | AZV8: 5 | AZW8: 2 | AZZ8: 5 | BAA8: 2 | BAC8: 5 | BAD8: 5 | BAE8: 2 | BAG8: 5 | BAH8: 5 | BAI8: 2 | BAK8: 110 | BAL8: 30 | BAM8: 52 | BAN8: 0 | BAS8: 5 | BAT8: 2 | BAU8: 5 | BAW8: 5 | BAY8: 2 | BBB8: 6 | BBC8: 2 | BBF8: 6 | BBG8: 5 | BBJ8: 6 | BBK8: 5 | BBO8: 5 | BBV8: 6 | BBW8: 5 | BCA8: 5 | BCC8: 6 | BCE8: 5 | BCG8: 5 | BCI8: 5 | BCJ8: 5 | BCL8: 7 | BCM8: 5 | BCN8: 5 | BCQ8: 5 | BCR8: 5 | BCW8: 6 | BCY8: 5 | BCZ8: 5 | BDA8: 5 | BDC8: 5 | BDD8: 5 | BDE8: 7 | BDG8: 5 | BDH8: 5 | BDI8: 5 | BDJ8: 6 | BDK8: 5 | BDL8: 5 | BDM8: 5 | BDN8: 2 | BDO8: 5 | BDP8: 5 | BDQ8: 5 | BDR8: 3 | BDS8: 5 | BDT8: 5 | BDY8: 5 | BDZ8: 5 | BEA8: 5 | BEB8: 5 | BEC8: 5 | BEE8: 5 | BEF8: 5 | BEG8: 7 | BEH8: 5 | BEI8: 5 | BEJ8: 5 | BEK8: 5 | BEL8: 5 | BEM8: 5 | BEN8: 5 | BEO8: 6 | BEP8: 2 | BEQ8: 5 | BER8: 5 | BES8: 5 | BET8: 3 | BEU8: 5 | BEV8: 5 | BFA8: 7 | BFB8: 5 | BFC8: 5 | BFD8: 5 | BFE8: 9 | BFF8: 5 | BFG8: 5 | BFH8: 5 | BFI8: 103 | BFJ8: 74 | BFK8: 124 | BFL8: 85 | BFM8: 979 | BFN8: 826 | BFO8: 691 | BFP8: 591 | BFQ8: 81.58333333 | BFR8: 68.83333333 | BFS8: 57.58333333 | BFT8: 53.72727273 | BFU8: 12 | BFV8: 12 | BFW8: 12 | BFX8: 11
A9: 4 | B9: PRUDE503002TSBH17373 | C9: PRUDENCE HOSPITALS | D9: H.NO. 1-12-121/A, OPP: YENDALA TOWERS, PRAGATHI NAGAR, NIZAMABAD | E9: 100 | H9: Dr. JAKKA RAVI | I9: 9985869944 | J9: admin@prudencehospitals.com | K9: Private | L9: Bedded | M9: 5 | N9: 3 | O9: 2 | Q9: 5 | R9: 3 | S9: 2 | U9: 5 | V9: 3 | W9: 2 | Y9: 5 | Z9: 3 | AA9: 2 | AC9: 5 | AD9: 3 | AE9: 2 | AG9: 5 | AH9: 3 | AI9: 2 | AK9: 5 | AL9: 3 | AM9: 2 | AO9: 5 | AP9: 3 | AQ9: 2 | AS9: 5 | AT9: 3 | AU9: 2 | AW9: 5 | AX9: 3 | AY9: 2 | BA9: 5 | BB9: 3 | BC9: 2 | BE9: 5 | BF9: 3 | BG9: 2 | BI9: 5 | BJ9: 3 | BK9: 2 | BQ9: 5 | BR9: 3 | BS9: 2 | BU9: 5 | BV9: 5 | BW9: 2 | BY9: 5 | BZ9: 5 | CA9: 2 | CC9: 5 | CD9: 5 | CE9: 2 | CG9: 5 | CH9: 5 | CI9: 2 | CK9: 5 | CL9: 5 | CM9: 2 | CO9: 5 | CP9: 5 | CQ9: 2 | CS9: 5 | CT9: 5 | CU9: 2 | CW9: 5 | CX9: 5 | CY9: 2 | DA9: 5 | DB9: 5 | DC9: 2 | DE9: 5 | DF9: 5 | DG9: 2 | DI9: 5 | DJ9: 5 | DK9: 2 | DM9: 5 | DN9: 5 | DO9: 2 | DU9: 5 | DV9: 5 | DW9: 2 | DY9: 5 | DZ9: 5 | EA9: 2 | EC9: 5 | ED9: 5 | EE9: 2 | EG9: =M9+Q9+U9+Y9+AC9+AG9+AK9+AO9+AS9+AW9+BA9+BE9+BI9+BM9+BQ9+BU9+BY9+CC9+CG9+CK9+CO9+CS9+CW9+DA9+DE9+DI9+DM9+DQ9+DU9+DY9+EC9 -> 145 | EH9: 117 | EI9: 58 | EJ9: 0 | EK9: 5 | EO9: 5 | EQ9: 2 | ES9: 5 | EU9: 2 | FA9: 5 | FB9: 5 | FC9: 2 | FE9: 5 | FF9: 5 | FG9: 2 | FI9: 5 | FJ9: 5 | FK9: 2 | FM9: 5 | FN9: 5 | FO9: 2 | FQ9: 5 | FR9: 5 | FS9: 2 | FU9: 5 | FW9: 2 | GC9: 5 | GE9: 2 | GG9: 5 | GI9: 2 | GK9: 5 | GL9: 5 | GM9: 2 | GO9: 5 | GQ9: 2 | GS9: 5 | GU9: 2 | GW9: 5 | GX9: 5 | GY9: 2 | HE9: 5 | HF9: 5 | HG9: 2 | HI9: 5 | HJ9: 5 | HK9: 2 | HM9: 5 | HN9: 5 | HO9: 2 | HQ9: 5 | HR9: 5 | HS9: 2 | HU9: 5 | HV9: 5 | HW9: 2 | HY9: 5 | HZ9: 5 | IA9: 2 | IC9: 5 | ID9: 5 | IE9: 2 | IG9: 5 | IH9: 5 | II9: 2 | IK9: 5 | IM9: 2 | IO9: 5 | IP9: 5 | IQ9: 2 | IS9: =EK9+EO9+ES9+EW9+FA9+FE9+FI9+FM9+FQ9+FU9+FY9+GC9+GG9+GK9+GO9+GS9+GW9+HA9+HE9+HI9+HM9+HQ9+HU9+HY9+IC9+IG9+IK9+IO9 -> 125 | IT9: 80 | IU9: 48 | IV9: 0 | IW9: 5 | IY9: 2 | JA9: 5 | JB9: 5 | JC9: 2 | JI9: 5 | JK9: 2 | JM9: 5 | JN9: 5 | JO9: 2 | JQ9: 5 | JS9: 2 | JU9: 5 | JW9: 2 | JY9: 5 | KA9: 2 | KC9: 5 | KE9: 2 | KK9: 5 | KM9: 2 | KO9: 5 | KQ9: 2 | KS9: 5 | KT9: 5 | KU9: 2 | KW9: 5 | KY9: 2 | LA9: 5 | LB9: 5 | LC9: 2 | LE9: 5 | LG9: 2 | LM9: 5 | LO9: 2 | LQ9: 5 | LR9: 5 | LS9: 2 | LU9: 5 | LV9: 5 | LW9: 2 | LY9: 5 | LZ9: 5 | MA9: 2 | MC9: 5 | MD9: 5 | ME9: 2 | MG9: 5 | MH9: 5 | MI9: 2 | MO9: 5 | MQ9: 2 | MW9: 5 | MX9: 5 | MY9: 2 | NA9: 5 | NB9: 5 | NC9: 2 | NE9: 5 | NG9: 2 | NI9: 5 | NJ9: 5 | NK9: 2 | NQ9: =IW9+JA9+JE9+JI9+JM9+JQ9+JU9+JY9+KC9+KG9+KK9+KO9+KS9+KW9+LA9+LE9+LI9+LM9+LQ9+LU9+LY9+MC9+MG9+MK9+MO9+MS9+MW9+NA9+NE9+NI9+NM9 -> 125 | NR9: 60 | NS9: 50 | NT9: 0 | NU9: 5 | NW9: 2 | NY9: 2 | OA9: 2 | OC9: 5 | OD9: 5 | OE9: 2 | OG9: 5 | OH9: 5 | OI9: 2 | OK9: 5 | OL9: 5 | OM9: 2 | OO9: 5 | OP9: 5 | OQ9: 2 | OW9: 5 | OY9: 2 | PF9: 5 | PG9: 2 | PI9: 5 | PJ9: 5 | PK9: 2 | PM9: 5 | PO9: 2 | PQ9: 5 | PR9: 5 | QA9: 2 | QC9: 5 | QD9: 5 | QE9: 2 | QG9: 5 | QH9: 5 | QI9: 2 | QK9: 5 | QL9: 5 | QM9: 2 | QO9: 3 | QP9: 3 | QQ9: 2 | QS9: 5 | QT9: 5 | QU9: 2 | RA9: 5 | RB9: 5 | RC9: 2 | RE9: 5 | RF9: 5 | RG9: 2 | RK9: 2 | RO9: 2 | RS9: 2 | RU9: 5 | RV9: 5 | RW9: 2 | SC9: 5 | SD9: 5 | SE9: 2 | SI9: 2 | SK9: =NU9+NY9+OC9+OG9+OK9+OO9+OS9+OW9+PA9+PE9+PI9+PM9+PQ9+PU9+PY9+QC9+QG9+QK9+QO9+QS9+QW9+RA9+RE9+RI9+RM9+RQ9+RU9+RY9+SC9+SG9 -> 90 | SL9: 78 | SM9: 48 | SN9: 0 | SQ9: 2 | SU9: 2 | SY9: 2 | TA9: 5 | TB9: 5 | TC9: 2 | TI9: 5 | TJ9: 5 | TK9: 2 | TM9: 5 | TO9: 2 | TQ9: 5 | TS9: 2 | TV9: 5 | TW9: 2 | TZ9: 5 | UA9: 2 | UD9: 5 | UE9: 2 | UL9: 30 | UM9: 2 | UP9: 5 | UQ9: 2 | UT9: 5 | UU9: 2 | UX9: 5 | UY9: 2 | VB9: 5 | VC9: 2 | VF9: 5 | VG9: 2 | VN9: 5 | VO9: 2 | VR9: 5 | VS9: 2 | VU9: 5 | VW9: 2 | WA9: 2 | WD9: 5 | WE9: 2 | WI9: 2 | WO9: 5 | WQ9: 2 | WT9: 5 | WU9: 2 | WW9: 4 | WY9: 2 | XB9: 6 | XC9: 2 | XG9: 2 | XI9: =SO9+SS9+SW9+TA9+TE9+TI9+TM9+TQ9+TU9+TY9+UC9+UG9+UK9+UO9+US9+UW9+VA9+VE9+VI9+VM9+VQ9+VU9+VY9+WC9+WG9+WK9+WO9+WS9+WW9+XA9+XE9 -> 34 | XJ9: 106 | XK9: 54 | XL9: 0 | XO9: 2 | XV9: 5 | XW9: 2 | XZ9: 5 | YA9: 2 | YE9: 2 | YH9: 5 | YI9: 2 | YK9: 5 | YM9: 2 | YO9: 5 | YQ9: 2 | YY9: 2 | ZC9: 2 | ZE9: 5 | ZG9: 2 | ZJ9: 5 | ZK9: 2 | ZN9: 5 | ZO9: 2 | ZQ9: 5 | ZS9: 2 | ZY9: 5 | AAA9: 2 | AAC9: 5 | AAI9: 2 | AAL9: 5 | AAM9: 2 | AAQ9: 2 | AAS9: 6 | AAU9: 2 | ABB9: 3 | ABC9: 2 | ABG9: 2 | ABJ9: 5 | ABK9: 2 | ABN9: 6 | ABO9: 2 | ABQ9: 6 | ABS9: 2 | ABV9: 4 | ABW9: 2 | ACC9: =XM9+XQ9+XU9+XY9+YC9+YG9+YK9+YO9+YS9+YW9+ZA9+ZE9+ZI9+ZM9+ZQ9+ZU9+ZY9+AAC9+AAG9+AAK9+AAO9+AAS9+AAW9+ABA9+ABE9+ABI9+ABM9+ABQ9+ABU9+ABY9 -> 42 | ACD9: 48 | ACE9: 48 | ACF9: 0 | ACG9: 2 | ACI9: 2 | ACL9: 5 | ACM9: 2 | ACQ9: 2 | ACT9: 5 | ACU9: 2 | ACW9: 5 | ACY9: 2 | ADA9: 5 | ADC9: 2 | ADI9: 5 | ADK9: 2 | ADM9: 5 | ADO9: 2 | ADQ9: 5 | ADS9: 2 | ADU9: 2 | ADW9: 2 | ADY9: 5 | AEA9: 2 | AEC9: 2 | AEE9: 2 | AEL9: 5 | AEM9: 2 | AEO9: 6 | AEQ9: 2 | AET9: 6 | AEU9: 2 | AEX9: 6 | AEY9: 2 | AFB9: 7 | AFC9: 2 | AFG9: 2 | AFN9: 7 | AFO9: 2 | AFQ9: 6 | AFS9: 2 | AFU9: 7 | AFW9: 2 | AFY9: 7 | AGA9: 2 | AGE9: 2 | AGI9: 2 | AGP9: 5 | AGQ9: 2 | AGT9: 8 | AGU9: 2 | AGY9: 2 | AHA9: =ACG9+ACK9+ACO9+ACS9+ACW9+ADA9+ADE9+ADI9+ADM9+ADQ9+ADU9+ADY9+AEC9+AEG9+AEK9+AEO9+AES9+AEW9+AFA9+AFE9+AFI9+AFM9+AFQ9+AFU9+AFY9+AGC9+AGG9+AGK9+AGO9+AGS9+AGW9 -> 62 | AHB9: 54 | AHC9: 54 | AHD9: 0 | AHE9: 6 | AHG9: 2 | AHJ9: 5 | AHK9: 2 | AHO9: 2 | AHV9: 5 | AHW9: 2 | AHZ9: 5 | AIA9: 2 | AID9: 2 | AIE9: 2 | AIH9: 5 | AII9: 2 | AIK9: 5 | AIM9: 2 | AIP9: 5 | AIQ9: 2 | AIW9: 7 | AIY9: 2 | AJA9: 8 | AJC9: 2 | AJG9: 2 | AJJ9: 7 | AJK9: 2 | AJN9: 7 | AJO9: 2 | AJR9: 8 | AJS9: 2 | AJY9: 5 | AKA9: 2 | AKD9: 7 | AKE9: 2 | AKG9: 6 | AKI9: 2 | AKM9: 2 | AKQ9: 2 | AKT9: 7 | AKU9: 2 | ALB9: 6 | ALC9: 2 | ALF9: 5 | ALG9: 2 | ALI9: 5 | ALK9: 2 | ALN9: 5 | ALO9: 2 | ALQ9: 5 | ALS9: 2 | ALV9: 5 | ALW9: 2 | ALY9: =AHE9+AHI9+AHM9+AHQ9+AHU9+AHY9+AIC9+AIG9+AIK9+AIO9+AIS9+AIW9+AJA9+AJE9+AJI9+AJM9+AJQ9+AJU9+AJY9+AKC9+AKG9+AKK9+AKO9+AKS9+AKW9+ALA9+ALE9+ALI9+ALM9+ALQ9+ALU9 -> 47 | ALZ9: 84 | AMA9: 54 | AMB9: 0 | AMH9: 5 | AMI9: 2 | AML9: 2 | AMM9: 2 | AMP9: 6 | AMQ9: 2 | AMT9: 6 | AMU9: 2 | AMX9: 5 | AMY9: 2 | ANB9: 5 | ANC9: 2 | ANI9: 5 | ANK9: 2 | ANM9: 5 | ANO9: 2 | ANQ9: 5 | ANS9: 2 | ANU9: 5 | ANW9: 2 | ANY9: 5 | AOA9: 2 | AOC9: 5 | AOE9: 2 | AOM9: 2 | AOO9: 5 | AOQ9: 2 | AOT9: 2 | AOU9: 2 | AOY9: 2 | APB9: 5 | APC9: 2 | APG9: 2 | APO9: 2 | APR9: 5 | APS9: 2 | APV9: 5 | APW9: 2 | APY9: 5 | AQA9: 2 | AQE9: 2 | AQG9: 5 | AQI9: 2 | AQO9: 5 | AQQ9: 2 | AQS9: =AMC9+AMG9+AMK9+AMO9+AMS9+AMW9+ANA9+ANE9+ANI9+ANM9+ANQ9+ANU9+ANY9+AOC9+AOG9+AOK9+AOO9+AOS9+AOW9+APA9+APE9+API9+APM9+APQ9+APU9+APY9+AQC9+AQG9+AQK9+AQO9 -> 50 | AQT9: 46 | AQU9: 50 | AQV9: 0 | AQX9: 5 | AQY9: 2 | ARB9: 5 | ARC9: 2 | ARF9: 5 | ARG9: 2 | ARI9: 5 | ARK9: 2 | ARM9: 5 | ARO9: 2 | ARU9: 5 | ARW9: 2 | ARY9: 5 | ASA9: 2 | ASC9: 7 | ASE9: 2 | ASI9: 2 | ASO9: 8 | ASQ9: 2 | ASW9: 8 | ASY9: 2 | ATC9: 2 | ATE9: 7 | ATG9: 2 | ATM9: 8 | ATO9: 2 | ATQ9: 5 | ATS9: 2 | ATY9: 5 | AUA9: 2 | AUC9: 8 | AUE9: 2 | AUI9: 2 | AUK9: 7 | AUM9: 2 | AUO9: 7 | AUQ9: 2 | AUS9: 5 | AUU9: 2 | AVC9: 2 | AVE9: 8 | AVG9: 2 | AVI9: 2 | AVJ9: 2 | AVK9: 2 | AVQ9: =AQW9+ARA9+ARE9+ARI9+ARM9+ARQ9+ARU9+ARY9+ASC9+ASG9+ASK9+ASO9+ASS9+ASW9+ATA9+ATE9+ATI9+ATM9+ATQ9+ATU9+ATY9+AUC9+AUG9+AUK9+AUO9+AUS9+AUW9+AVA9+AVE9+AVI9+AVM9 -> 105 | AVR9: 17 | AVS9: 48 | AVT9: 0 | AVV9: 5 | AVW9: 2 | AVZ9: 5 | AWA9: 2 | AWH9: 5 | AWI9: 2 | AWM9: 2 | AWP9: 5 | AWQ9: 2 | AWS9: 5 | AWU9: 2 | AWX9: 5 | AWY9: 2 | AXB9: 5 | AXC9: 2 | AXI9: 5 | AXK9: 2 | AXN9: 5 | AXO9: 2 | AXR9: 5 | AXS9: 2 | AXV9: 5 | AXW9: 2 | AXZ9: 5 | AYA9: 2 | AYD9: 5 | AYE9: 2 | AYL9: 5 | AYM9: 2 | AYP9: 5 | AYQ9: 2 | AYT9: 5 | AYU9: 2 | AYX9: 2 | AYY9: 2 | AZB9: 5 | AZC9: 2 | AZF9: 5 | AZG9: 2 | AZN9: 5 | AZO9: 2 | AZQ9: 2 | AZR9: 5 | AZS9: 2 | AZV9: 5 | AZW9: 2 | AZZ9: 5 | BAA9: 2 | BAD9: 5 | BAE9: 2 | BAG9: 5 | BAH9: 5 | BAI9: 2 | BAK9: =AVU9+AVY9+AWC9+AWG9+AWK9+AWO9+AWS9+AWW9+AXA9+AXE9+AXI9+AXM9+AXQ9+AXU9+AXY9+AYC9+AYG9+AYK9+AYO9+AYS9+AYW9+AZA9+AZE9+AZI9+AZM9+AZQ9+AZU9+AZY9+BAC9+BAG9 -> 17 | BAL9: 112 | BAM9: 52 | BAN9: 0 | BAS9: 5 | BAT9: 2 | BAU9: 7 | BAY9: 2 | BBC9: 2 | BBG9: 8 | BBI9: 7 | BBK9: 8 | BBM9: 6 | BBO9: 8 | BBW9: 8 | BCA9: 8 | BCC9: 5 | BCE9: 8 | BCI9: 8 | BCM9: 8 | BCQ9: 8 | BCW9: 5 | BCY9: 8 | BDA9: 7 | BDC9: 8 | BDE9: 5 | BDF9: 8 | BDG9: 8 | BDI9: 5 | BDJ9: 8 | BDK9: 8 | BDM9: 5 | BDN9: 2 | BDO9: 8 | BDQ9: 5 | BDR9: 3 | BDS9: 8 | BDY9: 9 | BEA9: 8 | BEC9: 5 | BEE9: 8 | BEG9: 5 | BEH9: 5 | BEI9: 8 | BEK9: 5 | BEL9: 5 | BEM9: 8 | BEO9: 6 | BEP9: 2 | BEQ9: 8 | BES9: 5 | BET9: 3 | BEU9: 8 | BFA9: 9 | BFB9: 5 | BFC9: 8 | BFE9: 9 | BFF9: 5 | BFG9: 8 | BFI9: =BAO9+BAS9+BAW9+BBA9+BBE9+BBI9+BBM9+BBQ9+BBU9+BBY9+BCC9+BCG9+BCK9+BCO9+BCS9+BCW9+BDA9+BDE9+BDI9+BDM9+BDQ9+BDU9+BDY9+BEC9+BEG9+BEK9+BEO9+BES9+BEW9+BFA9+BFE9 -> 108 | BFJ9: 48 | BFK9: 195 | BFL9: 0 | BFM9: =EG9+IS9+NQ9+SK9+XI9+ACC9+AHA9+ALY9+AQS9+AVQ9+BAK9+BFI9 -> 950 | BFN9: 850 | BFO9: 759 | BFP9: 0 | BFQ9: 79.16666667 | BFR9: 70.83333333 | BFS9: 63.25 | BFT9: 0 | BFU9: 12 | BFV9: 12 | BFW9: 12 | BFX9: 0
A10: 5 | B10: MANOR503001TSBH01042 | C10: MANORAMA SUPER SPECIALITY HOSPITAL | D10: SARASWATHI NAGAR, KHALEELWADI, HYDERABAD ROAD, NIZAMABAD - 503001. | E10: 100 | H10: Dr. CHANDRA SHEKAR RAO | I10: 9440090367 | J10: manoramahospitalnzb@gmail.com | K10: Private | L10: Bedded | M10: 5 | N10: 5 | O10: 2 | Q10: 5 | R10: 2 | S10: 2 | U10: 5 | V10: 5 | W10: 2 | Y10: 5 | Z10: 5 | AA10: 2 | AC10: 5 | AD10: 5 | AE10: 2 | AG10: 5 | AH10: 5 | AI10: 2 | AK10: 5 | AL10: 5 | AM10: 2 | AO10: 5 | AP10: 5 | AQ10: 2 | AS10: 5 | AT10: 5 | AU10: 2 | AW10: 5 | AX10: 5 | AY10: 2 | BA10: 5 | BB10: 5 | BC10: 2 | BE10: 5 | BF10: 5 | BG10: 2 | BI10: 5 | BJ10: 5 | BK10: 2 | BQ10: 5 | BR10: 5 | BS10: 2 | BU10: 5 | BV10: 5 | BW10: 2 | BY10: 5 | BZ10: 5 | CA10: 2 | CC10: 5 | CD10: 5 | CE10: 2 | CG10: 5 | CH10: 5 | CI10: 2 | CK10: 5 | CL10: 5 | CM10: 2 | CO10: 5 | CP10: 5 | CQ10: 2 | CS10: 5 | CT10: 5 | CU10: 2 | CW10: 5 | CX10: 5 | CY10: 2 | DA10: 5 | DB10: 5 | DC10: 2 | DE10: 5 | DF10: 5 | DG10: 2 | DI10: 5 | DJ10: 5 | DK10: 2 | DM10: 5 | DN10: 5 | DO10: 2 | DU10: 5 | DV10: 5 | DW10: 2 | DY10: 5 | DZ10: 5 | EA10: 2 | EC10: 5 | ED10: 5 | EE10: 2 | EG10: 145 | EH10: 142 | EI10: 58 | EJ10: 0 | EK10: 5 | EL10: 5 | EO10: 5 | EP10: 5 | EQ10: 2 | ES10: 5 | EU10: 2 | FA10: 5 | FC10: 2 | FE10: 5 | FG10: 2 | FI10: 5 | FK10: 2 | FM10: 5 | FN10: 5 | FO10: 2 | FQ10: 5 | FS10: 2 | FU10: 5 | FV10: 5 | FW10: 2 | GC10: 5 | GE10: 2 | GG10: 5 | GI10: 2 | GK10: 5 | GM10: 2 | GO10: 5 | GQ10: 2 | GS10: 5 | GU10: 2 | GW10: 5 | GY10: 2 | HE10: 5 | HF10: 5 | HG10: 2 | HI10: 5 | HJ10: 5 | HK10: 2 | HM10: 5 | HO10: 2 | HQ10: 5 | HS10: 2 | HU10: 5 | HW10: 2 | HY10: 5 | HZ10: 5 | IA10: 2 | IC10: 5 | ID10: 5 | IE10: 2 | IG10: 5 | II10: 2 | IK10: 5 | IL10: 5 | IM10: 2 | IO10: 5 | IP10: 5 | IQ10: 2 | IS10: 125 | IT10: 50 | IU10: 48 | IV10: 0 | IW10: 5 | IY10: 2 | JA10: 5 | JB10: 5 | JC10: 2 | JI10: 5 | JJ10: 5 | JK10: 2 | JM10: 5 | JN10: 5 | JO10: 2 | JQ10: 5 | JR10: 5 | JS10: 2 | JU10: 5 | JW10: 2 | JY10: 5 | JZ10: 5 | KA10: 2 | KC10: 5 | KE10: 2 | KK10: 5 | KL10: 5 | KM10: 2 | KO10: 5 | KP10: 5 | KQ10: 2 | KS10: 5 | KU10: 2 | KW10: 5 | KX10: 5 | KY10: 2 | LA10: 5 | LB10: 5 | LC10: 2 | LE10: 5 | LF10: 5 | LG10: 2 | LM10: 5 | LN10: 5 | LO10: 2 | LQ10: 5 | LR10: 5 | LS10: 2 | LU10: 5 | LV10: 5 | LW10: 2 | LY10: 5 | LZ10: 5 | MA10: 2 | MC10: 5 | MD10: 5 | ME10: 2 | MG10: 5 | MH10: 5 | MI10: 2 | MO10: 5 | MP10: 5 | MQ10: 2 | MW10: 5 | MX10: 5 | MY10: 2 | NA10: 5 | NC10: 2 | NE10: 5 | NF10: 5 | NG10: 2 | NI10: 5 | NK10: 2 | NQ10: 125 | NR10: 95 | NS10: 50 | NT10: 0 | NU10: 5 | NV10: 5 | NW10: 2 | NZ10: 5 | OA10: 2 | OD10: 5 | OE10: 2 | OG10: 5 | OH10: 5 | OI10: 2 | OK10: 5 | OL10: 5 | OM10: 2 | OO10: 5 | OP10: 5 | OQ10: 2 | OW10: 5 | OX10: 5 | OY10: 2 | PF10: 5 | PG10: 2 | PI10: 5 | PJ10: 5 | PK10: 2 | PN10: 10 | PO10: 2 | PR10: 5 | QA10: 2 | QD10: 5 | QE10: 2 | QG10: 10 | QH10: 10 | QI10: 2 | QK10: 5 | QL10: 5 | QM10: 2 | QO10: 3 | QP10: 3 | QQ10: 2 | QS10: 5 | QT10: 5 | QU10: 2 | RB10: 5 | RC10: 2 | RE10: 5 | RF10: 5 | RG10: 2 | RI10: 5 | RK10: 2 | RM10: 5 | RO10: 2 | RQ10: 5 | RR10: 5 | RS10: 2 | RU10: 5 | RV10: 5 | RW10: 2 | SC10: 5 | SE10: 2 | SG10: 5 | SI10: 2 | SK10: 88 | SL10: 108 | SM10: 48 | SN10: 0 | SO10: 5 | SP10: 5 | SQ10: 2 | SS10: 5 | ST10: 5 | SU10: 2 | SX10: 5 | SY10: 2 | TA10: 5 | TB10: 5 | TC10: 2 | TJ10: 5 | TK10: 2 | TM10: 5 | TO10: 2 | TR10: 5 | TS10: 2 | TU10: 5 | TW10: 2 | TZ10: 5 | UA10: 2 | UD10: 5 | UE10: 2 | UL10: 5 | UM10: 2 | UP10: 5 | UQ10: 2 | UT10: 5 | UU10: 2 | UW10: 5 | UY10: 2 | VB10: 5 | VC10: 2 | VE10: 5 | VG10: 2 | VM10: 5 | VO10: 2 | VQ10: 5 | VS10: 2 | VU10: 5 | VW10: 2 | VZ10: 5 | WA10: 2 | WD10: 5 | WE10: 2 | WH10: 5 | WI10: 2 | WQ10: 2 | WT10: 4 | WU10: 2 | WW10: 4 | WY10: 2 | XB10: 5 | XC10: 2 | XG10: 2 | XI10: 54 | XJ10: 84 | XK10: 54 | XL10: 0 | XO10: 2 | XU10: 5 | XW10: 2 | XY10: 5 | YA10: 2 | YD10: 5 | YE10: 2 | YH10: 5 | YI10: 2 | YL10: 5 | YM10: 2 | YP10: 5 | YQ10: 2 | YY10: 2 | ZB10: 5 | ZC10: 2 | ZF10: 5 | ZG10: 2 | ZI10: 5 | ZK10: 2 | ZM10: 3 | ZO10: 2 | ZQ10: 5 | ZS10: 2 | AAA10: 2 | AAI10: 2 | AAL10: 3 | AAM10: 2 | AAQ10: 2 | AAU10: 2 | ABA10: 6 | ABC10: 2 | ABG10: 2 | ABI10: 5 | ABK10: 2 | ABM10: 5 | ABO10: 2 | ABQ10: 5 | ABS10: 2 | ABW10: 2 | ACC10: 44 | ACD10: 33 | ACE10: 48 | ACF10: 0 | ACI10: 2 | ACL10: 5 | ACM10: 2 | ACQ10: 2 | ACT10: 5 | ACU10: 2 | ACY10: 2 | ADC10: 2 | ADI10: 5 | ADK10: 2 | ADM10: 5 | ADO10: 2 | ADQ10: 5 | ADS10: 2 | ADV10: 5 | ADW10: 2 | ADZ10: 5 | AEA10: 2 | AED10: 5 | AEE10: 2 | AEL10: 5 | AEM10: 2 | AEQ10: 2 | AES10: 5 | AEU10: 2 | AEW10: 6 | AEY10: 2 | AFC10: 2 | AFE10: 5 | AFG10: 2 | AFO10: 2 | AFQ10: 4 | AFS10: 2 | AFU10: 6 | AFW10: 2 | AFY10: 6 | AGA10: 2 | AGE10: 2 | AGH10: 6 | AGI10: 2 | AGP10: 5 | AGQ10: 2 | AGT10: 7 | AGU10: 2 | AGX10: 6 | AGY10: 2 | AHA10: 47 | AHB10: 54 | AHC10: 54 | AHD10: 0 | AHF10: 6 | AHG10: 2 | AHJ10: 5 | AHK10: 2 | AHO10: 2 | AHV10: 5 | AHW10: 2 | AHZ10: 5 | AIA10: 2 | AID10: 5 | AIE10: 2 | AIH10: 5 | AII10: 2 | AIM10: 2 | AIP10: 5 | AIQ10: 2 | AIY10: 2 | AJA10: 8 | AJC10: 2 | AJF10: 6 | AJG10: 2 | AJK10: 2 | AJN10: 5 | AJO10: 2 | AJS10: 2 | AKA10: 2 | AKE10: 2 | AKI10: 2 | AKL10: 6 | AKM10: 2 | AKP10: 7 | AKQ10: 2 | AKS10: 5 | AKU10: 2 | ALC10: 2 | ALG10: 2 | ALJ10: 5 | ALK10: 2 | ALM10: 5 | ALO10: 2 | ALR10: 5 | ALS10: 2 | ALU10: 5 | ALW10: 2 | ALY10: 23 | ALZ10: 70 | AMA10: 54 | AMB10: 0 | AMG10: 5 | AMI10: 2 | AMM10: 2 | AMO10: 6 | AMQ10: 2 | AMS10: 5 | AMU10: 2 | AMW10: 5 | AMY10: 2 | ANA10: 5 | ANC10: 2 | ANJ10: 5 | ANK10: 2 | ANN10: 5 | ANO10: 2 | ANQ10: 5 | ANS10: 2 | ANU10: 5 | ANW10: 2 | AOA10: 2 | AOC10: 5 | AOE10: 2 | AOK10: 5 | AOM10: 2 | AOQ10: 2 | AOS10: 5 | AOU10: 2 | AOY10: 2 | APA10: 2 | APC10: 2 | APG10: 2 | APO10: 2 | APQ10: 5 | APS10: 2 | APU10: 2 | APW10: 2 | APY10: 5 | AQA10: 2 | AQE10: 2 | AQH10: 5 | AQI10: 2 | AQO10: 5 | AQQ10: 2 | AQS10: 70 | AQT10: 15 | AQU10: 50 | AQV10: 0 | AQW10: 5 | AQY10: 2 | ARA10: 5 | ARC10: 2 | ARE10: 5 | ARG10: 2 | ARJ10: 5 | ARK10: 2 | ARO10: 2 | ARW10: 2 | ASA10: 2 | ASE10: 2 | ASG10: 5 | ASI10: 2 | ASO10: 7 | ASQ10: 2 | ASW10: 7 | ASY10: 2 | ATA10: 8 | ATC10: 2 | ATG10: 2 | ATM10: 8 | ATO10: 2 | ATQ10: 5 | ATS10: 2 | ATY10: 5 | AUA10: 2 | AUC10: 8 | AUE10: 2 | AUI10: 2 | AUM10: 2 | AUQ10: 2 | AUS10: 7 | AUU10: 2 | AVC10: 2 | AVE10: 7 | AVG10: 2 | AVK10: 2 | AVQ10: 82 | AVR10: 5 | AVS10: 48 | AVT10: 0 | AVV10: 2 | AVW10: 2 | AVZ10: 5 | AWA10: 2 | AWG10: 5 | AWI10: 2 | AWM10: 2 | AWO10: 5 | AWQ10: 2 | AWS10: 5 | AWU10: 2 | AWW10: 5 | AWY10: 2 | AXB10: 5 | AXC10: 2 | AXJ10: 5 | AXK10: 2 | AXN10: 5 | AXO10: 2 | AXR10: 5 | AXS10: 2 | AXV10: 5 | AXW10: 2 | AXZ10: 5 | AYA10: 2 | AYD10: 4 | AYE10: 2 | AYK10: 3 | AYL10: 2 | AYM10: 2 | AYO10: 3 | AYP10: 2 | AYQ10: 2 | AYS10: 5 | AYU10: 2 | AYX10: 5 | AYY10: 2 | AZB10: 5 | AZC10: 2 | AZE10: 4 | AZG10: 2 | AZM10: 3 | AZN10: 2 | AZO10: 2 | AZR10: 5 | AZS10: 2 | AZV10: 5 | AZW10: 2 | AZZ10: 5 | BAA10: 2 | BAD10: 5 | BAE10: 2 | BAG10: 5 | BAH10: 5 | BAI10: 2 | BAK10: 43 | BAL10: 82 | BAM10: 52 | BAN10: 0 | BAS10: 5 | BAT10: 2 | BAU10: 7 | BAX10: 6 | BAY10: 2 | BBB10: 6 | BBC10: 2 | BBG10: 8 | BBJ10: 6 | BBK10: 8 | BBN10: 6 | BBO10: 8 | BBU10: 7 | BBW10: 8 | BBY10: 8 | BCA10: 8 | BCE10: 8 | BCG10: 8 | BCI10: 8 | BCK10: 7 | BCM10: 8 | BCO10: 7 | BCQ10: 8 | BCW10: 5 | BCY10: 8 | BDA10: 5 | BDC10: 8 | BDE10: 8 | BDG10: 8 | BDI10: 5 | BDK10: 8 | BDM10: 5 | BDN10: 2 | BDO10: 8 | BDQ10: 5 | BDR10: 3 | BDS10: 8 | BDY10: 5 | BDZ10: 5 | BEA10: 8 | BEC10: 9 | BEE10: 8 | BEG10: 5 | BEH10: 5 | BEI10: 8 | BEK10: 8 | BEL10: 5 | BEM10: 8 | BEO10: 6 | BEP10: 2 | BEQ10: 8 | BES10: 5 | BET10: 3 | BEU10: 8 | BFA10: 5 | BFB10: 5 | BFC10: 8 | BFE10: 9 | BFF10: 5 | BFG10: 8 | BFI10: 127 | BFJ10: 61 | BFK10: 195 | BFL10: 0 | BFM10: 973 | BFN10: 799 | BFO10: 759 | BFP10: 0 | BFQ10: 81.08333333 | BFR10: 66.58333333 | BFS10: 63.25 | BFT10: 0 | BFU10: 12 | BFV10: 12 | BFW10: 12 | BFX10: 0
A11: 6 | B11: MEDIC503001TSBH09849 | C11: MEDICOVER HOSPITAL | D11: H.No. 5-11-744, BESIDE LIC OF INDIA, YELLAMMA GUTTA X ROAD, HYDERABAD ROAD, NIZAMABAD - 503001 | E11: 100 | F11: NZB/615/PCB/ZO/RCP/2019-819, 01-08-2019 | G11: 2029-05-31 | H11: Dr. K.V.N. SRINIVAS | I11: 9959244744 | J11: nzb@medicoverhospitals.in | K11: Private | L11: Bedded | M11: 5 | N11: 5 | O11: 2 | Q11: 5 | R11: 5 | S11: 2 | U11: 5 | V11: 5 | W11: 2 | Y11: 5 | Z11: 5 | AA11: 2 | AC11: 5 | AD11: 5 | AE11: 2 | AG11: 8 | AH11: 5 | AI11: 2 | AK11: 5 | AL11: 5 | AM11: 2 | AO11: 5 | AQ11: 2 | AS11: 5 | AT11: 5 | AU11: 2 | AW11: 5 | AX11: 5 | AY11: 2 | BA11: 5 | BB11: 5 | BC11: 2 | BE11: 5 | BF11: 5 | BG11: 2 | BI11: 5 | BJ11: 5 | BK11: 2 | BQ11: 5 | BR11: 5 | BS11: 2 | BU11: 5 | BV11: 5 | BW11: 2 | BY11: 5 | BZ11: 5 | CA11: 2 | CC11: 5 | CD11: 5 | CE11: 2 | CG11: 8 | CH11: 8 | CI11: 2 | CK11: 5 | CL11: 5 | CM11: 2 | CO11: 5 | CP11: 5 | CQ11: 2 | CS11: 5 | CT11: 5 | CU11: 2 | CW11: 5 | CX11: 5 | CY11: 2 | DA11: 5 | DB11: 5 | DC11: 2 | DE11: 5 | DF11: 5 | DG11: 2 | DI11: 5 | DJ11: 5 | DK11: 2 | DM11: 5 | DN11: 5 | DO11: 2 | DU11: 5 | DV11: 5 | DW11: 2 | DY11: 5 | DZ11: 5 | EA11: 2 | EC11: 5 | ED11: 5 | EE11: 2 | EG11: 151 | EH11: 143 | EI11: 58 | EJ11: 0 | EK11: 5 | EL11: 5 | EO11: 5 | EP11: 5 | EQ11: 2 | ES11: 5 | ET11: 5 | EU11: 2 | FA11: 5 | FB11: 5 | FC11: 2 | FE11: 5 | FF11: 5 | FG11: 2 | FI11: 5 | FJ11: 5 | FK11: 2 | FM11: 5 | FO11: 2 | FQ11: 5 | FS11: 2 | FU11: 5 | FV11: 5 | FW11: 2 | GC11: 5 | GE11: 2 | GG11: 5 | GI11: 2 | GK11: 5 | GM11: 2 | GO11: 5 | GQ11: 2 | GS11: 5 | GU11: 2 | GW11: 5 | GX11: 5 | GY11: 2 | HE11: 5 | HF11: 5 | HG11: 2 | HI11: 5 | HJ11: 5 | HK11: 2 | HM11: 5 | HN11: 5 | HO11: 2 | HQ11: 5 | HR11: 5 | HS11: 2 | HU11: 5 | HV11: 5 | HW11: 2 | HY11: 5 | HZ11: 5 | IA11: 2 | IC11: 5 | ID11: 5 | IE11: 2 | IG11: 5 | IH11: 5 | II11: 2 | IK11: 5 | IM11: 2 | IO11: 5 | IP11: 5 | IQ11: 2 | IS11: 125 | IT11: 85 | IU11: 48 | IV11: 0 | IW11: 5 | IY11: 2 | JA11: 5 | JB11: 5 | JC11: 2 | JI11: 5 | JJ11: 5 | JK11: 2 | JM11: 5 | JN11: 5 | JO11: 2 | JQ11: 5 | JS11: 2 | JU11: 5 | JV11: 5 | JW11: 2 | JY11: 5 | KA11: 2 | KC11: 5 | KE11: 2 | KK11: 5 | KM11: 2 | KO11: 5 | KQ11: 2 | KS11: 5 | KU11: 2 | KW11: 5 | KY11: 2 | LA11: 5 | LC11: 2 | LE11: 5 | LG11: 2 | LM11: 5 | LO11: 2 | LQ11: 5 | LS11: 2 | LU11: 5 | LW11: 2 | LY11: 5 | MA11: 2 | MC11: 5 | ME11: 2 | MG11: 5 | MI11: 2 | MO11: 5 | MQ11: 2 | MW11: 5 | MY11: 2 | NA11: 5 | NC11: 2 | NE11: 5 | NG11: 2 | NI11: 5 | NK11: 2 | NQ11: 125 | NR11: 20 | NS11: 50 | NT11: 0 | NW11: 2 | OA11: 2 | OE11: 2 | OI11: 2 | OM11: 2 | OQ11: 2 | OY11: 2 | PG11: 2 | PI11: 5 | PJ11: 5 | PK11: 2 | PO11: 2 | PQ11: 5 | PR11: 5 | QA11: 2 | QE11: 2 | QI11: 2 | QM11: 2 | QO11: 3 | QP11: 3 | QQ11: 2 | QS11: 5 | QT11: 5 | QU11: 2 | RA11: 5 | RB11: 5 | RC11: 2 | RE11: 5 | RF11: 5 | RG11: 2 | RK11: 2 | RO11: 2 | RQ11: 5 | RR11: 5 | RS11: 2 | RW11: 2 | SC11: 5 | SD11: 5 | SE11: 2 | SI11: 2 | SK11: 38 | SL11: 38 | SM11: 48 | SN11: 0 | SO11: 5 | SP11: 5 | SQ11: 2 | SS11: 5 | ST11: 5 | SU11: 2 | SW11: 5 | SX11: 5 | SY11: 2 | TA11: 5 | TB11: 5 | TC11: 2 | TI11: 5 | TJ11: 5 | TK11: 2 | TM11: 5 | TO11: 2 | TQ11: 5 | TR11: 5 | TS11: 2 | TV11: 5 | TW11: 2 | TY11: 5 | UA11: 2 | UC11: 5 | UE11: 2 | UK11: 5 | UM11: 2 | UP11: 5 | UQ11: 2 | UT11: 5 | UU11: 2 | UX11: 5 | UY11: 2 | VB11: 5 | VC11: 2 | VF11: 5 | VG11: 2 | VM11: 5 | VO11: 2 | VQ11: 5 | VS11: 2 | VV11: 5 | VW11: 2 | VZ11: 2 | WA11: 2 | WE11: 2 | WH11: 5 | WI11: 2 | WQ11: 2 | WU11: 2 | WY11: 2 | XB11: 5 | XC11: 2 | XG11: 2 | XI11: 60 | XJ11: 77 | XK11: 54 | XL11: 0 | XO11: 2 | XV11: 5 | XW11: 2 | XZ11: 5 | YA11: 2 | YE11: 2 | YG11: 5 | YI11: 2 | YK11: 5 | YM11: 2 | YP11: 5 | YQ11: 2 | YY11: 2 | ZB11: 5 | ZC11: 2 | ZF11: 5 | ZG11: 2 | ZJ11: 5 | ZK11: 2 | ZN11: 3 | ZO11: 2 | ZQ11: 5 | ZS11: 2 | ZY11: 5 | AAA11: 2 | AAC11: 5 | AAI11: 2 | AAK11: 5 | AAM11: 2 | AAQ11: 2 | AAU11: 2 | ABA11: 6 | ABC11: 2 | ABG11: 2 | ABK11: 2 | ABO11: 2 | ABS11: 2 | ABV11: 5 | ABW11: 2 | ACC11: 36 | ACD11: 38 | ACE11: 48 | ACF11: 0 | ACI11: 2 | ACL11: 5 | ACM11: 2 | ACQ11: 2 | ACT11: 5 | ACU11: 2 | ACY11: 2 | ADC11: 2 | ADI11: 5 | ADK11: 2 | ADM11: 5 | ADO11: 2 | ADQ11: 5 | ADS11: 2 | ADU11: 5 | ADW11: 2 | ADY11: 5 | AEA11: 2 | AEC11: 5 | AEE11: 2 | AEK11: 5 | AEM11: 2 | AEP11: 6 | AEQ11: 2 | AEU11: 2 | AEY11: 2 | AFC11: 2 | AFG11: 2 | AFO11: 2 | AFS11: 2 | AFV11: 7 | AFW11: 2 | AFZ11: 7 | AGA11: 2 | AGE11: 2 | AGH11: 7 | AGI11: 2 | AGP11: 5 | AGQ11: 2 | AGT11: 8 | AGU11: 2 | AGY11: 2 | AHA11: 35 | AHB11: 50 | AHC11: 54 | AHD11: 0 | AHG11: 2 | AHK11: 2 | AHO11: 2 | AHV11: 5 | AHW11: 2 | AHY11: 5 | AIA11: 2 | AID11: 5 | AIE11: 2 | AIH11: 5 | AII11: 2 | AIK11: 5 | AIM11: 2 | AIP11: 5 | AIQ11: 2 | AIW11: 6 | AIY11: 2 | AJB11: 7 | AJC11: 2 | AJF11: 8 | AJG11: 2 | AJI11: 7 | AJK11: 2 | AJM11: 7 | AJO11: 2 | AJQ11: 7 | AJS11: 2 | AJY11: 5 | AKA11: 2 | AKC11: 7 | AKE11: 2 | AKG11: 7 | AKI11: 2 | AKM11: 2 | AKQ11: 2 | AKS11: 6 | AKU11: 2 | ALA11: 7 | ALC11: 2 | ALF11: 5 | ALG11: 2 | ALI11: 5 | ALK11: 2 | ALM11: 5 | ALO11: 2 | ALQ11: 5 | ALS11: 2 | ALU11: 5 | ALW11: 2 | ALY11: 89 | ALZ11: 40 | AMA11: 54 | AMB11: 0 | AMG11: 5 | AMI11: 2 | AMK11: 5 | AMM11: 2 | AMO11: 6 | AMQ11: 2 | AMS11: 6 | AMU11: 2 | AMX11: 5 | AMY11: 2 | ANB11: 5 | ANC11: 2 | ANJ11: 5 | ANK11: 2 | ANN11: 5 | ANO11: 2 | ANQ11: 5 | ANS11: 2 | ANV11: 5 | ANW11: 2 | ANY11: 5 | AOA11: 2 | AOC11: 5 | AOE11: 2 | AOM11: 2 | AOP11: 5 | AOQ11: 2 | AOS11: 5 | AOU11: 2 | AOY11: 2 | APA11: 5 | APC11: 2 | APG11: 2 | APO11: 2 | APQ11: 5 | APS11: 2 | APU11: 5 | APW11: 2 | APY11: 5 | AQA11: 2 | AQE11: 2 | AQG11: 5 | AQI11: 2 | AQO11: 5 | AQQ11: 2 | AQS11: 72 | AQT11: 30 | AQU11: 50 | AQV11: 0 | AQW11: 5 | AQY11: 2 | ARC11: 2 | ARE11: 5 | ARG11: 2 | ARI11: 5 | ARK11: 2 | ARN11: 5 | ARO11: 2 | ARV11: 5 | ARW11: 2 | ARY11: 5 | ASA11: 2 | ASC11: 5 | ASE11: 2 | ASG11: 5 | ASI11: 2 | ASO11: 7 | ASQ11: 2 | ASW11: 7 | ASY11: 2 | ATA11: 8 | ATC11: 2 | ATG11: 2 | ATO11: 2 | ATS11: 2 | AUA11: 2 | AUE11: 2 | AUG11: 8 | AUI11: 2 | AUM11: 2 | AUO11: 7 | AUQ11: 2 | AUS11: 7 | AUU11: 2 | AVA11: 8 | AVC11: 2 | AVG11: 2 | AVK11: 2 | AVQ11: 82 | AVR11: 10 | AVS11: 48 | AVT11: 0 | AVU11: 5 | AVW11: 2 | AVY11: 5 | AWA11: 2 | AWH11: 5 | AWI11: 2 | AWM11: 2 | AWP11: 5 | AWQ11: 2 | AWT11: 5 | AWU11: 2 | AWW11: 5 | AWY11: 2 | AXA11: 5 | AXC11: 2 | AXI11: 5 | AXK11: 2 | AXM11: 5 | AXO11: 2 | AXQ11: 5 | AXS11: 2 | AXU11: 5 | AXW11: 2 | AXY11: 5 | AYA11: 2 | AYC11: 3 | AYD11: 2 | AYE11: 2 | AYK11: 5 | AYM11: 2 | AYO11: 5 | AYQ11: 2 | AYS11: 5 | AYU11: 2 | AYW11: 5 | AYY11: 2 | AZA11: 5 | AZC11: 2 | AZF11: 5 | AZG11: 2 | AZM11: 5 | AZN11: 5 | AZO11: 2 | AZQ11: 5 | AZS11: 2 | AZV11: 5 | AZW11: 2 | AZY11: 5 | AZZ11: 5 | BAA11: 2 | BAC11: 5 | BAD11: 5 | BAE11: 2 | BAG11: 4 | BAH11: 3 | BAI11: 2 | BAK11: 97 | BAL11: 45 | BAM11: 52 | BAN11: 0 | BAS11: 5 | BAT11: 2 | BAU11: 7 | BAY11: 2 | BBC11: 2 | BBG11: 8 | BBJ11: 7 | BBK11: 8 | BBN11: 6 | BBO11: 8 | BBV11: 7 | BBW11: 8 | BBZ11: 8 | BCA11: 8 | BCC11: 5 | BCE11: 8 | BCG11: 8 | BCI11: 8 | BCL11: 7 | BCM11: 8 | BCO11: 7 | BCQ11: 8 | BCW11: 8 | BCY11: 8 | BDA11: 2 | BDC11: 8 | BDE11: 5 | BDF11: 8 | BDG11: 8 | BDI11: 5 | BDJ11: 8 | BDK11: 8 | BDM11: 5 | BDN11: 5 | BDO11: 8 | BDQ11: 8 | BDR11: 3 | BDS11: 8 | BDY11: 5 | BDZ11: 5 | BEA11: 8 | BEC11: 5 | BED11: 5 | BEE11: 8 | BEG11: 9 | BEH11: 5 | BEI11: 8 | BEK11: 8 | BEL11: 5 | BEM11: 8 | BEO11: 6 | BEP11: 2 | BEQ11: 8 | BES11: 5 | BET11: 3 | BEU11: 8 | BFA11: 9 | BFB11: 5 | BFC11: 8 | BFE11: 8 | BFF11: 5 | BFG11: 8 | BFI11: 113 | BFJ11: 96 | BFK11: 195 | BFL11: 0 | BFM11: 1023 | BFN11: 672 | BFO11: 759 | BFP11: 0 | BFQ11: 85.25 | BFR11: 56 | BFS11: 63.25 | BFT11: 0 | BFU11: 12 | BFV11: 12 | BFW11: 12 | BFX11: 0
A12: 7 | B12: DISTR503185TSBH08531 | C12: AREA HOSPITAL, BODHAN | D12: NEAR AMBEDKAR CHOWRASTA, BODHAN - 503185 | E12: 100 | F12: TSPCB/BMWA/NZB-2359264/HO/2020-108, 27-03-2020 | G12: 2024-06-30 | H12: Dr. K. ANNAPURNA | I12: 8008553950 | J12: dchnizamabad@gmail.com | K12: Government | L12: Bedded | M12: 5 | N12: 5 | O12: 2 | Q12: 5 | R12: 2 | S12: 2 | U12: 5 | V12: 5 | W12: 2 | Y12: 5 | Z12: 5 | AA12: 2 | AC12: 5 | AD12: 5 | AE12: 2 | AG12: 7 | AH12: 2 | AI12: 2 | AK12: 5 | AL12: 5 | AM12: 2 | AO12: 7 | AP12: 2 | AQ12: 2 | AS12: 5 | AT12: 5 | AU12: 2 | AW12: 5 | AX12: 5 | AY12: 2 | BA12: 5 | BB12: 5 | BC12: 2 | BE12: 5 | BF12: 5 | BG12: 2 | BI12: 5 | BJ12: 5 | BK12: 2 | BQ12: 5 | BR12: 5 | BS12: 2 | BU12: 5 | BV12: 5 | BW12: 2 | BY12: 5 | BZ12: 5 | CA12: 2 | CC12: 5 | CD12: 5 | CE12: 2 | CG12: 5 | CH12: 8 | CI12: 2 | CK12: 5 | CL12: 5 | CM12: 2 | CO12: 5 | CP12: 5 | CQ12: 2 | CS12: 5 | CT12: 5 | CU12: 2 | CW12: 5 | CX12: 5 | CY12: 2 | DA12: 5 | DB12: 5 | DC12: 2 | DE12: 5 | DF12: 5 | DG12: 2 | DI12: 5 | DJ12: 3 | DK12: 2 | DM12: 5 | DN12: 5 | DO12: 2 | DU12: 5 | DV12: 5 | DW12: 2 | DY12: 5 | DZ12: 5 | EA12: 2 | EC12: 5 | ED12: 5 | EE12: 2 | EG12: 149 | EH12: 137 | EI12: 58 | EJ12: 0 | EK12: 5 | EO12: 5 | EQ12: 2 | ES12: 5 | EU12: 2 | FA12: 5 | FC12: 2 | FE12: 5 | FG12: 2 | FI12: 5 | FK12: 2 | FM12: 5 | FO12: 2 | FQ12: 5 | FS12: 2 | FU12: 5 | FW12: 2 | GC12: 5 | GD12: 2 | GE12: 2 | GG12: 5 | GI12: 2 | GK12: 5 | GM12: 2 | GO12: 5 | GQ12: 2 | GS12: 5 | GT12: 4 | GU12: 2 | GW12: 5 | GY12: 2 | HE12: 5 | HG12: 2 | HI12: 5 | HJ12: 5 | HK12: 2 | HM12: 5 | HO12: 2 | HQ12: 5 | HS12: 2 | HU12: 5 | HV12: 11 | HW12: 2 | HY12: 5 | IA12: 2 | IC12: 5 | ID12: 1 | IE12: 2 | IG12: 5 | II12: 2 | IK12: 5 | IM12: 2 | IO12: 5 | IQ12: 2 | IS12: 125 | IT12: 23 | IU12: 48 | IV12: 0 | IW12: 5 | IY12: 2 | JA12: 5 | JC12: 2 | JI12: 5 | JK12: 2 | JM12: 5 | JO12: 2 | JQ12: 5 | JS12: 2 | JU12: 5 | JW12: 2 | JY12: 5 | KA12: 2 | KC12: 5 | KE12: 2 | KK12: 5 | KM12: 2 | KO12: 5 | KQ12: 2 | KS12: 5 | KU12: 2 | KW12: 5 | KY12: 2 | LA12: 5 | LC12: 2 | LE12: 5 | LG12: 2 | LM12: 5 | LN12: 16 | LO12: 2 | LQ12: 5 | LS12: 2 | LU12: 5 | LW12: 2 | LY12: 5 | MA12: 2 | MC12: 5 | ME12: 2 | MG12: 5 | MI12: 2 | MO12: 5 | MQ12: 2 | MW12: 5 | MY12: 2 | NA12: 5 | NC12: 2 | NE12: 5 | NG12: 2 | NI12: 5 | NJ12: 5 | NK12: 2 | NQ12: 125 | NR12: 21 | NS12: 50 | NT12: 0 | NW12: 2 | OA12: 2 | OE12: 2 | OI12: 2 | OM12: 2 | OQ12: 2 | OY12: 2 | PG12: 2 | PI12: 5 | PK12: 2 | PO12: 2 | PQ12: 5 | QA12: 2 | QE12: 2 | QG12: 5 | QI12: 2 | QM12: 2 | QQ12: 2 | QU12: 2 | RC12: 2 | RG12: 2 | RK12: 2 | RO12: 2 | RS12: 2 | RW12: 2 | SE12: 2 | SI12: 2 | SK12: 15 | SL12: 0 | SM12: 48 | SN12: 0 | SQ12: 2 | SU12: 2 | SY12: 2 | TC12: 2 | TJ12: 13 | TK12: 2 | TO12: 2 | TS12: 2 | TW12: 2 | UA12: 2 | UD12: 5 | UE12: 2 | UL12: 11 | UM12: 2 | UQ12: 2 | UU12: 2 | UW12: 7 | UY12: 2 | VA12: 5 | VC12: 2 | VE12: 10 | VF12: 4 | VG12: 2 | VN12: 3 | VO12: 2 | VR12: 3 | VS12: 2 | VW12: 2 | WA12: 2 | WC12: 16 | WD12: 5 | WE12: 2 | WG12: 15 | WH12: 10 | WI12: 2 | WO12: 5 | WP12: 3 | WQ12: 2 | WU12: 2 | WW12: 30 | WX12: 6 | WY12: 2 | XC12: 2 | XE12: 15 | XG12: 2 | XI12: 103 | XJ12: 63 | XK12: 54 | XL12: 0 | XM12: 9 | XN12: 6 | XO12: 2 | XU12: 12 | XV12: 7 | XW12: 2 | YA12: 2 | YC12: 17 | YD12: 4 | YE12: 2 | YI12: 2 | YK12: 10 | YL12: 11 | YM12: 2 | YO12: 14.05 | YP12: 5 | YQ12: 2 | YW12: 16 | YX12: 5 | YY12: 2 | ZC12: 2 | ZE12: 23 | ZF12: 5 | ZG12: 2 | ZK12: 2 | ZM12: 25 | ZN12: 3 | ZO12: 2 | ZQ12: 10 | ZR12: 5 | ZS12: 2 | ZY12: 22 | ZZ12: 4 | AAA12: 2 | AAG12: 22 | AAH12: 10 | AAI12: 2 | AAM12: 2 | AAO12: 20 | AAP12: 10 | AAQ12: 2 | AAS12: 31 | AAT12: 5 | AAU12: 2 | ABA12: 13 | ABB12: 7 | ABC12: 2 | ABG12: 2 | ABI12: 14 | ABJ12: 4 | ABK12: 2 | ABN12: 6 | ABO12: 2 | ABQ12: 20 | ABR12: 5 | ABS12: 2 | ABU12: 11 | ABV12: 7 | ABW12: 2 | ACC12: 289.05 | ACD12: 109 | ACE12: 48 | ACF12: 0 | ACG12: 15 | ACH12: 2 | ACI12: 2 | ACM12: 2 | ACO12: 16 | ACP12: 4 | ACQ12: 2 | ACU12: 2 | ACW12: 17 | ACX12: 4 | ACY12: 2 | ADA12: 11 | ADB12: 3 | ADC12: 2 | ADI12: 17 | ADJ12: 11 | ADK12: 2 | ADO12: 2 | ADQ12: 17 | ADR12: 5 | ADS12: 2 | ADW12: 2 | ADY12: 12 | ADZ12: 4 | AEA12: 2 | AEC12: 3 | AED12: 2 | AEE12: 2 | AEK12: 5 | AEL12: 3 | AEM12: 2 | AEQ12: 2 | AES12: 9 | AET12: 4 | AEU12: 2 | AEY12: 2 | AFA12: 31 | AFB12: 3 | AFC12: 2 | AFE12: 3 | AFF12: 5 | AFG12: 2 | AFO12: 2 | AFS12: 2 | AFU12: 12 | AFV12: 5 | AFW12: 2 | AFZ12: 4 | AGA12: 2 | AGC12: 12 | AGD12: 2 | AGE12: 2 | AGG12: 15 | AGH12: 3 | AGI12: 2 | AGO12: 25 | AGP12: 4 | AGQ12: 2 | AGU12: 2 | AGW12: 17 | AGX12: 4 | AGY12: 2 | AHA12: 237 | AHB12: 72 | AHC12: 54 | AHD12: 0 | AHG12: 2 | AHI12: 15 | AHJ12: 2 | AHK12: 2 | AHM12: 8 | AHN12: 3 | AHO12: 2 | AHU12: 15 | AHV12: 5 | AHW12: 2 | AIA12: 2 | AIC12: 8 | AID12: 2 | AIE12: 2 | AII12: 2 | AIK12: 10 | AIL12: 3 | AIM12: 2 | AIO12: 10 | AIP12: 3 | AIQ12: 2 | AIW12: 15 | AIX12: 4 | AIY12: 2 | AJC12: 2 | AJE12: 15 | AJG12: 2 | AJK12: 2 | AJM12: 11 | AJN12: 4 | AJO12: 2 | AJQ12: 9 | AJR12: 4 | AJS12: 2 | AJY12: 9 | AJZ12: 4 | AKA12: 2 | AKE12: 2 | AKG12: 12 | AKH12: 5 | AKI12: 2 | AKM12: 2 | AKQ12: 2 | AKS12: 11 | AKT12: 4 | AKU12: 2 | ALA12: 12 | ALB12: 5 | ALC12: 2 | ALG12: 2 | ALI12: 12 | ALJ12: 4 | ALK12: 2 | ALO12: 2 | ALQ12: 8 | ALR12: 3 | ALS12: 2 | ALU12: 6 | ALV12: 4 | ALW12: 2 | ALY12: 186 | ALZ12: 59 | AMA12: 54 | AMB12: 0 | AMG12: 8 | AMH12: 3 | AMI12: 2 | AMM12: 2 | AMO12: 8 | AMP12: 4 | AMQ12: 2 | AMU12: 2 | AMW12: 3 | AMX12: 2 | AMY12: 2 | ANA12: 20 | ANB12: 5 | ANC12: 2 | ANK12: 2 | ANM12: 5 | ANN12: 5 | ANO12: 2 | ANQ12: 8 | ANR12: 2 | ANS12: 2 | ANW12: 2 | ANY12: 6 | ANZ12: 3 | AOA12: 2 | AOC12: 8 | AOD12: 2 | AOE12: 2 | AOK12: 12 | AOL12: 5 | AOM12: 2 | AOQ12: 2 | AOS12: 5 | AOT12: 5 | AOU12: 2 | AOY12: 2 | APA12: 8 | APB12: 2 | APC12: 2 | APE12: 5 | APF12: 2 | APG12: 2 | APM12: 6 | APN12: 3 | APO12: 2 | APQ12: 5 | APR12: 2 | APS12: 2 | APU12: 8 | APV12: 2 | APW12: 2 | APY12: 5 | APZ12: 2 | AQA12: 2 | AQC12: 8 | AQD12: 3 | AQE12: 2 | AQG12: 8 | AQH12: 3 | AQI12: 2 | AQO12: 8 | AQP12: 3 | AQQ12: 2 | AQS12: 144 | AQT12: 58 | AQU12: 50 | AQV12: 0 | AQY12: 2 | ARA12: 10 | ARB12: 3 | ARC12: 2 | ARE12: 10 | ARF12: 3 | ARG12: 2 | ARI12: 8 | ARJ12: 3 | ARK12: 2 | ARM12: 6 | ARN12: 3 | ARO12: 2 | ARU12: 8 | ARV12: 3 | ARW12: 2 | ASA12: 2 | ASC12: 3 | ASD12: 2 | ASE12: 2 | ASG12: 1 | ASH12: 3 | ASI12: 2 | ASO12: 10 | ASP12: 3 | ASQ12: 2 | ASW12: 10 | ASX12: 3 | ASY12: 2 | ATC12: 2 | ATF12: 5 | ATG12: 2 | ATM12: 5 | ATO12: 2 | ATQ12: 8 | ATR12: 4 | ATS12: 2 | ATY12: 8 | ATZ12: 3 | AUA12: 2 | AUE12: 2 | AUG12: 8 | AUH12: 4 | AUI12: 2 | AUK12: 8 | AUL12: 5 | AUM12: 2 | AUO12: 10 | AUP12: 3 | AUQ12: 2 | AUS12: 10 | AUT12: 3 | AUU12: 2 | AVA12: 10 | AVB12: 3 | AVC12: 2 | AVE12: 5 | AVF12: 3 | AVG12: 2 | AVI12: 10 | AVJ12: 3 | AVK12: 2 | AVQ12: 148 | AVR12: 62 | AVS12: 48 | AVT12: 0 | AVU12: 15 | AVV12: 3 | AVW12: 2 | AVY12: 10 | AVZ12: 3 | AWA12: 2 | AWG12: 10 | AWI12: 2 | AWK12: 5 | AWL12: 5 | AWM12: 2 | AWQ12: 2 | AWS12: 3 | AWT12: 2 | AWU12: 2 | AWW12: 10 | AWX12: 3 | AWY12: 2 | AXA12: 8 | AXB12: 3 | AXC12: 2 | AXI12: 10 | AXJ12: 3 | AXK12: 2 | AXM12: 5 | AXN12: 3 | AXO12: 2 | AXQ12: 5 | AXR12: 3 | AXS12: 2 | AXU12: 3 | AXV12: 4 | AXW12: 2 | AXY12: 15 | AXZ12: 3 | AYA12: 2 | AYC12: 10 | AYD12: 3 | AYE12: 2 | AYK12: 15 | AYL12: 3 | AYM12: 2 | AYO12: 15 | AYP12: 3 | AYQ12: 2 | AYS12: 15 | AYT12: 3 | AYU12: 2 | AYW12: 3 | AYX12: 2 | AYY12: 2 | AZA12: 15 | AZB12: 4 | AZC12: 2 | AZE12: 15 | AZF12: 3 | AZG12: 2 | AZM12: 15 | AZO12: 2 | AZQ12: 4 | AZR12: 5 | AZS12: 2 | AZU12: 15 | AZV12: 3 | AZW12: 2 | AZY12: 3 | AZZ12: 2 | BAA12: 2 | BAC12: 15 | BAD12: 3 | BAE12: 2 | BAG12: 15 | BAH12: 3 | BAI12: 2 | BAK12: 254 | BAL12: 72 | BAM12: 52 | BAN12: 0 | BAS12: 15 | BAT12: 3 | BAU12: 4 | BAW12: 15 | BAX12: 3 | BAY12: 2 | BBA12: 15 | BBB12: 3 | BBC12: 2 | BBG12: 5 | BBI12: 20 | BBJ12: 3 | BBK12: 5 | BBM12: 15 | BBN12: 3 | BBO12: 5 | BBW12: 5 | BBY12: 5 | BBZ12: 2 | BCA12: 5 | BCC12: 5 | BCD12: 3 | BCE12: 5 | BCG12: 3 | BCH12: 2 | BCI12: 5 | BCK12: 5 | BCL12: 3 | BCM12: 5 | BCO12: 2 | BCQ12: 5 | BCW12: 15 | BCX12: 2 | BCY12: 5 | BDA12: 3 | BDB12: 2 | BDC12: 5 | BDE12: 5 | BDF12: 2 | BDG12: 5 | BDI12: 3 | BDJ12: 2 | BDK12: 5 | BDM12: 15 | BDN12: 3 | BDO12: 5 | BDQ12: 15 | BDR12: 5 | BDS12: 5 | BDY12: 15 | BEA12: 5 | BEC12: 3 | BED12: 2 | BEE12: 5 | BEG12: 3 | BEH12: 2 | BEI12: 5 | BEK12: 3 | BEL12: 2 | BEM12: 5 | BEO12: 15 | BEP12: 2 | BEQ12: 5 | BES12: 5 | BET12: 3 | BEU12: 5 | BFA12: 5 | BFB12: 5 | BFC12: 5 | BFE12: 5 | BFF12: 3 | BFG12: 5 | BFI12: 210 | BFJ12: 60 | BFK12: 123 | BFL12: 0 | BFM12: 1985.05 | BFN12: 736 | BFO12: 687 | BFP12: 0 | BFQ12: 165.4208333 | BFR12: 66.90909091 | BFS12: 57.25 | BFT12: 0 | BFU12: 12 | BFV12: 11 | BFW12: 12 | BFX12: 0
B13: 80 TO 50 BEDS HCFs
B14: NIZAMABAD
A15: 1 | B15: PRATI503001TSBH00889 | C15: PRATHIBHA SUPER SPECIALITY HOSPITAL | D15: BESIDE LANE OF JOYALLUKKAS JEWELLERS, HYDERABAD ROAD, KAKATIYA STREET, NIZAMABAD - 503001. | E15: 80 | F15: 18.6683708 | G15: 78.1044167 | H15: Dr. MOTHILAL JADAV | I15: 9885004962 | J15: pssh.nzb@gmail.com | K15: Private | L15: Bedded | M15: 6 | N15: 5 | O15: 5 | Q15: 6 | R15: 5 | S15: 3 | U15: 6 | V15: 5 | W15: 3 | Y15: 6 | Z15: 5 | AA15: 3 | AC15: 6 | AD15: 5 | AE15: 3 | AG15: 6 | AH15: 5 | AI15: 3 | AK15: 6 | AL15: 5 | AM15: 3 | AO15: 6 | AP15: 5 | AQ15: 3 | AS15: 6 | AT15: 5 | AU15: 3 | AW15: 6 | AX15: 5 | AY15: 3 | BA15: 6 | BB15: 5 | BC15: 3 | BE15: 6 | BF15: 5 | BG15: 3 | BI15: 6 | BJ15: 5 | BK15: 3 | BQ15: 6 | BR15: 5 | BS15: 3 | BU15: 6 | BV15: 5 | BW15: 3 | BY15: 6 | BZ15: 5 | CA15: 3 | CC15: 6 | CD15: 5 | CE15: 3 | CG15: 6 | CH15: 5 | CI15: 3 | CK15: 6 | CL15: 5 | CM15: 3 | CO15: 6 | CP15: 5 | CQ15: 3 | CS15: 6 | CT15: 5 | CU15: 3 | CW15: 6 | CX15: 5 | CY15: 3 | DA15: 6 | DB15: 5 | DC15: 3 | DE15: 6 | DF15: 5 | DG15: 3 | DI15: 6 | DJ15: 5 | DK15: 3 | DM15: 6 | DN15: 5 | DO15: 3 | DU15: 6 | DV15: 5 | DW15: 3 | DY15: 6 | DZ15: 5 | EA15: 3 | EC15: 6 | ED15: 5 | EE15: 3 | EG15: =M15+Q15+U15+Y15+AC15+AG15+AK15+AO15+AS15+AW15+BA15+BE15+BI15+BM15+BQ15+BU15+BY15+CC15+CG15+CK15+CO15+CS15+CW15+DA15+DE15+DI15+DM15+DQ15+DU15+DY15+EC15 -> 174 | EH15: =N15+R15+V15+Z15+AD15+AH15+AL15+AP15+AT15+AX15+BB15+BF15+BJ15+BN15+BR15+BV15+BZ15+CD15+CH15+CL15+CP15+CT15+CX15+DB15+DF15+DJ15+DN15+DR15+DV15+DZ15+ED15 -> 145 | EI15: =O15+S15+W15+AA15+AE15+AI15+AM15+AQ15+AU15+AY15+BC15+BG15+BK15+BO15+BS15+BW15+CA15+CE15+CI15+CM15+CQ15+CU15+CY15+DC15+DG15+DK15+DO15+DS15+DW15+EA15+EE15 -> 89 | EJ15: =P15+T15+X15+AB15+AF15+AJ15+AN15+AR15+AV15+AZ15+BD15+BH15+BL15+BP15+BT15+BX15+CB15+CF15+CJ15+CN15+CR15+CV15+CZ15+DD15+DH15+DL15+DP15+DT15+DX15+EB15+EF15 -> 0 | EK15: 5 | EO15: 5 | EQ15: 2 | EU15: 2 | FA15: 5 | FC15: 2 | FE15: 5 | FF15: 5 | FG15: 2 | FI15: 5 | FK15: 2 | FM15: 5 | FO15: 2 | FQ15: 5 | FS15: 2 | FU15: 5 | FW15: 2 | GC15: 5 | GE15: 2 | GI15: 2 | GM15: 2 | GQ15: 2 | GU15: 2 | GY15: 2 | HG15: 2 | HI15: 5 | HJ15: 5 | HK15: 2 | HM15: 5 | HN15: 5 | HO15: 2 | HQ15: 5 | HR15: 5 | HS15: 2 | HU15: 5 | HV15: 5 | HW15: 2 | HY15: 5 | HZ15: 5 | IA15: 2 | IC15: 5 | ID15: 5 | IE15: 2 | II15: 2 | IK15: 5 | IL15: 5 | IM15: 2 | IO15: 5 | IQ15: 2 | IS15: =EK15+EO15+ES15+EW15+FA15+FE15+FI15+FM15+FQ15+FU15+FY15+GC15+GG15+GK15+GO15+GS15+GW15+HA15+HE15+HI15+HM15+HQ15+HU15+HY15+IC15+IG15+IK15+IO15 -> 85 | IT15: =EL15+EP15+ET15+EX15+FB15+FF15+FJ15+FN15+FR15+FV15+FZ15+GD15+GH15+GL15+GP15+GT15+GX15+HB15+HF15+HJ15+HN15+HR15+HV15+HZ15+ID15+IH15+IL15+IP15 -> 40 | IU15: =EM15+EQ15+EU15+EY15+FC15+FG15+FK15+FO15+FS15+FW15+GA15+GE15+GI15+GM15+GQ15+GU15+GY15+HC15+HG15+HK15+HO15+HS15+HW15+IA15+IE15+II15+IM15+IQ15 -> 48 | IV15: =EN15+ER15+EV15+EZ15+FD15+FH15+FL15+FP15+FT15+FX15+GB15+GF15+GJ15+GN15+GR15+GV15+GZ15+HD15+HH15+HL15+HP15+HT15+HX15+IB15+IF15+IJ15+IN15+IR15 -> 0 | IW15: 10 | IY15: 2 | JC15: 2 | JK15: 2 | JM15: 5 | JN15: 5 | JO15: 2 | JS15: 2 | JW15: 2 | KA15: 2 | KE15: 2 | KM15: 2 | KO15: 5 | KQ15: 2 | KU15: 2 | KY15: 2 | LC15: 2 | LG15: 2 | LM15: 5 | LO15: 2 | LS15: 2 | LU15: 5 | LW15: 2 | LY15: 5 | MA15: 2 | MC15: 5 | ME15: 2 | MG15: 5 | MI15: 2 | MO15: 5 | MQ15: 2 | MW15: 5 | MY15: 2 | NC15: 2 | NG15: 2 | NK15: 2 | NQ15: =IW15+JA15+JE15+JI15+JM15+JQ15+JU15+JY15+KC15+KG15+KK15+KO15+KS15+KW15+LA15+LE15+LI15+LM15+LQ15+LU15+LY15+MC15+MG15+MK15+MO15+MS15+MW15+NA15+NE15+NI15+NM15 -> 55 | NR15: =IX15+JB15+JF15+JJ15+JN15+JR15+JV15+JZ15+KD15+KH15+KL15+KP15+KT15+KX15+LB15+LF15+LJ15+LN15+LR15+LV15+LZ15+MD15+MH15+ML15+MP15+MT15+MX15+NB15+NF15+NJ15+NN15 -> 5 | NS15: =IY15+JC15+JG15+JK15+JO15+JS15+JW15+KA15+KE15+KI15+KM15+KQ15+KU15+KY15+LC15+LG15+LK15+LO15+LS15+LW15+MA15+ME15+MI15+MM15+MQ15+MU15+MY15+NC15+NG15+NK15+NO15 -> 50 | NT15: =IZ15+JD15+JH15+JL15+JP15+JT15+JX15+KB15+KF15+KJ15+KN15+KR15+KV15+KZ15+LD15+LH15+LL15+LP15+LT15+LX15+MB15+MF15+MJ15+MN15+MR15+MV15+MZ15+ND15+NH15+NL15+NP15 -> 0 | NW15: 2 | OA15: 2 | OE15: 2 | OG15: 5 | OI15: 2 | OK15: 5 | OM15: 2 | OO15: 5 | OQ15: 2 | OW15: 5 | OY15: 2 | PE15: 5 | PG15: 2 | PI15: 5 | PJ15: 5 | PK15: 2 | PO15: 2 | PQ15: 5 | QA15: 2 | QE15: 2 | QG15: 5 | QI15: 2 | QK15: 5 | QM15: 2 | QO15: 6 | QQ15: 2 | QS15: 5 | QU15: 2 | RA15: 5 | RC15: 2 | RE15: 5 | RG15: 2 | RK15: 2 | RO15: 2 | RQ15: 5 | RS15: 2 | RV15: 2 | RW15: 2 | SD15: 5 | SE15: 2 | SG15: 5 | SI15: 2 | SK15: =NU15+NY15+OC15+OG15+OK15+OO15+OS15+OW15+PA15+PE15+PI15+PM15+PQ15+PU15+PY15+QC15+QG15+QK15+QO15+QS15+QW15+RA15+RE15+RI15+RM15+RQ15+RU15+RY15+SC15+SG15 -> 76 | SL15: =NV15+NZ15+OD15+OH15+OL15+OP15+OT15+OX15+PB15+PF15+PJ15+PN15+PR15+PV15+PZ15+QD15+QH15+QL15+QP15+QT15+QX15+RB15+RF15+RJ15+RN15+RR15+RV15+RZ15+SD15+SH15 -> 12 | SM15: =NW15+OA15+OE15+OI15+OM15+OQ15+OU15+OY15+PC15+PG15+PK15+PO15+PS15+PW15+QA15+QE15+QI15+QM15+QQ15+QU15+QY15+RC15+RG15+RK15+RO15+RS15+RW15+SA15+SE15+SI15 -> 48 | SN15: =NX15+OB15+OF15+OJ15+ON15+OR15+OV15+OZ15+PD15+PH15+PL15+PP15+PT15+PX15+QB15+QF15+QJ15+QN15+QR15+QV15+QZ15+RD15+RH15+RL15+RP15+RT15+RX15+SB15+SF15+SJ15 -> 0 | SQ15: 2 | ST15: 5 | SU15: 2 | SY15: 2 | TB15: 5 | TC15: 2 | TI15: 5 | TK15: 2 | TN15: 5 | TO15: 2 | TR15: 5 | TS15: 2 | TW15: 2 | TZ15: 5 | UA15: 2 | UC15: 5 | UE15: 2 | UK15: 5 | UL15: 5 | UM15: 2 | UO15: 5 | UQ15: 2 | US15: 5 | UU15: 2 | UW15: 5 | UY15: 2 | VA15: 5 | VC15: 2 | VE15: 5 | VF15: 5 | VG15: 2 | VM15: 5 | VO15: 2 | VQ15: 5 | VS15: 2 | VV15: 5 | VW15: 2 | VZ15: 5 | WA15: 2 | WE15: 2 | WH15: 5 | WI15: 2 | WQ15: 2 | WU15: 2 | WW15: 5 | WY15: 2 | XA15: 5 | XB15: 5 | XC15: 2 | XG15: 2 | XI15: 60 | XJ15: 55 | XK15: 54 | XL15: 0 | XO15: 2 | XW15: 2 | XZ15: 5 | YA15: 2 | YC15: 5 | YE15: 2 | YG15: 5 | YI15: 2 | YK15: 5 | YM15: 2 | YO15: 5 | YQ15: 2 | YY15: 2 | ZA15: 5 | ZC15: 2 | ZE15: 5 | ZG15: 2 | ZK15: 2 | ZO15: 2 | ZR15: 5 | ZS15: 2 | ZZ15: 5 | AAA15: 2 | AAD15: 5 | AAH15: 5 | AAI15: 2 | AAK15: 3 | AAL15: 2 | AAM15: 2 | AAO15: 5 | AAQ15: 2 | AAS15: 11 | AAU15: 2 | ABA15: 6 | ABC15: 2 | ABF15: 7 | ABG15: 2 | ABK15: 2 | ABO15: 2 | ABS15: 2 | ABW15: 2 | ACC15: 55 | ACD15: 34 | ACE15: 48 | ACF15: 0 | ACH15: 2 | ACI15: 2 | ACL15: 5 | ACM15: 2 | ACP15: 5 | ACQ15: 2 | ACU15: 2 | ACX15: 5 | ACY15: 2 | ADB15: 5 | ADC15: 2 | ADK15: 2 | ADO15: 2 | ADS15: 2 | ADW15: 2 | ADZ15: 5 | AEA15: 2 | AEC15: 5 | AEE15: 2 | AEL15: 5 | AEM15: 2 | AEQ15: 2 | AEU15: 2 | AEY15: 2 | AFC15: 2 | AFG15: 2 | AFO15: 2 | AFS15: 2 | AFU15: 7 | AFW15: 2 | AFZ15: 8 | AGA15: 2 | AGC15: 6 | AGE15: 2 | AGH15: 7 | AGI15: 2 | AGP15: 5 | AGQ15: 2 | AGT15: 8 | AGU15: 2 | AGX15: 7 | AGY15: 2 | AHA15: 18 | AHB15: 67 | AHC15: 54 | AHD15: 0 | AHE15: 7 | AHG15: 2 | AHI15: 5 | AHK15: 2 | AHN15: 5 | AHO15: 2 | AHV15: 5 | AHW15: 2 | AHY15: 5 | AIA15: 2 | AID15: 5 | AIE15: 2 | AIH15: 5 | AII15: 2 | AIK15: 5 | AIM15: 2 | AIP15: 5 | AIQ15: 2 | AIW15: 6 | AIY15: 2 | AJB15: 8 | AJC15: 2 | AJF15: 8 | AJG15: 2 | AJJ15: 8 | AJK15: 2 | AJN15: 8 | AJO15: 2 | AJR15: 7 | AJS15: 2 | AJY15: 5 | AKA15: 2 | AKC15: 7 | AKE15: 2 | AKG15: 7 | AKI15: 2 | AKL15: 7 | AKM15: 2 | AKP15: 8 | AKQ15: 2 | AKT15: 8 | AKU15: 2 | ALA15: 7 | ALC15: 2 | ALF15: 5 | ALG15: 2 | ALJ15: 5 | ALK15: 2 | ALN15: 5 | ALO15: 2 | ALR15: 5 | ALS15: 2 | ALV15: 5 | ALW15: 2 | ALY15: 54 | ALZ15: 112 | AMA15: 54 | AMB15: 0 | AMG15: 5 | AMI15: 2 | AMK15: 5 | AMM15: 2 | AMO15: 6 | AMQ15: 2 | AMS15: 8 | AMU15: 2 | AMX15: 5 | AMY15: 2 | ANB15: 5 | ANC15: 2 | ANJ15: 5 | ANK15: 2 | ANN15: 5 | ANO15: 2 | ANS15: 2 | ANV15: 5 | ANW15: 2 | ANZ15: 5 | AOA15: 2 | AOC15: 5 | AOE15: 2 | AOL15: 5 | AOM15: 2 | AOP15: 2 | AOQ15: 2 | AOU15: 2 | AOY15: 2 | APC15: 2 | APE15: 5 | APG15: 2 | APM15: 5 | APO15: 2 | APQ15: 5 | APS15: 2 | APV15: 5 | APW15: 2 | APZ15: 2 | AQA15: 2 | AQD15: 2 | AQE15: 2 | AQH15: 2 | AQI15: 2 | AQP15: 5 | AQQ15: 2 | AQS15: 44 | AQT15: 53 | AQU15: 50 | AQV15: 0 | AQX15: 6 | AQY15: 2 | ARB15: 5 | ARC15: 2 | ARF15: 5 | ARG15: 2 | ARK15: 2 | ARM15: 5 | ARO15: 2 | ARV15: 5 | ARW15: 2 | ARY15: 5 | ASA15: 2 | ASC15: 6 | ASE15: 2 | ASI15: 2 | ASP15: 6 | ASQ15: 2 | ASW15: 7 | ASY15: 2 | ATA15: 8 | ATC15: 2 | ATF15: 7 | ATG15: 2 | ATN15: 15 | ATO15: 2 | ATQ15: 7 | ATS15: 2 | ATY15: 7 | AUA15: 2 | AUD15: 8 | AUE15: 2 | AUH15: 10 | AUI15: 2 | AUL15: 7 | AUM15: 2 | AUP15: 8 | AUQ15: 2 | AUT15: 7 | AUU15: 2 | AVB15: 8 | AVC15: 2 | AVF15: 8 | AVG15: 2 | AVJ15: 7 | AVK15: 2 | AVQ15: 45 | AVR15: 112 | AVS15: 48 | AVT15: 0 | AVU15: 5 | AVW15: 2 | AWA15: 2 | AWG15: 5 | AWI15: 2 | AWK15: 5 | AWM15: 2 | AWO15: 5 | AWQ15: 2 | AWS15: 5 | AWU15: 2 | AWW15: 5 | AWY15: 2 | AXA15: 5 | AXC15: 2 | AXI15: 5 | AXK15: 2 | AXN15: 5 | AXO15: 2 | AXR15: 5 | AXS15: 2 | AXV15: 5 | AXW15: 2 | AXY15: 6 | AYA15: 2 | AYD15: 5 | AYE15: 2 | AYK15: 5 | AYM15: 2 | AYO15: 5 | AYQ15: 2 | AYS15: 5 | AYU15: 2 | AYX15: 5 | AYY15: 2 | AZA15: 8 | AZC15: 2 | AZE15: 5 | AZG15: 2 | AZM15: 8 | AZO15: 2 | AZQ15: 5 | AZR15: 2 | AZS15: 2 | AZU15: 5 | AZW15: 2 | AZY15: 6 | BAA15: 2 | BAC15: 4 | BAD15: 3 | BAE15: 2 | BAG15: 5 | BAH15: 3 | BAI15: 2 | BAK15: 107 | BAL15: 33 | BAM15: 52 | BAN15: 0 | BAT15: 7 | BAX15: 7 | BAY15: 2 | BBB15: 7 | BBC15: 2 | BBF15: 8 | BBG15: 3 | BBJ15: 7 | BBK15: 3 | BBN15: 8 | BBO15: 3 | BBV15: 8 | BBW15: 3 | BBZ15: 7 | BCA15: 3 | BCD15: 8 | BCE15: 3 | BCH15: 8 | BCI15: 3 | BCL15: 7 | BCM15: 3 | BCP15: 7 | BCQ15: 3 | BCX15: 8 | BCY15: 3 | BDA15: 8 | BDC15: 3 | BDE15: 8 | BDG15: 3 | BDJ15: 3 | BDK15: 3 | BDN15: 8 | BDO15: 3 | BDR15: 8 | BDS15: 3 | BDY15: 8 | BEA15: 3 | BEC15: 9 | BEE15: 3 | BEG15: 9 | BEI15: 3 | BEK15: 8 | BEM15: 3 | BEO15: 9 | BEQ15: 3 | BET15: 8 | BEU15: 3 | BFA15: 8 | BFC15: 3 | BFE15: 8 | BFG15: 3 | BFI15: 75 | BFJ15: 124 | BFK15: 73 | BFL15: 0 | BFM15: 848 | BFN15: 792 | BFO15: 668 | BFP15: 0 | BFQ15: =IFERROR(BFM15/BFU15,"0") -> 70.66666667 | BFR15: =IFERROR(BFN15/BFV15,"0") -> 66 | BFS15: =IFERROR(BFO15/BFW15,"0") -> 55.66666667 | BFT15: =IFERROR(BFP15/BFX15,"0") -> 0 | BFU15: =IF(EG15>0, 1, 0) + IF(IS15> 0, 1, 0) + IF(NQ15 > 0, 1, 0) + IF(SK15 > 0, 1, 0) +IF(XI15 > 0, 1, 0)+ IF(ACC15 > 0, 1, 0)+ IF(AHA15 > 0, 1, 0)+ IF(ALY15 > 0, 1, 0)+ IF(AQS15 > 0, 1, 0)+ IF(AVQ15 > 0, 1, 0)+ IF(BAK15 > 0, 1, 0)+ IF(BFI15 > 0, 1, 0) -> 12 | BFV15: =IF(EH15>0, 1, 0) + IF(IT15> 0, 1, 0) + IF(NR15 > 0, 1, 0) + IF(SL15 > 0, 1, 0) +IF(XJ15 > 0, 1, 0)+ IF(ACD15 > 0, 1, 0)+ IF(AHB15 > 0, 1, 0)+ IF(ALZ15 > 0, 1, 0)+ IF(AQT15 > 0, 1, 0)+ IF(AVR15 > 0, 1, 0)+ IF(BAL15 > 0, 1, 0)+ IF(BFJ15 > 0, 1, 0) -> 12 | BFW15: =IF(EI15>0, 1, 0) + IF(IU15> 0, 1, 0) + IF(NS15 > 0, 1, 0) + IF(SM15 > 0, 1, 0) +IF(XK15 > 0, 1, 0)+ IF(ACE15 > 0, 1, 0)+ IF(AHC15 > 0, 1, 0)+ IF(AMA15 > 0, 1, 0)+ IF(AQU15 > 0, 1, 0)+ IF(AVS15 > 0, 1, 0)+ IF(BAM15 > 0, 1, 0)+ IF(BFK15 > 0, 1, 0) -> 12 | BFX15: =IF(EJ15>0, 1, 0) + IF(IV15> 0, 1, 0) + IF(NT15 > 0, 1, 0) + IF(SN15 > 0, 1, 0) +IF(XL15 > 0, 1, 0)+ IF(ACF15 > 0, 1, 0)+ IF(AHD15 > 0, 1, 0)+ IF(AMB15 > 0, 1, 0)+ IF(AQV15 > 0, 1, 0)+ IF(AVT15 > 0, 1, 0)+ IF(BAN15 > 0, 1, 0)+ IF(BFL15 > 0, 1, 0) -> 0
A16: 2 | B16: SHIVA503001TSBH00427 | C16: SHIVA SAI EMERGENCY AND MULTI SPECIALITY HOSPITAL | D16: OPP: TELANGANA GRAMEENA BANK, KHALEEL WADI, NIZAMABAD - 503001 | E16: 53 | H16: Dr. C VINODA | I16: 9885576294 | J16: drseshagirithota@gmail.com | K16: Private | L16: Bedded | M16: 5 | N16: 5 | O16: 2 | Q16: 5 | R16: 5 | S16: 2 | U16: 5 | V16: 5 | W16: 2 | Y16: 5 | Z16: 5 | AA16: 2 | AC16: 5 | AD16: 5 | AE16: 2 | AG16: 5 | AH16: 5 | AI16: 2 | AK16: 5 | AL16: 5 | AM16: 2 | AO16: 5 | AP16: 5 | AQ16: 2 | AS16: 5 | AT16: 5 | AU16: 2 | AW16: 5 | AX16: 5 | AY16: 2 | BA16: 5 | BB16: 5 | BC16: 2 | BE16: 5 | BF16: 5 | BG16: 2 | BI16: 5 | BJ16: 5 | BK16: 2 | BQ16: 5 | BR16: 5 | BS16: 2 | BU16: 5 | BV16: 5 | BW16: 2 | BY16: 5 | BZ16: 5 | CA16: 2 | CC16: 5 | CD16: 5 | CE16: 2 | CG16: 5 | CH16: 5 | CI16: 2 | CK16: 5 | CL16: 5 | CM16: 2 | CO16: 5 | CP16: 5 | CQ16: 2 | CS16: 5 | CT16: 5 | CU16: 2 | CW16: 5 | CX16: 5 | CY16: 2 | DA16: 5 | DB16: 5 | DC16: 2 | DE16: 5 | DF16: 5 | DG16: 2 | DI16: 5 | DJ16: 5 | DK16: 2 | DM16: 5 | DN16: 5 | DO16: 2 | DU16: 5 | DV16: 5 | DW16: 2 | DY16: 5 | DZ16: 5 | EA16: 2 | EC16: 5 | ED16: 5 | EE16: 2 | EG16: 145 | EH16: 145 | EI16: 58 | EJ16: 0 | EK16: 5 | EL16: 5 | EO16: 5 | EP16: 5 | EQ16: 1 | ES16: 5 | ET16: 5 | EU16: 1 | FA16: 5 | FB16: 5 | FC16: 1 | FE16: 5 | FF16: 5 | FG16: 1 | FI16: 5 | FJ16: 5 | FK16: 1 | FM16: 5 | FO16: 1 | FQ16: 5 | FS16: 1 | FU16: 5 | FW16: 1 | GC16: 5 | GE16: 1 | GI16: 1 | GM16: 1 | GQ16: 1 | GU16: 1 | GW16: 5 | GY16: 1 | HE16: 5 | HF16: 5 | HG16: 1 | HI16: 5 | HJ16: 5 | HK16: 1 | HM16: 5 | HN16: 5 | HO16: 1 | HQ16: 5 | HR16: 5 | HS16: 1 | HU16: 5 | HV16: 5 | HW16: 1 | HY16: 5 | HZ16: 5 | IA16: 1 | IC16: 5 | ID16: 5 | IE16: 1 | IG16: 5 | IH16: 5 | II16: 1 | IK16: 5 | IL16: 5 | IM16: 1 | IO16: 5 | IP16: 5 | IQ16: 1 | IS16: 105 | IT16: 80 | IU16: 24 | IV16: 0 | IY16: 1 | JA16: 5 | JB16: 5 | JC16: 1 | JI16: 5 | JJ16: 5 | JK16: 1 | JO16: 1 | JQ16: 5 | JS16: 1 | JV16: 5 | JW16: 1 | JZ16: 5 | KA16: 1 | KC16: 5 | KE16: 1 | KK16: 5 | KM16: 1 | KO16: 5 | KQ16: 1 | KT16: 5 | KU16: 1 | KW16: 5 | KY16: 1 | LC16: 1 | LE16: 5 | LG16: 1 | LM16: 5 | LO16: 1 | LR16: 5 | LS16: 1 | LU16: 5 | LV16: 5 | LW16: 1 | LY16: 5 | LZ16: 5 | MA16: 1 | MC16: 5 | MD16: 5 | ME16: 1 | MG16: 5 | MH16: 5 | MI16: 1 | MO16: 5 | MQ16: 1 | MW16: 5 | MX16: 5 | MY16: 1 | NC16: 1 | NF16: 5 | NG16: 1 | NK16: 1 | NQ16: 75 | NR16: 60 | NS16: 25 | NT16: 0 | NW16: 1 | OA16: 1 | OE16: 1 | OG16: 5 | OH16: 5 | OI16: 1 | OK16: 5 | OL16: 5 | OM16: 1 | OO16: 5 | OP16: 5 | OQ16: 1 | OW16: 2 | OX16: 2 | OY16: 1 | PE16: 5 | PF16: 5 | PG16: 1 | PI16: 5 | PK16: 1 | PO16: 1 | PR16: 5 | QA16: 1 | QD16: 5 | QE16: 1 | QG16: 5 | QH16: 5 | QI16: 1 | QK16: 5 | QL16: 5 | QM16: 1 | QO16: 2 | QP16: 2 | QQ16: 1 | QS16: 5 | QT16: 5 | QU16: 1 | RA16: 5 | RB16: 5 | RC16: 1 | RE16: 5 | RF16: 5 | RG16: 1 | RK16: 1 | RO16: 1 | RQ16: 5 | RR16: 5 | RS16: 1 | RU16: 5 | RV16: 5 | RW16: 1 | SC16: 5 | SD16: 5 | SE16: 1 | SI16: 1 | SK16: 69 | SL16: 74 | SM16: 24 | SN16: 0 | SO16: 5 | SP16: 5 | SQ16: 1 | SS16: 5 | ST16: 5 | SU16: 1 | SW16: 5 | SX16: 5 | SY16: 1 | TC16: 1 | TI16: 5 | TJ16: 5 | TK16: 1 | TM16: 5 | TO16: 1 | TR16: 5 | TS16: 1 | TW16: 1 | UA16: 1 | UD16: 5 | UE16: 1 | UK16: 5 | UM16: 1 | UP16: 5 | UQ16: 1 | UT16: 5 | UU16: 1 | UX16: 5 | UY16: 1 | VB16: 5 | VC16: 1 | VE16: 5 | VG16: 1 | VN16: 5 | VO16: 1 | VR16: 5 | VS16: 1 | VV16: 5 | VW16: 1 | VY16: 5 | WA16: 1 | WD16: 5 | WE16: 1 | WG16: 2 | WI16: 1 | WO16: 3 | WQ16: 1 | WT16: 2 | WU16: 1 | WW16: 3 | WY16: 1 | XC16: 1 | XG16: 1 | XI16: 48 | XJ16: 72 | XK16: 27 | XL16: 0 | XO16: 1 | XV16: 5 | XW16: 1 | XY16: 5 | YA16: 1 | YE16: 1 | YH16: 5 | YI16: 1 | YK16: 5 | YM16: 1 | YO16: 5 | YQ16: 1 | YY16: 1 | ZB16: 5 | ZC16: 1 | ZF16: 5 | ZG16: 1 | ZJ16: 7 | ZK16: 1 | ZN16: 5 | ZO16: 1 | ZR16: 5 | ZS16: 1 | ZY16: 5 | AAA16: 1 | AAC16: 3 | AAI16: 1 | AAL16: 3 | AAM16: 1 | AAO16: 3 | AAQ16: 1 | AAS16: 3 | AAU16: 1 | ABC16: 1 | ABE16: 3 | ABF16: 3 | ABG16: 1 | ABI16: 3 | ABK16: 1 | ABM16: 2 | ABO16: 1 | ABR16: 3 | ABS16: 1 | ABV16: 5 | ABW16: 1 | ACC16: 37 | ACD16: 51 | ACE16: 24 | ACF16: 0 | ACI16: 1 | ACL16: 5 | ACM16: 1 | ACQ16: 1 | ACT16: 5 | ACU16: 1 | ACY16: 1 | ADC16: 1 | ADI16: 2 | ADK16: 1 | ADM16: 5 | ADO16: 1 | ADS16: 1 | ADW16: 1 | AEA16: 1 | AED16: 5 | AEE16: 1 | AEL16: 5 | AEM16: 1 | AEQ16: 1 | AEU16: 1 | AEY16: 1 | AFC16: 1 | AFG16: 1 | AFO16: 1 | AFS16: 1 | AFW16: 1 | AFY16: 3 | AGA16: 1 | AGE16: 1 | AGH16: 3 | AGI16: 1 | AGP16: 5 | AGQ16: 1 | AGU16: 1 | AGX16: 3 | AGY16: 1 | AHA16: 10 | AHB16: 31 | AHC16: 27 | AHD16: 0 | AHE16: 3 | AHG16: 1 | AHI16: 5 | AHK16: 1 | AHO16: 1 | AHV16: 5 | AHW16: 1 | AHY16: 5 | AIA16: 1 | AID16: 5 | AIE16: 1 | AIH16: 5 | AII16: 1 | AIL16: 5 | AIM16: 1 | AIP16: 5 | AIQ16: 1 | AIX16: 3 | AIY16: 1 | AJA16: 3 | AJC16: 1 | AJF16: 3 | AJG16: 1 | AJK16: 1 | AJO16: 1 | AJS16: 1 | AKA16: 1 | AKE16: 1 | AKI16: 1 | AKL16: 3 | AKM16: 1 | AKP16: 3 | AKQ16: 1 | AKU16: 1 | ALC16: 1 | ALG16: 1 | ALI16: 5 | ALK16: 1 | ALM16: 5 | ALO16: 1 | ALR16: 5 | ALS16: 1 | ALV16: 5 | ALW16: 1 | ALY16: 26 | ALZ16: 47 | AMA16: 27 | AMB16: 0 | AMG16: 5 | AMI16: 1 | AMM16: 1 | AMQ16: 1 | AMU16: 1 | AMW16: 5 | AMY16: 1 | ANA16: 5 | ANC16: 1 | ANI16: 5 | ANK16: 1 | ANM16: 5 | ANO16: 1 | ANQ16: 5 | ANS16: 1 | ANU16: 5 | ANW16: 1 | AOA16: 1 | AOE16: 1 | AOM16: 1 | AOO16: 5 | AOP16: 2 | AOQ16: 1 | AOT16: 2 | AOU16: 1 | AOY16: 1 | APB16: 5 | APC16: 1 | APG16: 1 | APO16: 1 | APR16: 5 | APS16: 1 | APV16: 5 | APW16: 1 | APY16: 5 | AQA16: 1 | AQE16: 1 | AQG16: 5 | AQI16: 1 | AQO16: 5 | AQQ16: 1 | AQS16: 55 | AQT16: 19 | AQU16: 25 | AQV16: 0 | AQX16: 3 | AQY16: 1 | ARB16: 3 | ARC16: 1 | ARF16: 3 | ARG16: 1 | ARI16: 3 | ARK16: 1 | ARM16: 3 | ARO16: 1 | ARU16: 3 | ARW16: 1 | ARY16: 2 | ASA16: 1 | ASC16: 2 | ASE16: 1 | ASG16: 2 | ASI16: 1 | ASO16: 3 | ASQ16: 1 | ASW16: 7 | ASY16: 1 | ATC16: 1 | ATE16: 2 | ATG16: 1 | ATM16: 5 | ATO16: 1 | ATQ16: 5 | ATS16: 1 | ATY16: 5 | AUA16: 1 | AUC16: 3 | AUE16: 1 | AUI16: 1 | AUK16: 3 | AUM16: 1 | AUQ16: 1 | AUS16: 3 | AUU16: 1 | AVA16: 2 | AVC16: 1 | AVG16: 1 | AVK16: 1 | AVQ16: 53 | AVR16: 9 | AVS16: 24 | AVT16: 0 | AVU16: 2 | AVW16: 1 | AVY16: 5 | AWA16: 1 | AWG16: 5 | AWI16: 1 | AWM16: 1 | AWO16: 5 | AWQ16: 1 | AWT16: 3 | AWU16: 1 | AWX16: 5 | AWY16: 1 | AXA16: 5 | AXC16: 1 | AXI16: 5 | AXK16: 1 | AXM16: 5 | AXO16: 1 | AXQ16: 5 | AXS16: 1 | AXU16: 5 | AXW16: 1 | AXY16: 5 | AYA16: 1 | AYC16: 5 | AYE16: 1 | AYK16: 5 | AYL16: 3 | AYM16: 1 | AYO16: 5 | AYP16: 3 | AYQ16: 1 | AYS16: 5 | AYU16: 1 | AYW16: 5 | AYY16: 1 | AZA16: 2 | AZC16: 1 | AZE16: 5 | AZG16: 1 | AZM16: 5 | AZO16: 1 | AZQ16: 5 | AZS16: 1 | AZU16: 5 | AZW16: 1 | AZY16: 5 | BAA16: 1 | BAC16: 5 | BAE16: 1 | BAG16: 5 | BAI16: 1 | BAK16: 109 | BAL16: 14 | BAM16: 26 | BAN16: 0 | BAS16: 3 | BAW16: 3 | BAY16: 1 | BBC16: 1 | BBG16: 3 | BBK16: 3 | BBM16: 3 | BBO16: 3 | BBW16: 3 | BCA16: 3 | BCE16: 3 | BCI16: 3 | BCK16: 3 | BCM16: 3 | BCQ16: 3 | BCW16: 3 | BCY16: 3 | BDA16: 2 | BDC16: 3 | BDE16: 3 | BDG16: 3 | BDI16: 3 | BDK16: 3 | BDM16: 5 | BDO16: 3 | BDR16: 3 | BDS16: 3 | BDY16: 2 | BEA16: 3 | BEC16: 4 | BEE16: 3 | BEG16: 4 | BEI16: 3 | BEK16: 5 | BEM16: 3 | BEP16: 3 | BEQ16: 3 | BEU16: 3 | BFA16: 3 | BFC16: 3 | BFE16: 3 | BFG16: 3 | BFI16: 49 | BFJ16: 6 | BFK16: 71 | BFL16: 0 | BFM16: 781 | BFN16: 608 | BFO16: 382 | BFP16: 0 | BFQ16: 65.08333333 | BFR16: 50.66666667 | BFS16: 31.83333333 | BFT16: 0 | BFU16: 12 | BFV16: 12 | BFW16: 12 | BFX16: 0
A17: 3 | B17: BOMBA503001TSBH00885 | C17: BOMBAY NURSING HOME | D17: YELLAMMA GUTTA X ROAD, HYDERABAD ROAD, NIZAMABAD - 503001 | E17: 50 | H17: Dr. T. NARENDRA | I17: 9391091819 | J17: drnarendrabnh@yahoo.com | K17: Private | L17: Bedded | M17: 5 | N17: 5 | O17: 2 | Q17: 5 | R17: 5 | S17: 2 | U17: 5 | V17: 5 | W17: 2 | Y17: 5 | AA17: 2 | AC17: 5 | AE17: 2 | AG17: 5 | AI17: 2 | AK17: 5 | AM17: 2 | AO17: 5 | AQ17: 2 | AS17: 5 | AU17: 2 | AW17: 5 | AY17: 2 | BA17: 5 | BC17: 2 | BE17: 5 | BF17: 2 | BG17: 2 | BI17: 5 | BJ17: 2 | BK17: 2 | BQ17: 5 | BR17: 1 | BS17: 2 | BU17: 5 | BV17: 2 | BW17: 2 | BY17: 5 | BZ17: 2 | CA17: 2 | CC17: 5 | CD17: 2 | CE17: 2 | CG17: 5 | CH17: 2 | CI17: 2 | CK17: 5 | CL17: 2 | CM17: 2 | CO17: 5 | CP17: 2 | CQ17: 2 | CS17: 5 | CT17: 2 | CU17: 2 | CW17: 5 | CX17: 2 | CY17: 2 | DA17: 5 | DB17: 2 | DC17: 2 | DE17: 5 | DF17: 2 | DG17: 2 | DI17: 5 | DJ17: 2 | DK17: 2 | DM17: 5 | DN17: 1 | DO17: 2 | DU17: 5 | DV17: 2 | DW17: 2 | DY17: 5 | DZ17: 2 | EA17: 2 | EC17: 5 | ED17: 2 | EE17: 2 | EG17: 145 | EH17: 49 | EI17: 58 | EJ17: 0 | EK17: 5 | EL17: 5 | EO17: 5 | EQ17: 1 | ES17: 5 | EU17: 1 | FA17: 5 | FB17: 5 | FC17: 1 | FE17: 5 | FF17: 5 | FG17: 1 | FI17: 5 | FJ17: 5 | FK17: 1 | FM17: 5 | FN17: 5 | FO17: 1 | FQ17: 5 | FS17: 1 | FU17: 5 | FW17: 1 | GC17: 5 | GE17: 1 | GG17: 5 | GI17: 1 | GM17: 1 | GO17: 5 | GQ17: 1 | GS17: 5 | GU17: 1 | GW17: 5 | GY17: 1 | HE17: 5 | HG17: 1 | HI17: 5 | HJ17: 5 | HK17: 1 | HM17: 5 | HN17: 5 | HO17: 1 | HQ17: 5 | HR17: 5 | HS17: 1 | HU17: 5 | HV17: 5 | HW17: 1 | HY17: 5 | HZ17: 5 | IA17: 1 | IC17: 5 | ID17: 5 | IE17: 1 | IG17: 5 | IH17: 5 | II17: 1 | IM17: 1 | IP17: 5 | IQ17: 1 | IS17: 110 | IT17: 65 | IU17: 24 | IV17: 0 | IY17: 1 | JB17: 5 | JC17: 1 | JJ17: 5 | JK17: 1 | JM17: 5 | JN17: 5 | JO17: 1 | JR17: 5 | JS17: 1 | JW17: 1 | KA17: 1 | KE17: 1 | KM17: 1 | KQ17: 1 | KS17: 5 | KT17: 5 | KU17: 1 | KW17: 5 | KY17: 1 | LA17: 5 | LB17: 5 | LC17: 1 | LE17: 5 | LG17: 1 | LM17: 5 | LN17: 5 | LO17: 1 | LQ17: 5 | LR17: 5 | LS17: 1 | LU17: 5 | LV17: 5 | LW17: 1 | LY17: 5 | LZ17: 5 | MA17: 1 | MC17: 5 | MD17: 5 | ME17: 1 | MG17: 5 | MH17: 5 | MI17: 1 | MQ17: 1 | MW17: 5 | MX17: 5 | MY17: 1 | NB17: 5 | NC17: 1 | NG17: 1 | NJ17: 5 | NK17: 1 | NQ17: 60 | NR17: 75 | NS17: 25 | NT17: 0 | NW17: 1 | NY17: 5 | OA17: 1 | OC17: 5 | OE17: 1 | OG17: 5 | OH17: 5 | OI17: 1 | OK17: 5 | OL17: 5 | OM17: 1 | OP17: 5 | OQ17: 1 | OY17: 1 | PE17: 5 | PF17: 5 | PG17: 1 | PI17: 5 | PK17: 1 | PO17: 1 | PQ17: 5 | PR17: 5 | QA17: 1 | QC17: 5 | QD17: 5 | QE17: 1 | QG17: 5 | QH17: 5 | QI17: 1 | QK17: 5 | QL17: 5 | QM17: 1 | QO17: 3 | QP17: 3 | QQ17: 1 | QS17: 5 | QT17: 5 | QU17: 1 | RA17: 5 | RB17: 5 | RC17: 1 | RE17: 5 | RF17: 5 | RG17: 1 | RK17: 1 | RO17: 1 | RQ17: 5 | RS17: 1 | RU17: 5 | RV17: 5 | RW17: 1 | SC17: 5 | SD17: 5 | SE17: 1 | SI17: 1 | SK17: 83 | SL17: 68 | SM17: 24 | SN17: 0 | SO17: 5 | SQ17: 1 | SS17: 5 | ST17: 5 | SU17: 1 | SW17: 5 | SX17: 5 | SY17: 1 | TA17: 5 | TB17: 5 | TC17: 1 | TI17: 5 | TJ17: 5 | TK17: 1 | TM17: 5 | TO17: 1 | TR17: 2 | TS17: 1 | TV17: 5 | TW17: 1 | TZ17: 5 | UA17: 1 | UD17: 5 | UE17: 1 | UK17: 5 | UM17: 1 | UQ17: 1 | US17: 5 | UU17: 1 | UW17: 5 | UY17: 1 | VA17: 5 | VC17: 1 | VE17: 5 | VG17: 1 | VN17: 5 | VO17: 1 | VR17: 5 | VS17: 1 | VV17: 5 | VW17: 1 | VZ17: 5 | WA17: 1 | WD17: 5 | WE17: 1 | WI17: 1 | WP17: 6 | WQ17: 1 | WU17: 1 | WW17: 3 | WY17: 1 | XB17: 3 | XC17: 1 | XF17: 3 | XG17: 1 | XI17: 58 | XJ17: 74 | XK17: 27 | XL17: 0 | XN17: 4 | XO17: 1 | XV17: 5 | XW17: 1 | XZ17: 5 | YA17: 1 | YE17: 1 | YH17: 5 | YI17: 1 | YL17: 5 | YM17: 1 | YO17: 5 | YQ17: 1 | YX17: 2 | YY17: 1 | ZA17: 5 | ZC17: 1 | ZE17: 5 | ZG17: 1 | ZI17: 5 | ZK17: 1 | ZM17: 2 | ZO17: 1 | ZQ17: 5 | ZS17: 1 | ZY17: 5 | AAA17: 1 | AAC17: 3 | AAH17: 3 | AAI17: 1 | AAK17: 5 | AAM17: 1 | AAQ17: 1 | AAU17: 1 | ABC17: 1 | ABE17: 4 | ABG17: 1 | ABJ17: 4 | ABK17: 1 | ABO17: 1 | ABS17: 1 | ABV17: 2 | ABW17: 1 | ACC17: 44 | ACD17: 35 | ACE17: 24 | ACF17: 0 | ACG17: 2 | ACI17: 1 | ACL17: 5 | ACM17: 1 | ACO17: 5 | ACQ17: 1 | ACT17: 5 | ACU17: 1 | ACW17: 5 | ACY17: 1 | ADA17: 5 | ADC17: 1 | ADI17: 5 | ADK17: 1 | ADM17: 5 | ADO17: 1 | ADQ17: 5 | ADS17: 1 | ADU17: 5 | ADW17: 1 | ADY17: 5 | AEA17: 1 | AEC17: 5 | AEE17: 1 | AEK17: 5 | AEM17: 1 | AEQ17: 1 | AEU17: 1 | AEW17: 4 | AEY17: 1 | AFC17: 1 | AFG17: 1 | AFO17: 1 | AFS17: 1 | AFW17: 1 | AFY17: 4 | AGA17: 1 | AGE17: 1 | AGG17: 4 | AGI17: 1 | AGP17: 5 | AGQ17: 1 | AGT17: 4 | AGU17: 1 | AGW17: 4 | AGY17: 1 | AHA17: 68 | AHB17: 19 | AHC17: 27 | AHD17: 0 | AHF17: 4 | AHG17: 1 | AHJ17: 5 | AHK17: 1 | AHO17: 1 | AHV17: 5 | AHW17: 1 | AHZ17: 5 | AIA17: 1 | AID17: 2 | AIE17: 1 | AIH17: 5 | AII17: 1 | AIL17: 5 | AIM17: 1 | AIP17: 5 | AIQ17: 1 | AIX17: 4 | AIY17: 1 | AJC17: 1 | AJE17: 4 | AJG17: 1 | AJK17: 1 | AJN17: 5 | AJO17: 1 | AJQ17: 4 | AJS17: 1 | AJZ17: 3 | AKA17: 1 | AKC17: 4 | AKE17: 1 | AKH17: 4 | AKI17: 1 | AKK17: 4 | AKM17: 1 | AKO17: 4 | AKQ17: 1 | AKS17: 4 | AKU17: 1 | ALB17: 4 | ALC17: 1 | ALF17: 5 | ALG17: 1 | ALI17: 5 | ALK17: 1 | ALM17: 5 | ALO17: 1 | ALQ17: 5 | ALS17: 1 | ALU17: 5 | ALW17: 1 | ALY17: 44 | ALZ17: 61 | AMA17: 27 | AMB17: 0 | AMH17: 5 | AMI17: 1 | AML17: 5 | AMM17: 1 | AMP17: 4 | AMQ17: 1 | AMT17: 4 | AMU17: 1 | AMW17: 5 | AMY17: 1 | ANA17: 5 | ANC17: 1 | ANI17: 5 | ANK17: 1 | ANM17: 5 | ANO17: 1 | ANQ17: 5 | ANS17: 1 | ANU17: 5 | ANW17: 1 | ANY17: 5 | AOA17: 1 | AOE17: 1 | AOM17: 1 | AOO17: 5 | AOQ17: 1 | AOT17: 5 | AOU17: 1 | AOY17: 1 | APB17: 5 | APC17: 1 | APG17: 1 | APO17: 1 | APQ17: 5 | APS17: 1 | APV17: 5 | APW17: 1 | APY17: 5 | AQA17: 1 | AQE17: 1 | AQH17: 5 | AQI17: 1 | AQO17: 5 | AQQ17: 1 | AQS17: 55 | AQT17: 38 | AQU17: 25 | AQV17: 0 | AQW17: 4 | AQY17: 1 | ARA17: 4 | ARC17: 1 | ARE17: 3 | ARG17: 1 | ARI17: 3 | ARK17: 1 | ARM17: 3 | ARO17: 1 | ARU17: 3 | ARW17: 1 | ARY17: 3 | ASA17: 1 | ASC17: 3 | ASE17: 1 | ASI17: 1 | ASO17: 3 | ASQ17: 1 | ASW17: 3 | ASY17: 1 | ATC17: 1 | ATE17: 3 | ATG17: 1 | ATO17: 1 | ATS17: 1 | AUA17: 1 | AUC17: 3 | AUE17: 1 | AUG17: 3 | AUI17: 1 | AUM17: 1 | AUO17: 3 | AUQ17: 1 | AUU17: 1 | AVC17: 1 | AVG17: 1 | AVK17: 1 | AVQ17: 44 | AVR17: 0 | AVS17: 24 | AVT17: 0 | AVV17: 5 | AVW17: 1 | AVZ17: 5 | AWA17: 1 | AWH17: 5 | AWI17: 1 | AWM17: 1 | AWP17: 5 | AWQ17: 1 | AWS17: 2 | AWU17: 1 | AWW17: 3 | AWY17: 1 | AXB17: 5 | AXC17: 1 | AXJ17: 5 | AXK17: 1 | AXN17: 5 | AXO17: 1 | AXR17: 5 | AXS17: 1 | AXV17: 5 | AXW17: 1 | AXZ17: 5 | AYA17: 1 | AYD17: 3 | AYE17: 1 | AYK17: 5 | AYM17: 1 | AYO17: 5 | AYQ17: 1 | AYS17: 5 | AYU17: 1 | AYX17: 5 | AYY17: 1 | AZB17: 5 | AZC17: 1 | AZF17: 3 | AZG17: 1 | AZN17: 5 | AZO17: 1 | AZR17: 5 | AZS17: 1 | AZV17: 5 | AZW17: 1 | AZZ17: 5 | BAA17: 1 | BAD17: 5 | BAE17: 1 | BAH17: 5 | BAI17: 1 | BAK17: 20 | BAL17: 96 | BAM17: 26 | BAN17: 0 | BAU17: 3 | BAY17: 1 | BBC17: 1 | BBG17: 3 | BBK17: 3 | BBO17: 3 | BBW17: 3 | BCA17: 3 | BCC17: 5 | BCE17: 3 | BCI17: 3 | BCM17: 3 | BCQ17: 3 | BCW17: 3 | BCY17: 3 | BDB17: 3 | BDC17: 3 | BDE17: 2 | BDG17: 3 | BDK17: 3 | BDO17: 3 | BDR17: 3 | BDS17: 3 | BDZ17: 3 | BEA17: 3 | BEC17: 5 | BEE17: 3 | BEI17: 3 | BEM17: 3 | BEP17: 3 | BEQ17: 3 | BEU17: 3 | BFC17: 3 | BFG17: 3 | BFI17: 15 | BFJ17: 12 | BFK17: 74 | BFL17: 0 | BFM17: 746 | BFN17: 592 | BFO17: 385 | BFP17: 0 | BFQ17: 62.16666667 | BFR17: 53.81818182 | BFS17: 32.08333333 | BFT17: 0 | BFU17: 12 | BFV17: 11 | BFW17: 12 | BFX17: 0
A18: 4 | B18: BRIND503001TSBH00922 | C18: BRINDAVAN HOSPITAL | D18: OPP: RED CROSS BOLLD BANK, BEHIND DR. PRABHAKAR CHILDREN HOSPITAL, KHALEELWADI, NIZAMABAD - 503001. | E18: 50 | F18: 18.6707283 | G18: 78.1048481 | H18: Dr. NAVEEN BHASKER | I18: 9848678632 | J18: drnaveen81@gmail.com | K18: Private | L18: Bedded | M18: 5 | N18: 5 | O18: 2 | Q18: 5 | R18: 5 | S18: 2 | U18: 5 | V18: 5 | W18: 2 | Y18: 5 | Z18: 5 | AA18: 2 | AC18: 5 | AE18: 2 | AG18: 5 | AI18: 2 | AM18: 2 | AO18: 5 | AP18: 5 | AQ18: 2 | AS18: 5 | AT18: 5 | AU18: 2 | AW18: 5 | AX18: 5 | AY18: 2 | BA18: 5 | BB18: 5 | BC18: 2 | BE18: 5 | BF18: 2 | BG18: 2 | BI18: 5 | BJ18: 5 | BK18: 2 | BQ18: 5 | BR18: 2 | BS18: 2 | BU18: 5 | BV18: 5 | BW18: 2 | BY18: 5 | CA18: 2 | CC18: 5 | CE18: 2 | CG18: 5 | CI18: 3 | CJ18: 3 | CK18: 5 | CM18: 2 | CO18: 5 | CQ18: 2 | CS18: 5 | CU18: 2 | CW18: 5 | CX18: 5 | CY18: 2 | DA18: 5 | DB18: 2 | DC18: 2 | DE18: 5 | DF18: 5 | DG18: 2 | DI18: 5 | DJ18: 5 | DK18: 2 | DM18: 5 | DN18: 5 | DO18: 2 | DU18: 5 | DV18: 5 | DW18: 2 | DY18: 5 | DZ18: 5 | EA18: 2 | EC18: 5 | ED18: 5 | EE18: 2 | EG18: 140 | EH18: 91 | EI18: 59 | EJ18: 3 | EK18: 5 | EL18: 5 | EO18: 5 | EQ18: 1 | ES18: 5 | EU18: 1 | FA18: 5 | FB18: 5 | FC18: 1 | FE18: 5 | FF18: 5 | FG18: 1 | FI18: 5 | FJ18: 5 | FK18: 1 | FM18: 5 | FN18: 5 | FO18: 1 | FQ18: 5 | FS18: 1 | FU18: 5 | FV18: 5 | FW18: 1 | GC18: 5 | GE18: 1 | GI18: 1 | GK18: 5 | GL18: 5 | GM18: 1 | GO18: 5 | GQ18: 1 | GU18: 1 | GW18: 5 | GX18: 5 | GY18: 1 | HE18: 5 | HF18: 5 | HG18: 1 | HI18: 5 | HJ18: 5 | HK18: 1 | HM18: 5 | HN18: 5 | HO18: 1 | HQ18: 5 | HR18: 5 | HS18: 1 | HV18: 5 | HW18: 1 | HY18: 5 | HZ18: 5 | IA18: 1 | IC18: 5 | ID18: 5 | IE18: 1 | IH18: 10 | II18: 1 | IK18: 5 | IL18: 5 | IM18: 1 | IO18: 5 | IP18: 5 | IQ18: 1 | IS18: 105 | IT18: 95 | IU18: 24 | IV18: 0 | IW18: 5 | IX18: 5 | IY18: 1 | JA18: 5 | JB18: 5 | JC18: 1 | JK18: 1 | JM18: 5 | JN18: 5 | JO18: 1 | JQ18: 5 | JS18: 1 | JW18: 1 | KA18: 1 | KE18: 1 | KK18: 5 | KM18: 1 | KO18: 10 | KQ18: 1 | KU18: 1 | KW18: 5 | KX18: 5 | KY18: 1 | LA18: 5 | LB18: 5 | LC18: 1 | LE18: 5 | LF18: 5 | LG18: 1 | LM18: 5 | LN18: 5 | LO18: 1 | LS18: 1 | LU18: 5 | LV18: 5 | LW18: 1 | LY18: 5 | LZ18: 5 | MA18: 1 | MC18: 5 | MD18: 5 | ME18: 1 | MG18: 5 | MH18: 5 | MI18: 1 | MP18: 10 | MQ18: 1 | MW18: 5 | MX18: 5 | MY18: 1 | NC18: 1 | NG18: 1 | NK18: 1 | NQ18: 80 | NR18: 70 | NS18: 25 | NT18: 0 | NW18: 1 | OA18: 1 | OE18: 1 | OG18: 5 | OH18: 5 | OI18: 1 | OK18: 5 | OL18: 5 | OM18: 1 | OO18: 5 | OP18: 5 | OQ18: 1 | OW18: 5 | OY18: 1 | PG18: 1 | PI18: 5 | PJ18: 5 | PK18: 1 | PN18: 5 | PO18: 1 | PQ18: 5 | QA18: 1 | QE18: 1 | QG18: 5 | QH18: 5 | QI18: 1 | QK18: 5 | QL18: 5 | QM18: 1 | QO18: 5 | QP18: 5 | QQ18: 1 | QS18: 5 | QT18: 5 | QU18: 1 | RA18: 5 | RB18: 5 | RC18: 1 | RE18: 5 | RF18: 5 | RG18: 1 | RK18: 1 | RO18: 1 | RQ18: 5 | RR18: 5 | RS18: 1 | RU18: 5 | RV18: 5 | RW18: 1 | SC18: 5 | SD18: 5 | SE18: 1 | SI18: 1 | SK18: 75 | SL18: 70 | SM18: 24 | SN18: 0 | SQ18: 1 | SS18: 5 | ST18: 5 | SU18: 1 | SY18: 1 | TC18: 1 | TJ18: 5 | TK18: 1 | TN18: 5 | TO18: 1 | TR18: 5 | TS18: 1 | TW18: 1 | TZ18: 5 | UA18: 1 | UC18: 5 | UE18: 1 | UM18: 1 | UQ18: 1 | UT18: 5 | UU18: 1 | UX18: 5 | UY18: 1 | VB18: 5 | VC18: 1 | VF18: 5 | VG18: 1 | VN18: 5 | VO18: 1 | VR18: 5 | VS18: 1 | VW18: 1 | VZ18: 5 | WA18: 1 | WC18: 5 | WE18: 1 | WH18: 5 | WI18: 1 | WO18: 3 | WQ18: 1 | WT18: 5 | WU18: 1 | WW18: 4 | WY18: 1 | XA18: 5 | XB18: 6 | XC18: 1 | XG18: 1 | XI18: 27 | XJ18: 76 | XK18: 27 | XL18: 0 | XO18: 1 | XV18: 5 | XW18: 1 | XY18: 5 | YA18: 1 | YD18: 5 | YE18: 1 | YH18: 5 | YI18: 1 | YL18: 5 | YM18: 1 | YP18: 5 | YQ18: 1 | YY18: 1 | ZB18: 5 | ZC18: 1 | ZF18: 5 | ZG18: 1 | ZI18: 5 | ZK18: 1 | ZM18: 5 | ZO18: 1 | ZQ18: 5 | ZS18: 1 | ZY18: 5 | AAA18: 1 | AAC18: 5 | AAG18: 5 | AAI18: 1 | AAM18: 1 | AAO18: 6 | AAQ18: 1 | AAS18: 6 | AAU18: 1 | ABC18: 1 | ABF18: 6 | ABG18: 1 | ABK18: 1 | ABO18: 1 | ABS18: 1 | ABW18: 1 | ACC18: 47 | ACD18: 41 | ACE18: 24 | ACF18: 0 | ACH18: 2 | ACI18: 1 | ACL18: 5 | ACM18: 1 | ACP18: 5 | ACQ18: 1 | ACT18: 30 | ACU18: 1 | ACX18: 5 | ACY18: 1 | ADB18: 5 | ADC18: 1 | ADK18: 1 | ADO18: 1 | ADR18: 5 | ADS18: 1 | ADV18: 5 | ADW18: 1 | ADZ18: 5 | AEA18: 1 | AED18: 5 | AEE18: 1 | AEL18: 5 | AEM18: 1 | AEP18: 6 | AEQ18: 1 | AEU18: 1 | AEY18: 1 | AFC18: 1 | AFG18: 1 | AFO18: 1 | AFS18: 1 | AFV18: 6 | AFW18: 1 | AFY18: 7 | AGA18: 1 | AGD18: 5 | AGE18: 1 | AGG18: 6 | AGI18: 1 | AGP18: 5 | AGQ18: 1 | AGT18: 6 | AGU18: 1 | AGW18: 6 | AGY18: 1 | AHA18: 19 | AHB18: 105 | AHC18: 27 | AHD18: 0 | AHF18: 6 | AHG18: 1 | AHI18: 5 | AHK18: 1 | AHN18: 5 | AHO18: 1 | AHV18: 5 | AHW18: 1 | AHY18: 5 | AIA18: 1 | AID18: 5 | AIE18: 1 | AIH18: 5 | AII18: 1 | AIL18: 5 | AIM18: 1 | AIP18: 5 | AIQ18: 1 | AIX18: 6 | AIY18: 1 | AJA18: 6 | AJC18: 1 | AJE18: 6 | AJG18: 1 | AJJ18: 6 | AJK18: 1 | AJN18: 6 | AJO18: 1 | AJR18: 6 | AJS18: 1 | AJZ18: 4 | AKA18: 1 | AKD18: 6 | AKE18: 1 | AKH18: 6 | AKI18: 1 | AKK18: 6 | AKM18: 1 | AKO18: 6 | AKQ18: 1 | AKT18: 6 | AKU18: 1 | ALB18: 6 | ALC18: 1 | ALF18: 5 | ALG18: 1 | ALJ18: 5 | ALK18: 1 | ALN18: 5 | ALO18: 1 | ALR18: 5 | ALS18: 1 | ALV18: 5 | ALW18: 1 | ALY18: 34 | ALZ18: 113 | AMA18: 27 | AMB18: 0 | AMG18: 5 | AMI18: 1 | AMK18: 5 | AMM18: 1 | AMO18: 5 | AMQ18: 1 | AMS18: 5 | AMU18: 1 | AMX18: 5 | AMY18: 1 | ANB18: 5 | ANC18: 1 | ANJ18: 5 | ANK18: 1 | ANN18: 5 | ANO18: 1 | ANR18: 5 | ANS18: 1 | ANV18: 5 | ANW18: 1 | ANZ18: 5 | AOA18: 1 | AOC18: 2 | AOE18: 1 | AOL18: 2 | AOM18: 1 | AOP18: 2 | AOQ18: 1 | AOU18: 1 | AOY18: 1 | APB18: 5 | APC18: 1 | APF18: 2 | APG18: 1 | APO18: 1 | APR18: 5 | APS18: 1 | APV18: 5 | APW18: 1 | APZ18: 5 | AQA18: 1 | AQD18: 5 | AQE18: 1 | AQH18: 2 | AQI18: 1 | AQP18: 2 | AQQ18: 1 | AQS18: 22 | AQT18: 70 | AQU18: 25 | AQV18: 0 | AQX18: 5 | AQY18: 1 | ARB18: 5 | ARC18: 1 | ARF18: 5 | ARG18: 1 | ARI18: 5 | ARK18: 1 | ARM18: 5 | ARO18: 1 | ARV18: 5 | ARW18: 1 | ASA18: 1 | ASC18: 5 | ASE18: 1 | ASG18: 5 | ASI18: 1 | ASP18: 5 | ASQ18: 1 | ASW18: 5 | ASY18: 1 | ATA18: 5 | ATC18: 1 | ATF18: 5 | ATG18: 1 | ATM18: 6 | ATO18: 1 | ATQ18: 5 | ATS18: 1 | ATY18: 5 | AUA18: 1 | AUC18: 5 | AUE18: 1 | AUG18: 6 | AUI18: 1 | AUK18: 5 | AUM18: 1 | AUO18: 5 | AUQ18: 1 | AUS18: 5 | AUU18: 1 | AVA18: 6 | AVC18: 1 | AVF18: 6 | AVG18: 1 | AVJ18: 6 | AVK18: 1 | AVQ18: 78 | AVR18: 42 | AVS18: 24 | AVT18: 0 | AVU18: 5 | AVW18: 1 | AWA18: 1 | AWH18: 5 | AWI18: 1 | AWL18: 5 | AWM18: 1 | AWP18: 5 | AWQ18: 1 | AWT18: 5 | AWU18: 1 | AWX18: 5 | AWY18: 1 | AXA18: 5 | AXC18: 1 | AXJ18: 5 | AXK18: 1 | AXM18: 5 | AXO18: 1 | AXQ18: 5 | AXS18: 1 | AXU18: 5 | AXW18: 1 | AXY18: 5 | AYA18: 1 | AYC18: 2 | AYE18: 1 | AYL18: 5 | AYM18: 1 | AYP18: 5 | AYQ18: 1 | AYT18: 5 | AYU18: 1 | AYW18: 5 | AYY18: 1 | AZA18: 5 | AZC18: 1 | AZF18: 5 | AZG18: 1 | AZM18: 5 | AZO18: 1 | AZQ18: 2 | AZR18: 3 | AZS18: 1 | AZU18: 5 | AZW18: 1 | AZY18: 5 | BAA18: 1 | BAC18: 5 | BAE18: 1 | BAG18: 3 | BAH18: 2 | BAI18: 1 | BAK18: 67 | BAL18: 55 | BAM18: 26 | BAN18: 0 | BAT18: 5 | BAX18: 5 | BAY18: 1 | BBB18: 5 | BBC18: 1 | BBG18: 2 | BBJ18: 5 | BBK18: 2 | BBN18: 6 | BBO18: 2 | BBV18: 6 | BBW18: 2 | BBZ18: 6 | BCA18: 2 | BCD18: 5 | BCE18: 2 | BCH18: 6 | BCI18: 2 | BCL18: 5 | BCM18: 2 | BCP18: 5 | BCQ18: 2 | BCX18: 4 | BCY18: 2 | BDA18: 5 | BDC18: 2 | BDF18: 6 | BDG18: 2 | BDJ18: 5 | BDK18: 2 | BDM18: 5 | BDO18: 2 | BDS18: 2 | BEA18: 2 | BED18: 5 | BEE18: 2 | BEI18: 2 | BEL18: 6 | BEM18: 2 | BEQ18: 2 | BEU18: 2 | BFB18: 6 | BFC18: 2 | BFE18: 5 | BFG18: 2 | BFI18: 15 | BFJ18: 91 | BFK18: 48 | BFL18: 0 | BFM18: 709 | BFN18: 919 | BFO18: 360 | BFP18: 3 | BFQ18: 59.08333333 | BFR18: 76.58333333 | BFS18: 30 | BFT18: 3 | BFU18: 12 | BFV18: 12 | BFW18: 12 | BFX18: 1
A19: 5 | B19: CITYM503001TSBH16522 | C19: CITY MULTISPECIALITY HOSPITAL | D19: H.No.7-11-723/3, KHOJA COLONY, BODHAN ROAD, NIZAMABAD | E19: 50 | H19: Dr. MOHAMMAD ABDUL HAMEED | I19: 9848518771 | J19: citynzb247@gmail.com | K19: Private | L19: Bedded | M19: 5 | N19: 5 | O19: 2 | Q19: 5 | R19: 3 | S19: 2 | U19: 5 | V19: 2 | W19: 2 | Y19: 5 | Z19: 2 | AA19: 2 | AC19: 5 | AD19: 2 | AE19: 2 | AG19: 5 | AH19: 2 | AI19: 2 | AK19: 5 | AL19: 2 | AM19: 2 | AO19: 5 | AP19: 2 | AQ19: 2 | AS19: 5 | AT19: 2 | AU19: 2 | AW19: 5 | AX19: 2 | AY19: 2 | BA19: 5 | BB19: 2 | BC19: 2 | BE19: 5 | BF19: 2 | BG19: 2 | BI19: 5 | BJ19: 2 | BK19: 2 | BQ19: 5 | BR19: 2 | BS19: 2 | BU19: 5 | BV19: 2 | BW19: 2 | BY19: 5 | BZ19: 2 | CA19: 2 | CC19: 5 | CD19: 2 | CE19: 2 | CG19: 5 | CH19: 2 | CI19: 2 | CK19: 5 | CL19: 2 | CM19: 2 | CO19: 5 | CP19: 2 | CQ19: 2 | CS19: 5 | CT19: 2 | CU19: 2 | CW19: 5 | CX19: 2 | CY19: 2 | DA19: 5 | DB19: 2 | DC19: 2 | DE19: 5 | DF19: 2 | DG19: 2 | DI19: 5 | DJ19: 2 | DK19: 2 | DM19: 5 | DN19: 2 | DO19: 2 | DU19: 5 | DV19: 2 | DW19: 2 | DY19: 5 | DZ19: 2 | EA19: 2 | EC19: 5 | ED19: 2 | EE19: 2 | EG19: =M19+Q19+U19+Y19+AC19+AG19+AK19+AO19+AS19+AW19+BA19+BE19+BI19+BM19+BQ19+BU19+BY19+CC19+CG19+CK19+CO19+CS19+CW19+DA19+DE19+DI19+DM19+DQ19+DU19+DY19+EC19 -> 145 | EH19: =N19+R19+V19+Z19+AD19+AH19+AL19+AP19+AT19+AX19+BB19+BF19+BJ19+BN19+BR19+BV19+BZ19+CD19+CH19+CL19+CP19+CT19+CX19+DB19+DF19+DJ19+DN19+DR19+DV19+DZ19+ED19 -> 62 | EI19: =O19+S19+W19+AA19+AE19+AI19+AM19+AQ19+AU19+AY19+BC19+BG19+BK19+BO19+BS19+BW19+CA19+CE19+CI19+CM19+CQ19+CU19+CY19+DC19+DG19+DK19+DO19+DS19+DW19+EA19+EE19 -> 58 | EJ19: =P19+T19+X19+AB19+AF19+AJ19+AN19+AR19+AV19+AZ19+BD19+BH19+BL19+BP19+BT19+BX19+CB19+CF19+CJ19+CN19+CR19+CV19+CZ19+DD19+DH19+DL19+DP19+DT19+DX19+EB19+EF19 -> 0 | EK19: 5 | EO19: 5 | EQ19: 1 | ES19: 5 | EU19: 1 | FA19: 5 | FC19: 1 | FE19: 5 | FG19: 1 | FI19: 5 | FK19: 1 | FM19: 5 | FO19: 1 | FQ19: 5 | FS19: 1 | FU19: 5 | FW19: 1 | GC19: 5 | GE19: 1 | GI19: 1 | GM19: 1 | GQ19: 1 | GU19: 1 | GY19: 1 | HG19: 1 | HK19: 1 | HO19: 1 | HS19: 1 | HW19: 1 | IA19: 1 | IE19: 1 | II19: 1 | IM19: 1 | IP19: 2 | IQ19: 1 | IS19: =EK19+EO19+ES19+EW19+FA19+FE19+FI19+FM19+FQ19+FU19+FY19+GC19+GG19+GK19+GO19+GS19+GW19+HA19+HE19+HI19+HM19+HQ19+HU19+HY19+IC19+IG19+IK19+IO19 -> 50 | IT19: =EL19+EP19+ET19+EX19+FB19+FF19+FJ19+FN19+FR19+FV19+FZ19+GD19+GH19+GL19+GP19+GT19+GX19+HB19+HF19+HJ19+HN19+HR19+HV19+HZ19+ID19+IH19+IL19+IP19 -> 2 | IU19: =EM19+EQ19+EU19+EY19+FC19+FG19+FK19+FO19+FS19+FW19+GA19+GE19+GI19+GM19+GQ19+GU19+GY19+HC19+HG19+HK19+HO19+HS19+HW19+IA19+IE19+II19+IM19+IQ19 -> 24 | IV19: =EN19+ER19+EV19+EZ19+FD19+FH19+FL19+FP19+FT19+FX19+GB19+GF19+GJ19+GN19+GR19+GV19+GZ19+HD19+HH19+HL19+HP19+HT19+HX19+IB19+IF19+IJ19+IN19+IR19 -> 0 | IX19: 1 | IY19: 1 | JC19: 1 | JJ19: 6 | JK19: 1 | JO19: 1 | JR19: 5 | JS19: 1 | JW19: 1 | JZ19: 3 | KA19: 1 | KE19: 1 | KM19: 1 | KQ19: 1 | KU19: 1 | KY19: 1 | LB19: 13 | LC19: 1 | LF19: 4 | LG19: 1 | LO19: 1 | LS19: 1 | LW19: 1 | LY19: 5 | MA19: 1 | ME19: 1 | MI19: 1 | MQ19: 1 | MX19: 1 | MY19: 1 | NC19: 1 | NF19: 1 | NG19: 1 | NK19: 1 | NQ19: =IW19+JA19+JE19+JI19+JM19+JQ19+JU19+JY19+KC19+KG19+KK19+KO19+KS19+KW19+LA19+LE19+LI19+LM19+LQ19+LU19+LY19+MC19+MG19+MK19+MO19+MS19+MW19+NA19+NE19+NI19+NM19 -> 5 | NR19: =IX19+JB19+JF19+JJ19+JN19+JR19+JV19+JZ19+KD19+KH19+KL19+KP19+KT19+KX19+LB19+LF19+LJ19+LN19+LR19+LV19+LZ19+MD19+MH19+ML19+MP19+MT19+MX19+NB19+NF19+NJ19+NN19 -> 34 | NS19: =IY19+JC19+JG19+JK19+JO19+JS19+JW19+KA19+KE19+KI19+KM19+KQ19+KU19+KY19+LC19+LG19+LK19+LO19+LS19+LW19+MA19+ME19+MI19+MM19+MQ19+MU19+MY19+NC19+NG19+NK19+NO19 -> 25 | NT19: =IZ19+JD19+JH19+JL19+JP19+JT19+JX19+KB19+KF19+KJ19+KN19+KR19+KV19+KZ19+LD19+LH19+LL19+LP19+LT19+LX19+MB19+MF19+MJ19+MN19+MR19+MV19+MZ19+ND19+NH19+NL19+NP19 -> 0 | NW19: 1 | OA19: 1 | OE19: 1 | OI19: 1 | OL19: 2 | OM19: 1 | OQ19: 1 | OY19: 1 | PG19: 1 | PI19: 3 | PK19: 1 | PO19: 1 | PQ19: 2 | QA19: 1 | QE19: 1 | QI19: 1 | QM19: 1 | QQ19: 1 | QU19: 1 | RB19: 2 | RC19: 1 | RG19: 1 | RJ19: 5 | RK19: 1 | RO19: 1 | RR19: 2 | RS19: 1 | RV19: 3 | RW19: 1 | SE19: 1 | SI19: 1 | SK19: =NU19+NY19+OC19+OG19+OK19+OO19+OS19+OW19+PA19+PE19+PI19+PM19+PQ19+PU19+PY19+QC19+QG19+QK19+QO19+QS19+QW19+RA19+RE19+RI19+RM19+RQ19+RU19+RY19+SC19+SG19 -> 5 | SL19: =NV19+NZ19+OD19+OH19+OL19+OP19+OT19+OX19+PB19+PF19+PJ19+PN19+PR19+PV19+PZ19+QD19+QH19+QL19+QP19+QT19+QX19+RB19+RF19+RJ19+RN19+RR19+RV19+RZ19+SD19+SH19 -> 14 | SM19: =NW19+OA19+OE19+OI19+OM19+OQ19+OU19+OY19+PC19+PG19+PK19+PO19+PS19+PW19+QA19+QE19+QI19+QM19+QQ19+QU19+QY19+RC19+RG19+RK19+RO19+RS19+RW19+SA19+SE19+SI19 -> 24 | SN19: =NX19+OB19+OF19+OJ19+ON19+OR19+OV19+OZ19+PD19+PH19+PL19+PP19+PT19+PX19+QB19+QF19+QJ19+QN19+QR19+QV19+QZ19+RD19+RH19+RL19+RP19+RT19+RX19+SB19+SF19+SJ19 -> 0 | SQ19: 1 | SU19: 1 | SY19: 1 | TC19: 1 | TI19: 4 | TK19: 1 | TO19: 1 | TQ19: 5 | TS19: 1 | TW19: 1 | UA19: 1 | UC19: 2 | UE19: 1 | UK19: 5 | UM19: 1 | UQ19: 1 | UU19: 1 | UY19: 1 | VA19: 5 | VC19: 1 | VG19: 1 | VO19: 1 | VQ19: 2 | VS19: 1 | VW19: 1 | WA19: 1 | WE19: 1 | WH19: 6 | WI19: 1 | WO19: 1 | WQ19: 1 | WU19: 1 | WW19: 2 | WY19: 1 | XC19: 1 | XF19: 6 | XG19: 1 | XI19: =SO19+SS19+SW19+TA19+TE19+TI19+TM19+TQ19+TU19+TY19+UC19+UG19+UK19+UO19+US19+UW19+VA19+VE19+VI19+VM19+VQ19+VU19+VY19+WC19+WG19+WK19+WO19+WS19+WW19+XA19+XE19 -> 26 | XJ19: =SP19+ST19+SX19+TB19+TF19+TJ19+TN19+TR19+TV19+TZ19+UD19+UH19+UL19+UP19+UT19+UX19+VB19+VF19+VJ19+VN19+VR19+VV19+VZ19+WD19+WH19+WL19+WP19+WT19+WX19+XB19+XF19 -> 12 | XK19: =SQ19+SU19+SY19+TC19+TG19+TK19+TO19+TS19+TW19+UA19+UE19+UI19+UM19+UQ19+UU19+UY19+VC19+VG19+VK19+VO19+VS19+VW19+WA19+WE19+WI19+WM19+WQ19+WU19+WY19+XC19+XG19 -> 27 | XL19: =SR19+SV19+SZ19+TD19+TH19+TL19+TP19+TT19+TX19+UB19+UF19+UJ19+UN19+UR19+UV19+UZ19+VD19+VH19+VL19+VP19+VT19+VX19+WB19+WF19+WJ19+WN19+WR19+WV19+WZ19+XD19+XH19 -> 0 | XM19: 1 | XO19: 1 | XW19: 1 | YA19: 1 | YC19: 1 | YE19: 1 | YI19: 1 | YK19: 6 | YM19: 1 | YO19: 5 | YQ19: 1 | YW19: 8 | YY19: 1 | ZC19: 1 | ZE19: 2 | ZG19: 1 | ZK19: 1 | ZO19: 1 | ZS19: 1 | ZY19: 3 | AAA19: 1 | AAG19: 2 | AAI19: 1 | AAM19: 1 | AAO19: 2 | AAQ19: 1 | AAU19: 1 | ABA19: 2 | ABC19: 1 | ABG19: 1 | ABI19: 2 | ABK19: 1 | ABO19: 1 | ABQ19: 2 | ABS19: 1 | ABV19: 4 | ABW19: 1 | ACC19: =XM19+XQ19+XU19+XY19+YC19+YG19+YK19+YO19+YS19+YW19+ZA19+ZE19+ZI19+ZM19+ZQ19+ZU19+ZY19+AAC19+AAG19+AAK19+AAO19+AAS19+AAW19+ABA19+ABE19+ABI19+ABM19+ABQ19+ABU19+ABY19 -> 36 | ACD19: =XN19+XR19+XV19+XZ19+YD19+YH19+YL19+YP19+YT19+YX19+ZB19+ZF19+ZJ19+ZN19+ZR19+ZV19+ZZ19+AAD19+AAH19+AAL19+AAP19+AAT19+AAX19+ABB19+ABF19+ABJ19+ABN19+ABR19+ABV19+ABZ19 -> 4 | ACE19: =XO19+XS19+XW19+YA19+YE19+YI19+YM19+YQ19+YU19+YY19+ZC19+ZG19+ZK19+ZO19+ZS19+ZW19+AAA19+AAE19+AAI19+AAM19+AAQ19+AAU19+AAY19+ABC19+ABG19+ABK19+ABO19+ABS19+ABW19+ACA19 -> 24 | ACF19: =XP19+XT19+XX19+YB19+YF19+YJ19+YN19+YR19+YV19+YZ19+ZD19+ZH19+ZL19+ZP19+ZT19+ZX19+AAB19+AAF19+AAJ19+AAN19+AAR19+AAV19+AAZ19+ABD19+ABH19+ABL19+ABP19+ABT19+ABX19+ACB19 -> 0 | ACI19: 1 | ACM19: 1 | ACP19: 2 | ACQ19: 1 | ACU19: 1 | ACY19: 1 | ADA19: 2 | ADB19: 2 | ADC19: 1 | ADI19: 3 | ADJ19: 4 | ADK19: 1 | ADO19: 1 | ADS19: 1 | ADW19: 1 | AEA19: 1 | AEC19: 5 | AEE19: 1 | AEK19: 5 | AEM19: 1 | AEQ19: 1 | AES19: 3 | AET19: 4 | AEU19: 1 | AEY19: 1 | AFB19: 1 | AFC19: 1 | AFF19: 8 | AFG19: 1 | AFO19: 1 | AFS19: 1 | AFU19: 15 | AFW19: 1 | AGA19: 1 | AGD19: 2 | AGE19: 1 | AGG19: 6 | AGH19: 5 | AGI19: 1 | AGO19: 5 | AGP19: 8 | AGQ19: 1 | AGU19: 1 | AGX19: 2 | AGY19: 1 | AHA19: =ACG19+ACK19+ACO19+ACS19+ACW19+ADA19+ADE19+ADI19+ADM19+ADQ19+ADU19+ADY19+AEC19+AEG19+AEK19+AEO19+AES19+AEW19+AFA19+AFE19+AFI19+AFM19+AFQ19+AFU19+AFY19+AGC19+AGG19+AGK19+AGO19+AGS19+AGW19 -> 44 | AHB19: =ACH19+ACL19+ACP19+ACT19+ACX19+ADB19+ADF19+ADJ19+ADN19+ADR19+ADV19+ADZ19+AED19+AEH19+AEL19+AEP19+AET19+AEX19+AFB19+AFF19+AFJ19+AFN19+AFR19+AFV19+AFZ19+AGD19+AGH19+AGL19+AGP19+AGT19+AGX19 -> 38 | AHC19: =ACI19+ACM19+ACQ19+ACU19+ACY19+ADC19+ADG19+ADK19+ADO19+ADS19+ADW19+AEA19+AEE19+AEI19+AEM19+AEQ19+AEU19+AEY19+AFC19+AFG19+AFK19+AFO19+AFS19+AFW19+AGA19+AGE19+AGI19+AGM19+AGQ19+AGU19+AGY19 -> 27 | AHD19: =ACJ19+ACN19+ACR19+ACV19+ACZ19+ADD19+ADH19+ADL19+ADP19+ADT19+ADX19+AEB19+AEF19+AEJ19+AEN19+AER19+AEV19+AEZ19+AFD19+AFH19+AFL19+AFP19+AFT19+AFX19+AGB19+AGF19+AGJ19+AGN19+AGR19+AGV19+AGZ19 -> 0 | AHG19: 1 | AHI19: 8 | AHJ19: 2 | AHK19: 1 | AHN19: 3 | AHO19: 1 | AHV19: 6 | AHW19: 1 | AIA19: 1 | AIC19: 1 | AIE19: 1 | AII19: 1 | AIK19: 5 | AIL19: 2 | AIM19: 1 | AIO19: 1 | AIP19: 3 | AIQ19: 1 | AIX19: 10 | AIY19: 1 | AJC19: 1 | AJF19: 15 | AJG19: 1 | AJK19: 1 | AJN19: 3 | AJO19: 1 | AJR19: 2 | AJS19: 1 | AJZ19: 8 | AKA19: 1 | AKD19: 2 | AKE19: 1 | AKH19: 5 | AKI19: 1 | AKM19: 1 | AKQ19: 1 | AKT19: 5 | AKU19: 1 | ALB19: 6 | ALC19: 1 | ALG19: 1 | ALJ19: 3 | ALK19: 1 | ALO19: 1 | ALR19: 2 | ALS19: 1 | ALV19: 5 | ALW19: 1 | ALY19: =AHE19+AHI19+AHM19+AHQ19+AHU19+AHY19+AIC19+AIG19+AIK19+AIO19+AIS19+AIW19+AJA19+AJE19+AJI19+AJM19+AJQ19+AJU19+AJY19+AKC19+AKG19+AKK19+AKO19+AKS19+AKW19+ALA19+ALE19+ALI19+ALM19+ALQ19+ALU19 -> 15 | ALZ19: =AHF19+AHJ19+AHN19+AHR19+AHV19+AHZ19+AID19+AIH19+AIL19+AIP19+AIT19+AIX19+AJB19+AJF19+AJJ19+AJN19+AJR19+AJV19+AJZ19+AKD19+AKH19+AKL19+AKP19+AKT19+AKX19+ALB19+ALF19+ALJ19+ALN19+ALR19+ALV19 -> 82 | AMA19: =AHG19+AHK19+AHO19+AHS19+AHW19+AIA19+AIE19+AII19+AIM19+AIQ19+AIU19+AIY19+AJC19+AJG19+AJK19+AJO19+AJS19+AJW19+AKA19+AKE19+AKI19+AKM19+AKQ19+AKU19+AKY19+ALC19+ALG19+ALK19+ALO19+ALS19+ALW19 -> 27 | AMB19: =AHH19+AHL19+AHP19+AHT19+AHX19+AIB19+AIF19+AIJ19+AIN19+AIR19+AIV19+AIZ19+AJD19+AJH19+AJL19+AJP19+AJT19+AJX19+AKB19+AKF19+AKJ19+AKN19+AKR19+AKV19+AKZ19+ALD19+ALH19+ALL19+ALP19+ALT19+ALX19 -> 0 | AMH19: 4 | AMI19: 1 | AMM19: 1 | AMP19: 6 | AMQ19: 1 | AMU19: 1 | AMX19: 12 | AMY19: 1 | ANB19: 4 | ANC19: 1 | ANJ19: 5 | ANK19: 1 | ANN19: 4 | ANO19: 1 | ANR19: 8 | ANS19: 1 | ANW19: 1 | ANZ19: 5 | AOA19: 1 | AOD19: 6 | AOE19: 1 | AOL19: 6 | AOM19: 1 | AOQ19: 1 | AOT19: 2 | AOU19: 1 | AOY19: 1 | APB19: 8 | APC19: 1 | APF19: 6 | APG19: 1 | APN19: 6 | APO19: 1 | APR19: 2 | APS19: 1 | APV19: 8 | APW19: 1 | APZ19: 5 | AQA19: 1 | AQD19: 8 | AQE19: 1 | AQH19: 6 | AQI19: 1 | AQP19: 2 | AQQ19: 1 | AQS19: =AMC19+AMG19+AMK19+AMO19+AMS19+AMW19+ANA19+ANE19+ANI19+ANM19+ANQ19+ANU19+ANY19+AOC19+AOG19+AOK19+AOO19+AOS19+AOW19+APA19+APE19+API19+APM19+APQ19+APU19+APY19+AQC19+AQG19+AQK19+AQO19 -> 0 | AQT19: =AMD19+AMH19+AML19+AMP19+AMT19+AMX19+ANB19+ANF19+ANJ19+ANN19+ANR19+ANV19+ANZ19+AOD19+AOH19+AOL19+AOP19+AOT19+AOX19+APB19+APF19+APJ19+APN19+APR19+APV19+APZ19+AQD19+AQH19+AQL19+AQP19 -> 113 | AQU19: =AME19+AMI19+AMM19+AMQ19+AMU19+AMY19+ANC19+ANG19+ANK19+ANO19+ANS19+ANW19+AOA19+AOE19+AOI19+AOM19+AOQ19+AOU19+AOY19+APC19+APG19+APK19+APO19+APS19+APW19+AQA19+AQE19+AQI19+AQM19+AQQ19 -> 25 | AQV19: =AMF19+AMJ19+AMN19+AMR19+AMV19+AMZ19+AND19+ANH19+ANL19+ANP19+ANT19+ANX19+AOB19+AOF19+AOJ19+AON19+AOR19+AOV19+AOZ19+APD19+APH19+APL19+APP19+APT19+APX19+AQB19+AQF19+AQJ19+AQN19+AQR19 -> 0 | AQY19: 1 | ARB19: 6 | ARC19: 1 | ARF19: 6 | ARG19: 1 | ARJ19: 5 | ARK19: 1 | ARN19: 8 | ARO19: 1 | ARV19: 3 | ARW19: 1 | ASA19: 1 | ASD19: 15 | ASE19: 1 | ASH19: 4 | ASI19: 1 | ASP19: 6 | ASQ19: 1 | ASX19: 6 | ASY19: 1 | ATC19: 1 | ATF19: 2 | ATG19: 1 | ATM19: 1 | ATO19: 1 | ATR19: 6 | ATS19: 1 | AUA19: 1 | AUE19: 1 | AUH19: 6 | AUI19: 1 | AUK19: 4 | AUM19: 1 | AUQ19: 1 | AUU19: 1 | AVC19: 1 | AVE19: 3 | AVG19: 1 | AVK19: 1 | AVQ19: =AQW19+ARA19+ARE19+ARI19+ARM19+ARQ19+ARU19+ARY19+ASC19+ASG19+ASK19+ASO19+ASS19+ASW19+ATA19+ATE19+ATI19+ATM19+ATQ19+ATU19+ATY19+AUC19+AUG19+AUK19+AUO19+AUS19+AUW19+AVA19+AVE19+AVI19+AVM19 -> 8 | AVR19: =AQX19+ARB19+ARF19+ARJ19+ARN19+ARR19+ARV19+ARZ19+ASD19+ASH19+ASL19+ASP19+AST19+ASX19+ATB19+ATF19+ATJ19+ATN19+ATR19+ATV19+ATZ19+AUD19+AUH19+AUL19+AUP19+AUT19+AUX19+AVB19+AVF19+AVJ19+AVN19 -> 73 | AVS19: =AQY19+ARC19+ARG19+ARK19+ARO19+ARS19+ARW19+ASA19+ASE19+ASI19+ASM19+ASQ19+ASU19+ASY19+ATC19+ATG19+ATK19+ATO19+ATS19+ATW19+AUA19+AUE19+AUI19+AUM19+AUQ19+AUU19+AUY19+AVC19+AVG19+AVK19+AVO19 -> 24 | AVT19: =AQZ19+ARD19+ARH19+ARL19+ARP19+ART19+ARX19+ASB19+ASF19+ASJ19+ASN19+ASR19+ASV19+ASZ19+ATD19+ATH19+ATL19+ATP19+ATT19+ATX19+AUB19+AUF19+AUJ19+AUN19+AUR19+AUV19+AUZ19+AVD19+AVH19+AVL19+AVP19 -> 0 | AVW19: 1 | AWA19: 1 | AWI19: 1 | AWM19: 1 | AWQ19: 1 | AWS19: 2 | AWU19: 1 | AWW19: 2 | AWY19: 1 | AXC19: 1 | AXK19: 1 | AXN19: 5 | AXO19: 1 | AXR19: 5 | AXS19: 1 | AXU19: 5 | AXW19: 1 | AXY19: 2 | AYA19: 1 | AYE19: 1 | AYM19: 1 | AYQ19: 1 | AYU19: 1 | AYX19: 6 | AYY19: 1 | AZC19: 1 | AZG19: 1 | AZO19: 1 | AZQ19: 2 | AZS19: 1 | AZW19: 1 | AZZ19: 2 | BAA19: 1 | BAE19: 1 | BAI19: 1 | BAK19: =AVU19+AVY19+AWC19+AWG19+AWK19+AWO19+AWS19+AWW19+AXA19+AXE19+AXI19+AXM19+AXQ19+AXU19+AXY19+AYC19+AYG19+AYK19+AYO19+AYS19+AYW19+AZA19+AZE19+AZI19+AZM19+AZQ19+AZU19+AZY19+BAC19+BAG19 -> 13 | BAL19: =AVV19+AVZ19+AWD19+AWH19+AWL19+AWP19+AWT19+AWX19+AXB19+AXF19+AXJ19+AXN19+AXR19+AXV19+AXZ19+AYD19+AYH19+AYL19+AYP19+AYT19+AYX19+AZB19+AZF19+AZJ19+AZN19+AZR19+AZV19+AZZ19+BAD19+BAH19 -> 18 | BAM19: =AVW19+AWA19+AWE19+AWI19+AWM19+AWQ19+AWU19+AWY19+AXC19+AXG19+AXK19+AXO19+AXS19+AXW19+AYA19+AYE19+AYI19+AYM19+AYQ19+AYU19+AYY19+AZC19+AZG19+AZK19+AZO19+AZS19+AZW19+BAA19+BAE19+BAI19 -> 26 | BAN19: =AVX19+AWB19+AWF19+AWJ19+AWN19+AWR19+AWV19+AWZ19+AXD19+AXH19+AXL19+AXP19+AXT19+AXX19+AYB19+AYF19+AYJ19+AYN19+AYR19+AYV19+AYZ19+AZD19+AZH19+AZL19+AZP19+AZT19+AZX19+BAB19+BAF19+BAJ19 -> 0 | BAU19: 6 | BAY19: 1 | BBC19: 1 | BBG19: 2 | BBK19: 2 | BBO19: 2 | BBW19: 2 | BBY19: 2 | BCA19: 2 | BCE19: 2 | BCI19: 2 | BCM19: 2 | BCQ19: 2 | BCY19: 2 | BDA19: 3 | BDC19: 2 | BDG19: 2 | BDI19: 3 | BDK19: 2 | BDO19: 2 | BDS19: 2 | BEA19: 2 | BEC19: 3 | BEE19: 2 | BEG19: 3 | BEI19: 2 | BEK19: 5 | BEM19: 2 | BEQ19: 2 | BEU19: 2 | BFC19: 2 | BFE19: 3 | BFG19: 2 | BFI19: =BAO19+BAS19+BAW19+BBA19+BBE19+BBI19+BBM19+BBQ19+BBU19+BBY19+BCC19+BCG19+BCK19+BCO19+BCS19+BCW19+BDA19+BDE19+BDI19+BDM19+BDQ19+BDU19+BDY19+BEC19+BEG19+BEK19+BEO19+BES19+BEW19+BFA19+BFE19 -> 22 | BFJ19: =BAP19+BAT19+BAX19+BBB19+BBF19+BBJ19+BBN19+BBR19+BBV19+BBZ19+BCD19+BCH19+BCL19+BCP19+BCT19+BCX19+BDB19+BDF19+BDJ19+BDN19+BDR19+BDV19+BDZ19+BED19+BEH19+BEL19+BEP19+BET19+BEX19+BFB19+BFF19 -> 0 | BFK19: =BAQ19+BAU19+BAY19+BBC19+BBG19+BBK19+BBO19+BBS19+BBW19+BCA19+BCE19+BCI19+BCM19+BCQ19+BCU19+BCY19+BDC19+BDG19+BDK19+BDO19+BDS19+BDW19+BEA19+BEE19+BEI19+BEM19+BEQ19+BEU19+BEY19+BFC19+BFG19 -> 54 | BFL19: =BAR19+BAV19+BAZ19+BBD19+BBH19+BBL19+BBP19+BBT19+BBX19+BCB19+BCF19+BCJ19+BCN19+BCR19+BCV19+BCZ19+BDD19+BDH19+BDL19+BDP19+BDT19+BDX19+BEB19+BEF19+BEJ19+BEN19+BER19+BEV19+BEZ19+BFD19+BFH19 -> 0 | BFM19: =EG19+IS19+NQ19+SK19+XI19+ACC19+AHA19+ALY19+AQS19+AVQ19+BAK19+BFI19 -> 369 | BFN19: =EH19+IT19+NR19+SL19+XJ19+ACD19+AHB19+ALZ19+AQT19+AVR19+BAL19+BFJ19 -> 452 | BFO19: =EI19+IU19+NS19+SM19+XK19+ACE19+AHC19+AMA19+AQU19+AVS19+BAM19+BFK19 -> 365 | BFP19: =EJ19+IV19+NT19+SN19+XL19+ACF19+AHD19+AMB19+AQV19+AVT19+BAN19+BFL19 -> 0 | BFQ19: 33.54545455 | BFR19: 41.09090909 | BFS19: 30.41666667 | BFT19: 0 | BFU19: 11 | BFV19: 11 | BFW19: 12 | BFX19: 0
A20: 6 | B20: DREAM503001TSBH06107 | C20: DREAMLAND HOPE HOSPITAL | D20: H.No. 5-4-387/3, OPP.OLD JJ HOSPITAL, POCHAMMA GALLY, NIZAMABAD - 503001. | E20: 50 | F20: 18.6723132 | G20: 78.1029646 | H20: Dr. J. SUDHEER | I20: 9948553130 | J20: dreamlandhopenzb@gmail.com | K20: Private | L20: Bedded | M20: 5 | N20: 5 | O20: 2 | Q20: 5 | R20: 2 | S20: 2 | U20: 5 | V20: 2 | W20: 2 | Y20: 5 | AA20: 2 | AC20: 5 | AD20: 5 | AE20: 2 | AG20: 5 | AH20: 5 | AI20: 2 | AM20: 2 | AO20: 5 | AP20: 5 | AQ20: 2 | AS20: 5 | AT20: 5 | AU20: 2 | AW20: 5 | AX20: 5 | AY20: 2 | BA20: 5 | BB20: 2 | BC20: 2 | BE20: 5 | BG20: 2 | BI20: 5 | BJ20: 2 | BK20: 2 | BQ20: 5 | BR20: 2 | BS20: 2 | BU20: 5 | BV20: 2 | BW20: 2 | BY20: 5 | CA20: 2 | CC20: 5 | CE20: 2 | CG20: 5 | CH20: 5 | CK20: 5 | CM20: 2 | CO20: 5 | CQ20: 2 | CS20: 5 | CU20: 2 | CW20: 5 | CX20: 5 | CY20: 2 | DA20: 5 | DB20: 2 | DC20: 2 | DE20: 5 | DF20: 5 | DG20: 2 | DI20: 5 | DK20: 2 | DM20: 5 | DN20: 5 | DO20: 2 | DU20: 5 | DW20: 2 | DY20: 5 | DZ20: 5 | EA20: 2 | EC20: 5 | ED20: 5 | EE20: 2 | EG20: 140 | EH20: 74 | EI20: 56 | EJ20: 0 | EK20: 5 | EL20: 5 | EO20: 5 | EQ20: 1 | ES20: 5 | EU20: 1 | FA20: 5 | FC20: 1 | FE20: 5 | FF20: 5 | FG20: 1 | FI20: 5 | FK20: 1 | FM20: 5 | FN20: 5 | FO20: 1 | FQ20: 5 | FR20: 5 | FS20: 1 | FU20: 5 | FV20: 5 | FW20: 1 | GC20: 5 | GE20: 1 | GG20: 5 | GH20: 5 | GI20: 1 | GK20: 5 | GL20: 5 | GM20: 1 | GO20: 5 | GP20: 5 | GQ20: 1 | GS20: 5 | GT20: 5 | GU20: 1 | GW20: 5 | GY20: 1 | HE20: 5 | HF20: 5 | HG20: 1 | HI20: 5 | HJ20: 5 | HK20: 1 | HO20: 1 | HS20: 1 | HU20: 5 | HV20: 5 | HW20: 1 | HY20: 5 | HZ20: 5 | IA20: 1 | IC20: 5 | ID20: 5 | IE20: 1 | II20: 1 | IM20: 1 | IO20: 5 | IP20: 5 | IQ20: 1 | IS20: 105 | IT20: 75 | IU20: 24 | IV20: 0 | IX20: 10 | IY20: 1 | JC20: 1 | JI20: 5 | JJ20: 5 | JK20: 1 | JM20: 5 | JN20: 5 | JO20: 1 | JQ20: 5 | JS20: 1 | JW20: 1 | KA20: 1 | KE20: 1 | KM20: 1 | KO20: 5 | KP20: 5 | KQ20: 1 | KU20: 1 | KW20: 5 | KX20: 5 | KY20: 1 | LA20: 5 | LB20: 5 | LC20: 1 | LE20: 5 | LF20: 5 | LG20: 1 | LM20: 5 | LN20: 5 | LO20: 1 | LQ20: 5 | LR20: 5 | LS20: 1 | LU20: 5 | LV20: 5 | LW20: 1 | LY20: 5 | LZ20: 5 | MA20: 1 | MC20: 5 | MD20: 5 | ME20: 1 | MG20: 5 | MH20: 5 | MI20: 1 | MO20: 5 | MP20: 5 | MQ20: 1 | MW20: 5 | MX20: 5 | MY20: 1 | NA20: 5 | NB20: 5 | NC20: 1 | NG20: 1 | NI20: 5 | NJ20: 5 | NK20: 1 | NQ20: 85 | NR20: 90 | NS20: 25 | NT20: 0 | NW20: 1 | NY20: 5 | NZ20: 5 | OA20: 1 | OC20: 5 | OD20: 5 | OE20: 1 | OG20: 5 | OH20: 5 | OI20: 1 | OK20: 5 | OL20: 5 | OM20: 1 | OO20: 5 | OP20: 5 | OQ20: 1 | OW20: 5 | OX20: 5 | OY20: 1 | PE20: 5 | PF20: 5 | PG20: 1 | PI20: 5 | PK20: 1 | PO20: 1 | PQ20: 5 | PY20: 5 | PZ20: 5 | QA20: 1 | QE20: 1 | QG20: 5 | QH20: 5 | QI20: 1 | QK20: 5 | QL20: 5 | QM20: 1 | QO20: 2 | QP20: 2 | QQ20: 1 | QT20: 10 | QU20: 1 | RB20: 10 | RC20: 1 | RE20: 5 | RF20: 5 | RG20: 1 | RI20: 5 | RJ20: 5 | RK20: 1 | RO20: 1 | RQ20: 5 | RS20: 1 | RU20: 5 | RV20: 5 | RW20: 1 | SE20: 1 | SI20: 1 | SK20: 82 | SL20: 87 | SM20: 24 | SN20: 0 | SQ20: 1 | SS20: 5 | ST20: 5 | SU20: 1 | SW20: 5 | SX20: 5 | SY20: 1 | TC20: 1 | TI20: 5 | TK20: 1 | TN20: 5 | TO20: 1 | TR20: 5 | TS20: 1 | TW20: 1 | UA20: 1 | UD20: 5 | UE20: 1 | UL20: 5 | UM20: 1 | UP20: 5 | UQ20: 1 | UU20: 1 | UX20: 5 | UY20: 1 | VB20: 5 | VC20: 1 | VF20: 5 | VG20: 1 | VN20: 5 | VO20: 1 | VR20: 5 | VS20: 1 | VW20: 1 | VZ20: 5 | WA20: 1 | WD20: 5 | WE20: 1 | WH20: 2 | WI20: 1 | WQ20: 1 | WU20: 1 | WY20: 1 | XB20: 5 | XC20: 1 | XG20: 1 | XI20: 15 | XJ20: 77 | XK20: 27 | XL20: 0 | XO20: 1 | XV20: 5 | XW20: 1 | XZ20: 5 | YA20: 1 | YD20: 5 | YE20: 1 | YI20: 1 | YL20: 5 | YM20: 1 | YP20: 5 | YQ20: 1 | YY20: 1 | ZB20: 5 | ZC20: 1 | ZF20: 5 | ZG20: 1 | ZK20: 1 | ZN20: 3 | ZO20: 1 | ZR20: 5 | ZS20: 1 | ZZ20: 5 | AAA20: 1 | AAD20: 6 | AAI20: 1 | AAM20: 1 | AAP20: 3 | AAQ20: 1 | AAU20: 1 | ABC20: 1 | ABG20: 1 | ABJ20: 2 | ABK20: 1 | ABN20: 6 | ABO20: 1 | ABS20: 1 | ABW20: 1 | ACC20: 0 | ACD20: 65 | ACE20: 24 | ACF20: 0 | ACH20: 2 | ACI20: 1 | ACL20: 5 | ACM20: 1 | ACP20: 5 | ACQ20: 1 | ACT20: 5 | ACU20: 1 | ACX20: 5 | ACY20: 1 | ADB20: 5 | ADC20: 1 | ADK20: 1 | ADO20: 1 | ADS20: 1 | ADV20: 5 | ADW20: 1 | ADZ20: 5 | AEA20: 1 | AED20: 5 | AEE20: 1 | AEL20: 5 | AEM20: 1 | AEQ20: 1 | AES20: 7 | AEU20: 1 | AEW20: 7 | AEY20: 1 | AFA20: 6 | AFC20: 1 | AFE20: 6 | AFG20: 1 | AFM20: 7 | AFO20: 1 | AFS20: 1 | AFU20: 7 | AFW20: 1 | AFY20: 7 | AGA20: 1 | AGE20: 1 | AGG20: 7 | AGI20: 1 | AGP20: 5 | AGQ20: 1 | AGT20: 7 | AGU20: 1 | AGW20: 6 | AGY20: 1 | AHA20: 60 | AHB20: 59 | AHC20: 27 | AHD20: 0 | AHF20: 6 | AHG20: 1 | AHJ20: 5 | AHK20: 1 | AHN20: 5 | AHO20: 1 | AHV20: 5 | AHW20: 1 | AHZ20: 5 | AIA20: 1 | AID20: 5 | AIE20: 1 | AIH20: 5 | AII20: 1 | AIL20: 5 | AIM20: 1 | AIQ20: 1 | AIX20: 7 | AIY20: 1 | AJA20: 7 | AJC20: 1 | AJE20: 7 | AJG20: 1 | AJJ20: 7 | AJK20: 1 | AJN20: 7 | AJO20: 1 | AJR20: 7 | AJS20: 1 | AJZ20: 3 | AKA20: 1 | AKD20: 7 | AKE20: 1 | AKH20: 6 | AKI20: 1 | AKK20: 7 | AKM20: 1 | AKO20: 7 | AKQ20: 1 | AKU20: 1 | ALB20: 6 | ALC20: 1 | ALF20: 5 | ALG20: 1 | ALJ20: 5 | ALK20: 1 | ALN20: 5 | ALO20: 1 | ALR20: 5 | ALS20: 1 | ALV20: 5 | ALW20: 1 | ALY20: 28 | ALZ20: 116 | AMA20: 27 | AMB20: 0 | AMG20: 5 | AMI20: 1 | AMK20: 5 | AMM20: 1 | AMO20: 6 | AMQ20: 1 | AMS20: 9 | AMU20: 1 | AMX20: 5 | AMY20: 1 | ANB20: 5 | ANC20: 1 | ANJ20: 5 | ANK20: 1 | ANN20: 5 | ANO20: 1 | ANR20: 2 | ANS20: 1 | ANV20: 5 | ANW20: 1 | ANZ20: 5 | AOA20: 1 | AOD20: 5 | AOE20: 1 | AOL20: 2 | AOM20: 1 | AOP20: 2 | AOQ20: 1 | AOT20: 5 | AOU20: 1 | AOY20: 1 | APA20: 5 | APC20: 1 | APG20: 1 | APN20: 5 | APO20: 1 | APR20: 5 | APS20: 1 | APU20: 5 | APW20: 1 | APZ20: 5 | AQA20: 1 | AQD20: 5 | AQE20: 1 | AQH20: 5 | AQI20: 1 | AQP20: 5 | AQQ20: 1 | AQS20: 35 | AQT20: 76 | AQU20: 25 | AQV20: 0 | AQY20: 1 | ARB20: 5 | ARC20: 1 | ARF20: 5 | ARG20: 1 | ARJ20: 5 | ARK20: 1 | ARN20: 5 | ARO20: 1 | ARV20: 5 | ARW20: 1 | ARZ20: 5 | ASA20: 1 | ASD20: 6 | ASE20: 1 | ASH20: 6 | ASI20: 1 | ASP20: 7 | ASQ20: 1 | ASX20: 7 | ASY20: 1 | ATB20: 7 | ATC20: 1 | ATF20: 7 | ATG20: 1 | ATN20: 8 | ATO20: 1 | ATR20: 6 | ATS20: 1 | ATZ20: 6 | AUA20: 1 | AUC20: 8 | AUE20: 1 | AUG20: 8 | AUI20: 1 | AUL20: 7 | AUM20: 1 | AUO20: 7 | AUQ20: 1 | AUT20: 7 | AUU20: 1 | AVB20: 8 | AVC20: 1 | AVE20: 8 | AVG20: 1 | AVI20: 7 | AVK20: 1 | AVQ20: 38 | AVR20: 112 | AVS20: 24 | AVT20: 0 | AVU20: 5 | AVW20: 1 | AWA20: 1 | AWG20: 2 | AWI20: 1 | AWK20: 5 | AWM20: 1 | AWO20: 5 | AWQ20: 1 | AWS20: 5 | AWU20: 1 | AWW20: 5 | AWY20: 1 | AXA20: 5 | AXC20: 1 | AXI20: 5 | AXK20: 1 | AXM20: 4 | AXO20: 1 | AXQ20: 4 | AXS20: 1 | AXU20: 5 | AXW20: 1 | AXY20: 4 | AYA20: 1 | AYD20: 5 | AYE20: 1 | AYK20: 5 | AYM20: 1 | AYO20: 5 | AYQ20: 1 | AYS20: 5 | AYU20: 1 | AYW20: 5 | AYY20: 1 | AZA20: 4 | AZC20: 1 | AZE20: 5 | AZG20: 1 | AZM20: 5 | AZO20: 1 | AZR20: 3 | AZS20: 1 | AZU20: 5 | AZW20: 1 | AZY20: 5 | BAA20: 1 | BAD20: 5 | BAE20: 1 | BAG20: 5 | BAI20: 1 | BAK20: 103 | BAL20: 13 | BAM20: 26 | BAN20: 0 | BAS20: 7 | BAW20: 7 | BAY20: 1 | BBA20: 7 | BBC20: 1 | BBE20: 7 | BBG20: 2 | BBI20: 7 | BBK20: 2 | BBM20: 7 | BBO20: 2 | BBU20: 8 | BBW20: 2 | BBY20: 8 | BCA20: 2 | BCC20: 5 | BCE20: 2 | BCG20: 8 | BCI20: 2 | BCK20: 7 | BCM20: 2 | BCO20: 7 | BCQ20: 2 | BCW20: 8 | BCY20: 2 | BDB20: 7 | BDC20: 2 | BDE20: 8 | BDG20: 2 | BDI20: 8 | BDK20: 2 | BDO20: 2 | BDS20: 2 | BEA20: 2 | BEE20: 2 | BEI20: 2 | BEK20: 8 | BEM20: 2 | BEP20: 9 | BEQ20: 2 | BEU20: 2 | BFC20: 2 | BFE20: 8 | BFG20: 2 | BFI20: 125 | BFJ20: 16 | BFK20: 48 | BFL20: 0 | BFM20: 816 | BFN20: 860 | BFO20: 357 | BFP20: 0 | BFQ20: 74.18181818 | BFR20: 71.66666667 | BFS20: 29.75 | BFT20: 0 | BFU20: 11 | BFV20: 12 | BFW20: 12 | BFX20: 0
A21: 7 | B21: GSBVM503001TSBH07045 | C21: GSBV MEMORIAL MULTI SPECIALTY HOSPITAL | D21: OPP. RAJEEV GANDHI AUDITORUM, KHALEELWADI, NIZAMABAD - 503001. | E21: 50 | H21: Dr. G MADHUSUDHAN | I21: 9885231708 | J21: amruthalaxmihospital@gmail.com | K21: Private | L21: Bedded | M21: 5 | N21: 5 | O21: 2 | Q21: 5 | R21: 2 | S21: 2 | U21: 5 | V21: 2 | W21: 2 | Y21: 5 | Z21: 5 | AA21: 2 | AC21: 5 | AD21: 5 | AE21: 2 | AG21: 5 | AH21: 5 | AI21: 2 | AM21: 2 | AO21: 5 | AP21: 2 | AQ21: 2 | AS21: 5 | AT21: 2 | AU21: 2 | AW21: 5 | AX21: 5 | AY21: 2 | BA21: 5 | BB21: 2 | BC21: 2 | BE21: 5 | BF21: 2 | BG21: 2 | BI21: 5 | BJ21: 2 | BK21: 2 | BQ21: 5 | BR21: 2 | BS21: 2 | BU21: 5 | BV21: 2 | BW21: 2 | BY21: 5 | BZ21: 5 | CA21: 2 | CC21: 5 | CE21: 2 | CG21: 5 | CI21: 10 | CK21: 5 | CM21: 2 | CO21: 5 | CQ21: 2 | CS21: 25 | CU21: 2 | CW21: 5 | CX21: 5 | CY21: 2 | DA21: 5 | DB21: 2 | DC21: 2 | DE21: 5 | DF21: 5 | DG21: 2 | DI21: 5 | DJ21: 5 | DK21: 2 | DM21: 5 | DN21: 5 | DO21: 2 | DU21: 5 | DV21: 5 | DW21: 2 | DY21: 5 | EA21: 2 | EC21: 5 | ED21: 5 | EE21: 2 | EG21: 160 | EH21: 80 | EI21: 66 | EJ21: 0 | EK21: 5 | EL21: 5 | EO21: 5 | EP21: 5 | EQ21: 1 | ES21: 5 | ET21: 5 | EU21: 1 | FA21: 5 | FB21: 5 | FC21: 1 | FE21: 5 | FF21: 5 | FG21: 1 | FI21: 5 | FJ21: 5 | FK21: 1 | FM21: 5 | FO21: 1 | FQ21: 5 | FS21: 1 | FU21: 5 | FW21: 1 | GC21: 5 | GE21: 1 | GI21: 1 | GK21: 5 | GL21: 5 | GM21: 1 | GO21: 5 | GP21: 5 | GQ21: 1 | GS21: 5 | GU21: 1 | GW21: 5 | GX21: 5 | GY21: 1 | HE21: 5 | HG21: 1 | HI21: 5 | HJ21: 5 | HK21: 1 | HM21: 5 | HN21: 5 | HO21: 1 | HQ21: 5 | HR21: 5 | HS21: 1 | HU21: 5 | HV21: 5 | HW21: 1 | HY21: 5 | HZ21: 5 | IA21: 1 | IC21: 5 | ID21: 5 | IE21: 1 | IG21: 5 | IH21: 5 | II21: 1 | IM21: 1 | IO21: 5 | IP21: 5 | IQ21: 1 | IS21: 115 | IT21: 85 | IU21: 24 | IV21: 0 | IW21: 3 | IX21: 5 | IY21: 1 | JB21: 5 | JC21: 1 | JJ21: 5 | JK21: 1 | JM21: 5 | JN21: 5 | JO21: 1 | JS21: 1 | JW21: 1 | KA21: 1 | KE21: 1 | KK21: 5 | KL21: 5 | KM21: 1 | KO21: 5 | KP21: 5 | KQ21: 1 | KU21: 1 | KW21: 5 | KX21: 5 | KY21: 1 | LA21: 5 | LC21: 1 | LF21: 5 | LG21: 1 | LM21: 5 | LN21: 30 | LO21: 1 | LQ21: 5 | LR21: 5 | LS21: 1 | LU21: 5 | LV21: 5 | LW21: 1 | LY21: 5 | LZ21: 5 | MA21: 1 | MC21: 5 | MD21: 5 | ME21: 1 | MG21: 5 | MH21: 5 | MI21: 1 | MO21: 5 | MP21: 5 | MQ21: 1 | MW21: 5 | MX21: 5 | MY21: 1 | NC21: 1 | NE21: 5 | NF21: 5 | NG21: 1 | NK21: 1 | NQ21: 73 | NR21: 110 | NS21: 25 | NT21: 0 | NU21: 5 | NV21: 5 | NW21: 1 | NY21: 5 | NZ21: 5 | OA21: 1 | OC21: 5 | OD21: 5 | OE21: 1 | OG21: 5 | OI21: 1 | OK21: 5 | OL21: 5 | OM21: 1 | OO21: 5 | OP21: 5 | OQ21: 1 | OW21: 5 | OX21: 5 | OY21: 1 | PE21: 5 | PF21: 5 | PG21: 1 | PI21: 5 | PJ21: 5 | PK21: 1 | PO21: 1 | PQ21: 5 | PR21: 5 | QA21: 1 | QC21: 5 | QD21: 5 | QE21: 1 | QG21: 5 | QH21: 5 | QI21: 1 | QK21: 5 | QL21: 5 | QM21: 1 | QO21: 3 | QP21: 3 | QQ21: 1 | QS21: 5 | QT21: 5 | QU21: 1 | RA21: 5 | RB21: 5 | RC21: 1 | RE21: 5 | RG21: 1 | RK21: 1 | RO21: 1 | RQ21: 5 | RR21: 5 | RS21: 1 | RV21: 5 | RW21: 1 | SD21: 5 | SE21: 1 | SI21: 1 | SK21: 88 | SL21: 88 | SM21: 24 | SN21: 0 | SO21: 5 | SP21: 5 | SQ21: 1 | SS21: 5 | ST21: 5 | SU21: 1 | SW21: 5 | SX21: 5 | SY21: 1 | TA21: 5 | TB21: 5 | TC21: 1 | TK21: 1 | TN21: 5 | TO21: 1 | TR21: 5 | TS21: 1 | TV21: 5 | TW21: 1 | TZ21: 5 | UA21: 1 | UD21: 5 | UE21: 1 | UL21: 5 | UM21: 1 | UQ21: 1 | UT21: 5 | UU21: 1 | UX21: 5 | UY21: 1 | VB21: 5 | VC21: 1 | VF21: 5 | VG21: 1 | VM21: 5 | VO21: 1 | VQ21: 5 | VS21: 1 | VW21: 1 | WA21: 1 | WD21: 5 | WE21: 1 | WI21: 1 | WQ21: 1 | WU21: 1 | WY21: 1 | XB21: 3 | XC21: 1 | XG21: 1 | XI21: 30 | XJ21: 78 | XK21: 27 | XL21: 0 | XO21: 1 | XV21: 5 | XW21: 1 | XZ21: 5 | YA21: 1 | YC21: 5 | YE21: 1 | YG21: 5 | YI21: 1 | YK21: 5 | YM21: 1 | YO21: 5 | YQ21: 1 | YY21: 1 | ZA21: 5 | ZC21: 1 | ZE21: 5 | ZG21: 1 | ZJ21: 5 | ZK21: 1 | ZN21: 2 | ZO21: 1 | ZR21: 5 | ZS21: 1 | ZZ21: 5 | AAA21: 1 | AAD21: 3 | AAI21: 1 | AAK21: 3 | AAM21: 1 | AAP21: 3 | AAQ21: 1 | AAU21: 1 | ABC21: 1 | ABF21: 3 | ABG21: 1 | ABK21: 1 | ABO21: 1 | ABS21: 1 | ABW21: 1 | ACC21: 33 | ACD21: 36 | ACE21: 24 | ACF21: 0 | ACI21: 1 | ACL21: 5 | ACM21: 1 | ACQ21: 1 | ACT21: 5 | ACU21: 1 | ACY21: 1 | ADC21: 1 | ADJ21: 5 | ADK21: 1 | ADN21: 5 | ADO21: 1 | ADR21: 5 | ADS21: 1 | ADV21: 5 | ADW21: 1 | ADZ21: 5 | AEA21: 1 | AED21: 5 | AEE21: 1 | AEL21: 5 | AEM21: 1 | AEQ21: 1 | AEU21: 1 | AEY21: 1 | AFC21: 1 | AFG21: 1 | AFO21: 1 | AFS21: 1 | AFV21: 3 | AFW21: 1 | AFZ21: 3 | AGA21: 1 | AGC21: 3 | AGE21: 1 | AGH21: 3 | AGI21: 1 | AGP21: 5 | AGQ21: 1 | AGT21: 3 | AGU21: 1 | AGX21: 3 | AGY21: 1 | AHA21: 3 | AHB21: 65 | AHC21: 27 | AHD21: 0 | AHE21: 3 | AHG21: 1 | AHI21: 5 | AHJ21: 5 | AHK21: 1 | AHN21: 5 | AHO21: 1 | AHV21: 5 | AHW21: 1 | AHY21: 5 | AHZ21: 5 | AIA21: 1 | AID21: 5 | AIE21: 1 | AIH21: 5 | AII21: 1 | AIK21: 5 | AIM21: 1 | AIP21: 5 | AIQ21: 1 | AIW21: 3 | AIY21: 1 | AJB21: 3 | AJC21: 1 | AJF21: 3 | AJG21: 1 | AJI21: 3 | AJK21: 1 | AJM21: 3 | AJO21: 1 | AJQ21: 3 | AJS21: 1 | AJY21: 3 | AKA21: 1 | AKC21: 3 | AKE21: 1 | AKG21: 3 | AKI21: 1 | AKL21: 3 | AKM21: 1 | AKP21: 2 | AKQ21: 1 | AKT21: 4 | AKU21: 1 | ALA21: 3 | ALC21: 1 | ALG21: 1 | ALJ21: 5 | ALK21: 1 | ALM21: 5 | ALO21: 1 | ALR21: 5 | ALS21: 1 | ALU21: 5 | ALW21: 1 | ALY21: 52 | ALZ21: 60 | AMA21: 27 | AMB21: 0 | AMG21: 5 | AMI21: 1 | AMK21: 5 | AMM21: 1 | AMO21: 2 | AMQ21: 1 | AMS21: 3 | AMU21: 1 | AMW21: 5 | AMY21: 1 | ANA21: 5 | ANC21: 1 | ANI21: 5 | ANK21: 1 | ANM21: 5 | ANO21: 1 | ANQ21: 5 | ANS21: 1 | ANU21: 5 | ANW21: 1 | ANY21: 5 | AOA21: 1 | AOC21: 5 | AOE21: 1 | AOL21: 5 | AOM21: 1 | AOO21: 5 | AOQ21: 1 | AOS21: 5 | AOU21: 1 | AOX21: 5 | AOY21: 1 | APA21: 5 | APC21: 1 | APF21: 2 | APG21: 1 | APM21: 5 | APN21: 5 | APO21: 1 | APQ21: 5 | APS21: 1 | APU21: 5 | APW21: 1 | APZ21: 5 | AQA21: 1 | AQD21: 5 | AQE21: 1 | AQG21: 5 | AQI21: 1 | AQO21: 5 | AQQ21: 1 | AQS21: 95 | AQT21: 27 | AQU21: 25 | AQV21: 0 | AQX21: 3 | AQY21: 1 | ARB21: 2 | ARC21: 1 | ARF21: 2 | ARG21: 1 | ARI21: 2 | ARK21: 1 | ARM21: 2 | ARO21: 1 | ARU21: 2 | ARW21: 1 | ARY21: 2 | ASA21: 1 | ASC21: 2 | ASE21: 1 | ASG21: 2 | ASI21: 1 | ASO21: 3 | ASQ21: 1 | ASW21: 2 | ASY21: 1 | ATA21: 3 | ATC21: 1 | ATE21: 2 | ATG21: 1 | ATN21: 2 | ATO21: 1 | ATQ21: 5 | ATS21: 1 | ATY21: 5 | AUA21: 1 | AUE21: 1 | AUH21: 2 | AUI21: 1 | AUL21: 2 | AUM21: 1 | AUP21: 2 | AUQ21: 1 | AUT21: 2 | AUU21: 1 | AVB21: 2 | AVC21: 1 | AVF21: 5 | AVG21: 1 | AVK21: 1 | AVQ21: 32 | AVR21: 24 | AVS21: 24 | AVT21: 0 | AVU21: 5 | AVW21: 1 | AWA21: 1 | AWG21: 5 | AWI21: 1 | AWM21: 1 | AWO21: 5 | AWQ21: 1 | AWT21: 5 | AWU21: 1 | AWW21: 5 | AWY21: 1 | AXA21: 5 | AXC21: 1 | AXI21: 3 | AXK21: 1 | AXN21: 5 | AXO21: 1 | AXR21: 5 | AXS21: 1 | AXV21: 5 | AXW21: 1 | AXZ21: 5 | AYA21: 1 | AYC21: 2 | AYD21: 3 | AYE21: 1 | AYK21: 5 | AYM21: 1 | AYO21: 5 | AYQ21: 1 | AYS21: 5 | AYU21: 1 | AYX21: 4 | AYY21: 1 | AZB21: 5 | AZC21: 1 | AZE21: 5 | AZG21: 1 | AZM21: 5 | AZO21: 1 | AZQ21: 4 | AZR21: 2 | AZS21: 1 | AZV21: 5 | AZW21: 1 | AZZ21: 6 | BAA21: 1 | BAC21: 5 | BAE21: 1 | BAG21: 3 | BAH21: 2 | BAI21: 1 | BAK21: 67 | BAL21: 52 | BAM21: 26 | BAN21: 0 | BAU21: 2 | BAY21: 1 | BBC21: 1 | BBG21: 2 | BBK21: 2 | BBO21: 2 | BBU21: 2 | BBW21: 2 | BBY21: 2 | BCA21: 2 | BCE21: 2 | BCG21: 2 | BCI21: 2 | BCK21: 2 | BCM21: 2 | BCO21: 2 | BCQ21: 2 | BCW21: 2 | BCY21: 2 | BDA21: 4 | BDC21: 2 | BDE21: 3 | BDG21: 2 | BDK21: 2 | BDN21: 2 | BDO21: 2 | BDS21: 2 | BDZ21: 2 | BEA21: 2 | BEC21: 5 | BEE21: 2 | BEH21: 2 | BEI21: 2 | BEL21: 2 | BEM21: 2 | BEQ21: 2 | BET21: 2 | BEU21: 2 | BFB21: 2 | BFC21: 2 | BFF21: 2 | BFG21: 2 | BFI21: 24 | BFJ21: 14 | BFK21: 50 | BFL21: 0 | BFM21: 772 | BFN21: 719 | BFO21: 369 | BFP21: 0 | BFQ21: 64.33333333 | BFR21: 59.91666667 | BFS21: 30.75 | BFT21: 0 | BFU21: 12 | BFV21: 12 | BFW21: 12 | BFX21: 0
A22: 8 | B22: INDUR503001TSBH09851 | C22: INDUR CANCER HOSPITAL | D22: PANGRA, MADHAVA NAGAR, HYDERABAD ROAD, NIZAMABAD - 503001. | E22: 50 | H22: Dr. RAVINDRANATH SOORY | I22: 9849863130 | J22: ravindranathsoory@gmail.com | K22: Private | L22: Bedded Cancer Special | M22: 5 | N22: 5 | O22: 2 | Q22: 5 | S22: 2 | U22: 5 | V22: 2 | W22: 2 | Y22: 5 | AA22: 2 | AC22: 5 | AE22: 2 | AG22: 5 | AI22: 2 | AM22: 2 | AO22: 5 | AP22: 2 | AQ22: 2 | AS22: 5 | AT22: 2 | AU22: 2 | AW22: 5 | AX22: 5 | AY22: 2 | BA22: 5 | BC22: 2 | BE22: 5 | BG22: 2 | BI22: 5 | BK22: 2 | BQ22: 5 | BR22: 2 | BS22: 2 | BU22: 5 | BW22: 2 | BY22: 5 | CA22: 2 | CC22: 5 | CD22: 7 | CE22: 2 | CG22: 5 | CH22: 7 | CK22: 5 | CM22: 2 | CO22: 5 | CQ22: 2 | CS22: 5 | CU22: 2 | CW22: 5 | CY22: 2 | DA22: 5 | DB22: 2 | DC22: 2 | DE22: 5 | DG22: 2 | DK22: 2 | DM22: 5 | DO22: 2 | DU22: 5 | DW22: 2 | DY22: 5 | EA22: 2 | EC22: 5 | EE22: 2 | EG22: 135 | EH22: 34 | EI22: 56 | EJ22: 0 | EK22: 5 | EO22: 5 | EQ22: 1 | ES22: 5 | EU22: 1 | FA22: 5 | FC22: 1 | FE22: 5 | FG22: 1 | FI22: 5 | FK22: 1 | FM22: 5 | FO22: 1 | FQ22: 5 | FS22: 1 | FU22: 5 | FW22: 1 | GC22: 5 | GE22: 1 | GG22: 8 | GI22: 1 | GM22: 1 | GO22: 5 | GP22: 5 | GQ22: 1 | GU22: 1 | GY22: 1 | HG22: 1 | HK22: 1 | HO22: 1 | HS22: 1 | HW22: 1 | IA22: 1 | IE22: 1 | II22: 1 | IM22: 1 | IP22: 2 | IQ22: 1 | IS22: 63 | IT22: 7 | IU22: 24 | IV22: 0 | IY22: 1 | JC22: 1 | JK22: 1 | JO22: 1 | JS22: 1 | JW22: 1 | KA22: 1 | KE22: 1 | KM22: 1 | KQ22: 1 | KU22: 1 | KY22: 1 | LC22: 1 | LG22: 1 | LO22: 1 | LS22: 1 | LW22: 1 | LY22: 5 | MA22: 1 | ME22: 1 | MI22: 1 | MQ22: 1 | MY22: 1 | NC22: 1 | NG22: 1 | NK22: 1 | NQ22: 5 | NR22: 0 | NS22: 25 | NT22: 0 | NW22: 1 | OA22: 1 | OE22: 1 | OI22: 1 | OM22: 1 | OQ22: 1 | OY22: 1 | PG22: 1 | PI22: 2 | PK22: 1 | PO22: 1 | PQ22: 2 | QA22: 1 | QE22: 1 | QI22: 1 | QM22: 1 | QQ22: 1 | QU22: 1 | RC22: 1 | RG22: 1 | RK22: 1 | RO22: 1 | RS22: 1 | RW22: 1 | SE22: 1 | SI22: 1 | SK22: 4 | SL22: 0 | SM22: 24 | SN22: 0 | SQ22: 1 | SU22: 1 | SY22: 1 | TC22: 1 | TK22: 1 | TO22: 1 | TS22: 1 | TW22: 1 | UA22: 1 | UE22: 1 | UM22: 1 | UQ22: 1 | UU22: 1 | UY22: 1 | VA22: 2 | VC22: 1 | VE22: 5 | VG22: 1 | VO22: 1 | VQ22: 5 | VS22: 1 | VW22: 1 | WA22: 1 | WE22: 1 | WI22: 1 | WQ22: 1 | WU22: 1 | WY22: 1 | XC22: 1 | XG22: 1 | XI22: 12 | XJ22: 0 | XK22: 27 | XL22: 0 | XO22: 1 | XW22: 1 | YA22: 1 | YE22: 1 | YI22: 1 | YM22: 1 | YQ22: 1 | YY22: 1 | ZC22: 1 | ZG22: 1 | ZK22: 1 | ZO22: 1 | ZS22: 1 | AAA22: 1 | AAI22: 1 | AAM22: 1 | AAQ22: 1 | AAU22: 1 | ABC22: 1 | ABG22: 1 | ABK22: 1 | ABO22: 1 | ABS22: 1 | ABW22: 1 | ACC22: 0 | ACD22: 0 | ACE22: 24 | ACF22: 0 | ACI22: 1 | ACM22: 1 | ACQ22: 1 | ACU22: 1 | ACY22: 1 | ADC22: 1 | ADK22: 1 | ADO22: 1 | ADS22: 1 | ADW22: 1 | AEA22: 1 | AEC22: 2 | AEE22: 1 | AEK22: 5 | AEM22: 1 | AEQ22: 1 | AEU22: 1 | AEY22: 1 | AFC22: 1 | AFG22: 1 | AFO22: 1 | AFS22: 1 | AFW22: 1 | AGA22: 1 | AGE22: 1 | AGI22: 1 | AGQ22: 1 | AGU22: 1 | AGY22: 1 | AHA22: 7 | AHB22: 0 | AHC22: 27 | AHD22: 0 | AHG22: 1 | AHK22: 1 | AHO22: 1 | AHW22: 1 | AIA22: 1 | AIE22: 1 | AII22: 1 | AIM22: 1 | AIQ22: 1 | AIY22: 1 | AJC22: 1 | AJG22: 1 | AJK22: 1 | AJN22: 2 | AJO22: 1 | AJS22: 1 | AKA22: 1 | AKE22: 1 | AKI22: 1 | AKM22: 1 | AKQ22: 1 | AKU22: 1 | ALC22: 1 | ALG22: 1 | ALK22: 1 | ALO22: 1 | ALS22: 1 | ALW22: 1 | ALY22: 0 | ALZ22: 2 | AMA22: 27 | AMB22: 0 | AMI22: 1 | AMM22: 1 | AMQ22: 1 | AMU22: 1 | AMY22: 1 | ANC22: 1 | ANK22: 1 | ANO22: 1 | ANS22: 1 | ANW22: 1 | AOA22: 1 | AOE22: 1 | AOM22: 1 | AOQ22: 1 | AOS22: 2 | AOU22: 1 | AOY22: 1 | APC22: 1 | APG22: 1 | APO22: 1 | APS22: 1 | APV22: 5 | APW22: 1 | APY22: 5 | AQA22: 1 | AQE22: 1 | AQH22: 5 | AQI22: 1 | AQO22: 5 | AQQ22: 1 | AQS22: 12 | AQT22: 10 | AQU22: 25 | AQV22: 0 | AQY22: 1 | ARC22: 1 | ARG22: 1 | ARK22: 1 | ARO22: 1 | ARW22: 1 | ASA22: 1 | ASE22: 1 | ASI22: 1 | ASQ22: 1 | ASY22: 1 | ATC22: 1 | ATG22: 1 | ATO22: 1 | ATR22: 5 | ATS22: 1 | ATZ22: 5 | AUA22: 1 | AUE22: 1 | AUI22: 1 | AUL22: 2 | AUM22: 1 | AUO22: 3 | AUQ22: 1 | AUU22: 1 | AVC22: 1 | AVG22: 1 | AVK22: 1 | AVQ22: 3 | AVR22: 12 | AVS22: 24 | AVT22: 0 | AVW22: 1 | AWA22: 1 | AWH22: 5 | AWI22: 1 | AWM22: 1 | AWP22: 5 | AWQ22: 1 | AWS22: 2 | AWU22: 1 | AWX22: 2 | AWY22: 1 | AXB22: 2 | AXC22: 1 | AXJ22: 2 | AXK22: 1 | AXM22: 3 | AXO22: 1 | AXQ22: 3 | AXS22: 1 | AXW22: 1 | AXY22: 3 | AYA22: 1 | AYC22: 2 | AYE22: 1 | AYL22: 5 | AYM22: 1 | AYP22: 5 | AYQ22: 1 | AYS22: 2 | AYU22: 1 | AYY22: 1 | AZA22: 3 | AZC22: 1 | AZF22: 2 | AZG22: 1 | AZM22: 3 | AZO22: 1 | AZR22: 2 | AZS22: 1 | AZU22: 4 | AZW22: 1 | AZY22: 2 | BAA22: 1 | BAC22: 3 | BAE22: 1 | BAG22: 2 | BAI22: 1 | BAK22: 32 | BAL22: 30 | BAM22: 26 | BAN22: 0 | BAS22: 2 | BAY22: 1 | BBA22: 3 | BBC22: 1 | BBG22: 2 | BBI22: 3 | BBK22: 2 | BBO22: 2 | BBW22: 2 | BCA22: 2 | BCE22: 2 | BCG22: 3 | BCI22: 2 | BCK22: 2 | BCM22: 2 | BCO22: 5 | BCQ22: 2 | BCY22: 2 | BDA22: 2 | BDC22: 2 | BDF22: 2 | BDG22: 2 | BDI22: 2 | BDK22: 2 | BDM22: 2 | BDO22: 2 | BDQ22: 3 | BDS22: 2 | BDY22: 5 | BEA22: 2 | BEC22: 2 | BEE22: 2 | BEG22: 2 | BEI22: 2 | BEK22: 5 | BEM22: 2 | BEO22: 2 | BEQ22: 2 | BES22: 3 | BEU22: 2 | BFA22: 2 | BFC22: 2 | BFE22: 2 | BFG22: 2 | BFI22: 50 | BFJ22: 2 | BFK22: 48 | BFL22: 0 | BFM22: 323 | BFN22: 97 | BFO22: 357 | BFP22: 0 | BFQ22: 32.3 | BFR22: 13.85714286 | BFS22: 29.75 | BFT22: 0 | BFU22: 10 | BFV22: 7 | BFW22: 12 | BFX22: 0
A23: 9 | B23: INDUS503001TSBH08523 | C23: INDUS SUPER SPECIALITY HOSPITAL | D23: H.No. 5-6-192/194, SARASWATHI NAGAR, HYDERABAD ROAD, NIZAMABAD - 503001. | E23: 50 | H23: Dr. P. JAGAN KUMAR | I23: 9885687612 | J23: jaganp.dr@gmail.com | K23: Private | L23: Bedded | M23: 5 | N23: 5 | O23: 2 | Q23: 5 | S23: 2 | U23: 5 | V23: 2 | W23: 2 | Y23: 5 | AA23: 2 | AC23: 5 | AD23: 5 | AE23: 2 | AG23: 5 | AH23: 5 | AI23: 2 | AM23: 2 | AO23: 5 | AP23: 2 | AQ23: 2 | AS23: 5 | AT23: 2 | AU23: 2 | AW23: 5 | AX23: 5 | AY23: 2 | BA23: 5 | BC23: 2 | BE23: 5 | BF23: 2 | BG23: 2 | BI23: 5 | BK23: 2 | BQ23: 5 | BR23: 2 | BS23: 2 | BU23: 5 | BV23: 5 | BW23: 2 | BY23: 5 | BZ23: 2 | CA23: 2 | CC23: 5 | CD23: 5 | CE23: 2 | CG23: 5 | CK23: 5 | CL23: 5 | CM23: 2 | CO23: 5 | CQ23: 2 | CS23: 5 | CT23: 5 | CU23: 2 | CW23: 5 | CY23: 2 | DA23: 5 | DB23: 2 | DC23: 2 | DE23: 5 | DG23: 2 | DI23: 5 | DJ23: 5 | DK23: 2 | DM23: 5 | DO23: 2 | DU23: 5 | DV23: 5 | DW23: 2 | DY23: 5 | EA23: 2 | EC23: 5 | EE23: 2 | EG23: =M23+Q23+U23+Y23+AC23+AG23+AK23+AO23+AS23+AW23+BA23+BE23+BI23+BM23+BQ23+BU23+BY23+CC23+CG23+CK23+CO23+CS23+CW23+DA23+DE23+DI23+DM23+DQ23+DU23+DY23+EC23 -> 140 | EH23: 64 | EI23: 56 | EJ23: 0 | EK23: 10 | EL23: 5 | EO23: 5 | EQ23: 1 | ES23: 5 | EU23: 1 | FA23: 5 | FC23: 1 | FE23: 5 | FF23: 5 | FG23: 1 | FI23: 5 | FK23: 1 | FM23: 5 | FO23: 1 | FQ23: 5 | FS23: 1 | FU23: 5 | FV23: 5 | FW23: 1 | GC23: 5 | GE23: 1 | GI23: 1 | GM23: 1 | GO23: 5 | GP23: 5 | GQ23: 1 | GU23: 1 | GY23: 1 | HG23: 1 | HI23: 5 | HJ23: 5 | HK23: 1 | HM23: 5 | HN23: 5 | HO23: 1 | HQ23: 5 | HR23: 5 | HS23: 1 | HU23: 5 | HW23: 1 | HY23: 5 | IA23: 1 | IE23: 1 | II23: 1 | IM23: 1 | IP23: 5 | IQ23: 1 | IS23: =EK23+EO23+ES23+EW23+FA23+FE23+FI23+FM23+FQ23+FU23+FY23+GC23+GG23+GK23+GO23+GS23+GW23+HA23+HE23+HI23+HM23+HQ23+HU23+HY23+IC23+IG23+IK23+IO23 -> 85 | IT23: 40 | IU23: 24 | IV23: 0 | IY23: 1 | JC23: 1 | JK23: 1 | JO23: 1 | JS23: 1 | JW23: 1 | KA23: 1 | KE23: 1 | KM23: 1 | KQ23: 1 | KU23: 1 | KY23: 1 | LC23: 1 | LG23: 1 | LO23: 1 | LS23: 1 | LU23: 5 | LW23: 1 | LY23: 5 | MA23: 1 | MD23: 5 | ME23: 1 | MG23: 5 | MI23: 1 | MQ23: 1 | MX23: 5 | MY23: 1 | NC23: 1 | NG23: 1 | NK23: 1 | NQ23: =IW23+JA23+JE23+JI23+JM23+JQ23+JU23+JY23+KC23+KG23+KK23+KO23+KS23+KW23+LA23+LE23+LI23+LM23+LQ23+LU23+LY23+MC23+MG23+MK23+MO23+MS23+MW23+NA23+NE23+NI23+NM23 -> 15 | NR23: 10 | NS23: 25 | NT23: 0 | NW23: 1 | OA23: 1 | OE23: 1 | OH23: 5 | OI23: 1 | OK23: 5 | OM23: 1 | OP23: 5 | OQ23: 1 | OW23: 5 | OY23: 1 | PG23: 1 | PI23: 5 | PK23: 1 | PO23: 1 | PQ23: 5 | QA23: 1 | QE23: 1 | QH23: 5 | QI23: 1 | QK23: 5 | QM23: 1 | QO23: 2 | QQ23: 1 | QU23: 1 | RA23: 5 | RC23: 1 | RF23: 5 | RG23: 1 | RK23: 1 | RO23: 1 | RS23: 1 | RW23: 1 | SE23: 1 | SI23: 1 | SK23: =NU23+NY23+OC23+OG23+OK23+OO23+OS23+OW23+PA23+PE23+PI23+PM23+PQ23+PU23+PY23+QC23+QG23+QK23+QO23+QS23+QW23+RA23+RE23+RI23+RM23+RQ23+RU23+RY23+SC23+SG23 -> 32 | SL23: 20 | SM23: 24 | SN23: 0 | SQ23: 1 | SU23: 1 | SY23: 1 | TC23: 1 | TK23: 1 | TO23: 1 | TS23: 1 | TW23: 1 | UA23: 1 | UC23: 5 | UE23: 1 | UM23: 1 | UQ23: 1 | UU23: 1 | UW23: 5 | UY23: 1 | VB23: 5 | VC23: 1 | VE23: 5 | VG23: 1 | VO23: 1 | VQ23: 5 | VS23: 1 | VW23: 1 | WA23: 1 | WE23: 1 | WI23: 1 | WQ23: 1 | WU23: 1 | WY23: 1 | XC23: 1 | XG23: 1 | XI23: =SO23+SS23+SW23+TA23+TE23+TI23+TM23+TQ23+TU23+TY23+UC23+UG23+UK23+UO23+US23+UW23+VA23+VE23+VI23+VM23+VQ23+VU23+VY23+WC23+WG23+WK23+WO23+WS23+WW23+XA23+XE23 -> 20 | XJ23: 5 | XK23: 27 | XL23: 0 | XO23: 1 | XW23: 1 | YA23: 1 | YE23: 1 | YI23: 1 | YM23: 1 | YQ23: 1 | YY23: 1 | ZC23: 1 | ZG23: 1 | ZK23: 1 | ZO23: 1 | ZS23: 1 | AAA23: 1 | AAI23: 1 | AAM23: 1 | AAQ23: 1 | AAU23: 1 | ABC23: 1 | ABG23: 1 | ABK23: 1 | ABO23: 1 | ABS23: 1 | ABW23: 1 | ACC23: =XM23+XQ23+XU23+XY23+YC23+YG23+YK23+YO23+YS23+YW23+ZA23+ZE23+ZI23+ZM23+ZQ23+ZU23+ZY23+AAC23+AAG23+AAK23+AAO23+AAS23+AAW23+ABA23+ABE23+ABI23+ABM23+ABQ23+ABU23+ABY23 -> 0 | ACD23: 0 | ACE23: 24 | ACF23: 0 | ACI23: 1 | ACM23: 1 | ACQ23: 1 | ACU23: 1 | ACY23: 1 | ADC23: 1 | ADK23: 1 | ADO23: 1 | ADS23: 1 | ADW23: 1 | AEA23: 1 | AED23: 5 | AEE23: 1 | AEL23: 5 | AEM23: 1 | AEQ23: 1 | AEU23: 1 | AEY23: 1 | AFC23: 1 | AFG23: 1 | AFO23: 1 | AFS23: 1 | AFW23: 1 | AGA23: 1 | AGE23: 1 | AGI23: 1 | AGQ23: 1 | AGU23: 1 | AGY23: 1 | AHA23: =ACG23+ACK23+ACO23+ACS23+ACW23+ADA23+ADE23+ADI23+ADM23+ADQ23+ADU23+ADY23+AEC23+AEG23+AEK23+AEO23+AES23+AEW23+AFA23+AFE23+AFI23+AFM23+AFQ23+AFU23+AFY23+AGC23+AGG23+AGK23+AGO23+AGS23+AGW23 -> 0 | AHB23: 10 | AHC23: 27 | AHD23: 0 | AHG23: 1 | AHK23: 1 | AHO23: 1 | AHW23: 1 | AIA23: 1 | AIE23: 1 | AII23: 1 | AIM23: 1 | AIQ23: 1 | AIY23: 1 | AJC23: 1 | AJG23: 1 | AJK23: 1 | AJM23: 6 | AJO23: 1 | AJS23: 1 | AKA23: 1 | AKE23: 1 | AKI23: 1 | AKM23: 1 | AKQ23: 1 | AKU23: 1 | ALC23: 1 | ALG23: 1 | ALK23: 1 | ALO23: 1 | ALS23: 1 | ALW23: 1 | ALY23: =AHE23+AHI23+AHM23+AHQ23+AHU23+AHY23+AIC23+AIG23+AIK23+AIO23+AIS23+AIW23+AJA23+AJE23+AJI23+AJM23+AJQ23+AJU23+AJY23+AKC23+AKG23+AKK23+AKO23+AKS23+AKW23+ALA23+ALE23+ALI23+ALM23+ALQ23+ALU23 -> 6 | ALZ23: 0 | AMA23: 27 | AMB23: 0 | AMI23: 1 | AMM23: 1 | AMQ23: 1 | AMU23: 1 | AMY23: 1 | ANC23: 1 | ANK23: 1 | ANO23: 1 | ANS23: 1 | ANW23: 1 | AOA23: 1 | AOE23: 1 | AOM23: 1 | AOQ23: 1 | AOU23: 1 | AOY23: 1 | APC23: 1 | APG23: 1 | APO23: 1 | APQ23: 5 | APS23: 1 | APV23: 5 | APW23: 1 | APY23: 5 | AQA23: 1 | AQE23: 1 | AQG23: 5 | AQI23: 1 | AQO23: 5 | AQQ23: 1 | AQS23: =AMC23+AMG23+AMK23+AMO23+AMS23+AMW23+ANA23+ANE23+ANI23+ANM23+ANQ23+ANU23+ANY23+AOC23+AOG23+AOK23+AOO23+AOS23+AOW23+APA23+APE23+API23+APM23+APQ23+APU23+APY23+AQC23+AQG23+AQK23+AQO23 -> 20 | AQT23: 5 | AQU23: 25 | AQV23: 0 | AQY23: 1 | ARA23: 2 | ARC23: 1 | ARE23: 2 | ARG23: 1 | ARK23: 1 | ARO23: 1 | ARW23: 1 | ASA23: 1 | ASE23: 1 | ASI23: 1 | ASQ23: 1 | ASY23: 1 | ATC23: 1 | ATG23: 1 | ATM23: 5 | ATO23: 1 | ATQ23: 5 | ATS23: 1 | ATY23: 5 | AUA23: 1 | AUE23: 1 | AUI23: 1 | AUK23: 5 | AUM23: 1 | AUO23: 5 | AUQ23: 1 | AUU23: 1 | AVC23: 1 | AVE23: 5 | AVG23: 1 | AVI23: 5 | AVK23: 1 | AVQ23: =AQW23+ARA23+ARE23+ARI23+ARM23+ARQ23+ARU23+ARY23+ASC23+ASG23+ASK23+ASO23+ASS23+ASW23+ATA23+ATE23+ATI23+ATM23+ATQ23+ATU23+ATY23+AUC23+AUG23+AUK23+AUO23+AUS23+AUW23+AVA23+AVE23+AVI23+AVM23 -> 39 | AVR23: 0 | AVS23: 24 | AVT23: 0 | AVU23: 5 | AVW23: 1 | AWA23: 1 | AWG23: 5 | AWI23: 1 | AWM23: 1 | AWO23: 5 | AWQ23: 1 | AWT23: 2 | AWU23: 1 | AWW23: 5 | AWY23: 1 | AXA23: 5 | AXC23: 1 | AXI23: 2 | AXK23: 1 | AXM23: 4 | AXO23: 1 | AXQ23: 4 | AXS23: 1 | AXU23: 5 | AXW23: 1 | AXY23: 6 | AYA23: 1 | AYC23: 2 | AYD23: 2 | AYE23: 1 | AYK23: 5 | AYM23: 1 | AYO23: 5 | AYQ23: 1 | AYS23: 5 | AYU23: 1 | AYW23: 4 | AYY23: 1 | AZA23: 6 | AZC23: 1 | AZE23: 2 | AZG23: 1 | AZM23: 5 | AZO23: 1 | AZQ23: 4 | AZR23: 3 | AZS23: 1 | AZU23: 5 | AZW23: 1 | AZY23: 5 | BAA23: 1 | BAC23: 5 | BAE23: 1 | BAG23: 5 | BAI23: 1 | BAK23: =AVU23+AVY23+AWC23+AWG23+AWK23+AWO23+AWS23+AWW23+AXA23+AXE23+AXI23+AXM23+AXQ23+AXU23+AXY23+AYC23+AYG23+AYK23+AYO23+AYS23+AYW23+AZA23+AZE23+AZI23+AZM23+AZQ23+AZU23+AZY23+BAC23+BAG23 -> 104 | BAL23: 7 | BAM23: 26 | BAN23: 0 | BAS23: 5 | BAW23: 5 | BAY23: 1 | BBA23: 4 | BBB23: 1 | BBC23: 1 | BBG23: 2 | BBI23: 5 | BBK23: 2 | BBO23: 2 | BBW23: 2 | BBY23: 3 | BCA23: 2 | BCE23: 2 | BCH23: 5 | BCI23: 2 | BCK23: 4 | BCM23: 2 | BCO23: 3 | BCQ23: 2 | BCY23: 2 | BDA23: 3 | BDC23: 2 | BDE23: 2 | BDG23: 2 | BDI23: 5 | BDK23: 2 | BDM23: 5 | BDO23: 2 | BDQ23: 2 | BDS23: 2 | BDY23: 5 | BEA23: 2 | BED23: 5 | BEE23: 2 | BEH23: 5 | BEI23: 2 | BEK23: 5 | BEM23: 2 | BEO23: 5 | BEQ23: 2 | BES23: 4 | BEU23: 2 | BFA23: 5 | BFC23: 2 | BFE23: 5 | BFG23: 2 | BFI23: =BAO23+BAS23+BAW23+BBA23+BBE23+BBI23+BBM23+BBQ23+BBU23+BBY23+BCC23+BCG23+BCK23+BCO23+BCS23+BCW23+BDA23+BDE23+BDI23+BDM23+BDQ23+BDU23+BDY23+BEC23+BEG23+BEK23+BEO23+BES23+BEW23+BFA23+BFE23 -> 75 | BFJ23: 16 | BFK23: 48 | BFL23: 0 | BFM23: =EG23+IS23+NQ23+SK23+XI23+ACC23+AHA23+ALY23+AQS23+AVQ23+BAK23+BFI23 -> 536 | BFN23: 177 | BFO23: 357 | BFP23: 0 | BFQ23: 53.6 | BFR23: 19.66666667 | BFS23: 29.75 | BFT23: 0 | BFU23: 10 | BFV23: 9 | BFW23: 12 | BFX23: 0
A24: 10 | C24: METRO MULTISPECIALITY HOSPITAL | D24: H.No. 5-6-111, Near Teja Hospital, Dwarakanagar, Nizamabad | E24: 50 | K24: Private | L24: Bedded | M24: 5 | N24: 5 | O24: 2 | Q24: 5 | S24: 2 | U24: 5 | V24: 2 | W24: 2 | Y24: 5 | AA24: 2 | AC24: 5 | AD24: 5 | AE24: 2 | AG24: 5 | AH24: 5 | AI24: 2 | AM24: 2 | AO24: 5 | AP24: 2 | AQ24: 2 | AS24: 5 | AT24: 2 | AU24: 2 | AW24: 5 | AX24: 5 | AY24: 2 | BA24: 5 | BC24: 2 | BE24: 5 | BF24: 2 | BG24: 2 | BI24: 5 | BK24: 2 | BQ24: 5 | BR24: 2 | BS24: 2 | BU24: 5 | BV24: 5 | BW24: 2 | BY24: 5 | BZ24: 2 | CA24: 2 | CC24: 5 | CD24: 5 | CE24: 2 | CG24: 5 | CK24: 5 | CL24: 5 | CM24: 2 | CO24: 5 | CQ24: 2 | CS24: 5 | CT24: 5 | CU24: 2 | CW24: 5 | CY24: 2 | DA24: 5 | DB24: 2 | DC24: 2 | DE24: 5 | DG24: 2 | DI24: 5 | DJ24: 5 | DK24: 2 | DM24: 5 | DO24: 2 | DU24: 5 | DV24: 5 | DW24: 2 | DY24: 5 | EA24: 2 | EC24: 5 | EE24: 2 | EG24: 140 | EH24: 64 | EI24: 56 | EJ24: 0 | EK24: 10 | EL24: 5 | EO24: 5 | EQ24: 1 | ES24: 5 | EU24: 1 | FA24: 5 | FC24: 1 | FE24: 5 | FF24: 5 | FG24: 1 | FI24: 5 | FK24: 1 | FM24: 5 | FO24: 1 | FQ24: 5 | FS24: 1 | FU24: 5 | FV24: 5 | FW24: 1 | GC24: 5 | GE24: 1 | GI24: 1 | GM24: 1 | GO24: 5 | GP24: 5 | GQ24: 1 | GU24: 1 | GY24: 1 | HG24: 1 | HI24: 5 | HJ24: 5 | HK24: 1 | HM24: 5 | HN24: 5 | HO24: 1 | HQ24: 5 | HR24: 5 | HS24: 1 | HU24: 5 | HW24: 1 | HY24: 5 | IA24: 1 | IE24: 1 | II24: 1 | IM24: 1 | IP24: 5 | IQ24: 1 | IS24: 85 | IT24: 40 | IU24: 24 | IV24: 0 | IY24: 1 | JC24: 1 | JK24: 1 | JO24: 1 | JS24: 1 | JW24: 1 | KA24: 1 | KE24: 1 | KM24: 1 | KQ24: 1 | KU24: 1 | KY24: 1 | LC24: 1 | LG24: 1 | LO24: 1 | LS24: 1 | LU24: 5 | LW24: 1 | LY24: 5 | MA24: 1 | MD24: 5 | ME24: 1 | MG24: 5 | MI24: 1 | MQ24: 1 | MX24: 5 | MY24: 1 | NC24: 1 | NG24: 1 | NK24: 1 | NQ24: 15 | NR24: 10 | NS24: 25 | NT24: 0 | NW24: 1 | OA24: 1 | OE24: 1 | OH24: 5 | OI24: 1 | OK24: 5 | OM24: 1 | OP24: 5 | OQ24: 1 | OW24: 5 | OY24: 1 | PG24: 1 | PI24: 5 | PK24: 1 | PO24: 1 | PQ24: 5 | QA24: 1 | QE24: 1 | QH24: 5 | QI24: 1 | QK24: 5 | QM24: 1 | QO24: 2 | QQ24: 1 | QU24: 1 | RA24: 5 | RC24: 1 | RF24: 5 | RG24: 1 | RK24: 1 | RO24: 1 | RS24: 1 | RW24: 1 | SE24: 1 | SI24: 1 | SK24: 32 | SL24: 20 | SM24: 24 | SN24: 0 | SQ24: 1 | SU24: 1 | SY24: 1 | TC24: 1 | TK24: 1 | TO24: 1 | TS24: 1 | TW24: 1 | UA24: 1 | UC24: 5 | UE24: 1 | UM24: 1 | UQ24: 1 | UU24: 1 | UW24: 5 | UY24: 1 | VB24: 5 | VC24: 1 | VE24: 5 | VG24: 1 | VO24: 1 | VQ24: 5 | VS24: 1 | VW24: 1 | WA24: 1 | WE24: 1 | WI24: 1 | WQ24: 1 | WU24: 1 | WY24: 1 | XC24: 1 | XG24: 1 | XI24: 20 | XJ24: 5 | XK24: 27 | XL24: 0 | XO24: 1 | XW24: 1 | YA24: 1 | YE24: 1 | YI24: 1 | YM24: 1 | YQ24: 1 | YY24: 1 | ZC24: 1 | ZG24: 1 | ZK24: 1 | ZO24: 1 | ZS24: 1 | AAA24: 1 | AAI24: 1 | AAM24: 1 | AAQ24: 1 | AAU24: 1 | ABC24: 1 | ABG24: 1 | ABK24: 1 | ABO24: 1 | ABS24: 1 | ABW24: 1 | ACC24: 0 | ACD24: 0 | ACE24: 24 | ACF24: 0 | ACI24: 1 | ACM24: 1 | ACQ24: 1 | ACU24: 1 | ACY24: 1 | ADC24: 1 | ADK24: 1 | ADO24: 1 | ADS24: 1 | ADW24: 1 | AEA24: 1 | AED24: 5 | AEE24: 1 | AEL24: 5 | AEM24: 1 | AEQ24: 1 | AEU24: 1 | AEY24: 1 | AFC24: 1 | AFG24: 1 | AFO24: 1 | AFS24: 1 | AFW24: 1 | AGA24: 1 | AGE24: 1 | AGI24: 1 | AGQ24: 1 | AGU24: 1 | AGY24: 1 | AHA24: 0 | AHB24: 10 | AHC24: 27 | AHD24: 0 | AHG24: 1 | AHK24: 1 | AHO24: 1 | AHW24: 1 | AIA24: 1 | AIE24: 1 | AII24: 1 | AIM24: 1 | AIQ24: 1 | AIY24: 1 | AJC24: 1 | AJG24: 1 | AJK24: 1 | AJM24: 6 | AJO24: 1 | AJS24: 1 | AKA24: 1 | AKE24: 1 | AKI24: 1 | AKM24: 1 | AKQ24: 1 | AKU24: 1 | ALC24: 1 | ALG24: 1 | ALK24: 1 | ALO24: 1 | ALS24: 1 | ALW24: 1 | ALY24: 6 | ALZ24: 0 | AMA24: 27 | AMB24: 0 | AMI24: 1 | AMM24: 1 | AMQ24: 1 | AMU24: 1 | AMY24: 1 | ANC24: 1 | ANK24: 1 | ANO24: 1 | ANS24: 1 | ANW24: 1 | AOA24: 1 | AOE24: 1 | AOM24: 1 | AOQ24: 1 | AOU24: 1 | AOY24: 1 | APC24: 1 | APG24: 1 | APO24: 1 | APQ24: 5 | APS24: 1 | APV24: 5 | APW24: 1 | APY24: 5 | AQA24: 1 | AQE24: 1 | AQG24: 5 | AQI24: 1 | AQO24: 5 | AQQ24: 1 | AQS24: 20 | AQT24: 5 | AQU24: 25 | AQV24: 0 | AQY24: 1 | ARA24: 2 | ARC24: 1 | ARE24: 2 | ARG24: 1 | ARK24: 1 | ARO24: 1 | ARW24: 1 | ASA24: 1 | ASE24: 1 | ASI24: 1 | ASQ24: 1 | ASY24: 1 | ATC24: 1 | ATG24: 1 | ATM24: 5 | ATO24: 1 | ATQ24: 5 | ATS24: 1 | ATY24: 5 | AUA24: 1 | AUE24: 1 | AUI24: 1 | AUK24: 5 | AUM24: 1 | AUO24: 5 | AUQ24: 1 | AUU24: 1 | AVC24: 1 | AVE24: 5 | AVG24: 1 | AVI24: 5 | AVK24: 1 | AVQ24: 39 | AVR24: 0 | AVS24: 24 | AVT24: 0 | AVU24: 5 | AVW24: 1 | AWA24: 1 | AWG24: 5 | AWI24: 1 | AWM24: 1 | AWO24: 5 | AWQ24: 1 | AWT24: 2 | AWU24: 1 | AWW24: 5 | AWY24: 1 | AXA24: 5 | AXC24: 1 | AXI24: 2 | AXK24: 1 | AXM24: 4 | AXO24: 1 | AXQ24: 4 | AXS24: 1 | AXU24: 5 | AXW24: 1 | AXY24: 6 | AYA24: 1 | AYC24: 2 | AYD24: 2 | AYE24: 1 | AYK24: 5 | AYM24: 1 | AYO24: 5 | AYQ24: 1 | AYS24: 5 | AYU24: 1 | AYW24: 4 | AYY24: 1 | AZA24: 6 | AZC24: 1 | AZE24: 2 | AZG24: 1 | AZM24: 5 | AZO24: 1 | AZQ24: 4 | AZR24: 3 | AZS24: 1 | AZU24: 5 | AZW24: 1 | AZY24: 5 | BAA24: 1 | BAC24: 5 | BAE24: 1 | BAG24: 5 | BAI24: 1 | BAK24: 104 | BAL24: 7 | BAM24: 26 | BAN24: 0 | BAS24: 5 | BAW24: 5 | BAY24: 1 | BBA24: 4 | BBB24: 1 | BBC24: 1 | BBG24: 2 | BBI24: 5 | BBK24: 2 | BBO24: 2 | BBW24: 2 | BBY24: 3 | BCA24: 2 | BCE24: 2 | BCH24: 5 | BCI24: 2 | BCK24: 4 | BCM24: 2 | BCO24: 3 | BCQ24: 2 | BCY24: 2 | BDA24: 3 | BDC24: 2 | BDE24: 2 | BDG24: 2 | BDI24: 5 | BDK24: 2 | BDM24: 5 | BDO24: 2 | BDQ24: 2 | BDS24: 2 | BDY24: 5 | BEA24: 2 | BED24: 5 | BEE24: 2 | BEH24: 5 | BEI24: 2 | BEK24: 5 | BEM24: 2 | BEO24: 5 | BEQ24: 2 | BES24: 4 | BEU24: 2 | BFA24: 5 | BFC24: 2 | BFE24: 5 | BFG24: 2 | BFI24: 75 | BFJ24: 16 | BFK24: 48 | BFL24: 0 | BFM24: 536 | BFN24: 177 | BFO24: 357 | BFP24: 0 | BFQ24: =IFERROR(BFM24/BFU24,"0") -> 53.6 | BFR24: =IFERROR(BFN24/BFV24,"0") -> 19.66666667 | BFS24: =IFERROR(BFO24/BFW24,"0") -> 29.75 | BFT24: =IFERROR(BFP24/BFX24,"0") -> 0 | BFU24: =IF(EG24>0, 1, 0) + IF(IS24> 0, 1, 0) + IF(NQ24 > 0, 1, 0) + IF(SK24 > 0, 1, 0) +IF(XI24 > 0, 1, 0)+ IF(ACC24 > 0, 1, 0)+ IF(AHA24 > 0, 1, 0)+ IF(ALY24 > 0, 1, 0)+ IF(AQS24 > 0, 1, 0)+ IF(AVQ24 > 0, 1, 0)+ IF(BAK24 > 0, 1, 0)+ IF(BFI24 > 0, 1, 0) -> 10 | BFV24: =IF(EH24>0, 1, 0) + IF(IT24> 0, 1, 0) + IF(NR24 > 0, 1, 0) + IF(SL24 > 0, 1, 0) +IF(XJ24 > 0, 1, 0)+ IF(ACD24 > 0, 1, 0)+ IF(AHB24 > 0, 1, 0)+ IF(ALZ24 > 0, 1, 0)+ IF(AQT24 > 0, 1, 0)+ IF(AVR24 > 0, 1, 0)+ IF(BAL24 > 0, 1, 0)+ IF(BFJ24 > 0, 1, 0) -> 9 | BFW24: =IF(EI24>0, 1, 0) + IF(IU24> 0, 1, 0) + IF(NS24 > 0, 1, 0) + IF(SM24 > 0, 1, 0) +IF(XK24 > 0, 1, 0)+ IF(ACE24 > 0, 1, 0)+ IF(AHC24 > 0, 1, 0)+ IF(AMA24 > 0, 1, 0)+ IF(AQU24 > 0, 1, 0)+ IF(AVS24 > 0, 1, 0)+ IF(BAM24 > 0, 1, 0)+ IF(BFK24 > 0, 1, 0) -> 12 | BFX24: =IF(EJ24>0, 1, 0) + IF(IV24> 0, 1, 0) + IF(NT24 > 0, 1, 0) + IF(SN24 > 0, 1, 0) +IF(XL24 > 0, 1, 0)+ IF(ACF24 > 0, 1, 0)+ IF(AHD24 > 0, 1, 0)+ IF(AMB24 > 0, 1, 0)+ IF(AQV24 > 0, 1, 0)+ IF(AVT24 > 0, 1, 0)+ IF(BAN24 > 0, 1, 0)+ IF(BFL24 > 0, 1, 0) -> 0
A25: 11 | B25: NOVAL503001TSBH08513 | C25: NOVALIFE HOSPITAL | D25: H.No.5-6-293, SARASWATHI NAGAR, NIZAMABAD - 503001. | E25: 50 | H25: Dr. P. RAVINDER REDDY | I25: 9848660888 | J25: novalifehospitals@gmail.com | K25: Private | L25: Bedded | M25: 5 | N25: 5 | O25: 2 | Q25: 5 | R25: 5 | S25: 2 | U25: 5 | V25: 2 | W25: 2 | Y25: 5 | Z25: 2 | AA25: 2 | AC25: 5 | AD25: 5 | AE25: 2 | AG25: 5 | AH25: 5 | AI25: 2 | AM25: 2 | AO25: 5 | AP25: 2 | AQ25: 2 | AS25: 5 | AT25: 2 | AU25: 2 | AW25: 5 | AX25: 5 | AY25: 2 | BA25: 5 | BB25: 5 | BC25: 2 | BE25: 5 | BF25: 2 | BG25: 2 | BI25: 5 | BK25: 2 | BQ25: 5 | BR25: 2 | BS25: 2 | BU25: 5 | BW25: 2 | BY25: 5 | CA25: 2 | CC25: 5 | CE25: 2 | CG25: 5 | CH25: 5 | CJ25: 5 | CK25: 5 | CL25: 5 | CM25: 2 | CO25: 5 | CQ25: 2 | CS25: 5 | CT25: 5 | CU25: 2 | CW25: 5 | CX25: 5 | CY25: 2 | DA25: 5 | DC25: 2 | DE25: 5 | DG25: 2 | DI25: 5 | DK25: 2 | DM25: 5 | DO25: 2 | DU25: 5 | DW25: 2 | DY25: 5 | EA25: 2 | EC25: 5 | EE25: 2 | EG25: 140 | EH25: 62 | EI25: 56 | EJ25: 5 | EK25: 5 | EO25: 5 | EQ25: 1 | ES25: 5 | EU25: 1 | FA25: 5 | FC25: 1 | FE25: 5 | FG25: 1 | FI25: 5 | FK25: 1 | FM25: 5 | FO25: 1 | FQ25: 5 | FS25: 1 | FU25: 5 | FV25: 5 | FW25: 1 | GC25: 5 | GE25: 1 | GG25: 5 | GH25: 5 | GI25: 1 | GM25: 1 | GO25: 10 | GP25: 5 | GQ25: 1 | GT25: 5 | GU25: 1 | GW25: 5 | GY25: 1 | HG25: 1 | HI25: 5 | HK25: 1 | HO25: 1 | HS25: 1 | HW25: 1 | HY25: 5 | IA25: 1 | IC25: 5 | IE25: 1 | IG25: 5 | II25: 1 | IM25: 1 | IP25: 5 | IQ25: 1 | IS25: 90 | IT25: 25 | IU25: 24 | IV25: 0 | IY25: 1 | JA25: 5 | JC25: 1 | JK25: 1 | JM25: 5 | JO25: 1 | JQ25: 5 | JR25: 5 | JS25: 1 | JU25: 5 | JV25: 5 | JW25: 1 | JY25: 5 | JZ25: 5 | KA25: 1 | KE25: 1 | KK25: 5 | KM25: 1 | KO25: 5 | KP25: 5 | KQ25: 1 | KU25: 1 | KY25: 1 | LC25: 1 | LG25: 1 | LO25: 1 | LS25: 1 | LW25: 1 | LZ25: 5 | MA25: 1 | ME25: 1 | MI25: 1 | MO25: 5 | MP25: 5 | MQ25: 1 | MY25: 1 | NC25: 1 | NG25: 1 | NK25: 1 | NQ25: 40 | NR25: 30 | NS25: 25 | NT25: 0 | NW25: 1 | OA25: 1 | OE25: 1 | OI25: 1 | OM25: 1 | OQ25: 1 | OY25: 1 | PG25: 1 | PI25: 5 | PJ25: 5 | PK25: 1 | PO25: 1 | PQ25: 5 | QA25: 1 | QE25: 1 | QI25: 1 | QM25: 1 | QO25: 3 | QP25: 3 | QQ25: 1 | QS25: 5 | QT25: 5 | QU25: 1 | RA25: 5 | RB25: 5 | RC25: 1 | RE25: 5 | RF25: 5 | RG25: 1 | RK25: 1 | RO25: 1 | RQ25: 5 | RR25: 5 | RS25: 1 | RU25: 5 | RV25: 5 | RW25: 1 | SC25: 5 | SD25: 5 | SE25: 1 | SG25: 5 | SI25: 1 | SK25: 48 | SL25: 38 | SM25: 24 | SN25: 0 | SO25: 5 | SP25: 5 | SQ25: 1 | SS25: 5 | ST25: 5 | SU25: 1 | SW25: 5 | SX25: 5 | SY25: 1 | TA25: 5 | TB25: 5 | TC25: 1 | TI25: 5 | TJ25: 5 | TK25: 1 | TM25: 5 | TO25: 1 | TR25: 5 | TS25: 1 | TU25: 5 | TW25: 1 | TZ25: 5 | UA25: 1 | UD25: 5 | UE25: 1 | UL25: 5 | UM25: 1 | UP25: 5 | UQ25: 1 | UT25: 5 | UU25: 1 | UX25: 5 | UY25: 1 | VB25: 5 | VC25: 1 | VE25: 5 | VG25: 1 | VM25: 5 | VO25: 1 | VQ25: 5 | VS25: 1 | VV25: 5 | VW25: 1 | VY25: 5 | WA25: 1 | WE25: 1 | WI25: 1 | WQ25: 1 | WU25: 1 | WY25: 1 | XA25: 5 | XC25: 1 | XG25: 1 | XI25: 60 | XJ25: 70 | XK25: 27 | XL25: 0 | XO25: 1 | XW25: 1 | XY25: 5 | YA25: 1 | YD25: 5 | YE25: 1 | YH25: 5 | YI25: 1 | YK25: 5 | YM25: 1 | YQ25: 1 | YY25: 1 | ZA25: 5 | ZC25: 1 | ZE25: 5 | ZG25: 1 | ZJ25: 5 | ZK25: 1 | ZN25: 3 | ZO25: 1 | ZQ25: 5 | ZS25: 1 | AAA25: 1 | AAE25: 5 | AAI25: 1 | AAK25: 4 | AAM25: 1 | AAP25: 6 | AAQ25: 1 | AAU25: 1 | ABA25: 5 | ABC25: 1 | ABF25: 5 | ABG25: 1 | ABJ25: 3 | ABK25: 1 | ABM25: 5 | ABO25: 1 | ABQ25: 5 | ABS25: 1 | ABV25: 5 | ABW25: 1 | ACC25: 44 | ACD25: 37 | ACE25: 29 | ACF25: 0 | ACI25: 1 | ACL25: 5 | ACM25: 1 | ACQ25: 1 | ACT25: 5 | ACU25: 1 | ACY25: 1 | ADC25: 1 | ADI25: 5 | ADK25: 1 | ADM25: 5 | ADO25: 1 | ADS25: 1 | ADW25: 1 | ADY25: 5 | AEA25: 1 | AEE25: 1 | AEL25: 5 | AEM25: 1 | AEP25: 5 | AEQ25: 1 | AET25: 5 | AEU25: 1 | AEX25: 5 | AEY25: 1 | AFB25: 5 | AFC25: 1 | AFF25: 5 | AFG25: 1 | AFO25: 1 | AFR25: 5 | AFS25: 1 | AFW25: 1 | AGA25: 1 | AGE25: 1 | AGG25: 6 | AGI25: 1 | AGP25: 5 | AGQ25: 1 | AGT25: 6 | AGU25: 1 | AGW25: 5 | AGY25: 1 | AHA25: 26 | AHB25: 56 | AHC25: 27 | AHD25: 0 | AHG25: 1 | AHJ25: 5 | AHK25: 1 | AHO25: 1 | AHV25: 5 | AHW25: 1 | AHZ25: 5 | AIA25: 1 | AID25: 5 | AIE25: 1 | AIH25: 5 | AII25: 1 | AIL25: 5 | AIM25: 1 | AIP25: 5 | AIQ25: 1 | AIX25: 4 | AIY25: 1 | AJC25: 1 | AJE25: 6 | AJG25: 1 | AJJ25: 6 | AJK25: 1 | AJN25: 6 | AJO25: 1 | AJR25: 6 | AJS25: 1 | AJZ25: 3 | AKA25: 1 | AKD25: 5 | AKE25: 1 | AKH25: 6 | AKI25: 1 | AKK25: 5 | AKM25: 1 | AKO25: 5 | AKQ25: 1 | AKU25: 1 | ALB25: 6 | ALC25: 1 | ALG25: 1 | ALI25: 5 | ALK25: 1 | ALM25: 5 | ALO25: 1 | ALQ25: 5 | ALS25: 1 | ALU25: 5 | ALW25: 1 | ALY25: 36 | ALZ25: 77 | AMA25: 27 | AMB25: 0 | AMG25: 5 | AMI25: 1 | AMK25: 2 | AMM25: 1 | AMO25: 5 | AMQ25: 1 | AMS25: 6 | AMU25: 1 | AMW25: 5 | AMY25: 1 | ANA25: 5 | ANC25: 1 | ANI25: 5 | ANK25: 1 | ANM25: 5 | ANO25: 1 | ANS25: 1 | ANU25: 5 | ANW25: 1 | ANY25: 5 | AOA25: 1 | AOE25: 1 | AOL25: 2 | AOM25: 1 | AOO25: 5 | AOQ25: 1 | AOS25: 5 | AOU25: 1 | AOY25: 1 | APA25: 5 | APC25: 1 | APG25: 1 | APO25: 1 | APS25: 1 | APU25: 5 | APW25: 1 | APZ25: 5 | AQA25: 1 | AQE25: 1 | AQH25: 5 | AQI25: 1 | AQO25: 5 | AQQ25: 1 | AQS25: 73 | AQT25: 12 | AQU25: 25 | AQV25: 0 | AQW25: 5 | AQY25: 1 | ARA25: 5 | ARC25: 1 | ARE25: 5 | ARG25: 1 | ARI25: 5 | ARK25: 1 | ARM25: 5 | ARO25: 1 | ARU25: 5 | ARW25: 1 | ARY25: 5 | ASA25: 1 | ASC25: 5 | ASE25: 1 | ASG25: 5 | ASI25: 1 | ASO25: 6 | ASQ25: 1 | ASY25: 1 | ATC25: 1 | ATG25: 1 | ATO25: 1 | ATQ25: 5 | ATS25: 1 | ATY25: 5 | AUA25: 1 | AUE25: 1 | AUI25: 1 | AUM25: 1 | AUQ25: 1 | AUU25: 1 | AVC25: 1 | AVG25: 1 | AVK25: 1 | AVQ25: 61 | AVR25: 0 | AVS25: 24 | AVT25: 0 | AVU25: 2 | AVW25: 1 | AVY25: 5 | AWA25: 1 | AWG25: 5 | AWI25: 1 | AWM25: 1 | AWO25: 5 | AWQ25: 1 | AWS25: 5 | AWU25: 1 | AWW25: 5 | AWY25: 1 | AXB25: 5 | AXC25: 1 | AXI25: 5 | AXK25: 1 | AXN25: 5 | AXO25: 1 | AXR25: 5 | AXS25: 1 | AXV25: 2 | AXW25: 1 | AXY25: 5 | AYA25: 1 | AYC25: 2 | AYE25: 1 | AYL25: 5 | AYM25: 1 | AYP25: 5 | AYQ25: 1 | AYS25: 5 | AYU25: 1 | AYW25: 5 | AYY25: 1 | AZA25: 5 | AZC25: 1 | AZF25: 2 | AZG25: 1 | AZM25: 5 | AZO25: 1 | AZQ25: 5 | AZS25: 1 | AZU25: 2 | AZW25: 1 | AZY25: 5 | BAA25: 1 | BAC25: 5 | BAE25: 1 | BAG25: 5 | BAI25: 1 | BAK25: 81 | BAL25: 29 | BAM25: 26 | BAN25: 0 | BAU25: 5 | BAY25: 1 | BBC25: 1 | BBG25: 2 | BBJ25: 4 | BBK25: 2 | BBN25: 5 | BBO25: 2 | BBV25: 4 | BBW25: 2 | BBZ25: 6 | BCA25: 2 | BCE25: 2 | BCH25: 5 | BCI25: 2 | BCK25: 4 | BCM25: 2 | BCP25: 5 | BCQ25: 2 | BCX25: 4 | BCY25: 2 | BDA25: 6 | BDC25: 2 | BDE25: 4 | BDG25: 2 | BDI25: 7 | BDK25: 2 | BDO25: 2 | BDQ25: 4 | BDS25: 2 | BEA25: 2 | BEC25: 2 | BEE25: 2 | BEH25: 6 | BEI25: 2 | BEK25: 4 | BEM25: 2 | BEP25: 5 | BEQ25: 2 | BEU25: 2 | BFC25: 2 | BFF25: 5 | BFG25: 2 | BFI25: 31 | BFJ25: 49 | BFK25: 53 | BFL25: 0 | BFM25: 730 | BFN25: 485 | BFO25: 367 | BFP25: 5 | BFQ25: 60.83333333 | BFR25: 44.09090909 | BFS25: 30.58333333 | BFT25: 5 | BFU25: 12 | BFV25: 11 | BFW25: 12 | BFX25: 1
A26: 12 | B26: RRLIF503001TSBH00887 | C26: R R LIFE LINE HOSPITAL NIZAMABAD | D26: H.No. 5-6-766/1, OPP. RED CROSS BLOOD BANK, KHALEEL WADI, NIZAMABAD - 503001. | E26: 50 | H26: Dr. K. RAMESH | I26: 9849432772 | J26: rrlifelinehospital@gmail.com | K26: Private | L26: Bedded | M26: 5 | N26: 5 | O26: 2 | Q26: 5 | R26: 5 | S26: 2 | U26: 5 | V26: 5 | W26: 2 | Y26: 5 | Z26: 2 | AA26: 2 | AC26: 5 | AD26: 5 | AE26: 2 | AG26: 5 | AH26: 5 | AI26: 2 | AM26: 2 | AO26: 5 | AP26: 2 | AQ26: 2 | AS26: 2 | AT26: 2 | AU26: 2 | AW26: 5 | AX26: 5 | AY26: 2 | BA26: 5 | BB26: 5 | BC26: 2 | BE26: 5 | BF26: 2 | BG26: 2 | BI26: 5 | BK26: 2 | BQ26: 5 | BR26: 2 | BS26: 2 | BU26: 5 | BV26: 5 | BW26: 2 | BY26: 5 | CA26: 2 | CC26: 5 | CE26: 2 | CG26: 5 | CI26: 3 | CJ26: 3 | CK26: 5 | CM26: 2 | CO26: 5 | CQ26: 2 | CS26: 5 | CU26: 2 | CW26: 5 | CY26: 2 | DA26: 5 | DC26: 2 | DE26: 5 | DF26: 5 | DG26: 2 | DI26: 5 | DK26: 2 | DM26: 5 | DN26: 5 | DO26: 2 | DU26: 5 | DW26: 2 | DY26: 5 | EA26: 2 | EC26: 5 | ED26: 5 | EE26: 2 | EG26: 137 | EH26: 65 | EI26: 59 | EJ26: 3 | EK26: 5 | EL26: 5 | EO26: 5 | EP26: 5 | EQ26: 1 | ES26: 5 | ET26: 5 | EU26: 1 | FA26: 5 | FB26: 5 | FC26: 1 | FE26: 5 | FF26: 5 | FG26: 1 | FI26: 5 | FJ26: 5 | FK26: 1 | FM26: 5 | FO26: 1 | FQ26: 5 | FR26: 5 | FS26: 1 | FU26: 5 | FV26: 5 | FW26: 1 | GC26: 5 | GD26: 5 | GE26: 1 | GG26: 5 | GH26: 5 | GI26: 1 | GK26: 5 | GL26: 5 | GM26: 1 | GO26: 5 | GP26: 5 | GQ26: 1 | GS26: 5 | GT26: 5 | GU26: 1 | GW26: 5 | GX26: 5 | GY26: 1 | HE26: 5 | HF26: 5 | HG26: 1 | HI26: 5 | HJ26: 5 | HK26: 1 | HM26: 5 | HN26: 5 | HO26: 1 | HQ26: 5 | HR26: 5 | HS26: 1 | HU26: 5 | HV26: 5 | HW26: 1 | HY26: 5 | HZ26: 5 | IA26: 1 | IC26: 5 | ID26: 5 | IE26: 1 | IG26: 5 | IH26: 5 | II26: 1 | IM26: 1 | IO26: 5 | IQ26: 1 | IS26: 120 | IT26: 110 | IU26: 24 | IV26: 0 | IX26: 5 | IY26: 1 | JB26: 5 | JC26: 1 | JJ26: 5 | JK26: 1 | JM26: 5 | JN26: 5 | JO26: 1 | JS26: 1 | JW26: 1 | KA26: 1 | KE26: 1 | KK26: 5 | KL26: 5 | KM26: 1 | KO26: 5 | KP26: 5 | KQ26: 1 | KU26: 1 | KW26: 5 | KX26: 5 | KY26: 1 | LB26: 5 | LC26: 1 | LE26: 5 | LF26: 5 | LG26: 1 | LM26: 5 | LN26: 5 | LO26: 1 | LS26: 1 | LU26: 5 | LV26: 5 | LW26: 1 | LY26: 5 | LZ26: 5 | MA26: 1 | MC26: 5 | MD26: 5 | ME26: 1 | MG26: 5 | MH26: 5 | MI26: 1 | MO26: 5 | MP26: 5 | MQ26: 1 | MW26: 5 | MX26: 5 | MY26: 1 | NA26: 5 | NC26: 1 | NE26: 5 | NF26: 5 | NG26: 1 | NI26: 5 | NK26: 1 | NQ26: 75 | NR26: 85 | NS26: 25 | NT26: 0 | NU26: 5 | NV26: 5 | NW26: 1 | NY26: 5 | NZ26: 5 | OA26: 1 | OC26: 5 | OD26: 5 | OE26: 1 | OG26: 5 | OH26: 5 | OI26: 1 | OK26: 5 | OL26: 5 | OM26: 1 | OO26: 5 | OP26: 5 | OQ26: 1 | OW26: 5 | OX26: 5 | OY26: 1 | PG26: 1 | PI26: 5 | PJ26: 5 | PK26: 1 | PM26: 5 | PN26: 5 | PO26: 1 | PQ26: 5 | PR26: 5 | QA26: 1 | QC26: 5 | QD26: 5 | QE26: 1 | QG26: 5 | QH26: 5 | QI26: 1 | QK26: 5 | QL26: 5 | QM26: 1 | QO26: 2 | QP26: 2 | QQ26: 1 | QS26: 5 | QU26: 1 | RA26: 5 | RB26: 5 | RC26: 1 | RF26: 5 | RG26: 1 | RK26: 1 | RO26: 1 | RQ26: 5 | RR26: 5 | RS26: 1 | RU26: 5 | RV26: 5 | RW26: 1 | SC26: 5 | SD26: 5 | SE26: 1 | SI26: 1 | SK26: 92 | SL26: 92 | SM26: 24 | SN26: 0 | SO26: 5 | SP26: 5 | SQ26: 1 | SS26: 5 | ST26: 5 | SU26: 1 | SW26: 5 | SX26: 5 | SY26: 1 | TA26: 5 | TB26: 5 | TC26: 1 | TJ26: 5 | TK26: 1 | TN26: 5 | TO26: 1 | TQ26: 5 | TR26: 5 | TS26: 1 | TU26: 5 | TW26: 1 | TZ26: 5 | UA26: 1 | UC26: 5 | UE26: 1 | UL26: 5 | UM26: 1 | UP26: 5 | UQ26: 1 | UT26: 5 | UU26: 1 | UX26: 5 | UY26: 1 | VB26: 5 | VC26: 1 | VE26: 5 | VG26: 1 | VN26: 5 | VO26: 1 | VR26: 5 | VS26: 1 | VV26: 5 | VW26: 1 | VZ26: 5 | WA26: 1 | WD26: 5 | WE26: 1 | WH26: 5 | WI26: 1 | WQ26: 1 | WU26: 1 | WY26: 1 | XB26: 3 | XC26: 1 | XG26: 1 | XI26: 40 | XJ26: 98 | XK26: 27 | XL26: 0 | XO26: 1 | XV26: 5 | XW26: 1 | XZ26: 5 | YA26: 1 | YC26: 5 | YE26: 1 | YG26: 5 | YI26: 1 | YL26: 5 | YM26: 1 | YP26: 5 | YQ26: 1 | YY26: 1 | ZA26: 5 | ZC26: 1 | ZE26: 5 | ZG26: 1 | ZI26: 5 | ZK26: 1 | ZM26: 3 | ZO26: 1 | ZQ26: 5 | ZS26: 1 | ZY26: 5 | AAA26: 1 | AAC26: 4 | AAI26: 1 | AAK26: 3 | AAM26: 1 | AAP26: 3 | AAQ26: 1 | AAU26: 1 | ABA26: 4 | ABC26: 1 | ABG26: 1 | ABK26: 1 | ABO26: 1 | ABS26: 1 | ABW26: 1 | ACC26: 49 | ACD26: 23 | ACE26: 24 | ACF26: 0 | ACI26: 1 | ACL26: 5 | ACM26: 1 | ACQ26: 1 | ACT26: 5 | ACU26: 1 | ACY26: 1 | ADC26: 1 | ADJ26: 5 | ADK26: 1 | ADN26: 2 | ADO26: 1 | ADR26: 5 | ADS26: 1 | ADV26: 5 | ADW26: 1 | ADZ26: 5 | AEA26: 1 | AED26: 5 | AEE26: 1 | AEL26: 5 | AEM26: 1 | AEO26: 3 | AEQ26: 1 | AEU26: 1 | AEX26: 3 | AEY26: 1 | AFB26: 4 | AFC26: 1 | AFF26: 3 | AFG26: 1 | AFO26: 1 | AFR26: 3 | AFS26: 1 | AFV26: 3 | AFW26: 1 | AFZ26: 4 | AGA26: 1 | AGC26: 3 | AGE26: 1 | AGH26: 3 | AGI26: 1 | AGP26: 5 | AGQ26: 1 | AGT26: 3 | AGU26: 1 | AGX26: 3 | AGY26: 1 | AHA26: 6 | AHB26: 76 | AHC26: 27 | AHD26: 0 | AHE26: 3 | AHG26: 1 | AHI26: 5 | AHK26: 1 | AHN26: 5 | AHO26: 1 | AHU26: 5 | AHW26: 1 | AHY26: 5 | AIA26: 1 | AIC26: 5 | AIE26: 1 | AIG26: 5 | AII26: 1 | AIL26: 5 | AIM26: 1 | AIO26: 5 | AIQ26: 1 | AIX26: 3 | AIY26: 1 | AJB26: 3 | AJC26: 1 | AJF26: 3 | AJG26: 1 | AJI26: 3 | AJK26: 1 | AJM26: 3 | AJO26: 1 | AJQ26: 3 | AJS26: 1 | AJY26: 3 | AKA26: 1 | AKC26: 3 | AKE26: 1 | AKG26: 3 | AKI26: 1 | AKL26: 3 | AKM26: 1 | AKP26: 3 | AKQ26: 1 | AKS26: 3 | AKU26: 1 | ALA26: 3 | ALC26: 1 | ALE26: 5 | ALG26: 1 | ALJ26: 5 | ALK26: 1 | ALN26: 5 | ALO26: 1 | ALR26: 2 | ALS26: 1 | ALV26: 5 | ALW26: 1 | ALY26: 62 | ALZ26: 42 | AMA26: 27 | AMB26: 0 | AMG26: 5 | AMI26: 1 | AMK26: 5 | AMM26: 1 | AMO26: 3 | AMQ26: 1 | AMS26: 3 | AMU26: 1 | AMX26: 5 | AMY26: 1 | ANB26: 5 | ANC26: 1 | ANI26: 2 | ANJ26: 5 | ANK26: 1 | ANM26: 2 | ANN26: 5 | ANO26: 1 | ANR26: 5 | ANS26: 1 | ANV26: 5 | ANW26: 1 | AOA26: 1 | AOE26: 1 | AOL26: 5 | AOM26: 1 | AOP26: 2 | AOQ26: 1 | AOU26: 1 | AOX26: 5 | AOY26: 1 | APA26: 5 | APC26: 1 | APG26: 1 | APN26: 5 | APO26: 1 | APR26: 5 | APS26: 1 | APU26: 5 | APW26: 1 | APY26: 5 | AQA26: 1 | AQC26: 5 | AQE26: 1 | AQG26: 5 | AQI26: 1 | AQO26: 5 | AQQ26: 1 | AQS26: 50 | AQT26: 52 | AQU26: 25 | AQV26: 0 | AQW26: 3 | AQY26: 1 | ARB26: 3 | ARC26: 1 | ARE26: 3 | ARG26: 1 | ARI26: 6 | ARK26: 1 | ARM26: 3 | ARO26: 1 | ARU26: 3 | ARW26: 1 | ARY26: 3 | ASA26: 1 | ASC26: 3 | ASE26: 1 | ASG26: 2 | ASI26: 1 | ASO26: 3 | ASQ26: 1 | ASW26: 3 | ASY26: 1 | ATA26: 2 | ATC26: 1 | ATE26: 3 | ATG26: 1 | ATM26: 3 | ATO26: 1 | ATQ26: 2 | ATS26: 1 | ATY26: 2 | AUA26: 1 | AUC26: 2 | AUE26: 1 | AUH26: 3 | AUI26: 1 | AUL26: 3 | AUM26: 1 | AUO26: 3 | AUQ26: 1 | AUS26: 3 | AUU26: 1 | AVA26: 2 | AVC26: 1 | AVF26: 3 | AVG26: 1 | AVK26: 1 | AVQ26: 54 | AVR26: 12 | AVS26: 24 | AVT26: 0 | AVU26: 5 | AVW26: 1 | AWA26: 1 | AWG26: 2 | AWI26: 1 | AWK26: 5 | AWM26: 1 | AWO26: 2 | AWQ26: 1 | AWS26: 5 | AWU26: 1 | AWW26: 5 | AWY26: 1 | AXA26: 5 | AXC26: 1 | AXJ26: 5 | AXK26: 1 | AXM26: 3 | AXO26: 1 | AXQ26: 3 | AXS26: 1 | AXU26: 5 | AXW26: 1 | AXZ26: 4 | AYA26: 1 | AYD26: 5 | AYE26: 1 | AYK26: 5 | AYM26: 1 | AYO26: 5 | AYQ26: 1 | AYS26: 5 | AYU26: 1 | AYW26: 3 | AYY26: 1 | AZB26: 5 | AZC26: 1 | AZE26: 5 | AZG26: 1 | AZN26: 5 | AZO26: 1 | AZQ26: 5 | AZR26: 2 | AZS26: 1 | AZU26: 5 | AZW26: 1 | AZY26: 5 | BAA26: 1 | BAC26: 5 | BAE26: 1 | BAG26: 3 | BAI26: 1 | BAK26: 86 | BAL26: 26 | BAM26: 26 | BAN26: 0 | BAS26: 3 | BAW26: 3 | BAY26: 1 | BBA26: 3 | BBC26: 1 | BBE26: 3 | BBG26: 2 | BBI26: 3 | BBK26: 2 | BBM26: 3 | BBO26: 2 | BBW26: 2 | BCA26: 2 | BCC26: 3 | BCE26: 2 | BCI26: 2 | BCM26: 2 | BCQ26: 2 | BCW26: 2 | BCY26: 2 | BDB26: 3 | BDC26: 2 | BDE26: 2 | BDG26: 2 | BDJ26: 3 | BDK26: 2 | BDO26: 2 | BDR26: 2 | BDS26: 2 | BDZ26: 3 | BEA26: 2 | BED26: 3 | BEE26: 2 | BEI26: 2 | BEL26: 3 | BEM26: 2 | BEQ26: 2 | BES26: 3 | BEU26: 2 | BFB26: 3 | BFC26: 2 | BFG26: 2 | BFI26: 28 | BFJ26: 20 | BFK26: 48 | BFL26: 0 | BFM26: 799 | BFN26: 701 | BFO26: 360 | BFP26: 3 | BFQ26: 66.58333333 | BFR26: 58.41666667 | BFS26: 30 | BFT26: 3 | BFU26: 12 | BFV26: 12 | BFW26: 12 | BFX26: 1
A27: 13 | C27: SAI NEURO SUPER SPECIALITY HOSPITAL | D27: H.NO. 5-6-36, Road No -2, Khaleelwadi, Nizamabad 503003 | E27: 50 | K27: Private | L27: Bedded | M27: 5 | N27: 5 | O27: 2 | Q27: 5 | R27: 5 | S27: 2 | U27: 5 | V27: 5 | W27: 2 | Y27: 5 | Z27: 2 | AA27: 2 | AC27: 5 | AD27: 5 | AE27: 2 | AG27: 5 | AH27: 5 | AI27: 2 | AM27: 2 | AO27: 5 | AP27: 2 | AQ27: 2 | AS27: 2 | AT27: 2 | AU27: 2 | AW27: 5 | AX27: 5 | AY27: 2 | BA27: 5 | BB27: 5 | BC27: 2 | BE27: 5 | BF27: 2 | BG27: 2 | BI27: 5 | BK27: 2 | BQ27: 5 | BR27: 2 | BS27: 2 | BU27: 5 | BV27: 5 | BW27: 2 | BY27: 5 | CA27: 2 | CC27: 5 | CE27: 2 | CG27: 5 | CI27: 3 | CJ27: 3 | CK27: 5 | CM27: 2 | CO27: 5 | CQ27: 2 | CS27: 5 | CU27: 2 | CW27: 5 | CY27: 2 | DA27: 5 | DC27: 2 | DE27: 5 | DF27: 5 | DG27: 2 | DI27: 5 | DK27: 2 | DM27: 5 | DN27: 5 | DO27: 2 | DU27: 5 | DW27: 2 | DY27: 5 | EA27: 2 | EC27: 5 | ED27: 5 | EE27: 2 | EG27: =M27+Q27+U27+Y27+AC27+AG27+AK27+AO27+AS27+AW27+BA27+BE27+BI27+BM27+BQ27+BU27+BY27+CC27+CG27+CK27+CO27+CS27+CW27+DA27+DE27+DI27+DM27+DQ27+DU27+DY27+EC27 -> 137 | EH27: =N27+R27+V27+Z27+AD27+AH27+AL27+AP27+AT27+AX27+BB27+BF27+BJ27+BN27+BR27+BV27+BZ27+CD27+CH27+CL27+CP27+CT27+CX27+DB27+DF27+DJ27+DN27+DR27+DV27+DZ27+ED27 -> 65 | EI27: =O27+S27+W27+AA27+AE27+AI27+AM27+AQ27+AU27+AY27+BC27+BG27+BK27+BO27+BS27+BW27+CA27+CE27+CI27+CM27+CQ27+CU27+CY27+DC27+DG27+DK27+DO27+DS27+DW27+EA27+EE27 -> 59 | EJ27: =P27+T27+X27+AB27+AF27+AJ27+AN27+AR27+AV27+AZ27+BD27+BH27+BL27+BP27+BT27+BX27+CB27+CF27+CJ27+CN27+CR27+CV27+CZ27+DD27+DH27+DL27+DP27+DT27+DX27+EB27+EF27 -> 3 | EK27: 5 | EL27: 5 | EO27: 5 | EP27: 5 | EQ27: 1 | ES27: 5 | ET27: 5 | EU27: 1 | FA27: 5 | FB27: 5 | FC27: 1 | FE27: 5 | FF27: 5 | FG27: 1 | FI27: 5 | FJ27: 5 | FK27: 1 | FM27: 5 | FO27: 1 | FQ27: 5 | FR27: 5 | FS27: 1 | FU27: 5 | FV27: 5 | FW27: 1 | GC27: 5 | GD27: 5 | GE27: 1 | GG27: 5 | GH27: 5 | GI27: 1 | GK27: 5 | GL27: 5 | GM27: 1 | GO27: 5 | GP27: 5 | GQ27: 1 | GS27: 5 | GT27: 5 | GU27: 1 | GW27: 5 | GX27: 5 | GY27: 1 | HE27: 5 | HF27: 5 | HG27: 1 | HI27: 5 | HJ27: 5 | HK27: 1 | HM27: 5 | HN27: 5 | HO27: 1 | HQ27: 5 | HR27: 5 | HS27: 1 | HU27: 5 | HV27: 5 | HW27: 1 | HY27: 5 | HZ27: 5 | IA27: 1 | IC27: 5 | ID27: 5 | IE27: 1 | IG27: 5 | IH27: 5 | II27: 1 | IM27: 1 | IO27: 5 | IQ27: 1 | IS27: =EK27+EO27+ES27+EW27+FA27+FE27+FI27+FM27+FQ27+FU27+FY27+GC27+GG27+GK27+GO27+GS27+GW27+HA27+HE27+HI27+HM27+HQ27+HU27+HY27+IC27+IG27+IK27+IO27 -> 120 | IT27: =EL27+EP27+ET27+EX27+FB27+FF27+FJ27+FN27+FR27+FV27+FZ27+GD27+GH27+GL27+GP27+GT27+GX27+HB27+HF27+HJ27+HN27+HR27+HV27+HZ27+ID27+IH27+IL27+IP27 -> 110 | IU27: =EM27+EQ27+EU27+EY27+FC27+FG27+FK27+FO27+FS27+FW27+GA27+GE27+GI27+GM27+GQ27+GU27+GY27+HC27+HG27+HK27+HO27+HS27+HW27+IA27+IE27+II27+IM27+IQ27 -> 24 | IV27: =EN27+ER27+EV27+EZ27+FD27+FH27+FL27+FP27+FT27+FX27+GB27+GF27+GJ27+GN27+GR27+GV27+GZ27+HD27+HH27+HL27+HP27+HT27+HX27+IB27+IF27+IJ27+IN27+IR27 -> 0 | IX27: 5 | IY27: 1 | JB27: 5 | JC27: 1 | JJ27: 5 | JK27: 1 | JM27: 5 | JN27: 5 | JO27: 1 | JS27: 1 | JW27: 1 | KA27: 1 | KE27: 1 | KK27: 5 | KL27: 5 | KM27: 1 | KO27: 5 | KP27: 5 | KQ27: 1 | KU27: 1 | KW27: 5 | KX27: 5 | KY27: 1 | LB27: 5 | LC27: 1 | LE27: 5 | LF27: 5 | LG27: 1 | LM27: 5 | LN27: 5 | LO27: 1 | LS27: 1 | LU27: 5 | LV27: 5 | LW27: 1 | LY27: 5 | LZ27: 5 | MA27: 1 | MC27: 5 | MD27: 5 | ME27: 1 | MG27: 5 | MH27: 5 | MI27: 1 | MO27: 5 | MP27: 5 | MQ27: 1 | MW27: 5 | MX27: 5 | MY27: 1 | NA27: 5 | NC27: 1 | NE27: 5 | NF27: 5 | NG27: 1 | NI27: 5 | NK27: 1 | NQ27: =IW27+JA27+JE27+JI27+JM27+JQ27+JU27+JY27+KC27+KG27+KK27+KO27+KS27+KW27+LA27+LE27+LI27+LM27+LQ27+LU27+LY27+MC27+MG27+MK27+MO27+MS27+MW27+NA27+NE27+NI27+NM27 -> 75 | NR27: =IX27+JB27+JF27+JJ27+JN27+JR27+JV27+JZ27+KD27+KH27+KL27+KP27+KT27+KX27+LB27+LF27+LJ27+LN27+LR27+LV27+LZ27+MD27+MH27+ML27+MP27+MT27+MX27+NB27+NF27+NJ27+NN27 -> 85 | NS27: =IY27+JC27+JG27+JK27+JO27+JS27+JW27+KA27+KE27+KI27+KM27+KQ27+KU27+KY27+LC27+LG27+LK27+LO27+LS27+LW27+MA27+ME27+MI27+MM27+MQ27+MU27+MY27+NC27+NG27+NK27+NO27 -> 25 | NT27: =IZ27+JD27+JH27+JL27+JP27+JT27+JX27+KB27+KF27+KJ27+KN27+KR27+KV27+KZ27+LD27+LH27+LL27+LP27+LT27+LX27+MB27+MF27+MJ27+MN27+MR27+MV27+MZ27+ND27+NH27+NL27+NP27 -> 0 | NU27: 5 | NV27: 5 | NW27: 1 | NY27: 5 | NZ27: 5 | OA27: 1 | OC27: 5 | OD27: 5 | OE27: 1 | OG27: 5 | OH27: 5 | OI27: 1 | OK27: 5 | OL27: 5 | OM27: 1 | OO27: 5 | OP27: 5 | OQ27: 1 | OW27: 5 | OX27: 5 | OY27: 1 | PG27: 1 | PI27: 5 | PJ27: 5 | PK27: 1 | PM27: 5 | PN27: 5 | PO27: 1 | PQ27: 5 | PR27: 5 | QA27: 1 | QC27: 5 | QD27: 5 | QE27: 1 | QG27: 5 | QH27: 5 | QI27: 1 | QK27: 5 | QL27: 5 | QM27: 1 | QO27: 2 | QP27: 2 | QQ27: 1 | QS27: 5 | QU27: 1 | RA27: 5 | RB27: 5 | RC27: 1 | RF27: 5 | RG27: 1 | RK27: 1 | RO27: 1 | RQ27: 5 | RR27: 5 | RS27: 1 | RU27: 5 | RV27: 5 | RW27: 1 | SC27: 5 | SD27: 5 | SE27: 1 | SI27: 1 | SK27: =NU27+NY27+OC27+OG27+OK27+OO27+OS27+OW27+PA27+PE27+PI27+PM27+PQ27+PU27+PY27+QC27+QG27+QK27+QO27+QS27+QW27+RA27+RE27+RI27+RM27+RQ27+RU27+RY27+SC27+SG27 -> 92 | SL27: =NV27+NZ27+OD27+OH27+OL27+OP27+OT27+OX27+PB27+PF27+PJ27+PN27+PR27+PV27+PZ27+QD27+QH27+QL27+QP27+QT27+QX27+RB27+RF27+RJ27+RN27+RR27+RV27+RZ27+SD27+SH27 -> 92 | SM27: =NW27+OA27+OE27+OI27+OM27+OQ27+OU27+OY27+PC27+PG27+PK27+PO27+PS27+PW27+QA27+QE27+QI27+QM27+QQ27+QU27+QY27+RC27+RG27+RK27+RO27+RS27+RW27+SA27+SE27+SI27 -> 24 | SN27: =NX27+OB27+OF27+OJ27+ON27+OR27+OV27+OZ27+PD27+PH27+PL27+PP27+PT27+PX27+QB27+QF27+QJ27+QN27+QR27+QV27+QZ27+RD27+RH27+RL27+RP27+RT27+RX27+SB27+SF27+SJ27 -> 0 | SO27: 5 | SP27: 5 | SQ27: 1 | SS27: 5 | ST27: 5 | SU27: 1 | SW27: 5 | SX27: 5 | SY27: 1 | TA27: 5 | TB27: 5 | TC27: 1 | TJ27: 5 | TK27: 1 | TN27: 5 | TO27: 1 | TQ27: 5 | TR27: 5 | TS27: 1 | TU27: 5 | TW27: 1 | TZ27: 5 | UA27: 1 | UC27: 5 | UE27: 1 | UL27: 5 | UM27: 1 | UP27: 5 | UQ27: 1 | UT27: 5 | UU27: 1 | UX27: 5 | UY27: 1 | VB27: 5 | VC27: 1 | VE27: 5 | VG27: 1 | VN27: 5 | VO27: 1 | VR27: 5 | VS27: 1 | VV27: 5 | VW27: 1 | VZ27: 5 | WA27: 1 | WD27: 5 | WE27: 1 | WH27: 5 | WI27: 1 | WQ27: 1 | WU27: 1 | WY27: 1 | XB27: 3 | XC27: 1 | XG27: 1 | XI27: =SO27+SS27+SW27+TA27+TE27+TI27+TM27+TQ27+TU27+TY27+UC27+UG27+UK27+UO27+US27+UW27+VA27+VE27+VI27+VM27+VQ27+VU27+VY27+WC27+WG27+WK27+WO27+WS27+WW27+XA27+XE27 -> 40 | XJ27: =SP27+ST27+SX27+TB27+TF27+TJ27+TN27+TR27+TV27+TZ27+UD27+UH27+UL27+UP27+UT27+UX27+VB27+VF27+VJ27+VN27+VR27+VV27+VZ27+WD27+WH27+WL27+WP27+WT27+WX27+XB27+XF27 -> 98 | XK27: =SQ27+SU27+SY27+TC27+TG27+TK27+TO27+TS27+TW27+UA27+UE27+UI27+UM27+UQ27+UU27+UY27+VC27+VG27+VK27+VO27+VS27+VW27+WA27+WE27+WI27+WM27+WQ27+WU27+WY27+XC27+XG27 -> 27 | XL27: =SR27+SV27+SZ27+TD27+TH27+TL27+TP27+TT27+TX27+UB27+UF27+UJ27+UN27+UR27+UV27+UZ27+VD27+VH27+VL27+VP27+VT27+VX27+WB27+WF27+WJ27+WN27+WR27+WV27+WZ27+XD27+XH27 -> 0 | XO27: 1 | XV27: 5 | XW27: 1 | XZ27: 5 | YA27: 1 | YC27: 5 | YE27: 1 | YG27: 5 | YI27: 1 | YL27: 5 | YM27: 1 | YP27: 5 | YQ27: 1 | YY27: 1 | ZA27: 5 | ZC27: 1 | ZE27: 5 | ZG27: 1 | ZI27: 5 | ZK27: 1 | ZM27: 3 | ZO27: 1 | ZQ27: 5 | ZS27: 1 | ZY27: 5 | AAA27: 1 | AAC27: 4 | AAI27: 1 | AAK27: 3 | AAM27: 1 | AAP27: 3 | AAQ27: 1 | AAU27: 1 | ABA27: 4 | ABC27: 1 | ABG27: 1 | ABK27: 1 | ABO27: 1 | ABS27: 1 | ABW27: 1 | ACC27: =XM27+XQ27+XU27+XY27+YC27+YG27+YK27+YO27+YS27+YW27+ZA27+ZE27+ZI27+ZM27+ZQ27+ZU27+ZY27+AAC27+AAG27+AAK27+AAO27+AAS27+AAW27+ABA27+ABE27+ABI27+ABM27+ABQ27+ABU27+ABY27 -> 49 | ACD27: =XN27+XR27+XV27+XZ27+YD27+YH27+YL27+YP27+YT27+YX27+ZB27+ZF27+ZJ27+ZN27+ZR27+ZV27+ZZ27+AAD27+AAH27+AAL27+AAP27+AAT27+AAX27+ABB27+ABF27+ABJ27+ABN27+ABR27+ABV27+ABZ27 -> 23 | ACE27: =XO27+XS27+XW27+YA27+YE27+YI27+YM27+YQ27+YU27+YY27+ZC27+ZG27+ZK27+ZO27+ZS27+ZW27+AAA27+AAE27+AAI27+AAM27+AAQ27+AAU27+AAY27+ABC27+ABG27+ABK27+ABO27+ABS27+ABW27+ACA27 -> 24 | ACF27: =XP27+XT27+XX27+YB27+YF27+YJ27+YN27+YR27+YV27+YZ27+ZD27+ZH27+ZL27+ZP27+ZT27+ZX27+AAB27+AAF27+AAJ27+AAN27+AAR27+AAV27+AAZ27+ABD27+ABH27+ABL27+ABP27+ABT27+ABX27+ACB27 -> 0 | ACI27: 1 | ACL27: 5 | ACM27: 1 | ACQ27: 1 | ACT27: 5 | ACU27: 1 | ACY27: 1 | ADC27: 1 | ADJ27: 5 | ADK27: 1 | ADN27: 2 | ADO27: 1 | ADR27: 5 | ADS27: 1 | ADV27: 5 | ADW27: 1 | ADZ27: 5 | AEA27: 1 | AED27: 5 | AEE27: 1 | AEL27: 5 | AEM27: 1 | AEO27: 3 | AEQ27: 1 | AEU27: 1 | AEX27: 3 | AEY27: 1 | AFB27: 4 | AFC27: 1 | AFF27: 3 | AFG27: 1 | AFO27: 1 | AFR27: 3 | AFS27: 1 | AFV27: 3 | AFW27: 1 | AFZ27: 4 | AGA27: 1 | AGC27: 3 | AGE27: 1 | AGH27: 3 | AGI27: 1 | AGP27: 5 | AGQ27: 1 | AGT27: 3 | AGU27: 1 | AGX27: 3 | AGY27: 1 | AHA27: =ACG27+ACK27+ACO27+ACS27+ACW27+ADA27+ADE27+ADI27+ADM27+ADQ27+ADU27+ADY27+AEC27+AEG27+AEK27+AEO27+AES27+AEW27+AFA27+AFE27+AFI27+AFM27+AFQ27+AFU27+AFY27+AGC27+AGG27+AGK27+AGO27+AGS27+AGW27 -> 6 | AHB27: =ACH27+ACL27+ACP27+ACT27+ACX27+ADB27+ADF27+ADJ27+ADN27+ADR27+ADV27+ADZ27+AED27+AEH27+AEL27+AEP27+AET27+AEX27+AFB27+AFF27+AFJ27+AFN27+AFR27+AFV27+AFZ27+AGD27+AGH27+AGL27+AGP27+AGT27+AGX27 -> 76 | AHC27: =ACI27+ACM27+ACQ27+ACU27+ACY27+ADC27+ADG27+ADK27+ADO27+ADS27+ADW27+AEA27+AEE27+AEI27+AEM27+AEQ27+AEU27+AEY27+AFC27+AFG27+AFK27+AFO27+AFS27+AFW27+AGA27+AGE27+AGI27+AGM27+AGQ27+AGU27+AGY27 -> 27 | AHD27: =ACJ27+ACN27+ACR27+ACV27+ACZ27+ADD27+ADH27+ADL27+ADP27+ADT27+ADX27+AEB27+AEF27+AEJ27+AEN27+AER27+AEV27+AEZ27+AFD27+AFH27+AFL27+AFP27+AFT27+AFX27+AGB27+AGF27+AGJ27+AGN27+AGR27+AGV27+AGZ27 -> 0 | AHE27: 3 | AHG27: 1 | AHI27: 5 | AHK27: 1 | AHN27: 5 | AHO27: 1 | AHU27: 5 | AHW27: 1 | AHY27: 5 | AIA27: 1 | AIC27: 5 | AIE27: 1 | AIG27: 5 | AII27: 1 | AIL27: 5 | AIM27: 1 | AIO27: 5 | AIQ27: 1 | AIX27: 3 | AIY27: 1 | AJB27: 3 | AJC27: 1 | AJF27: 3 | AJG27: 1 | AJI27: 3 | AJK27: 1 | AJM27: 3 | AJO27: 1 | AJQ27: 3 | AJS27: 1 | AJY27: 3 | AKA27: 1 | AKC27: 3 | AKE27: 1 | AKG27: 3 | AKI27: 1 | AKL27: 3 | AKM27: 1 | AKP27: 3 | AKQ27: 1 | AKS27: 3 | AKU27: 1 | ALA27: 3 | ALC27: 1 | ALE27: 5 | ALG27: 1 | ALJ27: 5 | ALK27: 1 | ALN27: 5 | ALO27: 1 | ALR27: 2 | ALS27: 1 | ALV27: 5 | ALW27: 1 | ALY27: =AHE27+AHI27+AHM27+AHQ27+AHU27+AHY27+AIC27+AIG27+AIK27+AIO27+AIS27+AIW27+AJA27+AJE27+AJI27+AJM27+AJQ27+AJU27+AJY27+AKC27+AKG27+AKK27+AKO27+AKS27+AKW27+ALA27+ALE27+ALI27+ALM27+ALQ27+ALU27 -> 62 | ALZ27: =AHF27+AHJ27+AHN27+AHR27+AHV27+AHZ27+AID27+AIH27+AIL27+AIP27+AIT27+AIX27+AJB27+AJF27+AJJ27+AJN27+AJR27+AJV27+AJZ27+AKD27+AKH27+AKL27+AKP27+AKT27+AKX27+ALB27+ALF27+ALJ27+ALN27+ALR27+ALV27 -> 42 | AMA27: =AHG27+AHK27+AHO27+AHS27+AHW27+AIA27+AIE27+AII27+AIM27+AIQ27+AIU27+AIY27+AJC27+AJG27+AJK27+AJO27+AJS27+AJW27+AKA27+AKE27+AKI27+AKM27+AKQ27+AKU27+AKY27+ALC27+ALG27+ALK27+ALO27+ALS27+ALW27 -> 27 | AMB27: =AHH27+AHL27+AHP27+AHT27+AHX27+AIB27+AIF27+AIJ27+AIN27+AIR27+AIV27+AIZ27+AJD27+AJH27+AJL27+AJP27+AJT27+AJX27+AKB27+AKF27+AKJ27+AKN27+AKR27+AKV27+AKZ27+ALD27+ALH27+ALL27+ALP27+ALT27+ALX27 -> 0 | AMG27: 5 | AMI27: 1 | AMK27: 5 | AMM27: 1 | AMO27: 3 | AMQ27: 1 | AMS27: 3 | AMU27: 1 | AMX27: 5 | AMY27: 1 | ANB27: 5 | ANC27: 1 | ANI27: 2 | ANJ27: 5 | ANK27: 1 | ANM27: 2 | ANN27: 5 | ANO27: 1 | ANR27: 5 | ANS27: 1 | ANV27: 5 | ANW27: 1 | AOA27: 1 | AOE27: 1 | AOL27: 5 | AOM27: 1 | AOP27: 2 | AOQ27: 1 | AOU27: 1 | AOX27: 5 | AOY27: 1 | APA27: 5 | APC27: 1 | APG27: 1 | APN27: 5 | APO27: 1 | APR27: 5 | APS27: 1 | APU27: 5 | APW27: 1 | APY27: 5 | AQA27: 1 | AQC27: 5 | AQE27: 1 | AQG27: 5 | AQI27: 1 | AQO27: 5 | AQQ27: 1 | AQS27: =AMC27+AMG27+AMK27+AMO27+AMS27+AMW27+ANA27+ANE27+ANI27+ANM27+ANQ27+ANU27+ANY27+AOC27+AOG27+AOK27+AOO27+AOS27+AOW27+APA27+APE27+API27+APM27+APQ27+APU27+APY27+AQC27+AQG27+AQK27+AQO27 -> 50 | AQT27: =AMD27+AMH27+AML27+AMP27+AMT27+AMX27+ANB27+ANF27+ANJ27+ANN27+ANR27+ANV27+ANZ27+AOD27+AOH27+AOL27+AOP27+AOT27+AOX27+APB27+APF27+APJ27+APN27+APR27+APV27+APZ27+AQD27+AQH27+AQL27+AQP27 -> 52 | AQU27: =AME27+AMI27+AMM27+AMQ27+AMU27+AMY27+ANC27+ANG27+ANK27+ANO27+ANS27+ANW27+AOA27+AOE27+AOI27+AOM27+AOQ27+AOU27+AOY27+APC27+APG27+APK27+APO27+APS27+APW27+AQA27+AQE27+AQI27+AQM27+AQQ27 -> 25 | AQV27: =AMF27+AMJ27+AMN27+AMR27+AMV27+AMZ27+AND27+ANH27+ANL27+ANP27+ANT27+ANX27+AOB27+AOF27+AOJ27+AON27+AOR27+AOV27+AOZ27+APD27+APH27+APL27+APP27+APT27+APX27+AQB27+AQF27+AQJ27+AQN27+AQR27 -> 0 | AQW27: 3 | AQY27: 1 | ARB27: 3 | ARC27: 1 | ARE27: 3 | ARG27: 1 | ARI27: 6 | ARK27: 1 | ARM27: 3 | ARO27: 1 | ARU27: 3 | ARW27: 1 | ARY27: 3 | ASA27: 1 | ASC27: 3 | ASE27: 1 | ASG27: 2 | ASI27: 1 | ASO27: 3 | ASQ27: 1 | ASW27: 3 | ASY27: 1 | ATA27: 2 | ATC27: 1 | ATE27: 3 | ATG27: 1 | ATM27: 3 | ATO27: 1 | ATQ27: 2 | ATS27: 1 | ATY27: 2 | AUA27: 1 | AUC27: 2 | AUE27: 1 | AUH27: 3 | AUI27: 1 | AUL27: 3 | AUM27: 1 | AUO27: 3 | AUQ27: 1 | AUS27: 3 | AUU27: 1 | AVA27: 2 | AVC27: 1 | AVF27: 3 | AVG27: 1 | AVK27: 1 | AVQ27: =AQW27+ARA27+ARE27+ARI27+ARM27+ARQ27+ARU27+ARY27+ASC27+ASG27+ASK27+ASO27+ASS27+ASW27+ATA27+ATE27+ATI27+ATM27+ATQ27+ATU27+ATY27+AUC27+AUG27+AUK27+AUO27+AUS27+AUW27+AVA27+AVE27+AVI27+AVM27 -> 54 | AVR27: =AQX27+ARB27+ARF27+ARJ27+ARN27+ARR27+ARV27+ARZ27+ASD27+ASH27+ASL27+ASP27+AST27+ASX27+ATB27+ATF27+ATJ27+ATN27+ATR27+ATV27+ATZ27+AUD27+AUH27+AUL27+AUP27+AUT27+AUX27+AVB27+AVF27+AVJ27+AVN27 -> 12 | AVS27: =AQY27+ARC27+ARG27+ARK27+ARO27+ARS27+ARW27+ASA27+ASE27+ASI27+ASM27+ASQ27+ASU27+ASY27+ATC27+ATG27+ATK27+ATO27+ATS27+ATW27+AUA27+AUE27+AUI27+AUM27+AUQ27+AUU27+AUY27+AVC27+AVG27+AVK27+AVO27 -> 24 | AVT27: =AQZ27+ARD27+ARH27+ARL27+ARP27+ART27+ARX27+ASB27+ASF27+ASJ27+ASN27+ASR27+ASV27+ASZ27+ATD27+ATH27+ATL27+ATP27+ATT27+ATX27+AUB27+AUF27+AUJ27+AUN27+AUR27+AUV27+AUZ27+AVD27+AVH27+AVL27+AVP27 -> 0 | AVU27: 5 | AVW27: 1 | AWA27: 1 | AWG27: 2 | AWI27: 1 | AWK27: 5 | AWM27: 1 | AWO27: 2 | AWQ27: 1 | AWS27: 5 | AWU27: 1 | AWW27: 5 | AWY27: 1 | AXA27: 5 | AXC27: 1 | AXJ27: 5 | AXK27: 1 | AXM27: 3 | AXO27: 1 | AXQ27: 3 | AXS27: 1 | AXU27: 5 | AXW27: 1 | AXZ27: 4 | AYA27: 1 | AYD27: 5 | AYE27: 1 | AYK27: 5 | AYM27: 1 | AYO27: 5 | AYQ27: 1 | AYS27: 5 | AYU27: 1 | AYW27: 3 | AYY27: 1 | AZB27: 5 | AZC27: 1 | AZE27: 5 | AZG27: 1 | AZN27: 5 | AZO27: 1 | AZQ27: 5 | AZR27: 2 | AZS27: 1 | AZU27: 5 | AZW27: 1 | AZY27: 5 | BAA27: 1 | BAC27: 5 | BAE27: 1 | BAG27: 3 | BAI27: 1 | BAK27: =AVU27+AVY27+AWC27+AWG27+AWK27+AWO27+AWS27+AWW27+AXA27+AXE27+AXI27+AXM27+AXQ27+AXU27+AXY27+AYC27+AYG27+AYK27+AYO27+AYS27+AYW27+AZA27+AZE27+AZI27+AZM27+AZQ27+AZU27+AZY27+BAC27+BAG27 -> 86 | BAL27: =AVV27+AVZ27+AWD27+AWH27+AWL27+AWP27+AWT27+AWX27+AXB27+AXF27+AXJ27+AXN27+AXR27+AXV27+AXZ27+AYD27+AYH27+AYL27+AYP27+AYT27+AYX27+AZB27+AZF27+AZJ27+AZN27+AZR27+AZV27+AZZ27+BAD27+BAH27 -> 26 | BAM27: =AVW27+AWA27+AWE27+AWI27+AWM27+AWQ27+AWU27+AWY27+AXC27+AXG27+AXK27+AXO27+AXS27+AXW27+AYA27+AYE27+AYI27+AYM27+AYQ27+AYU27+AYY27+AZC27+AZG27+AZK27+AZO27+AZS27+AZW27+BAA27+BAE27+BAI27 -> 26 | BAN27: =AVX27+AWB27+AWF27+AWJ27+AWN27+AWR27+AWV27+AWZ27+AXD27+AXH27+AXL27+AXP27+AXT27+AXX27+AYB27+AYF27+AYJ27+AYN27+AYR27+AYV27+AYZ27+AZD27+AZH27+AZL27+AZP27+AZT27+AZX27+BAB27+BAF27+BAJ27 -> 0 | BAS27: 3 | BAW27: 3 | BAY27: 1 | BBA27: 3 | BBC27: 1 | BBE27: 3 | BBG27: 2 | BBI27: 3 | BBK27: 2 | BBM27: 3 | BBO27: 2 | BBW27: 2 | BCA27: 2 | BCC27: 3 | BCE27: 2 | BCI27: 2 | BCM27: 2 | BCQ27: 2 | BCW27: 2 | BCY27: 2 | BDB27: 3 | BDC27: 2 | BDE27: 2 | BDG27: 2 | BDJ27: 3 | BDK27: 2 | BDO27: 2 | BDR27: 2 | BDS27: 2 | BDZ27: 3 | BEA27: 2 | BED27: 3 | BEE27: 2 | BEI27: 2 | BEL27: 3 | BEM27: 2 | BEQ27: 2 | BES27: 3 | BEU27: 2 | BFB27: 3 | BFC27: 2 | BFG27: 2 | BFI27: =BAO27+BAS27+BAW27+BBA27+BBE27+BBI27+BBM27+BBQ27+BBU27+BBY27+BCC27+BCG27+BCK27+BCO27+BCS27+BCW27+BDA27+BDE27+BDI27+BDM27+BDQ27+BDU27+BDY27+BEC27+BEG27+BEK27+BEO27+BES27+BEW27+BFA27+BFE27 -> 28 | BFJ27: =BAP27+BAT27+BAX27+BBB27+BBF27+BBJ27+BBN27+BBR27+BBV27+BBZ27+BCD27+BCH27+BCL27+BCP27+BCT27+BCX27+BDB27+BDF27+BDJ27+BDN27+BDR27+BDV27+BDZ27+BED27+BEH27+BEL27+BEP27+BET27+BEX27+BFB27+BFF27 -> 20 | BFK27: =BAQ27+BAU27+BAY27+BBC27+BBG27+BBK27+BBO27+BBS27+BBW27+BCA27+BCE27+BCI27+BCM27+BCQ27+BCU27+BCY27+BDC27+BDG27+BDK27+BDO27+BDS27+BDW27+BEA27+BEE27+BEI27+BEM27+BEQ27+BEU27+BEY27+BFC27+BFG27 -> 48 | BFL27: =BAR27+BAV27+BAZ27+BBD27+BBH27+BBL27+BBP27+BBT27+BBX27+BCB27+BCF27+BCJ27+BCN27+BCR27+BCV27+BCZ27+BDD27+BDH27+BDL27+BDP27+BDT27+BDX27+BEB27+BEF27+BEJ27+BEN27+BER27+BEV27+BEZ27+BFD27+BFH27 -> 0 | BFM27: =EG27+IS27+NQ27+SK27+XI27+ACC27+AHA27+ALY27+AQS27+AVQ27+BAK27+BFI27 -> 799 | BFN27: =EH27+IT27+NR27+SL27+XJ27+ACD27+AHB27+ALZ27+AQT27+AVR27+BAL27+BFJ27 -> 701 | BFO27: =EI27+IU27+NS27+SM27+XK27+ACE27+AHC27+AMA27+AQU27+AVS27+BAM27+BFK27 -> 360 | BFP27: =EJ27+IV27+NT27+SN27+XL27+ACF27+AHD27+AMB27+AQV27+AVT27+BAN27+BFL27 -> 3 | BFQ27: =IFERROR(BFM27/BFU27,"0") -> 66.58333333 | BFR27: =IFERROR(BFN27/BFV27,"0") -> 58.41666667 | BFS27: =IFERROR(BFO27/BFW27,"0") -> 30 | BFT27: =IFERROR(BFP27/BFX27,"0") -> 3 | BFU27: =IF(EG27>0, 1, 0) + IF(IS27> 0, 1, 0) + IF(NQ27 > 0, 1, 0) + IF(SK27 > 0, 1, 0) +IF(XI27 > 0, 1, 0)+ IF(ACC27 > 0, 1, 0)+ IF(AHA27 > 0, 1, 0)+ IF(ALY27 > 0, 1, 0)+ IF(AQS27 > 0, 1, 0)+ IF(AVQ27 > 0, 1, 0)+ IF(BAK27 > 0, 1, 0)+ IF(BFI27 > 0, 1, 0) -> 12 | BFV27: =IF(EH27>0, 1, 0) + IF(IT27> 0, 1, 0) + IF(NR27 > 0, 1, 0) + IF(SL27 > 0, 1, 0) +IF(XJ27 > 0, 1, 0)+ IF(ACD27 > 0, 1, 0)+ IF(AHB27 > 0, 1, 0)+ IF(ALZ27 > 0, 1, 0)+ IF(AQT27 > 0, 1, 0)+ IF(AVR27 > 0, 1, 0)+ IF(BAL27 > 0, 1, 0)+ IF(BFJ27 > 0, 1, 0) -> 12 | BFW27: =IF(EI27>0, 1, 0) + IF(IU27> 0, 1, 0) + IF(NS27 > 0, 1, 0) + IF(SM27 > 0, 1, 0) +IF(XK27 > 0, 1, 0)+ IF(ACE27 > 0, 1, 0)+ IF(AHC27 > 0, 1, 0)+ IF(AMA27 > 0, 1, 0)+ IF(AQU27 > 0, 1, 0)+ IF(AVS27 > 0, 1, 0)+ IF(BAM27 > 0, 1, 0)+ IF(BFK27 > 0, 1, 0) -> 12 | BFX27: =IF(EJ27>0, 1, 0) + IF(IV27> 0, 1, 0) + IF(NT27 > 0, 1, 0) + IF(SN27 > 0, 1, 0) +IF(XL27 > 0, 1, 0)+ IF(ACF27 > 0, 1, 0)+ IF(AHD27 > 0, 1, 0)+ IF(AMB27 > 0, 1, 0)+ IF(AQV27 > 0, 1, 0)+ IF(AVT27 > 0, 1, 0)+ IF(BAN27 > 0, 1, 0)+ IF(BFL27 > 0, 1, 0) -> 1
A28: 14 | B28: SRIGU503001TSBH06796 | C28: SRI GURU RAGHAVENDRA SUNRISE HOSPITAL | D28: H.No.5-7-93 & 5-7-94, OPP: MUNCIPAL COMPLEX, NIZAMABAD - 503001. | E28: 50 | H28: Dr. RAGHAVENDRA | I28: 9849998347 | J28: ragz0000@gmail.com | K28: Private | L28: Bedded | M28: 5 | N28: 5 | O28: 2 | Q28: 5 | R28: 5 | S28: 2 | U28: 5 | V28: 5 | W28: 2 | Y28: 5 | Z28: 2 | AA28: 2 | AC28: 5 | AD28: 5 | AE28: 2 | AG28: 5 | AH28: 5 | AI28: 2 | AM28: 2 | AO28: 5 | AP28: 5 | AQ28: 2 | AS28: 5 | AT28: 2 | AU28: 2 | AW28: 5 | AX28: 5 | AY28: 2 | BA28: 5 | BB28: 5 | BC28: 2 | BE28: 5 | BF28: 2 | BG28: 2 | BI28: 5 | BJ28: 5 | BK28: 2 | BQ28: 5 | BR28: 2 | BS28: 2 | BU28: 5 | BV28: 5 | BW28: 2 | BY28: 5 | BZ28: 2 | CA28: 2 | CC28: 5 | CD28: 5 | CE28: 2 | CG28: 5 | CH28: 5 | CK28: 5 | CM28: 2 | CO28: 5 | CQ28: 2 | CS28: 5 | CU28: 2 | CW28: 5 | CX28: 5 | CY28: 2 | DA28: 5 | DB28: 5 | DC28: 2 | DE28: 5 | DF28: 5 | DG28: 2 | DI28: 5 | DJ28: 5 | DK28: 2 | DM28: 5 | DN28: 5 | DO28: 2 | DU28: 5 | DV28: 5 | DW28: 2 | DY28: 5 | EA28: 2 | EC28: 5 | ED28: 5 | EE28: 2 | EG28: 140 | EH28: 105 | EI28: 56 | EJ28: 0 | EK28: 5 | EL28: 5 | EO28: 5 | EP28: 5 | EQ28: 1 | ES28: 5 | ET28: 5 | EU28: 1 | FA28: 5 | FB28: 5 | FC28: 1 | FE28: 5 | FF28: 5 | FG28: 1 | FI28: 5 | FK28: 1 | FM28: 5 | FO28: 1 | FQ28: 5 | FS28: 1 | FW28: 1 | GC28: 5 | GE28: 1 | GG28: 5 | GI28: 1 | GK28: 5 | GM28: 1 | GQ28: 1 | GU28: 1 | GW28: 5 | GX28: 5 | GY28: 1 | HE28: 5 | HF28: 5 | HG28: 1 | HI28: 5 | HJ28: 5 | HK28: 1 | HM28: 5 | HN28: 5 | HO28: 1 | HQ28: 5 | HR28: 5 | HS28: 1 | HU28: 5 | HV28: 5 | HW28: 1 | HY28: 5 | HZ28: 5 | IA28: 1 | IC28: 5 | ID28: 5 | IE28: 1 | IG28: 5 | IH28: 5 | II28: 1 | IM28: 1 | IO28: 5 | IP28: 5 | IQ28: 1 | IS28: 105 | IT28: 75 | IU28: 24 | IV28: 0 | IY28: 1 | JA28: 5 | JB28: 5 | JC28: 1 | JK28: 1 | JM28: 5 | JN28: 5 | JO28: 1 | JQ28: 5 | JR28: 5 | JS28: 1 | JW28: 1 | KA28: 1 | KE28: 1 | KK28: 5 | KL28: 5 | KM28: 1 | KO28: 5 | KP28: 5 | KQ28: 1 | KU28: 1 | KY28: 1 | LA28: 5 | LB28: 5 | LC28: 1 | LG28: 1 | LM28: 5 | LN28: 5 | LO28: 1 | LQ28: 5 | LR28: 5 | LS28: 1 | LU28: 5 | LV28: 5 | LW28: 1 | LY28: 5 | LZ28: 5 | MA28: 1 | MC28: 5 | MD28: 5 | ME28: 1 | MG28: 5 | MH28: 5 | MI28: 1 | MO28: 5 | MP28: 5 | MQ28: 1 | MW28: 5 | MX28: 5 | MY28: 1 | NA28: 5 | NB28: 5 | NC28: 1 | NE28: 5 | NF28: 5 | NG28: 1 | NI28: 5 | NJ28: 5 | NK28: 1 | NQ28: 85 | NR28: 85 | NS28: 25 | NT28: 0 | NU28: 5 | NV28: 5 | NW28: 1 | OA28: 1 | OE28: 1 | OG28: 5 | OH28: 5 | OI28: 1 | OK28: 5 | OL28: 5 | OM28: 1 | OO28: 5 | OP28: 5 | OQ28: 1 | OW28: 5 | OX28: 5 | OY28: 1 | PE28: 5 | PF28: 5 | PG28: 1 | PI28: 5 | PK28: 1 | PO28: 1 | PQ28: 5 | PS28: 5 | QA28: 1 | QC28: 5 | QE28: 1 | QG28: 5 | QH28: 5 | QI28: 1 | QK28: 5 | QL28: 5 | QM28: 1 | QO28: 2 | QP28: 2 | QQ28: 1 | QS28: 5 | QT28: 5 | QU28: 1 | RA28: 5 | RB28: 5 | RC28: 1 | RE28: 5 | RF28: 5 | RG28: 1 | RK28: 1 | RO28: 1 | RQ28: 5 | RS28: 1 | RW28: 1 | SD28: 5 | SE28: 1 | SI28: 1 | SK28: 77 | SL28: 62 | SM28: 29 | SN28: 0 | SO28: 5 | SP28: 5 | SQ28: 1 | SS28: 5 | ST28: 5 | SU28: 1 | SX28: 5 | SY28: 1 | TA28: 5 | TB28: 5 | TC28: 1 | TK28: 1 | TN28: 5 | TO28: 1 | TQ28: 5 | TR28: 10 | TS28: 1 | TV28: 5 | TW28: 1 | TZ28: 5 | UA28: 1 | UD28: 5 | UE28: 1 | UL28: 5 | UM28: 1 | UP28: 5 | UQ28: 1 | UT28: 5 | UU28: 1 | UX28: 5 | UY28: 1 | VB28: 5 | VC28: 1 | VE28: 5 | VF28: 5 | VG28: 1 | VM28: 5 | VO28: 1 | VQ28: 5 | VS28: 1 | VV28: 5 | VW28: 1 | WA28: 1 | WD28: 5 | WE28: 1 | WI28: 1 | WQ28: 1 | WS28: 2 | WU28: 1 | WY28: 1 | XA28: 3 | XC28: 1 | XG28: 1 | XI28: 40 | XJ28: 90 | XK28: 27 | XL28: 0 | XN28: 3 | XO28: 1 | XV28: 5 | XW28: 1 | XZ28: 5 | YA28: 1 | YC28: 5 | YE28: 1 | YG28: 5 | YI28: 1 | YK28: 5 | YM28: 1 | YO28: 5 | YQ28: 1 | YY28: 1 | ZB28: 5 | ZC28: 1 | ZF28: 5 | ZG28: 1 | ZJ28: 5 | ZK28: 1 | ZN28: 2 | ZO28: 1 | ZQ28: 5 | ZS28: 1 | ZY28: 5 | AAA28: 1 | AAC28: 3 | AAI28: 1 | AAM28: 1 | AAQ28: 1 | AAU28: 1 | ABC28: 1 | ABG28: 1 | ABI28: 2 | ABK28: 1 | ABM28: 3 | ABO28: 1 | ABR28: 3 | ABS28: 1 | ABW28: 1 | ACC28: 38 | ACD28: 33 | ACE28: 24 | ACF28: 0 | ACI28: 1 | ACL28: 5 | ACM28: 1 | ACQ28: 1 | ACT28: 5 | ACU28: 1 | ACY28: 1 | ADC28: 1 | ADJ28: 5 | ADK28: 1 | ADN28: 5 | ADO28: 1 | ADS28: 1 | ADW28: 1 | AEA28: 1 | AEC28: 5 | AEE28: 1 | AEK28: 5 | AEM28: 1 | AEO28: 3 | AEQ28: 1 | AEU28: 1 | AEW28: 3 | AEY28: 1 | AFC28: 1 | AFG28: 1 | AFM28: 3 | AFO28: 1 | AFQ28: 3 | AFS28: 1 | AFV28: 3 | AFW28: 1 | AFZ28: 3 | AGA28: 1 | AGE28: 1 | AGH28: 3 | AGI28: 1 | AGO28: 5 | AGQ28: 1 | AGS28: 4 | AGU28: 1 | AGX28: 3 | AGY28: 1 | AHA28: 31 | AHB28: 32 | AHC28: 27 | AHD28: 0 | AHE28: 3 | AHG28: 1 | AHI28: 5 | AHK28: 1 | AHM28: 5 | AHO28: 1 | AHU28: 5 | AHW28: 1 | AHY28: 5 | AIA28: 1 | AIC28: 5 | AIE28: 1 | AIG28: 5 | AII28: 1 | AIK28: 5 | AIL28: 5 | AIM28: 1 | AIO28: 5 | AIQ28: 1 | AIW28: 3 | AIX28: 3 | AIY28: 1 | AJB28: 3 | AJC28: 1 | AJF28: 3 | AJG28: 1 | AJI28: 3 | AJK28: 1 | AJM28: 3 | AJO28: 1 | AJQ28: 3 | AJS28: 1 | AJY28: 2 | AKA28: 1 | AKC28: 3 | AKE28: 1 | AKG28: 3 | AKI28: 1 | AKL28: 3 | AKM28: 1 | AKP28: 2 | AKQ28: 1 | AKT28: 2 | AKU28: 1 | ALA28: 3 | ALC28: 1 | ALG28: 1 | ALJ28: 5 | ALK28: 1 | ALN28: 5 | ALO28: 1 | ALR28: 5 | ALS28: 1 | ALV28: 5 | ALW28: 1 | ALY28: 66 | ALZ28: 41 | AMA28: 27 | AMB28: 0 | AMG28: 5 | AMI28: 1 | AMK28: 5 | AMM28: 1 | AMO28: 3 | AMQ28: 1 | AMS28: 3 | AMU28: 1 | AMW28: 5 | AMY28: 1 | ANA28: 5 | ANC28: 1 | ANJ28: 5 | ANK28: 1 | ANN28: 5 | ANO28: 1 | ANS28: 1 | ANV28: 5 | ANW28: 1 | ANZ28: 5 | AOA28: 1 | AOC28: 5 | AOE28: 1 | AOM28: 1 | AOO28: 5 | AOP28: 10 | AOQ28: 1 | AOS28: 5 | AOT28: 5 | AOU28: 1 | AOY28: 1 | APA28: 5 | APC28: 1 | APG28: 1 | APO28: 1 | APQ28: 5 | APS28: 1 | APU28: 5 | APW28: 1 | APZ28: 5 | AQA28: 1 | AQE28: 1 | AQH28: 5 | AQI28: 1 | AQO28: 5 | AQQ28: 1 | AQS28: 61 | AQT28: 45 | AQU28: 25 | AQV28: 0 | AQX28: 3 | AQY28: 1 | ARB28: 3 | ARC28: 1 | ARF28: 3 | ARG28: 1 | ARJ28: 2 | ARK28: 1 | ARN28: 2 | ARO28: 1 | ARV28: 2 | ARW28: 1 | ARZ28: 2 | ASA28: 1 | ASD28: 2 | ASE28: 1 | ASI28: 1 | ASO28: 3 | ASQ28: 1 | ASW28: 2 | ASY28: 1 | ATC28: 1 | ATE28: 2 | ATG28: 1 | ATN28: 2 | ATO28: 1 | ATR28: 5 | ATS28: 1 | ATZ28: 5 | AUA28: 1 | AUC28: 2 | AUE28: 1 | AUI28: 1 | AUK28: 2 | AUM28: 1 | AUQ28: 1 | AUT28: 2 | AUU28: 1 | AVC28: 1 | AVE28: 2 | AVG28: 1 | AVK28: 1 | AVQ28: 13 | AVR28: 33 | AVS28: 24 | AVT28: 0 | AVV28: 2 | AVW28: 1 | AVZ28: 5 | AWA28: 1 | AWG28: 5 | AWI28: 1 | AWM28: 1 | AWO28: 5 | AWQ28: 1 | AWS28: 5 | AWU28: 1 | AWX28: 5 | AWY28: 1 | AXB28: 5 | AXC28: 1 | AXI28: 5 | AXK28: 1 | AXN28: 5 | AXO28: 1 | AXR28: 5 | AXS28: 1 | AXV28: 2 | AXW28: 1 | AXY28: 5 | AYA28: 1 | AYC28: 5 | AYE28: 1 | AYK28: 5 | AYM28: 1 | AYO28: 5 | AYQ28: 1 | AYT28: 5 | AYU28: 1 | AYX28: 5 | AYY28: 1 | AZB28: 5 | AZC28: 1 | AZE28: 5 | AZG28: 1 | AZN28: 5 | AZO28: 1 | AZR28: 5 | AZS28: 1 | AZV28: 5 | AZW28: 1 | AZZ28: 2 | BAA28: 1 | BAD28: 5 | BAE28: 1 | BAG28: 3 | BAI28: 1 | BAK28: 48 | BAL28: 66 | BAM28: 26 | BAN28: 0 | BAU28: 3 | BAY28: 1 | BBC28: 1 | BBG28: 2 | BBK28: 2 | BBO28: 2 | BBW28: 2 | BCA28: 2 | BCE28: 2 | BCI28: 2 | BCM28: 2 | BCQ28: 2 | BCY28: 2 | BDA28: 4 | BDC28: 2 | BDE28: 2 | BDG28: 2 | BDI28: 2 | BDK28: 2 | BDM28: 3 | BDO28: 2 | BDS28: 2 | BDY28: 5 | BEA28: 2 | BEC28: 3 | BEE28: 2 | BEG28: 3 | BEI28: 2 | BEK28: 5 | BEM28: 2 | BEO28: 2 | BEQ28: 2 | BES28: 5 | BEU28: 2 | BFA28: 5 | BFC28: 2 | BFE28: 5 | BFG28: 2 | BFI28: 44 | BFJ28: 0 | BFK28: 51 | BFL28: 0 | BFM28: 748 | BFN28: 667 | BFO28: 365 | BFP28: 0 | BFQ28: 62.33333333 | BFR28: 60.63636364 | BFS28: 30.41666667 | BFT28: 0 | BFU28: 12 | BFV28: 11 | BFW28: 12 | BFX28: 0
A29: 15 | B29: SRIKR503001TSBH09853 | C29: SRI KRISHNA NEURO & MULTI SPECIALITY HOSPITAL | D29: H.No. 5-6-385 & 386, C/o. BOMBAY NURSING HOME, YELLAMMA GUTTA X ROAD, HYDERABAD ROAD, NIZAMABAD - 503001. | E29: 50 | H29: Dr. K. BALA KRISHNA REDDY | I29: 9948326763 | J29: drbalakrishnareddy@gmail.com | K29: Private | L29: Bedded Neuro Speciality | M29: 5 | N29: 5 | O29: 2 | Q29: 5 | R29: 5 | S29: 2 | U29: 5 | V29: 5 | W29: 2 | Y29: 5 | Z29: 2 | AA29: 2 | AC29: 5 | AD29: 5 | AE29: 2 | AG29: 5 | AH29: 5 | AI29: 2 | AM29: 2 | AO29: 5 | AP29: 5 | AQ29: 2 | AS29: 5 | AT29: 5 | AU29: 2 | AW29: 5 | AX29: 5 | AY29: 2 | BA29: 5 | BB29: 5 | BC29: 2 | BE29: 5 | BF29: 2 | BG29: 2 | BI29: 5 | BJ29: 5 | BK29: 2 | BQ29: 5 | BR29: 2 | BS29: 2 | BU29: 5 | BV29: 5 | BW29: 2 | BY29: 5 | BZ29: 2 | CA29: 2 | CC29: 10 | CE29: 2 | CG29: 5 | CI29: 5 | CJ29: 5 | CK29: 5 | CM29: 2 | CO29: 5 | CQ29: 2 | CS29: 5 | CU29: 2 | CW29: 5 | CX29: 5 | CY29: 2 | DA29: 5 | DB29: 5 | DC29: 2 | DE29: 5 | DF29: 5 | DG29: 2 | DI29: 5 | DJ29: 5 | DK29: 2 | DM29: 5 | DO29: 2 | DU29: 5 | DW29: 2 | DY29: 5 | DZ29: 5 | EA29: 2 | EC29: 5 | ED29: 10 | EE29: 2 | EG29: 145 | EH29: 98 | EI29: 61 | EJ29: 5 | EK29: 5 | EO29: 5 | EQ29: 1 | ES29: 5 | EU29: 1 | FA29: 5 | FB29: 5 | FC29: 1 | FE29: 5 | FF29: 5 | FG29: 1 | FI29: 5 | FJ29: 5 | FK29: 1 | FM29: 5 | FN29: 5 | FO29: 1 | FQ29: 5 | FR29: 5 | FS29: 1 | FU29: 5 | FW29: 1 | GC29: 5 | GD29: 5 | GE29: 1 | GG29: 5 | GI29: 1 | GK29: 5 | GL29: 5 | GM29: 1 | GQ29: 1 | GS29: 5 | GT29: 5 | GU29: 1 | GW29: 5 | GY29: 1 | HE29: 5 | HF29: 5 | HG29: 1 | HI29: 10 | HJ29: 10 | HK29: 1 | HM29: 5 | HN29: 5 | HO29: 1 | HQ29: 5 | HR29: 5 | HS29: 1 | HU29: 5 | HV29: 5 | HW29: 1 | HY29: 5 | IA29: 1 | IC29: 5 | IE29: 1 | IG29: 5 | II29: 1 | IM29: 1 | IO29: 5 | IQ29: 1 | IS29: 120 | IT29: 70 | IU29: 24 | IV29: 0 | IY29: 1 | JC29: 1 | JK29: 1 | JM29: 5 | JO29: 1 | JS29: 1 | JW29: 1 | KA29: 1 | KE29: 1 | KM29: 1 | KQ29: 1 | KU29: 1 | KY29: 1 | LC29: 1 | LG29: 1 | LO29: 1 | LS29: 1 | LW29: 1 | LY29: 5 | MA29: 1 | ME29: 1 | MI29: 1 | MQ29: 1 | MY29: 1 | NC29: 1 | NG29: 1 | NK29: 1 | NQ29: 10 | NR29: 0 | NS29: 25 | NT29: 0 | NW29: 1 | OA29: 1 | OE29: 1 | OI29: 1 | OM29: 1 | OQ29: 1 | OY29: 1 | PG29: 1 | PI29: 5 | PK29: 1 | PO29: 1 | PS29: 5 | QA29: 1 | QE29: 1 | QI29: 1 | QM29: 1 | QO29: 2 | QP29: 2 | QQ29: 1 | QS29: 5 | QT29: 5 | QU29: 1 | RA29: 5 | RB29: 5 | RC29: 1 | RE29: 5 | RF29: 5 | RG29: 1 | RK29: 1 | RO29: 1 | RS29: 1 | RU29: 5 | RV29: 5 | RW29: 1 | SC29: 5 | SD29: 5 | SE29: 1 | SI29: 1 | SK29: 32 | SL29: 27 | SM29: 29 | SN29: 0 | SQ29: 1 | SU29: 1 | SY29: 1 | TA29: 5 | TB29: 5 | TC29: 1 | TI29: 5 | TJ29: 5 | TK29: 1 | TM29: 5 | TO29: 1 | TQ29: 5 | TS29: 1 | TU29: 5 | TW29: 1 | TY29: 5 | UA29: 1 | UC29: 5 | UE29: 1 | UL29: 5 | UM29: 1 | UP29: 5 | UQ29: 1 | UT29: 5 | UU29: 1 | UX29: 5 | UY29: 1 | VB29: 5 | VC29: 1 | VE29: 5 | VG29: 1 | VN29: 5 | VO29: 1 | VR29: 5 | VS29: 1 | VV29: 5 | VW29: 1 | WA29: 1 | WD29: 5 | WE29: 1 | WH29: 5 | WI29: 1 | WQ29: 1 | WU29: 1 | WY29: 1 | XB29: 4 | XC29: 1 | XG29: 1 | XI29: 40 | XJ29: 64 | XK29: 27 | XL29: 0 | XO29: 1 | XV29: 5 | XW29: 1 | XZ29: 5 | YA29: 1 | YE29: 1 | YH29: 5 | YI29: 1 | YL29: 5 | YM29: 1 | YQ29: 1 | YY29: 1 | ZA29: 5 | ZC29: 1 | ZE29: 5 | ZG29: 1 | ZJ29: 5 | ZK29: 1 | ZN29: 4 | ZO29: 1 | ZQ29: 5 | ZS29: 1 | ZY29: 5 | AAA29: 1 | AAC29: 5 | AAI29: 1 | AAM29: 1 | AAQ29: 1 | AAU29: 1 | ABC29: 1 | ABG29: 1 | ABI29: 4 | ABK29: 1 | ABM29: 6 | ABO29: 1 | ABS29: 1 | ABW29: 1 | ACC29: 35 | ACD29: 29 | ACE29: 24 | ACF29: 0 | ACI29: 1 | ACL29: 5 | ACM29: 1 | ACP29: 2 | ACQ29: 1 | ACT29: 5 | ACU29: 1 | ACY29: 1 | ADC29: 1 | ADJ29: 5 | ADK29: 1 | ADN29: 5 | ADO29: 1 | ADR29: 5 | ADS29: 1 | ADV29: 5 | ADW29: 1 | ADZ29: 5 | AEA29: 1 | AED29: 5 | AEE29: 1 | AEL29: 5 | AEM29: 1 | AEQ29: 1 | AEU29: 1 | AEW29: 5 | AEY29: 1 | AFC29: 1 | AFG29: 1 | AFM29: 7 | AFO29: 1 | AFS29: 1 | AFW29: 1 | AFZ29: 7 | AGA29: 1 | AGE29: 1 | AGH29: 7 | AGI29: 1 | AGP29: 5 | AGQ29: 1 | AGT29: 3 | AGU29: 1 | AGX29: 6 | AGY29: 1 | AHA29: 12 | AHB29: 75 | AHC29: 27 | AHD29: 0 | AHG29: 1 | AHJ29: 5 | AHK29: 1 | AHN29: 5 | AHO29: 1 | AHW29: 1 | AHZ29: 5 | AIA29: 1 | AID29: 5 | AIE29: 1 | AIH29: 5 | AII29: 1 | AIK29: 5 | AIM29: 1 | AIP29: 5 | AIQ29: 1 | AIW29: 4 | AIY29: 1 | AJC29: 1 | AJF29: 7 | AJG29: 1 | AJI29: 7 | AJK29: 1 | AJM29: 7 | AJO29: 1 | AJQ29: 7 | AJS29: 1 | AKA29: 1 | AKC29: 6 | AKE29: 1 | AKI29: 1 | AKL29: 6 | AKM29: 1 | AKP29: 7 | AKQ29: 1 | AKT29: 7 | AKU29: 1 | ALA29: 6 | ALC29: 1 | ALG29: 1 | ALJ29: 5 | ALK29: 1 | ALN29: 5 | ALO29: 1 | ALR29: 5 | ALS29: 1 | ALV29: 5 | ALW29: 1 | ALY29: 42 | ALZ29: 77 | AMA29: 27 | AMB29: 0 | AMG29: 2 | AMI29: 1 | AMK29: 2 | AMM29: 1 | AMO29: 6 | AMQ29: 1 | AMS29: 6 | AMU29: 1 | AMX29: 5 | AMY29: 1 | ANB29: 5 | ANC29: 1 | ANJ29: 5 | ANK29: 1 | ANO29: 1 | ANQ29: 5 | ANS29: 1 | ANU29: 5 | ANW29: 1 | AOA29: 1 | AOE29: 1 | AOM29: 1 | AOQ29: 1 | AOS29: 2 | AOU29: 1 | AOY29: 1 | APA29: 5 | APC29: 1 | APG29: 1 | APO29: 1 | APQ29: 5 | APS29: 1 | APU29: 5 | APW29: 1 | APY29: 5 | AQA29: 1 | AQE29: 1 | AQH29: 5 | AQI29: 1 | AQO29: 5 | AQQ29: 1 | AQS29: 53 | AQT29: 20 | AQU29: 25 | AQV29: 0 | AQX29: 5 | AQY29: 1 | ARB29: 5 | ARC29: 1 | ARF29: 5 | ARG29: 1 | ARK29: 1 | ARO29: 1 | ARW29: 1 | ASA29: 1 | ASE29: 1 | ASG29: 5 | ASI29: 1 | ASO29: 8 | ASQ29: 1 | ASW29: 8 | ASY29: 1 | ATA29: 7 | ATC29: 1 | ATG29: 1 | ATO29: 1 | ATQ29: 7 | ATS29: 1 | ATY29: 7 | AUA29: 1 | AUC29: 8 | AUE29: 1 | AUG29: 8 | AUI29: 1 | AUM29: 1 | AUO29: 6 | AUQ29: 1 | AUS29: 7 | AUU29: 1 | AVC29: 1 | AVE29: 8 | AVG29: 1 | AVI29: 8 | AVK29: 1 | AVQ29: 87 | AVR29: 15 | AVS29: 24 | AVT29: 0 | AVV29: 5 | AVW29: 1 | AVZ29: 5 | AWA29: 1 | AWG29: 5 | AWI29: 1 | AWM29: 1 | AWO29: 5 | AWQ29: 1 | AWT29: 5 | AWU29: 1 | AWW29: 5 | AWY29: 1 | AXB29: 5 | AXC29: 1 | AXI29: 5 | AXK29: 1 | AXN29: 5 | AXO29: 1 | AXR29: 5 | AXS29: 1 | AXU29: 5 | AXW29: 1 | AXZ29: 5 | AYA29: 1 | AYD29: 6 | AYE29: 1 | AYK29: 3 | AYL29: 2 | AYM29: 1 | AYO29: 3 | AYP29: 2 | AYQ29: 1 | AYS29: 5 | AYU29: 1 | AYW29: 5 | AYY29: 1 | AZA29: 5 | AZC29: 1 | AZF29: 5 | AZG29: 1 | AZN29: 5 | AZO29: 1 | AZQ29: 5 | AZS29: 1 | AZU29: 5 | AZW29: 1 | AZY29: 5 | BAA29: 1 | BAC29: 5 | BAE29: 1 | BAG29: 5 | BAI29: 1 | BAK29: 71 | BAL29: 55 | BAM29: 26 | BAN29: 0 | BAS29: 5 | BAW29: 5 | BAY29: 1 | BBA29: 7 | BBC29: 1 | BBE29: 8 | BBG29: 2 | BBJ29: 5 | BBK29: 2 | BBN29: 6 | BBO29: 2 | BBU29: 7 | BBW29: 2 | BBY29: 8 | BCA29: 2 | BCC29: 7 | BCE29: 2 | BCG29: 8 | BCI29: 2 | BCK29: 7 | BCM29: 2 | BCO29: 7 | BCQ29: 2 | BCW29: 8 | BCY29: 2 | BDA29: 7 | BDC29: 2 | BDG29: 2 | BDK29: 2 | BDN29: 3 | BDO29: 2 | BDS29: 2 | BDZ29: 8 | BEA29: 2 | BEC29: 5 | BEE29: 2 | BEH29: 9 | BEI29: 2 | BEK29: 8 | BEM29: 2 | BEO29: 9 | BEQ29: 2 | BET29: 8 | BEU29: 2 | BFC29: 2 | BFF29: 8 | BFG29: 2 | BFI29: 106 | BFJ29: 47 | BFK29: 48 | BFL29: 0 | BFM29: 753 | BFN29: 577 | BFO29: 367 | BFP29: 5 | BFQ29: 62.75 | BFR29: 52.45454545 | BFS29: 30.58333333 | BFT29: 5 | BFU29: 12 | BFV29: 11 | BFW29: 12 | BFX29: 1
A30: 16 | B30: SRIMA503001TSBH00974 | C30: SRI MAHALAXMI CHILDRENS HOSPITAL | D30: H.No. 5-7-7/1 , BESIDE NALANDA WOMENS DEGREE COLLEGE, KHALEELWADI, NIZAMABAD - 503001. | E30: 50 | H30: Dr. G. HARI KRISHNA | I30: 9493444499 | J30: hariguguloth@gmail.com | K30: Private | L30: Bedded Children Speciality | M30: 5 | N30: 5 | O30: 2 | Q30: 5 | R30: 5 | S30: 2 | U30: 5 | V30: 5 | W30: 2 | Y30: 5 | Z30: 2 | AA30: 2 | AC30: 5 | AD30: 5 | AE30: 2 | AG30: 5 | AH30: 5 | AI30: 2 | AM30: 2 | AO30: 5 | AP30: 5 | AQ30: 2 | AS30: 5 | AT30: 5 | AU30: 2 | AW30: 5 | AX30: 5 | AY30: 2 | BA30: 5 | BB30: 5 | BC30: 2 | BE30: 5 | BG30: 2 | BI30: 5 | BJ30: 5 | BK30: 2 | BQ30: 5 | BR30: 2 | BS30: 2 | BU30: 5 | BV30: 5 | BW30: 2 | BY30: 5 | BZ30: 2 | CA30: 2 | CC30: 5 | CD30: 5 | CE30: 2 | CG30: 5 | CK30: 5 | CL30: 5 | CM30: 2 | CO30: 5 | CQ30: 2 | CS30: 5 | CT30: 5 | CU30: 2 | CW30: 5 | CX30: 5 | CY30: 2 | DA30: 5 | DB30: 5 | DC30: 2 | DE30: 5 | DF30: 5 | DG30: 2 | DI30: 5 | DJ30: 5 | DK30: 2 | DM30: 5 | DO30: 2 | DU30: 5 | DV30: 5 | DW30: 2 | DY30: 10 | EA30: 2 | EC30: 5 | ED30: 5 | EE30: 2 | EG30: 145 | EH30: 106 | EI30: 56 | EJ30: 0 | EK30: 5 | EL30: 5 | EO30: 5 | EP30: 5 | EQ30: 1 | ES30: 5 | ET30: 5 | EU30: 1 | FA30: 5 | FB30: 5 | FC30: 1 | FE30: 5 | FF30: 5 | FG30: 1 | FI30: 5 | FJ30: 5 | FK30: 1 | FM30: 5 | FO30: 1 | FQ30: 5 | FS30: 1 | FW30: 1 | GC30: 5 | GE30: 1 | GG30: 5 | GI30: 1 | GK30: 5 | GM30: 1 | GQ30: 1 | GU30: 1 | GW30: 5 | GY30: 1 | HE30: 5 | HF30: 5 | HG30: 1 | HI30: 5 | HJ30: 5 | HK30: 1 | HM30: 5 | HN30: 5 | HO30: 1 | HQ30: 5 | HR30: 5 | HS30: 1 | HU30: 5 | HV30: 5 | HW30: 1 | HY30: 5 | HZ30: 5 | IA30: 1 | IC30: 5 | ID30: 5 | IE30: 1 | IG30: 5 | IH30: 5 | II30: 1 | IK30: 5 | IL30: 5 | IM30: 1 | IP30: 5 | IQ30: 1 | IS30: 105 | IT30: 80 | IU30: 24 | IV30: 0 | IY30: 1 | JA30: 5 | JB30: 5 | JC30: 1 | JI30: 5 | JK30: 1 | JM30: 5 | JN30: 5 | JO30: 1 | JQ30: 5 | JR30: 5 | JS30: 1 | JV30: 5 | JW30: 1 | JY30: 5 | KA30: 1 | KD30: 5 | KE30: 1 | KL30: 5 | KM30: 1 | KO30: 5 | KQ30: 1 | KS30: 5 | KT30: 5 | KU30: 1 | KW30: 5 | KY30: 1 | LB30: 5 | LC30: 1 | LE30: 5 | LG30: 1 | LN30: 5 | LO30: 1 | LQ30: 5 | LR30: 5 | LS30: 1 | LU30: 5 | LW30: 1 | LY30: 5 | MA30: 1 | MC30: 5 | ME30: 1 | MG30: 5 | MI30: 1 | MP30: 5 | MQ30: 1 | MW30: 5 | MY30: 1 | NC30: 1 | NE30: 5 | NF30: 5 | NG30: 1 | NK30: 1 | NQ30: 80 | NR30: 60 | NS30: 25 | NT30: 0 | NU30: 5 | NV30: 5 | NW30: 1 | OA30: 1 | OE30: 1 | OG30: 5 | OI30: 1 | OK30: 5 | OM30: 1 | OO30: 5 | OP30: 5 | OQ30: 1 | OY30: 1 | PE30: 5 | PF30: 5 | PG30: 1 | PI30: 5 | PK30: 1 | PO30: 1 | PR30: 5 | QA30: 1 | QD30: 5 | QE30: 1 | QH30: 5 | QI30: 1 | QL30: 5 | QM30: 1 | QP30: 2 | QQ30: 1 | QT30: 5 | QU30: 1 | RB30: 5 | RC30: 1 | RF30: 5 | RG30: 1 | RK30: 1 | RO30: 1 | RQ30: 5 | RR30: 10 | RS30: 1 | RU30: 2 | RW30: 1 | SC30: 5 | SD30: 5 | SE30: 1 | SI30: 1 | SK30: 42 | SL30: 67 | SM30: 24 | SN30: 0 | SP30: 5 | SQ30: 1 | SS30: 5 | ST30: 5 | SU30: 1 | SW30: 5 | SX30: 5 | SY30: 1 | TB30: 2 | TC30: 1 | TK30: 1 | TM30: 2 | TO30: 1 | TR30: 7 | TS30: 1 | TW30: 1 | UA30: 1 | UD30: 5 | UE30: 1 | UL30: 5 | UM30: 1 | UP30: 5 | UQ30: 1 | UT30: 5 | UU30: 1 | UX30: 5 | UY30: 1 | VA30: 5 | VC30: 1 | VE30: 5 | VG30: 1 | VN30: 5 | VO30: 1 | VR30: 5 | VS30: 1 | VV30: 5 | VW30: 1 | WA30: 1 | WD30: 5 | WE30: 1 | WH30: 5 | WI30: 1 | WO30: 3 | WQ30: 1 | WT30: 2 | WU30: 1 | WW30: 3 | WY30: 1 | XB30: 3 | XC30: 1 | XG30: 1 | XI30: 28 | XJ30: 79 | XK30: 27 | XL30: 0 | XO30: 1 | XV30: 5 | XW30: 1 | XZ30: 5 | YA30: 1 | YE30: 1 | YH30: 5 | YI30: 1 | YL30: 5 | YM30: 1 | YP30: 5 | YQ30: 1 | YY30: 1 | ZB30: 5 | ZC30: 1 | ZF30: 5 | ZG30: 1 | ZJ30: 5 | ZK30: 1 | ZN30: 2 | ZO30: 1 | ZR30: 5 | ZS30: 1 | AAA30: 1 | AAE30: 3 | AAI30: 1 | AAK30: 4 | AAM30: 1 | AAP30: 3 | AAQ30: 1 | AAT30: 4 | AAU30: 1 | ABA30: 3 | ABC30: 1 | ABE30: 3 | ABG30: 1 | ABI30: 5 | ABK30: 1 | ABM30: 6 | ABO30: 1 | ABQ30: 3 | ABR30: 3 | ABS30: 1 | ABV30: 2 | ABW30: 1 | ACC30: 24 | ACD30: 59 | ACE30: 27 | ACF30: 0 | ACG30: 2 | ACI30: 1 | ACL30: 5 | ACM30: 1 | ACQ30: 1 | ACT30: 5 | ACU30: 1 | ACW30: 5 | ACY30: 1 | ADA30: 2 | ADC30: 1 | ADI30: 5 | ADK30: 1 | ADM30: 2 | ADO30: 1 | ADS30: 1 | ADW30: 1 | AEA30: 1 | AEC30: 5 | AEE30: 1 | AEK30: 5 | AEM30: 1 | AEO30: 3 | AEP30: 4 | AEQ30: 1 | AES30: 3 | AEU30: 1 | AEW30: 6 | AEY30: 1 | AFB30: 3 | AFC30: 1 | AFF30: 3 | AFG30: 1 | AFM30: 3 | AFO30: 1 | AFR30: 3 | AFS30: 1 | AFW30: 1 | AGA30: 1 | AGD30: 3 | AGE30: 1 | AGG30: 3 | AGI30: 1 | AGP30: 5 | AGQ30: 1 | AGT30: 4 | AGU30: 1 | AGY30: 1 | AHA30: 44 | AHB30: 35 | AHC30: 27 | AHD30: 0 | AHF30: 3 | AHG30: 1 | AHK30: 1 | AHO30: 1 | AHV30: 5 | AHW30: 1 | AIA30: 1 | AID30: 5 | AIE30: 1 | AIH30: 5 | AII30: 1 | AIL30: 5 | AIM30: 1 | AIQ30: 1 | AIX30: 3 | AIY30: 1 | AJC30: 1 | AJE30: 3 | AJG30: 1 | AJJ30: 3 | AJK30: 1 | AJN30: 3 | AJO30: 1 | AJR30: 3 | AJS30: 1 | AJZ30: 2 | AKA30: 1 | AKD30: 3 | AKE30: 1 | AKH30: 3 | AKI30: 1 | AKK30: 3 | AKM30: 1 | AKO30: 3 | AKQ30: 1 | AKT30: 6 | AKU30: 1 | ALB30: 3 | ALC30: 1 | ALG30: 1 | ALJ30: 5 | ALK30: 1 | ALN30: 5 | ALO30: 1 | ALQ30: 5 | ALS30: 1 | ALW30: 1 | ALY30: 14 | ALZ30: 62 | AMA30: 27 | AMB30: 0 | AMG30: 2 | AMI30: 1 | AMK30: 2 | AMM30: 1 | AMO30: 3 | AMQ30: 1 | AMS30: 3 | AMU30: 1 | AMW30: 5 | AMY30: 1 | ANA30: 5 | ANC30: 1 | ANK30: 1 | ANO30: 1 | ANQ30: 5 | ANS30: 1 | ANW30: 1 | AOA30: 1 | AOC30: 5 | AOE30: 1 | AOM30: 1 | AOQ30: 1 | AOU30: 1 | AOX30: 5 | AOY30: 1 | APC30: 1 | APF30: 5 | APG30: 1 | APO30: 1 | APR30: 5 | APS30: 1 | APW30: 1 | APY30: 5 | AQA30: 1 | AQE30: 1 | AQG30: 5 | AQI30: 1 | AQO30: 7 | AQQ30: 1 | AQS30: 47 | AQT30: 15 | AQU30: 25 | AQV30: 0 | AQX30: 5 | AQY30: 1 | ARB30: 5 | ARC30: 1 | ARF30: 2 | ARG30: 1 | ARK30: 1 | ARO30: 1 | ARW30: 1 | ASA30: 1 | ASE30: 1 | ASG30: 2 | ASI30: 1 | ASO30: 3 | ASQ30: 1 | ASW30: 3 | ASY30: 1 | ATA30: 2 | ATC30: 1 | ATE30: 2 | ATG30: 1 | ATM30: 3 | ATO30: 1 | ATQ30: 5 | ATS30: 1 | ATY30: 5 | AUA30: 1 | AUE30: 1 | AUG30: 2 | AUI30: 1 | AUK30: 2 | AUM30: 1 | AUO30: 2 | AUQ30: 1 | AUS30: 2 | AUU30: 1 | AVA30: 2 | AVC30: 1 | AVE30: 2 | AVG30: 1 | AVI30: 3 | AVK30: 1 | AVQ30: 40 | AVR30: 12 | AVS30: 24 | AVT30: 0 | AVV30: 2 | AVW30: 1 | AWA30: 1 | AWH30: 5 | AWI30: 1 | AWM30: 1 | AWP30: 5 | AWQ30: 1 | AWS30: 5 | AWU30: 1 | AWX30: 5 | AWY30: 1 | AXB30: 2 | AXC30: 1 | AXI30: 5 | AXK30: 1 | AXN30: 5 | AXO30: 1 | AXR30: 5 | AXS30: 1 | AXV30: 2 | AXW30: 1 | AXZ30: 5 | AYA30: 1 | AYD30: 5 | AYE30: 1 | AYK30: 5 | AYM30: 1 | AYO30: 5 | AYQ30: 1 | AYS30: 5 | AYU30: 1 | AYX30: 5 | AYY30: 1 | AZB30: 2 | AZC30: 1 | AZE30: 5 | AZG30: 1 | AZN30: 5 | AZO30: 1 | AZR30: 5 | AZS30: 1 | AZV30: 5 | AZW30: 1 | AZZ30: 5 | BAA30: 1 | BAD30: 5 | BAE30: 1 | BAH30: 5 | BAI30: 1 | BAK30: 30 | BAL30: 78 | BAM30: 26 | BAN30: 0 | BAS30: 3 | BAW30: 2 | BAY30: 1 | BBA30: 3 | BBC30: 1 | BBE30: 2 | BBG30: 2 | BBI30: 1 | BBJ30: 3 | BBK30: 2 | BBM30: 2 | BBO30: 2 | BBU30: 2 | BBW30: 2 | BBY30: 3 | BCA30: 2 | BCC30: 2 | BCE30: 2 | BCG30: 2 | BCI30: 2 | BCK30: 2 | BCM30: 2 | BCO30: 2 | BCQ30: 2 | BCW30: 2 | BCY30: 2 | BDB30: 3 | BDC30: 2 | BDE30: 5 | BDG30: 2 | BDI30: 5 | BDK30: 2 | BDM30: 3 | BDO30: 2 | BDQ30: 5 | BDS30: 2 | BDY30: 5 | BEA30: 2 | BEC30: 5 | BEE30: 2 | BEG30: 5 | BEI30: 2 | BEK30: 3 | BEM30: 2 | BEO30: 3 | BEQ30: 2 | BES30: 3 | BEU30: 2 | BFA30: 3 | BFC30: 2 | BFE30: 3 | BFG30: 2 | BFI30: 76 | BFJ30: 6 | BFK30: 48 | BFL30: 0 | BFM30: 675 | BFN30: 659 | BFO30: 360 | BFP30: 0 | BFQ30: 56.25 | BFR30: 54.91666667 | BFS30: 30 | BFT30: 0 | BFU30: 12 | BFV30: 12 | BFW30: 12 | BFX30: 0
A31: 17 | B31: SRIVI503001TSBH06146 | C31: SRI VISHNU HOSPITAL | D31: ABOVE KOTAK MAHINDRA BANK, OPP: CENTRAL LIBRARY, KHALEELWADI, NIZAMABAD - 503001. | E31: 50 | H31: Dr. RAJENDRA PRASAD BODDULA | I31: 9542297720 | J31: drrpnims@gmail.com | K31: Private | L31: Bedded | M31: 5 | N31: 5 | O31: 2 | Q31: 5 | R31: 5 | S31: 2 | U31: 5 | V31: 5 | W31: 2 | Y31: 5 | Z31: 2 | AA31: 2 | AC31: 5 | AE31: 2 | AG31: 5 | AI31: 2 | AM31: 2 | AO31: 5 | AP31: 5 | AQ31: 2 | AS31: 5 | AT31: 5 | AU31: 2 | AW31: 5 | AX31: 5 | AY31: 2 | BA31: 5 | BB31: 5 | BC31: 2 | BE31: 5 | BF31: 5 | BG31: 2 | BI31: 5 | BJ31: 5 | BK31: 2 | BQ31: 5 | BR31: 2 | BS31: 2 | BU31: 5 | BV31: 5 | BW31: 2 | BY31: 5 | BZ31: 2 | CA31: 2 | CC31: 5 | CE31: 2 | CG31: 5 | CH31: 5 | CK31: 5 | CM31: 2 | CO31: 5 | CQ31: 2 | CS31: 5 | CU31: 2 | CW31: 5 | CY31: 2 | DA31: 5 | DB31: 5 | DC31: 2 | DE31: 5 | DG31: 2 | DI31: 5 | DJ31: 5 | DK31: 2 | DM31: 5 | DO31: 2 | DU31: 5 | DV31: 5 | DW31: 2 | DY31: 5 | EA31: 2 | EC31: 5 | ED31: 5 | EE31: 2 | EG31: 140 | EH31: 81 | EI31: 56 | EJ31: 0 | EK31: 5 | EL31: 5 | EO31: 5 | EP31: 5 | EQ31: 1 | ES31: 5 | EU31: 1 | FA31: 5 | FB31: 5 | FC31: 1 | FE31: 5 | FF31: 5 | FG31: 1 | FI31: 5 | FJ31: 5 | FK31: 1 | FM31: 5 | FO31: 1 | FQ31: 5 | FR31: 5 | FS31: 1 | FU31: 5 | FV31: 5 | FW31: 1 | GC31: 5 | GD31: 5 | GE31: 1 | GG31: 5 | GH31: 5 | GI31: 1 | GK31: 5 | GL31: 5 | GM31: 1 | GO31: 5 | GP31: 5 | GQ31: 1 | GT31: 5 | GU31: 1 | GW31: 5 | GX31: 5 | GY31: 1 | HE31: 5 | HF31: 5 | HG31: 1 | HI31: 5 | HJ31: 5 | HK31: 1 | HM31: 5 | HN31: 5 | HO31: 1 | HQ31: 5 | HR31: 5 | HS31: 1 | HU31: 5 | HW31: 1 | IA31: 1 | IC31: 5 | ID31: 5 | IE31: 1 | IG31: 5 | IH31: 5 | II31: 1 | IL31: 5 | IM31: 1 | IO31: 5 | IQ31: 1 | IS31: 110 | IT31: 100 | IU31: 24 | IV31: 0 | IX31: 5 | IY31: 1 | JB31: 2 | JC31: 1 | JI31: 5 | JK31: 1 | JO31: 1 | JR31: 5 | JS31: 1 | JW31: 1 | KA31: 1 | KE31: 1 | KK31: 5 | KL31: 5 | KM31: 1 | KO31: 5 | KP31: 5 | KQ31: 1 | KT31: 5 | KU31: 1 | KW31: 5 | KX31: 5 | KY31: 1 | LA31: 5 | LB31: 5 | LC31: 1 | LE31: 5 | LG31: 1 | LM31: 5 | LN31: 5 | LO31: 1 | LQ31: 5 | LR31: 5 | LS31: 1 | LU31: 5 | LW31: 1 | LY31: 5 | MA31: 1 | MC31: 5 | ME31: 1 | MG31: 5 | MI31: 1 | MO31: 5 | MP31: 5 | MQ31: 1 | MW31: 5 | MY31: 1 | NB31: 5 | NC31: 1 | NE31: 5 | NF31: 5 | NG31: 1 | NJ31: 5 | NK31: 1 | NQ31: 75 | NR31: 67 | NS31: 25 | NT31: 0 | NU31: 5 | NV31: 5 | NW31: 1 | NY31: 5 | NZ31: 5 | OA31: 1 | OC31: 5 | OD31: 5 | OE31: 1 | OG31: 5 | OI31: 1 | OK31: 5 | OM31: 1 | OO31: 5 | OP31: 5 | OQ31: 1 | OX31: 5 | OY31: 1 | PG31: 1 | PI31: 5 | PJ31: 5 | PK31: 1 | PM31: 5 | PN31: 5 | PO31: 1 | PQ31: 5 | PR31: 5 | QA31: 1 | QC31: 5 | QD31: 5 | QE31: 1 | QG31: 5 | QH31: 5 | QI31: 1 | QK31: 5 | QL31: 5 | QM31: 1 | QO31: 2 | QP31: 2 | QQ31: 1 | QS31: 5 | QU31: 1 | RB31: 5 | RC31: 1 | RF31: 5 | RG31: 1 | RK31: 1 | RO31: 1 | RQ31: 5 | RR31: 5 | RS31: 1 | RU31: 5 | RV31: 5 | RW31: 1 | SC31: 5 | SD31: 5 | SE31: 1 | SI31: 1 | SK31: 82 | SL31: 82 | SM31: 24 | SN31: 0 | SO31: 5 | SP31: 5 | SQ31: 1 | SS31: 5 | SU31: 1 | SW31: 5 | SX31: 5 | SY31: 1 | TA31: 5 | TB31: 5 | TC31: 1 | TJ31: 5 | TK31: 1 | TN31: 5 | TO31: 1 | TR31: 5 | TS31: 1 | TU31: 5 | TW31: 1 | UA31: 1 | UC31: 5 | UE31: 1 | UM31: 1 | UP31: 5 | UQ31: 1 | UT31: 5 | UU31: 1 | UX31: 5 | UY31: 1 | VB31: 5 | VC31: 1 | VE31: 5 | VG31: 1 | VM31: 5 | VN31: 5 | VO31: 1 | VQ31: 5 | VR31: 5 | VS31: 1 | VV31: 5 | VW31: 1 | WA31: 1 | WD31: 5 | WE31: 1 | WH31: 5 | WI31: 1 | WQ31: 1 | WU31: 1 | WY31: 1 | XB31: 4 | XC31: 1 | XG31: 1 | XI31: 45 | XJ31: 79 | XK31: 27 | XL31: 0 | XO31: 1 | XV31: 5 | XW31: 1 | XZ31: 5 | YA31: 1 | YD31: 5 | YE31: 1 | YH31: 5 | YI31: 1 | YK31: 5 | YM31: 1 | YO31: 5 | YQ31: 1 | YY31: 1 | ZA31: 5 | ZC31: 1 | ZE31: 5 | ZG31: 1 | ZI31: 5 | ZK31: 1 | ZM31: 3 | ZO31: 1 | ZQ31: 5 | ZS31: 1 | ZZ31: 5 | AAA31: 1 | AAC31: 3 | AAI31: 1 | AAL31: 3 | AAM31: 1 | AAP31: 4 | AAQ31: 1 | AAT31: 5 | AAU31: 1 | ABA31: 4 | ABC31: 1 | ABG31: 1 | ABI31: 3 | ABK31: 1 | ABO31: 1 | ABQ31: 5 | ABS31: 1 | ABV31: 5 | ABW31: 1 | ACC31: 48 | ACD31: 42 | ACE31: 24 | ACF31: 0 | ACI31: 1 | ACL31: 5 | ACM31: 1 | ACQ31: 1 | ACT31: 5 | ACU31: 1 | ACY31: 1 | ADC31: 1 | ADJ31: 5 | ADK31: 1 | ADN31: 2 | ADO31: 1 | ADR31: 5 | ADS31: 1 | ADV31: 5 | ADW31: 1 | ADZ31: 5 | AEA31: 1 | AED31: 5 | AEE31: 1 | AEL31: 5 | AEM31: 1 | AEP31: 3 | AEQ31: 1 | AET31: 5 | AEU31: 1 | AEW31: 4 | AEY31: 1 | AFA31: 4 | AFC31: 1 | AFF31: 5 | AFG31: 1 | AFO31: 1 | AFQ31: 4 | AFS31: 1 | AFU31: 4 | AFW31: 1 | AFY31: 5 | AGA31: 1 | AGE31: 1 | AGG31: 4 | AGI31: 1 | AGP31: 5 | AGQ31: 1 | AGT31: 4 | AGU31: 1 | AGW31: 5 | AGY31: 1 | AHA31: 30 | AHB31: 64 | AHC31: 27 | AHD31: 0 | AHF31: 4 | AHG31: 1 | AHJ31: 5 | AHK31: 1 | AHO31: 1 | AHV31: 5 | AHW31: 1 | AHZ31: 5 | AIA31: 1 | AIC31: 5 | AIE31: 1 | AIG31: 5 | AII31: 1 | AIM31: 1 | AIO31: 5 | AIQ31: 1 | AIY31: 1 | AJA31: 5 | AJC31: 1 | AJE31: 5 | AJG31: 1 | AJJ31: 5 | AJK31: 1 | AJN31: 5 | AJO31: 1 | AJR31: 4 | AJS31: 1 | AJZ31: 2 | AKA31: 1 | AKD31: 5 | AKE31: 1 | AKH31: 4 | AKI31: 1 | AKK31: 4 | AKM31: 1 | AKO31: 4 | AKQ31: 1 | AKS31: 4 | AKU31: 1 | ALB31: 4 | ALC31: 1 | ALG31: 1 | ALJ31: 5 | ALK31: 1 | ALN31: 5 | ALO31: 1 | ALR31: 5 | ALS31: 1 | ALV31: 5 | ALW31: 1 | ALY31: 37 | ALZ31: 68 | AMA31: 27 | AMB31: 0 | AMI31: 1 | AMM31: 1 | AMQ31: 1 | AMU31: 1 | AMW31: 5 | AMY31: 1 | ANA31: 5 | ANC31: 1 | ANJ31: 5 | ANK31: 1 | ANN31: 5 | ANO31: 1 | ANQ31: 5 | ANS31: 1 | ANV31: 5 | ANW31: 1 | AOA31: 1 | AOE31: 1 | AOL31: 5 | AOM31: 1 | AOP31: 5 | AOQ31: 1 | AOU31: 1 | AOX31: 5 | AOY31: 1 | APC31: 1 | APF31: 5 | APG31: 1 | APN31: 5 | APO31: 1 | APQ31: 5 | APS31: 1 | APV31: 5 | APW31: 1 | APZ31: 5 | AQA31: 1 | AQD31: 5 | AQE31: 1 | AQH31: 5 | AQI31: 1 | AQP31: 5 | AQQ31: 1 | AQS31: 20 | AQT31: 65 | AQU31: 25 | AQV31: 0 | AQW31: 5 | AQY31: 1 | ARA31: 5 | ARC31: 1 | ARE31: 4 | ARG31: 1 | ARI31: 5 | ARJ31: 5 | ARK31: 1 | ARM31: 5 | ARO31: 1 | ARU31: 5 | ARW31: 1 | ARY31: 5 | ASA31: 1 | ASC31: 5 | ASE31: 1 | ASH31: 5 | ASI31: 1 | ASP31: 5 | ASQ31: 1 | ASX31: 5 | ASY31: 1 | ATB31: 5 | ATC31: 1 | ATF31: 5 | ATG31: 1 | ATM31: 5 | ATO31: 1 | ATR31: 5 | ATS31: 1 | ATZ31: 5 | AUA31: 1 | AUD31: 5 | AUE31: 1 | AUH31: 6 | AUI31: 1 | AUL31: 4 | AUM31: 1 | AUO31: 5 | AUQ31: 1 | AUT31: 5 | AUU31: 1 | AVB31: 5 | AVC31: 1 | AVE31: 4 | AVG31: 1 | AVK31: 1 | AVQ31: 53 | AVR31: 65 | AVS31: 24 | AVT31: 0 | AVU31: 5 | AVW31: 1 | AWA31: 1 | AWH31: 5 | AWI31: 1 | AWL31: 5 | AWM31: 1 | AWP31: 5 | AWQ31: 1 | AWT31: 5 | AWU31: 1 | AWX31: 5 | AWY31: 1 | AXA31: 5 | AXC31: 1 | AXJ31: 5 | AXK31: 1 | AXM31: 5 | AXO31: 1 | AXQ31: 5 | AXS31: 1 | AXU31: 5 | AXW31: 1 | AXY31: 5 | AYA31: 1 | AYC31: 5 | AYE31: 1 | AYL31: 5 | AYM31: 1 | AYP31: 5 | AYQ31: 1 | AYT31: 5 | AYU31: 1 | AYW31: 5 | AYY31: 1 | AZA31: 5 | AZC31: 1 | AZF31: 5 | AZG31: 1 | AZM31: 5 | AZO31: 1 | AZQ31: 5 | AZS31: 1 | AZU31: 5 | AZW31: 1 | AZY31: 5 | BAA31: 1 | BAC31: 5 | BAE31: 1 | BAG31: 4 | BAI31: 1 | BAK31: 74 | BAL31: 50 | BAM31: 26 | BAN31: 0 | BAU31: 5 | BAW31: 5 | BAY31: 1 | BBA31: 5 | BBC31: 1 | BBG31: 2 | BBK31: 2 | BBO31: 2 | BBU31: 4 | BBW31: 2 | BCA31: 2 | BCE31: 2 | BCG31: 5 | BCI31: 2 | BCK31: 5 | BCM31: 2 | BCO31: 4 | BCQ31: 2 | BCW31: 4 | BCY31: 2 | BDB31: 5 | BDC31: 2 | BDF31: 4 | BDG31: 2 | BDI31: 4 | BDK31: 2 | BDO31: 2 | BDR31: 4 | BDS31: 2 | BDY31: 5 | BEA31: 2 | BEC31: 2 | BEE31: 2 | BEI31: 2 | BEK31: 5 | BEM31: 2 | BEQ31: 2 | BES31: 5 | BEU31: 2 | BFC31: 2 | BFE31: 5 | BFG31: 2 | BFI31: 58 | BFJ31: 13 | BFK31: 53 | BFL31: 0 | BFM31: 772 | BFN31: 776 | BFO31: 362 | BFP31: 0 | BFQ31: 64.33333333 | BFR31: 64.66666667 | BFS31: 30.16666667 | BFT31: 0 | BFU31: 12 | BFV31: 12 | BFW31: 12 | BFX31: 0
A32: 18 | B32: SRINI503001TSBH06147 | C32: SRINIVAS GASTRO & LIVER CARE HOSPITAL | D32: H.No.5-6-742/743, BESIDE MRO OFFICE, OPP: DEO OFFICE AND CENTRAL LIBRARY, KHALEELWADI, NIZAMABAD - 503001. | E32: 50 | H32: Dr. M. SRINIVAS | I32: 9441024679 | J32: drmsrinivasdmgstro@gmail.com | K32: Private | L32: Bedded Gastro & Liver Speciality | M32: 5 | N32: 5 | O32: 2 | Q32: 5 | R32: 5 | S32: 2 | U32: 5 | V32: 5 | W32: 2 | Y32: 5 | Z32: 2 | AA32: 2 | AC32: 5 | AD32: 5 | AE32: 2 | AG32: 5 | AI32: 2 | AM32: 2 | AO32: 5 | AP32: 5 | AQ32: 2 | AS32: 5 | AT32: 5 | AU32: 2 | AW32: 5 | AX32: 5 | AY32: 2 | BA32: 5 | BB32: 5 | BC32: 2 | BE32: 5 | BF32: 5 | BG32: 2 | BI32: 5 | BJ32: 5 | BK32: 2 | BQ32: 5 | BR32: 2 | BS32: 2 | BU32: 5 | BV32: 5 | BW32: 2 | BY32: 5 | CA32: 2 | CC32: 5 | CE32: 2 | CG32: 5 | CK32: 5 | CM32: 2 | CO32: 5 | CQ32: 2 | CS32: 5 | CU32: 2 | CW32: 5 | CY32: 2 | DA32: 5 | DB32: 5 | DC32: 2 | DE32: 5 | DG32: 2 | DI32: 5 | DJ32: 5 | DK32: 2 | DM32: 5 | DO32: 2 | DU32: 5 | DV32: 5 | DW32: 2 | DY32: 5 | EA32: 2 | EC32: 5 | ED32: 5 | EE32: 2 | EG32: 140 | EH32: 79 | EI32: 56 | EJ32: 0 | EK32: 5 | EL32: 5 | EO32: 5 | EP32: 5 | EQ32: 1 | ES32: 5 | ET32: 5 | EU32: 1 | FA32: 5 | FB32: 5 | FC32: 1 | FE32: 5 | FF32: 5 | FG32: 1 | FI32: 5 | FJ32: 5 | FK32: 1 | FM32: 5 | FN32: 5 | FO32: 1 | FQ32: 5 | FR32: 5 | FS32: 1 | FW32: 1 | GC32: 5 | GD32: 5 | GE32: 1 | GG32: 5 | GH32: 5 | GI32: 1 | GK32: 5 | GL32: 5 | GM32: 1 | GO32: 5 | GP32: 5 | GQ32: 1 | GT32: 5 | GU32: 1 | GW32: 5 | GX32: 5 | GY32: 1 | HE32: 5 | HF32: 5 | HG32: 1 | HI32: 5 | HJ32: 5 | HK32: 1 | HM32: 5 | HO32: 1 | HQ32: 5 | HR32: 5 | HS32: 1 | HU32: 5 | HW32: 1 | IA32: 1 | IC32: 5 | ID32: 5 | IE32: 1 | IG32: 5 | IH32: 5 | II32: 1 | IK32: 5 | IM32: 1 | IO32: 5 | IP32: 5 | IQ32: 1 | IS32: 110 | IT32: 100 | IU32: 24 | IV32: 0 | IX32: 5 | IY32: 1 | JB32: 5 | JC32: 1 | JI32: 10 | JK32: 1 | JO32: 1 | JR32: 5 | JS32: 1 | JW32: 1 | KA32: 1 | KE32: 1 | KK32: 5 | KL32: 5 | KM32: 1 | KO32: 5 | KP32: 5 | KQ32: 1 | KU32: 1 | KW32: 5 | KX32: 5 | KY32: 1 | LA32: 5 | LC32: 1 | LE32: 5 | LF32: 5 | LG32: 1 | LM32: 5 | LN32: 5 | LO32: 1 | LQ32: 5 | LR32: 5 | LS32: 1 | LU32: 5 | LV32: 5 | LW32: 1 | LY32: 5 | LZ32: 5 | MA32: 1 | MC32: 5 | MD32: 5 | ME32: 1 | MG32: 5 | MH32: 5 | MI32: 1 | MO32: 5 | MP32: 5 | MQ32: 1 | MW32: 5 | MX32: 5 | MY32: 1 | NC32: 1 | NE32: 5 | NF32: 5 | NG32: 1 | NK32: 1 | NQ32: 80 | NR32: 80 | NS32: 25 | NT32: 0 | NU32: 5 | NV32: 5 | NW32: 1 | NZ32: 5 | OA32: 1 | OD32: 5 | OE32: 1 | OG32: 5 | OI32: 1 | OK32: 5 | OL32: 5 | OM32: 1 | OO32: 5 | OP32: 5 | OQ32: 1 | OW32: 5 | OY32: 1 | PF32: 5 | PG32: 1 | PI32: 5 | PJ32: 5 | PK32: 1 | PM32: 5 | PN32: 5 | PO32: 1 | PQ32: 5 | PR32: 5 | QA32: 1 | QC32: 5 | QD32: 5 | QE32: 1 | QG32: 5 | QH32: 5 | QI32: 1 | QK32: 5 | QL32: 5 | QM32: 1 | QO32: 2 | QQ32: 1 | QS32: 5 | QU32: 1 | RA32: 5 | RB32: 5 | RC32: 1 | RE32: 5 | RF32: 5 | RG32: 1 | RK32: 1 | RO32: 1 | RQ32: 5 | RR32: 5 | RS32: 1 | RU32: 5 | RV32: 5 | RW32: 1 | SC32: 10 | SD32: 3 | SE32: 1 | SI32: 1 | SK32: 92 | SL32: 83 | SM32: 24 | SN32: 0 | SO32: 5 | SP32: 5 | SQ32: 1 | SS32: 5 | ST32: 5 | SU32: 1 | SW32: 5 | SX32: 5 | SY32: 1 | TA32: 5 | TB32: 5 | TC32: 1 | TI32: 5 | TK32: 1 | TN32: 5 | TO32: 1 | TR32: 5 | TS32: 1 | TV32: 5 | TW32: 1 | TY32: 5 | UA32: 1 | UD32: 5 | UE32: 1 | UL32: 5 | UM32: 1 | UP32: 5 | UQ32: 1 | UT32: 5 | UU32: 1 | UX32: 5 | UY32: 1 | VB32: 5 | VC32: 1 | VE32: 5 | VG32: 1 | VN32: 5 | VO32: 1 | VR32: 5 | VS32: 1 | VV32: 5 | VW32: 1 | VZ32: 5 | WA32: 1 | WD32: 5 | WE32: 1 | WH32: 5 | WI32: 1 | WQ32: 1 | WU32: 1 | WY32: 1 | XA32: 4 | XC32: 1 | XG32: 1 | XI32: 39 | XJ32: 95 | XK32: 27 | XL32: 0 | XO32: 1 | XV32: 5 | XW32: 1 | XZ32: 5 | YA32: 1 | YC32: 5 | YE32: 1 | YG32: 5 | YI32: 1 | YL32: 5 | YM32: 1 | YP32: 5 | YQ32: 1 | YY32: 1 | ZA32: 5 | ZC32: 1 | ZE32: 5 | ZG32: 1 | ZJ32: 5 | ZK32: 1 | ZN32: 2 | ZO32: 1 | ZR32: 5 | ZS32: 1 | ZY32: 5 | AAA32: 1 | AAC32: 4 | AAI32: 1 | AAL32: 3 | AAM32: 1 | AAP32: 3 | AAQ32: 1 | AAT32: 5 | AAU32: 1 | ABB32: 4 | ABC32: 1 | ABF32: 5 | ABG32: 1 | ABI32: 2 | ABK32: 1 | ABM32: 4 | ABO32: 1 | ABQ32: 4 | ABS32: 1 | ABU32: 5 | ABW32: 1 | ACC32: 44 | ACD32: 52 | ACE32: 24 | ACF32: 0 | ACI32: 1 | ACL32: 5 | ACM32: 1 | ACQ32: 1 | ACT32: 5 | ACU32: 1 | ACY32: 1 | ADC32: 1 | ADJ32: 2 | ADK32: 1 | ADN32: 2 | ADO32: 1 | ADR32: 5 | ADS32: 1 | ADV32: 5 | ADW32: 1 | ADZ32: 2 | AEA32: 1 | AED32: 5 | AEE32: 1 | AEL32: 5 | AEM32: 1 | AEO32: 3 | AEQ32: 1 | AES32: 4 | AEU32: 1 | AEW32: 3 | AEY32: 1 | AFA32: 3 | AFC32: 1 | AFE32: 3 | AFG32: 1 | AFM32: 5 | AFO32: 1 | AFQ32: 4 | AFS32: 1 | AFV32: 4 | AFW32: 1 | AFZ32: 5 | AGA32: 1 | AGC32: 5 | AGE32: 1 | AGH32: 4 | AGI32: 1 | AGO32: 5 | AGQ32: 1 | AGS32: 4 | AGU32: 1 | AGX32: 4 | AGY32: 1 | AHA32: 39 | AHB32: 53 | AHC32: 27 | AHD32: 0 | AHE32: 4 | AHG32: 1 | AHJ32: 5 | AHK32: 1 | AHM32: 5 | AHO32: 1 | AHU32: 5 | AHW32: 1 | AHZ32: 5 | AIA32: 1 | AIC32: 5 | AIE32: 1 | AIG32: 5 | AIH32: 5 | AII32: 1 | AIL32: 5 | AIM32: 1 | AIO32: 5 | AIQ32: 1 | AIX32: 4 | AIY32: 1 | AJB32: 5 | AJC32: 1 | AJF32: 5 | AJG32: 1 | AJK32: 1 | AJO32: 1 | AJS32: 1 | AJY32: 2 | AKA32: 1 | AKE32: 1 | AKG32: 4 | AKI32: 1 | AKL32: 4 | AKM32: 1 | AKP32: 4 | AKQ32: 1 | AKS32: 4 | AKU32: 1 | ALA32: 4 | ALC32: 1 | ALE32: 5 | ALG32: 1 | ALJ32: 5 | ALK32: 1 | ALN32: 5 | ALO32: 1 | ALR32: 5 | ALS32: 1 | ALV32: 5 | ALW32: 1 | ALY32: 48 | ALZ32: 62 | AMA32: 27 | AMB32: 0 | AMH32: 5 | AMI32: 1 | AML32: 5 | AMM32: 1 | AMP32: 3 | AMQ32: 1 | AMT32: 4 | AMU32: 1 | AMX32: 5 | AMY32: 1 | ANB32: 5 | ANC32: 1 | ANJ32: 5 | ANK32: 1 | ANN32: 5 | ANO32: 1 | ANS32: 1 | ANV32: 5 | ANW32: 1 | AOA32: 1 | AOE32: 1 | AOL32: 5 | AOM32: 1 | AOQ32: 1 | AOU32: 1 | AOW32: 5 | AOX32: 2 | AOY32: 1 | APC32: 1 | APE32: 2 | APF32: 5 | APG32: 1 | APN32: 5 | APO32: 1 | APR32: 5 | APS32: 1 | APW32: 1 | APY32: 5 | AQA32: 1 | AQD32: 2 | AQE32: 1 | AQH32: 5 | AQI32: 1 | AQP32: 5 | AQQ32: 1 | AQS32: 12 | AQT32: 76 | AQU32: 25 | AQV32: 0 | AQW32: 5 | AQY32: 1 | ARC32: 1 | ARG32: 1 | ARK32: 1 | ARO32: 1 | ARW32: 1 | ASA32: 1 | ASE32: 1 | ASH32: 3 | ASI32: 1 | ASP32: 4 | ASQ32: 1 | ASX32: 5 | ASY32: 1 | ATB32: 5 | ATC32: 1 | ATF32: 5 | ATG32: 1 | ATN32: 5 | ATO32: 1 | ATR32: 5 | ATS32: 1 | ATZ32: 5 | AUA32: 1 | AUD32: 5 | AUE32: 1 | AUH32: 6 | AUI32: 1 | AUK32: 4 | AUM32: 1 | AUP32: 5 | AUQ32: 1 | AUT32: 5 | AUU32: 1 | AVA32: 5 | AVC32: 1 | AVF32: 4 | AVG32: 1 | AVI32: 5 | AVK32: 1 | AVQ32: 19 | AVR32: 62 | AVS32: 24 | AVT32: 0 | AVU32: 5 | AVW32: 1 | AWA32: 1 | AWG32: 5 | AWI32: 1 | AWK32: 5 | AWM32: 1 | AWO32: 5 | AWQ32: 1 | AWS32: 2 | AWU32: 1 | AWW32: 5 | AWY32: 1 | AXB32: 5 | AXC32: 1 | AXI32: 2 | AXK32: 1 | AXN32: 4 | AXO32: 1 | AXR32: 4 | AXS32: 1 | AXU32: 5 | AXW32: 1 | AXZ32: 5 | AYA32: 1 | AYD32: 5 | AYE32: 1 | AYK32: 2 | AYM32: 1 | AYO32: 2 | AYQ32: 1 | AYS32: 5 | AYU32: 1 | AYX32: 3 | AYY32: 1 | AZB32: 5 | AZC32: 1 | AZE32: 5 | AZG32: 1 | AZM32: 5 | AZO32: 1 | AZR32: 5 | AZS32: 1 | AZV32: 5 | AZW32: 1 | AZZ32: 4 | BAA32: 1 | BAD32: 5 | BAE32: 1 | BAH32: 5 | BAI32: 1 | BAK32: 53 | BAL32: 55 | BAM32: 26 | BAN32: 0 | BAU32: 5 | BAY32: 1 | BBC32: 1 | BBG32: 2 | BBK32: 2 | BBO32: 2 | BBU32: 4 | BBW32: 2 | BBY32: 4 | BCA32: 2 | BCE32: 2 | BCG32: 5 | BCI32: 2 | BCK32: 5 | BCM32: 2 | BCO32: 4 | BCQ32: 2 | BCW32: 4 | BCY32: 2 | BDA32: 5 | BDC32: 2 | BDG32: 2 | BDK32: 2 | BDN32: 5 | BDO32: 2 | BDS32: 2 | BDY32: 5 | BEA32: 2 | BEC32: 3 | BEE32: 2 | BEH32: 4 | BEI32: 2 | BEM32: 2 | BEO32: 4 | BEQ32: 2 | BES32: 5 | BEU32: 2 | BFB32: 3 | BFC32: 2 | BFF32: 5 | BFG32: 2 | BFI32: 48 | BFJ32: 17 | BFK32: 53 | BFL32: 0 | BFM32: 724 | BFN32: 814 | BFO32: 362 | BFP32: 0 | BFQ32: 60.33333333 | BFR32: 67.83333333 | BFS32: 30.16666667 | BFT32: 0 | BFU32: 12 | BFV32: 12 | BFW32: 12 | BFX32: 0
A33: 19 | B33: SVRMU503001TSBH08033 | C33: SVR MULTI SPECIALITY HOSPITAL | D33: KHALEELWADI, NIZAMABAD - 503001. | E33: 50 | H33: Dr. E. SANDHYA RANI | I33: 9848937770 | J33: svrhospital58@yahoo.com | K33: Private | L33: Bedded | M33: 5 | N33: 5 | O33: 2 | Q33: 5 | R33: 5 | S33: 2 | U33: 5 | V33: 5 | W33: 2 | Y33: 5 | AA33: 2 | AC33: 2 | AE33: 2 | AG33: 5 | AH33: 5 | AI33: 2 | AM33: 2 | AO33: 5 | AP33: 5 | AQ33: 2 | AS33: 5 | AT33: 5 | AU33: 2 | AW33: 5 | AX33: 5 | AY33: 2 | BA33: 5 | BC33: 2 | BE33: 5 | BF33: 5 | BG33: 2 | BI33: 5 | BJ33: 5 | BK33: 2 | BQ33: 5 | BR33: 2 | BS33: 2 | BU33: 5 | BV33: 5 | BW33: 2 | BY33: 5 | CA33: 2 | CC33: 5 | CE33: 2 | CG33: 5 | CK33: 5 | CL33: 5 | CM33: 2 | CO33: 5 | CQ33: 2 | CS33: 5 | CU33: 2 | CW33: 5 | CX33: 5 | CY33: 2 | DA33: 5 | DB33: 5 | DC33: 2 | DE33: 5 | DG33: 2 | DI33: 5 | DJ33: 5 | DK33: 2 | DM33: 5 | DO33: 2 | DU33: 5 | DV33: 5 | DW33: 2 | DY33: 5 | DZ33: 5 | EA33: 2 | EC33: 5 | ED33: 5 | EE33: 2 | EG33: =M33+Q33+U33+Y33+AC33+AG33+AK33+AO33+AS33+AW33+BA33+BE33+BI33+BM33+BQ33+BU33+BY33+CC33+CG33+CK33+CO33+CS33+CW33+DA33+DE33+DI33+DM33+DQ33+DU33+DY33+EC33 -> 137 | EH33: =N33+R33+V33+Z33+AD33+AH33+AL33+AP33+AT33+AX33+BB33+BF33+BJ33+BN33+BR33+BV33+BZ33+CD33+CH33+CL33+CP33+CT33+CX33+DB33+DF33+DJ33+DN33+DR33+DV33+DZ33+ED33 -> 87 | EI33: =O33+S33+W33+AA33+AE33+AI33+AM33+AQ33+AU33+AY33+BC33+BG33+BK33+BO33+BS33+BW33+CA33+CE33+CI33+CM33+CQ33+CU33+CY33+DC33+DG33+DK33+DO33+DS33+DW33+EA33+EE33 -> 56 | EJ33: =P33+T33+X33+AB33+AF33+AJ33+AN33+AR33+AV33+AZ33+BD33+BH33+BL33+BP33+BT33+BX33+CB33+CF33+CJ33+CN33+CR33+CV33+CZ33+DD33+DH33+DL33+DP33+DT33+DX33+EB33+EF33 -> 0 | EK33: 5 | EL33: 5 | EO33: 5 | EQ33: 1 | ES33: 5 | EU33: 1 | FA33: 5 | FC33: 1 | FE33: 5 | FG33: 1 | FI33: 5 | FJ33: 5 | FK33: 1 | FM33: 5 | FN33: 5 | FO33: 1 | FQ33: 5 | FR33: 5 | FS33: 1 | FW33: 1 | GC33: 5 | GD33: 5 | GE33: 1 | GG33: 5 | GH33: 5 | GI33: 1 | GK33: 5 | GL33: 5 | GM33: 1 | GP33: 5 | GQ33: 1 | GT33: 5 | GU33: 1 | GX33: 5 | GY33: 1 | HG33: 1 | HI33: 5 | HK33: 1 | HM33: 5 | HN33: 5 | HO33: 1 | HQ33: 5 | HR33: 5 | HS33: 1 | HU33: 5 | HW33: 1 | HY33: 5 | HZ33: 5 | IA33: 1 | IC33: 5 | ID33: 5 | IE33: 1 | IG33: 5 | IH33: 5 | II33: 1 | IM33: 1 | IO33: 5 | IP33: 5 | IQ33: 1 | IS33: =EK33+EO33+ES33+EW33+FA33+FE33+FI33+FM33+FQ33+FU33+FY33+GC33+GG33+GK33+GO33+GS33+GW33+HA33+HE33+HI33+HM33+HQ33+HU33+HY33+IC33+IG33+IK33+IO33 -> 95 | IT33: =EL33+EP33+ET33+EX33+FB33+FF33+FJ33+FN33+FR33+FV33+FZ33+GD33+GH33+GL33+GP33+GT33+GX33+HB33+HF33+HJ33+HN33+HR33+HV33+HZ33+ID33+IH33+IL33+IP33 -> 80 | IU33: =EM33+EQ33+EU33+EY33+FC33+FG33+FK33+FO33+FS33+FW33+GA33+GE33+GI33+GM33+GQ33+GU33+GY33+HC33+HG33+HK33+HO33+HS33+HW33+IA33+IE33+II33+IM33+IQ33 -> 24 | IV33: =EN33+ER33+EV33+EZ33+FD33+FH33+FL33+FP33+FT33+FX33+GB33+GF33+GJ33+GN33+GR33+GV33+GZ33+HD33+HH33+HL33+HP33+HT33+HX33+IB33+IF33+IJ33+IN33+IR33 -> 0 | IY33: 1 | JA33: 5 | JB33: 5 | JC33: 1 | JK33: 1 | JM33: 5 | JO33: 1 | JQ33: 5 | JR33: 5 | JS33: 1 | JW33: 1 | KA33: 1 | KE33: 1 | KK33: 5 | KL33: 5 | KM33: 1 | KO33: 5 | KP33: 5 | KQ33: 1 | KU33: 1 | KW33: 5 | KX33: 5 | KY33: 1 | LA33: 5 | LB33: 5 | LC33: 1 | LF33: 5 | LG33: 1 | LM33: 5 | LN33: 5 | LO33: 1 | LQ33: 5 | LR33: 5 | LS33: 1 | LU33: 5 | LV33: 5 | LW33: 1 | LY33: 5 | LZ33: 5 | MA33: 1 | MC33: 5 | MD33: 5 | ME33: 1 | MG33: 5 | MH33: 5 | MI33: 1 | MO33: 5 | MP33: 5 | MQ33: 1 | MW33: 5 | MX33: 5 | MY33: 1 | NA33: 5 | NB33: 5 | NC33: 1 | NG33: 1 | NI33: 5 | NJ33: 5 | NK33: 1 | NQ33: =IW33+JA33+JE33+JI33+JM33+JQ33+JU33+JY33+KC33+KG33+KK33+KO33+KS33+KW33+LA33+LE33+LI33+LM33+LQ33+LU33+LY33+MC33+MG33+MK33+MO33+MS33+MW33+NA33+NE33+NI33+NM33 -> 85 | NR33: =IX33+JB33+JF33+JJ33+JN33+JR33+JV33+JZ33+KD33+KH33+KL33+KP33+KT33+KX33+LB33+LF33+LJ33+LN33+LR33+LV33+LZ33+MD33+MH33+ML33+MP33+MT33+MX33+NB33+NF33+NJ33+NN33 -> 85 | NS33: =IY33+JC33+JG33+JK33+JO33+JS33+JW33+KA33+KE33+KI33+KM33+KQ33+KU33+KY33+LC33+LG33+LK33+LO33+LS33+LW33+MA33+ME33+MI33+MM33+MQ33+MU33+MY33+NC33+NG33+NK33+NO33 -> 25 | NT33: =IZ33+JD33+JH33+JL33+JP33+JT33+JX33+KB33+KF33+KJ33+KN33+KR33+KV33+KZ33+LD33+LH33+LL33+LP33+LT33+LX33+MB33+MF33+MJ33+MN33+MR33+MV33+MZ33+ND33+NH33+NL33+NP33 -> 0 | NU33: 5 | NV33: 5 | NW33: 1 | NY33: 5 | NZ33: 5 | OA33: 1 | OE33: 1 | OG33: 5 | OH33: 5 | OI33: 1 | OK33: 5 | OL33: 5 | OM33: 1 | OO33: 5 | OP33: 5 | OQ33: 1 | OW33: 5 | OX33: 5 | OY33: 1 | PE33: 5 | PF33: 5 | PG33: 1 | PI33: 5 | PK33: 1 | PO33: 1 | PQ33: 5 | PR33: 5 | QA33: 1 | QC33: 5 | QD33: 5 | QE33: 1 | QG33: 5 | QH33: 5 | QI33: 1 | QK33: 5 | QL33: 5 | QM33: 1 | QO33: 2 | QQ33: 1 | QS33: 5 | QU33: 1 | RA33: 5 | RC33: 1 | RE33: 5 | RG33: 1 | RK33: 1 | RN33: 5 | RO33: 1 | RQ33: 5 | RS33: 1 | RV33: 5 | RW33: 1 | SD33: 3 | SE33: 1 | SH33: 5 | SI33: 1 | SK33: =NU33+NY33+OC33+OG33+OK33+OO33+OS33+OW33+PA33+PE33+PI33+PM33+PQ33+PU33+PY33+QC33+QG33+QK33+QO33+QS33+QW33+RA33+RE33+RI33+RM33+RQ33+RU33+RY33+SC33+SG33 -> 82 | SL33: =NV33+NZ33+OD33+OH33+OL33+OP33+OT33+OX33+PB33+PF33+PJ33+PN33+PR33+PV33+PZ33+QD33+QH33+QL33+QP33+QT33+QX33+RB33+RF33+RJ33+RN33+RR33+RV33+RZ33+SD33+SH33 -> 73 | SM33: =NW33+OA33+OE33+OI33+OM33+OQ33+OU33+OY33+PC33+PG33+PK33+PO33+PS33+PW33+QA33+QE33+QI33+QM33+QQ33+QU33+QY33+RC33+RG33+RK33+RO33+RS33+RW33+SA33+SE33+SI33 -> 24 | SN33: =NX33+OB33+OF33+OJ33+ON33+OR33+OV33+OZ33+PD33+PH33+PL33+PP33+PT33+PX33+QB33+QF33+QJ33+QN33+QR33+QV33+QZ33+RD33+RH33+RL33+RP33+RT33+RX33+SB33+SF33+SJ33 -> 0 | SO33: 5 | SQ33: 1 | SS33: 5 | ST33: 5 | SU33: 1 | SW33: 5 | SX33: 5 | SY33: 1 | TA33: 5 | TB33: 5 | TC33: 1 | TK33: 1 | TN33: 5 | TO33: 1 | TQ33: 5 | TS33: 1 | TW33: 1 | UA33: 1 | UE33: 1 | UL33: 5 | UM33: 1 | UQ33: 1 | UT33: 5 | UU33: 1 | UX33: 5 | UY33: 1 | VB33: 5 | VC33: 1 | VF33: 5 | VG33: 1 | VN33: 5 | VO33: 1 | VR33: 5 | VS33: 1 | VW33: 1 | WA33: 1 | WD33: 5 | WE33: 1 | WI33: 1 | WQ33: 1 | WU33: 1 | WW33: 3 | WY33: 1 | XB33: 8 | XC33: 1 | XE33: 3 | XG33: 1 | XI33: =SO33+SS33+SW33+TA33+TE33+TI33+TM33+TQ33+TU33+TY33+UC33+UG33+UK33+UO33+US33+UW33+VA33+VE33+VI33+VM33+VQ33+VU33+VY33+WC33+WG33+WK33+WO33+WS33+WW33+XA33+XE33 -> 31 | XJ33: =SP33+ST33+SX33+TB33+TF33+TJ33+TN33+TR33+TV33+TZ33+UD33+UH33+UL33+UP33+UT33+UX33+VB33+VF33+VJ33+VN33+VR33+VV33+VZ33+WD33+WH33+WL33+WP33+WT33+WX33+XB33+XF33 -> 68 | XK33: =SQ33+SU33+SY33+TC33+TG33+TK33+TO33+TS33+TW33+UA33+UE33+UI33+UM33+UQ33+UU33+UY33+VC33+VG33+VK33+VO33+VS33+VW33+WA33+WE33+WI33+WM33+WQ33+WU33+WY33+XC33+XG33 -> 27 | XL33: =SR33+SV33+SZ33+TD33+TH33+TL33+TP33+TT33+TX33+UB33+UF33+UJ33+UN33+UR33+UV33+UZ33+VD33+VH33+VL33+VP33+VT33+VX33+WB33+WF33+WJ33+WN33+WR33+WV33+WZ33+XD33+XH33 -> 0 | XM33: 4 | XO33: 1 | XV33: 5 | XW33: 1 | XZ33: 5 | YA33: 1 | YE33: 1 | YH33: 5 | YI33: 1 | YM33: 1 | YP33: 5 | YQ33: 1 | YX33: 2 | YY33: 1 | ZC33: 1 | ZG33: 1 | ZJ33: 5 | ZK33: 1 | ZN33: 2 | ZO33: 1 | ZR33: 5 | ZS33: 1 | ZY33: 5 | AAA33: 1 | AAC33: 3 | AAH33: 3 | AAI33: 1 | AAK33: 4 | AAM33: 1 | AAP33: 4 | AAQ33: 1 | AAT33: 4 | AAU33: 1 | ABC33: 1 | ABE33: 4 | ABG33: 1 | ABK33: 1 | ABO33: 1 | ABS33: 1 | ABW33: 1 | ACC33: =XM33+XQ33+XU33+XY33+YC33+YG33+YK33+YO33+YS33+YW33+ZA33+ZE33+ZI33+ZM33+ZQ33+ZU33+ZY33+AAC33+AAG33+AAK33+AAO33+AAS33+AAW33+ABA33+ABE33+ABI33+ABM33+ABQ33+ABU33+ABY33 -> 20 | ACD33: =XN33+XR33+XV33+XZ33+YD33+YH33+YL33+YP33+YT33+YX33+ZB33+ZF33+ZJ33+ZN33+ZR33+ZV33+ZZ33+AAD33+AAH33+AAL33+AAP33+AAT33+AAX33+ABB33+ABF33+ABJ33+ABN33+ABR33+ABV33+ABZ33 -> 45 | ACE33: =XO33+XS33+XW33+YA33+YE33+YI33+YM33+YQ33+YU33+YY33+ZC33+ZG33+ZK33+ZO33+ZS33+ZW33+AAA33+AAE33+AAI33+AAM33+AAQ33+AAU33+AAY33+ABC33+ABG33+ABK33+ABO33+ABS33+ABW33+ACA33 -> 24 | ACF33: =XP33+XT33+XX33+YB33+YF33+YJ33+YN33+YR33+YV33+YZ33+ZD33+ZH33+ZL33+ZP33+ZT33+ZX33+AAB33+AAF33+AAJ33+AAN33+AAR33+AAV33+AAZ33+ABD33+ABH33+ABL33+ABP33+ABT33+ABX33+ACB33 -> 0 | ACG33: 5 | ACI33: 1 | ACL33: 5 | ACM33: 1 | ACO33: 5 | ACQ33: 1 | ACT33: 5 | ACU33: 1 | ACX33: 5 | ACY33: 1 | ADB33: 5 | ADC33: 1 | ADJ33: 5 | ADK33: 1 | ADN33: 5 | ADO33: 1 | ADS33: 1 | ADW33: 1 | AEA33: 1 | AEC33: 5 | AEE33: 1 | AEK33: 5 | AEM33: 1 | AEO33: 4 | AEQ33: 1 | AEU33: 1 | AEY33: 1 | AFC33: 1 | AFG33: 1 | AFO33: 1 | AFQ33: 4 | AFS33: 1 | AFU33: 4 | AFW33: 1 | AFY33: 4 | AGA33: 1 | AGE33: 1 | AGG33: 4 | AGI33: 1 | AGP33: 5 | AGQ33: 1 | AGT33: 4 | AGU33: 1 | AGW33: 4 | AGY33: 1 | AHA33: =ACG33+ACK33+ACO33+ACS33+ACW33+ADA33+ADE33+ADI33+ADM33+ADQ33+ADU33+ADY33+AEC33+AEG33+AEK33+AEO33+AES33+AEW33+AFA33+AFE33+AFI33+AFM33+AFQ33+AFU33+AFY33+AGC33+AGG33+AGK33+AGO33+AGS33+AGW33 -> 44 | AHB33: =ACH33+ACL33+ACP33+ACT33+ACX33+ADB33+ADF33+ADJ33+ADN33+ADR33+ADV33+ADZ33+AED33+AEH33+AEL33+AEP33+AET33+AEX33+AFB33+AFF33+AFJ33+AFN33+AFR33+AFV33+AFZ33+AGD33+AGH33+AGL33+AGP33+AGT33+AGX33 -> 39 | AHC33: =ACI33+ACM33+ACQ33+ACU33+ACY33+ADC33+ADG33+ADK33+ADO33+ADS33+ADW33+AEA33+AEE33+AEI33+AEM33+AEQ33+AEU33+AEY33+AFC33+AFG33+AFK33+AFO33+AFS33+AFW33+AGA33+AGE33+AGI33+AGM33+AGQ33+AGU33+AGY33 -> 27 | AHD33: =ACJ33+ACN33+ACR33+ACV33+ACZ33+ADD33+ADH33+ADL33+ADP33+ADT33+ADX33+AEB33+AEF33+AEJ33+AEN33+AER33+AEV33+AEZ33+AFD33+AFH33+AFL33+AFP33+AFT33+AFX33+AGB33+AGF33+AGJ33+AGN33+AGR33+AGV33+AGZ33 -> 0 | AHF33: 4 | AHG33: 1 | AHK33: 1 | AHN33: 5 | AHO33: 1 | AHV33: 5 | AHW33: 1 | AIA33: 1 | AIE33: 1 | AIH33: 5 | AII33: 1 | AIK33: 5 | AIM33: 1 | AIQ33: 1 | AIW33: 4 | AIY33: 1 | AJA33: 4 | AJC33: 1 | AJE33: 4 | AJG33: 1 | AJJ33: 4 | AJK33: 1 | AJN33: 4 | AJO33: 1 | AJR33: 4 | AJS33: 1 | AJZ33: 3 | AKA33: 1 | AKD33: 4 | AKE33: 1 | AKH33: 4 | AKI33: 1 | AKK33: 4 | AKM33: 1 | AKO33: 4 | AKQ33: 1 | AKS33: 3 | AKU33: 1 | ALB33: 4 | ALC33: 1 | ALG33: 1 | ALJ33: 5 | ALK33: 1 | ALN33: 5 | ALO33: 1 | ALR33: 5 | ALS33: 1 | ALV33: 5 | ALW33: 1 | ALY33: =AHE33+AHI33+AHM33+AHQ33+AHU33+AHY33+AIC33+AIG33+AIK33+AIO33+AIS33+AIW33+AJA33+AJE33+AJI33+AJM33+AJQ33+AJU33+AJY33+AKC33+AKG33+AKK33+AKO33+AKS33+AKW33+ALA33+ALE33+ALI33+ALM33+ALQ33+ALU33 -> 28 | ALZ33: =AHF33+AHJ33+AHN33+AHR33+AHV33+AHZ33+AID33+AIH33+AIL33+AIP33+AIT33+AIX33+AJB33+AJF33+AJJ33+AJN33+AJR33+AJV33+AJZ33+AKD33+AKH33+AKL33+AKP33+AKT33+AKX33+ALB33+ALF33+ALJ33+ALN33+ALR33+ALV33 -> 66 | AMA33: =AHG33+AHK33+AHO33+AHS33+AHW33+AIA33+AIE33+AII33+AIM33+AIQ33+AIU33+AIY33+AJC33+AJG33+AJK33+AJO33+AJS33+AJW33+AKA33+AKE33+AKI33+AKM33+AKQ33+AKU33+AKY33+ALC33+ALG33+ALK33+ALO33+ALS33+ALW33 -> 27 | AMB33: =AHH33+AHL33+AHP33+AHT33+AHX33+AIB33+AIF33+AIJ33+AIN33+AIR33+AIV33+AIZ33+AJD33+AJH33+AJL33+AJP33+AJT33+AJX33+AKB33+AKF33+AKJ33+AKN33+AKR33+AKV33+AKZ33+ALD33+ALH33+ALL33+ALP33+ALT33+ALX33 -> 0 | AMH33: 5 | AMI33: 1 | AML33: 5 | AMM33: 1 | AMP33: 3 | AMQ33: 1 | AMT33: 4 | AMU33: 1 | AMW33: 5 | AMY33: 1 | ANA33: 5 | ANC33: 1 | ANJ33: 5 | ANK33: 1 | ANO33: 1 | ANS33: 1 | ANV33: 5 | ANW33: 1 | ANZ33: 5 | AOA33: 1 | AOC33: 5 | AOE33: 1 | AOM33: 1 | AOP33: 10 | AOQ33: 1 | AOS33: 5 | AOU33: 1 | AOY33: 1 | APA33: 5 | APC33: 1 | APG33: 1 | APO33: 1 | APQ33: 5 | APS33: 1 | APU33: 5 | APW33: 1 | APZ33: 5 | AQA33: 1 | AQE33: 1 | AQH33: 5 | AQI33: 1 | AQO33: 5 | AQQ33: 1 | AQS33: =AMC33+AMG33+AMK33+AMO33+AMS33+AMW33+ANA33+ANE33+ANI33+ANM33+ANQ33+ANU33+ANY33+AOC33+AOG33+AOK33+AOO33+AOS33+AOW33+APA33+APE33+API33+APM33+APQ33+APU33+APY33+AQC33+AQG33+AQK33+AQO33 -> 40 | AQT33: =AMD33+AMH33+AML33+AMP33+AMT33+AMX33+ANB33+ANF33+ANJ33+ANN33+ANR33+ANV33+ANZ33+AOD33+AOH33+AOL33+AOP33+AOT33+AOX33+APB33+APF33+APJ33+APN33+APR33+APV33+APZ33+AQD33+AQH33+AQL33+AQP33 -> 52 | AQU33: =AME33+AMI33+AMM33+AMQ33+AMU33+AMY33+ANC33+ANG33+ANK33+ANO33+ANS33+ANW33+AOA33+AOE33+AOI33+AOM33+AOQ33+AOU33+AOY33+APC33+APG33+APK33+APO33+APS33+APW33+AQA33+AQE33+AQI33+AQM33+AQQ33 -> 25 | AQV33: =AMF33+AMJ33+AMN33+AMR33+AMV33+AMZ33+AND33+ANH33+ANL33+ANP33+ANT33+ANX33+AOB33+AOF33+AOJ33+AON33+AOR33+AOV33+AOZ33+APD33+APH33+APL33+APP33+APT33+APX33+AQB33+AQF33+AQJ33+AQN33+AQR33 -> 0 | AQW33: 4 | AQY33: 1 | ARA33: 5 | ARC33: 1 | ARE33: 3 | ARG33: 1 | ARJ33: 3 | ARK33: 1 | ARN33: 3 | ARO33: 1 | ARV33: 3 | ARW33: 1 | ARZ33: 3 | ASA33: 1 | ASD33: 3 | ASE33: 1 | ASG33: 3 | ASI33: 1 | ASP33: 3 | ASQ33: 1 | ASW33: 3 | ASY33: 1 | ATA33: 3 | ATC33: 1 | ATG33: 1 | ATN33: 4 | ATO33: 1 | ATQ33: 4 | ATS33: 1 | ATY33: 4 | AUA33: 1 | AUE33: 1 | AUI33: 1 | AUM33: 1 | AUP33: 4 | AUQ33: 1 | AUT33: 4 | AUU33: 1 | AVA33: 4 | AVC33: 1 | AVG33: 1 | AVI33: 4 | AVK33: 1 | AVQ33: =AQW33+ARA33+ARE33+ARI33+ARM33+ARQ33+ARU33+ARY33+ASC33+ASG33+ASK33+ASO33+ASS33+ASW33+ATA33+ATE33+ATI33+ATM33+ATQ33+ATU33+ATY33+AUC33+AUG33+AUK33+AUO33+AUS33+AUW33+AVA33+AVE33+AVI33+AVM33 -> 37 | AVR33: =AQX33+ARB33+ARF33+ARJ33+ARN33+ARR33+ARV33+ARZ33+ASD33+ASH33+ASL33+ASP33+AST33+ASX33+ATB33+ATF33+ATJ33+ATN33+ATR33+ATV33+ATZ33+AUD33+AUH33+AUL33+AUP33+AUT33+AUX33+AVB33+AVF33+AVJ33+AVN33 -> 30 | AVS33: =AQY33+ARC33+ARG33+ARK33+ARO33+ARS33+ARW33+ASA33+ASE33+ASI33+ASM33+ASQ33+ASU33+ASY33+ATC33+ATG33+ATK33+ATO33+ATS33+ATW33+AUA33+AUE33+AUI33+AUM33+AUQ33+AUU33+AUY33+AVC33+AVG33+AVK33+AVO33 -> 24 | AVT33: =AQZ33+ARD33+ARH33+ARL33+ARP33+ART33+ARX33+ASB33+ASF33+ASJ33+ASN33+ASR33+ASV33+ASZ33+ATD33+ATH33+ATL33+ATP33+ATT33+ATX33+AUB33+AUF33+AUJ33+AUN33+AUR33+AUV33+AUZ33+AVD33+AVH33+AVL33+AVP33 -> 0 | AVU33: 5 | AVW33: 1 | AVY33: 5 | AWA33: 1 | AWG33: 5 | AWI33: 1 | AWM33: 1 | AWO33: 5 | AWQ33: 1 | AWS33: 5 | AWU33: 1 | AWW33: 6 | AWY33: 1 | AXA33: 5 | AXC33: 1 | AXI33: 5 | AXK33: 1 | AXM33: 5 | AXO33: 1 | AXQ33: 5 | AXS33: 1 | AXU33: 5 | AXW33: 1 | AXY33: 5 | AYA33: 1 | AYC33: 5 | AYE33: 1 | AYL33: 5 | AYM33: 1 | AYP33: 5 | AYQ33: 1 | AYS33: 5 | AYU33: 1 | AYW33: 5 | AYY33: 1 | AZA33: 5 | AZC33: 1 | AZE33: 5 | AZG33: 1 | AZM33: 5 | AZO33: 1 | AZQ33: 5 | AZS33: 1 | AZU33: 5 | AZW33: 1 | AZY33: 5 | BAA33: 1 | BAC33: 5 | BAE33: 1 | BAG33: 5 | BAI33: 1 | BAK33: =AVU33+AVY33+AWC33+AWG33+AWK33+AWO33+AWS33+AWW33+AXA33+AXE33+AXI33+AXM33+AXQ33+AXU33+AXY33+AYC33+AYG33+AYK33+AYO33+AYS33+AYW33+AZA33+AZE33+AZI33+AZM33+AZQ33+AZU33+AZY33+BAC33+BAG33 -> 116 | BAL33: =AVV33+AVZ33+AWD33+AWH33+AWL33+AWP33+AWT33+AWX33+AXB33+AXF33+AXJ33+AXN33+AXR33+AXV33+AXZ33+AYD33+AYH33+AYL33+AYP33+AYT33+AYX33+AZB33+AZF33+AZJ33+AZN33+AZR33+AZV33+AZZ33+BAD33+BAH33 -> 10 | BAM33: =AVW33+AWA33+AWE33+AWI33+AWM33+AWQ33+AWU33+AWY33+AXC33+AXG33+AXK33+AXO33+AXS33+AXW33+AYA33+AYE33+AYI33+AYM33+AYQ33+AYU33+AYY33+AZC33+AZG33+AZK33+AZO33+AZS33+AZW33+BAA33+BAE33+BAI33 -> 26 | BAN33: =AVX33+AWB33+AWF33+AWJ33+AWN33+AWR33+AWV33+AWZ33+AXD33+AXH33+AXL33+AXP33+AXT33+AXX33+AYB33+AYF33+AYJ33+AYN33+AYR33+AYV33+AYZ33+AZD33+AZH33+AZL33+AZP33+AZT33+AZX33+BAB33+BAF33+BAJ33 -> 0 | BAU33: 3 | BAY33: 1 | BBC33: 1 | BBG33: 2 | BBI33: 3 | BBK33: 2 | BBO33: 2 | BBU33: 3 | BBW33: 2 | BCA33: 2 | BCC33: 3 | BCE33: 2 | BCI33: 2 | BCM33: 2 | BCQ33: 2 | BCY33: 2 | BDB33: 4 | BDC33: 2 | BDF33: 3 | BDG33: 2 | BDI33: 4 | BDK33: 2 | BDM33: 2 | BDO33: 2 | BDQ33: 5 | BDS33: 2 | BDY33: 5 | BEA33: 2 | BEC33: 5 | BEE33: 2 | BEG33: 5 | BEI33: 2 | BEK33: 5 | BEM33: 2 | BEO33: 5 | BEQ33: 2 | BES33: 4 | BEU33: 2 | BFB33: 4 | BFC33: 2 | BFF33: 4 | BFG33: 2 | BFI33: =BAO33+BAS33+BAW33+BBA33+BBE33+BBI33+BBM33+BBQ33+BBU33+BBY33+BCC33+BCG33+BCK33+BCO33+BCS33+BCW33+BDA33+BDE33+BDI33+BDM33+BDQ33+BDU33+BDY33+BEC33+BEG33+BEK33+BEO33+BES33+BEW33+BFA33+BFE33 -> 49 | BFJ33: =BAP33+BAT33+BAX33+BBB33+BBF33+BBJ33+BBN33+BBR33+BBV33+BBZ33+BCD33+BCH33+BCL33+BCP33+BCT33+BCX33+BDB33+BDF33+BDJ33+BDN33+BDR33+BDV33+BDZ33+BED33+BEH33+BEL33+BEP33+BET33+BEX33+BFB33+BFF33 -> 15 | BFK33: =BAQ33+BAU33+BAY33+BBC33+BBG33+BBK33+BBO33+BBS33+BBW33+BCA33+BCE33+BCI33+BCM33+BCQ33+BCU33+BCY33+BDC33+BDG33+BDK33+BDO33+BDS33+BDW33+BEA33+BEE33+BEI33+BEM33+BEQ33+BEU33+BEY33+BFC33+BFG33 -> 51 | BFL33: =BAR33+BAV33+BAZ33+BBD33+BBH33+BBL33+BBP33+BBT33+BBX33+BCB33+BCF33+BCJ33+BCN33+BCR33+BCV33+BCZ33+BDD33+BDH33+BDL33+BDP33+BDT33+BDX33+BEB33+BEF33+BEJ33+BEN33+BER33+BEV33+BEZ33+BFD33+BFH33 -> 0 | BFM33: =EG33+IS33+NQ33+SK33+XI33+ACC33+AHA33+ALY33+AQS33+AVQ33+BAK33+BFI33 -> 764 | BFN33: =EH33+IT33+NR33+SL33+XJ33+ACD33+AHB33+ALZ33+AQT33+AVR33+BAL33+BFJ33 -> 650 | BFO33: =EI33+IU33+NS33+SM33+XK33+ACE33+AHC33+AMA33+AQU33+AVS33+BAM33+BFK33 -> 360 | BFP33: =EJ33+IV33+NT33+SN33+XL33+ACF33+AHD33+AMB33+AQV33+AVT33+BAN33+BFL33 -> 0 | BFQ33: 63.66666667 | BFR33: 54.16666667 | BFS33: 30 | BFT33: 0 | BFU33: 12 | BFV33: 12 | BFW33: 12 | BFX33: 0
A34: 20 | B34: VIJAY503001TSBH00903 | C34: VIJAYALAKSHMI HOSPITAL | D34: H.No. 5-6-767, NEAR RAJIV GANDHI AUDITORIUM, OPP: RED CROSS BLOOD BANK, KHALEELWADI, NIZAMABAD - 503001. | E34: 50 | H34: Dr. SUJATHA | I34: 9848066832 | J34: drsujatha@gmail.com | K34: Private | L34: Bedded | M34: 5 | N34: 5 | O34: 2 | Q34: 5 | R34: 5 | S34: 2 | U34: 5 | V34: 5 | W34: 2 | Y34: 5 | Z34: 5 | AA34: 2 | AC34: 5 | AE34: 2 | AG34: 5 | AH34: 5 | AI34: 2 | AM34: 2 | AO34: 5 | AP34: 5 | AQ34: 2 | AS34: 5 | AT34: 5 | AU34: 2 | AW34: 5 | AX34: 5 | AY34: 2 | BA34: 10 | BC34: 2 | BE34: 15 | BG34: 2 | BI34: 5 | BJ34: 5 | BK34: 2 | BQ34: 5 | BR34: 2 | BS34: 2 | BU34: 5 | BV34: 5 | BW34: 2 | BY34: 5 | BZ34: 2 | CA34: 2 | CC34: 5 | CD34: 5 | CE34: 2 | CG34: 5 | CJ34: 5 | CK34: 5 | CL34: 5 | CM34: 2 | CO34: 5 | CQ34: 2 | CS34: 5 | CT34: 5 | CU34: 2 | CW34: 5 | CX34: 5 | CY34: 2 | DA34: 5 | DC34: 2 | DE34: 5 | DF34: 5 | DG34: 2 | DI34: 5 | DK34: 2 | DM34: 5 | DN34: 5 | DO34: 2 | DU34: 5 | DW34: 2 | DY34: 5 | EA34: 2 | EC34: 5 | ED34: 5 | EE34: 2 | EG34: 155 | EH34: 89 | EI34: 56 | EJ34: 5 | EK34: 5 | EL34: 5 | EO34: 5 | EP34: 5 | EQ34: 1 | ES34: 5 | ET34: 5 | EU34: 1 | FA34: 5 | FB34: 5 | FC34: 1 | FE34: 5 | FF34: 5 | FG34: 1 | FI34: 5 | FK34: 1 | FM34: 5 | FN34: 5 | FO34: 1 | FQ34: 5 | FR34: 5 | FS34: 1 | FU34: 5 | FV34: 5 | FW34: 1 | GC34: 5 | GD34: 5 | GE34: 1 | GG34: 5 | GH34: 5 | GI34: 1 | GK34: 5 | GL34: 5 | GM34: 1 | GO34: 5 | GP34: 5 | GQ34: 1 | GS34: 5 | GT34: 5 | GU34: 1 | GW34: 5 | GX34: 5 | GY34: 1 | HE34: 5 | HF34: 5 | HG34: 1 | HI34: 5 | HJ34: 5 | HK34: 1 | HM34: 5 | HN34: 5 | HO34: 1 | HQ34: 5 | HR34: 5 | HS34: 1 | HU34: 5 | HV34: 5 | HW34: 1 | HY34: 5 | HZ34: 5 | IA34: 1 | ID34: 5 | IE34: 1 | IG34: 5 | IH34: 5 | II34: 1 | IL34: 5 | IM34: 1 | IO34: 5 | IP34: 5 | IQ34: 1 | IS34: 115 | IT34: 120 | IU34: 24 | IV34: 0 | IX34: 5 | IY34: 1 | JB34: 5 | JC34: 1 | JK34: 1 | JM34: 5 | JN34: 5 | JO34: 1 | JS34: 1 | JW34: 1 | KA34: 1 | KE34: 1 | KK34: 5 | KL34: 5 | KM34: 1 | KO34: 5 | KP34: 5 | KQ34: 1 | KU34: 1 | KW34: 5 | KY34: 1 | LA34: 5 | LB34: 5 | LC34: 1 | LE34: 5 | LF34: 5 | LG34: 1 | LM34: 5 | LN34: 5 | LO34: 1 | LS34: 1 | LU34: 5 | LV34: 5 | LW34: 1 | LY34: 5 | LZ34: 5 | MA34: 1 | MC34: 5 | MD34: 5 | ME34: 1 | MG34: 5 | MH34: 5 | MI34: 1 | MO34: 5 | MP34: 5 | MQ34: 1 | MW34: 5 | MX34: 5 | MY34: 1 | NA34: 5 | NC34: 1 | NE34: 5 | NF34: 5 | NG34: 1 | NI34: 5 | NK34: 1 | NQ34: 80 | NR34: 75 | NS34: 25 | NT34: 0 | NU34: 5 | NV34: 5 | NW34: 1 | NY34: 5 | NZ34: 5 | OA34: 1 | OC34: 5 | OD34: 5 | OE34: 1 | OG34: 5 | OH34: 5 | OI34: 1 | OK34: 5 | OL34: 5 | OM34: 1 | OO34: 5 | OP34: 5 | OQ34: 1 | OW34: 5 | OY34: 1 | PG34: 1 | PI34: 5 | PJ34: 5 | PK34: 1 | PM34: 5 | PN34: 5 | PO34: 1 | PQ34: 5 | PR34: 5 | QA34: 1 | QC34: 5 | QD34: 5 | QE34: 1 | QG34: 5 | QH34: 5 | QI34: 1 | QK34: 5 | QL34: 5 | QM34: 1 | QO34: 2 | QP34: 2 | QQ34: 1 | QS34: 5 | QT34: 5 | QU34: 1 | RB34: 5 | RC34: 1 | RF34: 5 | RG34: 1 | RK34: 1 | RO34: 1 | RQ34: 5 | RR34: 5 | RS34: 1 | RU34: 5 | RV34: 5 | RW34: 1 | SC34: 5 | SD34: 5 | SE34: 1 | SI34: 1 | SK34: 87 | SL34: 92 | SM34: 24 | SN34: 0 | SO34: 5 | SP34: 5 | SQ34: 1 | SS34: 5 | ST34: 5 | SU34: 1 | SW34: 5 | SX34: 5 | SY34: 1 | TA34: 5 | TB34: 5 | TC34: 1 | TK34: 1 | TN34: 5 | TO34: 1 | TR34: 5 | TS34: 1 | TV34: 5 | TW34: 1 | TZ34: 5 | UA34: 1 | UD34: 2 | UE34: 1 | UL34: 5 | UM34: 1 | UP34: 5 | UQ34: 1 | UT34: 5 | UU34: 1 | UX34: 5 | UY34: 1 | VB34: 5 | VC34: 1 | VE34: 5 | VG34: 1 | VM34: 5 | VO34: 1 | VQ34: 5 | VS34: 1 | VU34: 8 | VW34: 1 | VY34: 5 | WA34: 1 | WD34: 5 | WE34: 1 | WG34: 5 | WI34: 1 | WQ34: 1 | WU34: 1 | WY34: 1 | XA34: 3 | XC34: 1 | XG34: 1 | XI34: 56 | XJ34: 72 | XK34: 27 | XL34: 0 | XO34: 1 | XV34: 5 | XW34: 1 | XZ34: 5 | YA34: 1 | YD34: 5 | YE34: 1 | YG34: 5 | YI34: 1 | YL34: 5 | YM34: 1 | YP34: 5 | YQ34: 1 | YY34: 1 | ZB34: 5 | ZC34: 1 | ZF34: 5 | ZG34: 1 | ZI34: 5 | ZK34: 1 | ZM34: 3 | ZO34: 1 | ZQ34: 5 | ZS34: 1 | ZZ34: 5 | AAA34: 1 | AAD34: 5 | AAI34: 1 | AAK34: 3 | AAM34: 1 | AAP34: 3 | AAQ34: 1 | AAU34: 1 | ABA34: 5 | ABC34: 1 | ABF34: 5 | ABG34: 1 | ABK34: 1 | ABO34: 1 | ABS34: 1 | ABW34: 1 | ACC34: 26 | ACD34: 53 | ACE34: 24 | ACF34: 0 | ACI34: 1 | ACL34: 5 | ACM34: 1 | ACQ34: 1 | ACT34: 5 | ACU34: 1 | ACY34: 1 | ADC34: 1 | ADJ34: 5 | ADK34: 1 | ADN34: 2 | ADO34: 1 | ADR34: 5 | ADS34: 1 | ADV34: 5 | ADW34: 1 | ADZ34: 5 | AEA34: 1 | AED34: 5 | AEE34: 1 | AEL34: 5 | AEM34: 1 | AEP34: 4 | AEQ34: 1 | AEU34: 1 | AEX34: 4 | AEY34: 1 | AFB34: 4 | AFC34: 1 | AFF34: 5 | AFG34: 1 | AFM34: 5 | AFO34: 1 | AFR34: 5 | AFS34: 1 | AFU34: 5 | AFW34: 1 | AFY34: 5 | AGA34: 1 | AGE34: 1 | AGG34: 5 | AGI34: 1 | AGO34: 5 | AGQ34: 1 | AGS34: 6 | AGU34: 1 | AGW34: 4 | AGY34: 1 | AHA34: 35 | AHB34: 64 | AHC34: 27 | AHD34: 0 | AHF34: 5 | AHG34: 1 | AHJ34: 5 | AHK34: 1 | AHM34: 5 | AHO34: 1 | AHU34: 5 | AHW34: 1 | AHZ34: 5 | AIA34: 1 | AID34: 5 | AIE34: 1 | AIH34: 5 | AII34: 1 | AIL34: 5 | AIM34: 1 | AIP34: 5 | AIQ34: 1 | AIX34: 5 | AIY34: 1 | AJA34: 5 | AJC34: 1 | AJE34: 5 | AJG34: 1 | AJJ34: 5 | AJK34: 1 | AJN34: 5 | AJO34: 1 | AJR34: 5 | AJS34: 1 | AJZ34: 3 | AKA34: 1 | AKD34: 5 | AKE34: 1 | AKH34: 5 | AKI34: 1 | AKK34: 5 | AKM34: 1 | AKO34: 5 | AKQ34: 1 | AKS34: 4 | AKU34: 1 | ALB34: 5 | ALC34: 1 | ALF34: 5 | ALG34: 1 | ALJ34: 5 | ALK34: 1 | ALN34: 5 | ALO34: 1 | ALR34: 5 | ALS34: 1 | ALV34: 5 | ALW34: 1 | ALY34: 34 | ALZ34: 98 | AMA34: 27 | AMB34: 0 | AMI34: 1 | AMM34: 1 | AMQ34: 1 | AMU34: 1 | AMX34: 5 | AMY34: 1 | ANB34: 5 | ANC34: 1 | ANI34: 7 | ANK34: 1 | ANM34: 7 | ANO34: 1 | ANQ34: 5 | ANS34: 1 | ANU34: 5 | ANW34: 1 | AOA34: 1 | AOE34: 1 | AOM34: 1 | AOO34: 2 | AOQ34: 1 | AOS34: 5 | AOU34: 1 | AOX34: 5 | AOY34: 1 | APA34: 5 | APC34: 1 | APF34: 2 | APG34: 1 | APN34: 5 | APO34: 1 | APQ34: 5 | APS34: 1 | APU34: 5 | APW34: 1 | APZ34: 5 | AQA34: 1 | AQD34: 5 | AQE34: 1 | AQI34: 1 | AQQ34: 1 | AQS34: 46 | AQT34: 32 | AQU34: 25 | AQV34: 0 | AQW34: 5 | AQY34: 1 | ARA34: 5 | ARC34: 1 | ARE34: 5 | ARG34: 1 | ARI34: 3 | ARK34: 1 | ARO34: 1 | ARU34: 5 | ARW34: 1 | ARY34: 5 | ASA34: 1 | ASE34: 1 | ASH34: 5 | ASI34: 1 | ASP34: 5 | ASQ34: 1 | ASX34: 3 | ASY34: 1 | ATB34: 5 | ATC34: 1 | ATF34: 5 | ATG34: 1 | ATM34: 5 | ATN34: 5 | ATO34: 1 | ATR34: 4 | ATS34: 1 | ATZ34: 4 | AUA34: 1 | AUD34: 5 | AUE34: 1 | AUG34: 6 | AUI34: 1 | AUM34: 1 | AUO34: 5 | AUQ34: 1 | AUT34: 6 | AUU34: 1 | AVA34: 6 | AVC34: 1 | AVE34: 6 | AVG34: 1 | AVI34: 6 | AVK34: 1 | AVQ34: 62 | AVR34: 47 | AVS34: 24 | AVT34: 0 | AVU34: 5 | AVW34: 1 | AWA34: 1 | AWG34: 2 | AWI34: 1 | AWK34: 5 | AWM34: 1 | AWO34: 2 | AWQ34: 1 | AWS34: 5 | AWU34: 1 | AWW34: 2 | AWY34: 1 | AXA34: 5 | AXC34: 1 | AXI34: 5 | AXK34: 1 | AXM34: 4 | AXO34: 1 | AXQ34: 4 | AXS34: 1 | AXU34: 5 | AXW34: 1 | AXY34: 5 | AYA34: 1 | AYC34: 3 | AYD34: 4 | AYE34: 1 | AYK34: 5 | AYM34: 1 | AYO34: 5 | AYQ34: 1 | AYS34: 5 | AYU34: 1 | AYW34: 4 | AYY34: 1 | AZA34: 5 | AZC34: 1 | AZE34: 5 | AZG34: 1 | AZN34: 5 | AZO34: 1 | AZQ34: 4 | AZS34: 1 | AZU34: 5 | AZW34: 1 | AZY34: 5 | BAA34: 1 | BAC34: 5 | BAE34: 1 | BAG34: 5 | BAI34: 1 | BAK34: 105 | BAL34: 9 | BAM34: 26 | BAN34: 0 | BAU34: 5 | BAY34: 1 | BBC34: 1 | BBG34: 2 | BBK34: 2 | BBO34: 2 | BBU34: 5 | BBW34: 2 | BBY34: 6 | BCA34: 2 | BCE34: 2 | BCG34: 6 | BCI34: 2 | BCK34: 5 | BCM34: 2 | BCO34: 5 | BCQ34: 2 | BCW34: 6 | BCY34: 2 | BDA34: 5 | BDC34: 2 | BDG34: 2 | BDJ34: 5 | BDK34: 2 | BDM34: 6 | BDO34: 2 | BDQ34: 6 | BDS34: 2 | BEA34: 2 | BEE34: 2 | BEH34: 6 | BEI34: 2 | BEK34: 6 | BEM34: 2 | BEO34: 6 | BEQ34: 2 | BEU34: 2 | BFA34: 5 | BFC34: 2 | BFF34: 5 | BFG34: 2 | BFI34: 67 | BFJ34: 16 | BFK34: 53 | BFL34: 0 | BFM34: 868 | BFN34: 767 | BFO34: 362 | BFP34: 5 | BFQ34: 72.33333333 | BFR34: 63.91666667 | BFS34: 30.16666667 | BFT34: 5 | BFU34: 12 | BFV34: 12 | BFW34: 12 | BFX34: 1
B35: 49 TO 20 BEDS HCFs
